Workbook

Sheet Pilotage Pros
B1: SUIVI HEBDOMADAIRE DES VENTES PROS AU 13/11/2018 | AG1: S45 | AH1: CEA | AI1: 199 | AJ1: M | AK1: 201807 | AL1: M | AM1: 201807 | AN1: =VLOOKUP(B4,AH:AI,2,FALSE) -> 199 | AP1: DCP | AS1: =IF(AU1="",$AU15,AU1) -> TOUS | AU1: =IF($O$4="DCP","TOUS",IF($O$4=AX1,AW1,"")) -> TOUS | AW1: Christelle ARCIN | AX1: Michel LIENHARDT | AY1: 0 | AZ1: 0.9
AH2: DIRECTION COMMERCIALE BAS-RHIN | AI2: 262 | AJ2: M-1 | AK2: 201806 | AL2: M-1 | AM2: 201806 | AN2: =VLOOKUP(AA4,AW:AY,3,0) ->  | AP2: Michel LIENHARDT | AS2: =IF(AU2="",$AU16,AU2) -> TOUS | AU2: =IF($O$4="DCP","TOUS",IF($O$4=AX2,AW2,"")) -> TOUS | AW2: Catherine JOST | AX2: Michel LIENHARDT | AY2: 0 | AZ2: 0.9
B3: ENTITE | O3: DCP | AA3: CCPRO | AH3: DIRECTION COMMERCIALE HAUT-RHIN | AI3: 264 | AJ3: Déc | AK3: 201712 | AL3: Déc | AM3: 201712 | AP3: Sylvie MALISKA | AS3: TOUS | AU3: =IF($O$4="DCP","TOUS",IF($O$4=AX3,AW3,"")) -> TOUS | AW3: Muriel GAUTHIER-LAFAYE | AX3: Michel LIENHARDT | AY3: 0
B4: CEA | O4: DCP | AA4: TOUS | AH4: SECTEUR BRUMATH | AI4: 5030 | AJ4: FDC | AK4: A changer quand mensuelles chargées | AL4: EQUIPES | AM4: A changer quand mensuelles chargées | AS4: TOUS | AU4: TOUS | AW4: Olivier SCHOTT | AX4: Michel LIENHARDT | AY4: 0
AH5: SECTEUR HAGUENAU | AI5: 5060 | AS5: TOUS | AU5: TOUS | AW5: Victor AMAND | AX5: Michel LIENHARDT | AY5: 0
B6: % objectif saisonnalisé : | F6: =VLOOKUP(AG1,SAISONNALITE!A:C,3,FALSE) -> 0.892 | I6: % objectif saisonnalisé bonus régularité : | O6: =VLOOKUP(AG1,SAISONNALITE!A:E,5,FALSE) -> 0 | T6: ETP moyen : | X6: =IF(AA4<>"TOUS",VLOOKUP(AA4,ETP!A:B,2,FALSE),"-") -> - | AH6: SECTEUR WISSEMBOURG | AI6: 5071 | AS6: TOUS | AU6: TOUS | AW6: STARCK/CASTELEYN | AX6: Michel LIENHARDT | AY6: 0
AH7: SECTEUR INGWILLER | AI7: 5085 | AP7: =IF(O4="DCP","TOUS",IF(O4=$AP$2,AW1,AW1)) -> TOUS | AS7: TOUS | AU7: TOUS | AW7: Stéphane PAGNIER | AX7: Michel LIENHARDT | AY7: 0
B8: Famille | D8: Ouvertures | I8: Clôtures | L8: Ventes Nettes | T8: Famille | V8: Flux créditeurs | AA8: Excédent net | AH8: SECTEUR SAVERNE | AI8: 5087 | AS8: TOUS | AU8: TOUS | AW8: Cindy KIRCHER | AX8: Michel LIENHARDT | AY8: 0
D9: =AG1 -> S45 | E9: M | F9: Cumul | G9: OBJ Annuel | H9: % d'atteinte | I9: =AG1 -> S45 | J9: M | K9: Cumul | L9: =AG1 -> S45 | M9: M | N9: Cumul | O9: OBJ Annuel | P9: % d'atteinte | Q9: OBJ bonus | R9: % d'atteinte | V9: =AG1 -> S45 | W9: M | X9: Cumul | Y9: OBJ Annuel | Z9: % d'atteinte | AA9: =AG1 -> S45 | AB9: M | AC9: Cumul | AD9: OBJ Annuel | AE9: % d'atteinte | AF9: OBJ bonus | AG9: % d'atteinte | AH9: SECTEUR MOLSHEIM | AI9: 5116 | AS9: TOUS | AU9: TOUS | AW9: Catia MARCALO | AX9: Michel LIENHARDT | AY9: 0
AH10: SECTEUR NEUDORF | AI10: 5006 | AS10: TOUS | AU10: TOUS | AW10: Cedric KOEHLER | AX10: Michel LIENHARDT | AY10: 1
B11: CB | D11: =SUMIFS(BANCA!J:J,BANCA!E:E,'Pilotage Pros'!B11,BANCA!A:A,'Pilotage Pros'!AN1,BANCA!C:C,'Pilotage Pros'!O4,BANCA!D:D,'Pilotage Pros'!AA4) -> 12 | E11: =SUMIFS(BANCA!H:H,BANCA!E:E,'Pilotage Pros'!B11,BANCA!A:A,'Pilotage Pros'!AN1,BANCA!C:C,'Pilotage Pros'!O4,BANCA!D:D,'Pilotage Pros'!AA4) -> 20 | F11: =SUMIFS(BANCA!F:F,BANCA!E:E,'Pilotage Pros'!B11,BANCA!A:A,'Pilotage Pros'!AN1,BANCA!C:C,'Pilotage Pros'!O4,BANCA!D:D,'Pilotage Pros'!AA4) -> 1058 | G11: =IF(AA4<>"TOUS",X6*IF(AN2=1,OBJ_IND_80!C18,OBJ_IND_100!C18),(VLOOKUP(AN1,Objectifs!A:AE,9,FALSE))) -> 1400 | H11: =F11/G11 -> 0.7557142857 | I11: =SUMIFS(BANCA!K:K,BANCA!E:E,'Pilotage Pros'!B11,BANCA!A:A,'Pilotage Pros'!AN1,BANCA!C:C,'Pilotage Pros'!O4,BANCA!D:D,'Pilotage Pros'!AA4) -> 34 | J11: =SUMIFS(BANCA!I:I,BANCA!E:E,'Pilotage Pros'!B11,BANCA!A:A,'Pilotage Pros'!AN1,BANCA!C:C,'Pilotage Pros'!O4,BANCA!D:D,'Pilotage Pros'!AA4) -> 37 | K11: =SUMIFS(BANCA!G:G,BANCA!E:E,'Pilotage Pros'!B11,BANCA!A:A,'Pilotage Pros'!AN1,BANCA!C:C,'Pilotage Pros'!O4,BANCA!D:D,'Pilotage Pros'!AA4) -> 840 | L11: =D11-I11 -> -22 | M11: =E11-J11 -> -17 | N11: 218 | O11: =IF(AA4<>"TOUS",X6*IF(AN2=1,OBJ_IND_80!D18,OBJ_IND_100!D18),VLOOKUP(AN1,Objectifs!A:AE,10,FALSE)) -> 440 | P11: =N11/O11 -> 0.4954545455 | Q11: =IF(AA4="TOUS","-",X6*IF(AN2=1,OBJ_IND_80!F18,OBJ_IND_100!F18)) -> - | R11: =IF(AA4="TOUS","-",N11/Q11) -> - | T11: CEP | V11: =SUMIFS(EPARGNE!J:J,EPARGNE!E:E,'Pilotage Pros'!T11,EPARGNE!A:A,'Pilotage Pros'!AN1,EPARGNE!C:C,'Pilotage Pros'!O4,EPARGNE!D:D,'Pilotage Pros'!AA4) -> 1620350.83 | W11: =SUMIFS(EPARGNE!H:H,EPARGNE!E:E,'Pilotage Pros'!T11,EPARGNE!A:A,'Pilotage Pros'!AN1,EPARGNE!C:C,'Pilotage Pros'!O4,EPARGNE!D:D,'Pilotage Pros'!AA4) -> 2585372.13 | X11: =SUMIFS(EPARGNE!F:F,EPARGNE!E:E,'Pilotage Pros'!T11,EPARGNE!A:A,'Pilotage Pros'!AN1,EPARGNE!C:C,'Pilotage Pros'!O4,EPARGNE!D:D,'Pilotage Pros'!AA4) -> 78508995.13 | Y11: =IF(AA4<>"TOUS",X6*IF(AN2=1,OBJ_IND_80!C10*1000,OBJ_IND_100!C10*1000),"-") -> - | Z11: =IF(Y11="-","-",X11/Y11) -> - | AA11: =SUMIFS(EPARGNE!K:K,EPARGNE!E:E,'Pilotage Pros'!T11,EPARGNE!A:A,'Pilotage Pros'!AN1,EPARGNE!C:C,'Pilotage Pros'!O4,EPARGNE!D:D,'Pilotage Pros'!AA4) -> -193816.26 | AB11: =SUMIFS(EPARGNE!I:I,EPARGNE!E:E,'Pilotage Pros'!T11,EPARGNE!A:A,'Pilotage Pros'!AN1,EPARGNE!C:C,'Pilotage Pros'!O4,EPARGNE!D:D,'Pilotage Pros'!AA4) -> -528458.62 | AC11: =SUMIFS(EPARGNE!G:G,EPARGNE!E:E,'Pilotage Pros'!T11,EPARGNE!A:A,'Pilotage Pros'!AN1,EPARGNE!C:C,'Pilotage Pros'!O4,EPARGNE!D:D,'Pilotage Pros'!AA4) -> 10079412.57 | AD11: =IF(AA4<>"TOUS",X6*IF(AN2=1,OBJ_IND_80!D10*1000,OBJ_IND_100!D10*1000),VLOOKUP(AN1,Objectifs!A:AE,31,FALSE)) -> 10000000 | AE11: =IF(AD11="-","-",AC11/AD11) -> 1.007941257 | AF11: =IF(AA4<>"TOUS",X6*IF(AN2=1,OBJ_IND_80!F10*1000,OBJ_IND_100!F10*1000),"-") -> - | AG11: =IF(AA4="TOUS","-",AC11/AF11) -> - | AH11: SECTEUR ILLKIRCH | AI11: 5007 | AS11: TOUS | AU11: TOUS | AW11: Laurent SCHULTIS | AX11: Michel LIENHARDT | AY11: 0
B12: dont Platinum | D12: =SUMIFS(BANCA!J:J,BANCA!E:E,'Pilotage Pros'!B12,BANCA!A:A,'Pilotage Pros'!AN1,BANCA!C:C,'Pilotage Pros'!O4,BANCA!D:D,'Pilotage Pros'!AA4) -> 0 | E12: =SUMIFS(BANCA!H:H,BANCA!E:E,'Pilotage Pros'!B12,BANCA!A:A,'Pilotage Pros'!AN1,BANCA!C:C,'Pilotage Pros'!O4,BANCA!D:D,'Pilotage Pros'!AA4) -> 0 | F12: =SUMIFS(BANCA!F:F,BANCA!E:E,'Pilotage Pros'!B12,BANCA!A:A,'Pilotage Pros'!AN1,BANCA!C:C,'Pilotage Pros'!O4,BANCA!D:D,'Pilotage Pros'!AA4) -> 71 | G12: =IF(AA4<>"TOUS","-",(VLOOKUP(AN1,Objectifs!A:AE,27,FALSE))) -> 300 | H12: =IF(G12="-","-",F12/G12) -> 0.2366666667 | I12: =SUMIFS(BANCA!K:K,BANCA!E:E,'Pilotage Pros'!B12,BANCA!A:A,'Pilotage Pros'!AN1,BANCA!C:C,'Pilotage Pros'!O4,BANCA!D:D,'Pilotage Pros'!AA4) -> 1 | J12: =SUMIFS(BANCA!I:I,BANCA!E:E,'Pilotage Pros'!B12,BANCA!A:A,'Pilotage Pros'!AN1,BANCA!C:C,'Pilotage Pros'!O4,BANCA!D:D,'Pilotage Pros'!AA4) -> 1 | K12: =SUMIFS(BANCA!G:G,BANCA!E:E,'Pilotage Pros'!B12,BANCA!A:A,'Pilotage Pros'!AN1,BANCA!C:C,'Pilotage Pros'!O4,BANCA!D:D,'Pilotage Pros'!AA4) -> 43 | L12: =D12-I12 -> -1 | M12: =E12-J12 -> -1 | N12: =F12-K12 -> 28 | O12: =IF(AA4<>"TOUS","-",VLOOKUP(AN1,Objectifs!A:AE,28,FALSE)) -> 200 | P12: =IF(O12="-","-",N12/O12) -> 0.14 | Q12: - | R12: - | T12: PARTS SOCIALES | V12: =SUMIFS(EPARGNE!J:J,EPARGNE!E:E,'Pilotage Pros'!T12,EPARGNE!A:A,'Pilotage Pros'!AN1,EPARGNE!C:C,'Pilotage Pros'!O4,EPARGNE!D:D,'Pilotage Pros'!AA4) -> 31680 | W12: =SUMIFS(EPARGNE!H:H,EPARGNE!E:E,'Pilotage Pros'!T12,EPARGNE!A:A,'Pilotage Pros'!AN1,EPARGNE!C:C,'Pilotage Pros'!O4,EPARGNE!D:D,'Pilotage Pros'!AA4) -> 39200 | X12: =SUMIFS(EPARGNE!F:F,EPARGNE!E:E,'Pilotage Pros'!T12,EPARGNE!A:A,'Pilotage Pros'!AN1,EPARGNE!C:C,'Pilotage Pros'!O4,EPARGNE!D:D,'Pilotage Pros'!AA4) -> 4088680 | Y12: =IF(AA4<>"TOUS",X6*IF(AN2=1,OBJ_IND_80!C11*1000,OBJ_IND_100!C11*1000),"-") -> - | Z12: =IF(Y12="-","-",X12/Y12) -> - | AA12: =SUMIFS(EPARGNE!K:K,EPARGNE!E:E,'Pilotage Pros'!T12,EPARGNE!A:A,'Pilotage Pros'!AN1,EPARGNE!C:C,'Pilotage Pros'!O4,EPARGNE!D:D,'Pilotage Pros'!AA4) -> -18440 | AB12: =SUMIFS(EPARGNE!I:I,EPARGNE!E:E,'Pilotage Pros'!T12,EPARGNE!A:A,'Pilotage Pros'!AN1,EPARGNE!C:C,'Pilotage Pros'!O4,EPARGNE!D:D,'Pilotage Pros'!AA4) -> -10920 | AC12: =SUMIFS(EPARGNE!G:G,EPARGNE!E:E,'Pilotage Pros'!T12,EPARGNE!A:A,'Pilotage Pros'!AN1,EPARGNE!C:C,'Pilotage Pros'!O4,EPARGNE!D:D,'Pilotage Pros'!AA4) -> 2416700 | AD12: =IF(AA4<>"TOUS",X6*IF(AN2=1,OBJ_IND_80!D11*1000,OBJ_IND_100!D11*1000),"-") -> - | AE12: =IF(AD12="-","-",AC12/AD12) -> - | AF12: =IF(AA4<>"TOUS",X6*IF(AN2=1,OBJ_IND_80!F11*1000,OBJ_IND_100!F11*1000),"-") -> - | AG12: =IF(AA4="TOUS","-",AC12/AF12) -> - | AH12: SECTEUR ROBERTSAU | AI12: 5020 | AS12: TOUS | AU12: TOUS | AW12: Aissa ZOUARI | AX12: Michel LIENHARDT | AY12: 1
B13: Forfaits Pros | D13: =SUMIFS(BANCA!J:J,BANCA!E:E,'Pilotage Pros'!B13,BANCA!A:A,'Pilotage Pros'!AN1,BANCA!C:C,'Pilotage Pros'!O4,BANCA!D:D,'Pilotage Pros'!AA4) -> 11 | E13: =SUMIFS(BANCA!H:H,BANCA!E:E,'Pilotage Pros'!B13,BANCA!A:A,'Pilotage Pros'!AN1,BANCA!C:C,'Pilotage Pros'!O4,BANCA!D:D,'Pilotage Pros'!AA4) -> 17 | F13: =SUMIFS(BANCA!F:F,BANCA!E:E,'Pilotage Pros'!B13,BANCA!A:A,'Pilotage Pros'!AN1,BANCA!C:C,'Pilotage Pros'!O4,BANCA!D:D,'Pilotage Pros'!AA4) -> 967 | G13: =IF(AA4<>"TOUS",X6*IF(AN2=1,OBJ_IND_80!C17,OBJ_IND_100!C17),(VLOOKUP(AN1,Objectifs!A:AE,7,FALSE))) -> 1200 | H13: =F13/G13 -> 0.8058333333 | I13: =SUMIFS(BANCA!K:K,BANCA!E:E,'Pilotage Pros'!B13,BANCA!A:A,'Pilotage Pros'!AN1,BANCA!C:C,'Pilotage Pros'!O4,BANCA!D:D,'Pilotage Pros'!AA4) -> 38 | J13: =SUMIFS(BANCA!I:I,BANCA!E:E,'Pilotage Pros'!B13,BANCA!A:A,'Pilotage Pros'!AN1,BANCA!C:C,'Pilotage Pros'!O4,BANCA!D:D,'Pilotage Pros'!AA4) -> 43 | K13: =SUMIFS(BANCA!G:G,BANCA!E:E,'Pilotage Pros'!B13,BANCA!A:A,'Pilotage Pros'!AN1,BANCA!C:C,'Pilotage Pros'!O4,BANCA!D:D,'Pilotage Pros'!AA4) -> 603 | L13: =D13-I13 -> -27 | M13: =E13-J13 -> -26 | N13: =F13-K13 -> 364 | O13: =IF(AA4<>"TOUS",X6*IF(AN2=1,OBJ_IND_80!D17,OBJ_IND_100!D17),VLOOKUP(AN1,Objectifs!A:AE,8,FALSE)) -> 550 | P13: =N13/O13 -> 0.6618181818 | Q13: =IF(AA4="TOUS","-",X6*IF(AN2=1,OBJ_IND_80!F17,OBJ_IND_100!F17)) -> - | R13: =IF(AA4="TOUS","-",N13/Q13) -> - | T13: CA UC Nouvelles * | V13: =SUMIFS(EPARGNE!J:J,EPARGNE!E:E,"CA UC",EPARGNE!A:A,'Pilotage Pros'!AN1,EPARGNE!C:C,'Pilotage Pros'!O4,EPARGNE!D:D,'Pilotage Pros'!AA4) -> 22500 | W13: =SUMIFS(EPARGNE!H:H,EPARGNE!E:E,"CA UC",EPARGNE!A:A,'Pilotage Pros'!AN1,EPARGNE!C:C,'Pilotage Pros'!O4,EPARGNE!D:D,'Pilotage Pros'!AA4) -> 29514.52 | X13: =SUMIFS(EPARGNE!F:F,EPARGNE!E:E,"CA UC",EPARGNE!A:A,'Pilotage Pros'!AN1,EPARGNE!C:C,'Pilotage Pros'!O4,EPARGNE!D:D,'Pilotage Pros'!AA4) -> 4386385.15 | Y13: =IF(AA4<>"TOUS",X6*IF(AN2=1,OBJ_IND_80!C12*1000,OBJ_IND_100!C12*1000),"-") -> - | Z13: =IF(Y13="-","-",X13/Y13) -> - | AA13: - | AB13: - | AC13: - | AD13: - | AE13: - | AF13: - | AG13: - | AH13: SECTEUR HALLES | AI13: 5043 | AS13: TOUS | AU13: TOUS | AW13: Jeremy WEIBLE | AX13: Michel LIENHARDT | AY13: 1
B14: Bouquet Liberté | D14: =SUMIFS(BANCA!J:J,BANCA!E:E,'Pilotage Pros'!B14,BANCA!A:A,'Pilotage Pros'!AN1,BANCA!C:C,'Pilotage Pros'!O4,BANCA!D:D,'Pilotage Pros'!AA4) -> 4 | E14: =SUMIFS(BANCA!H:H,BANCA!E:E,'Pilotage Pros'!B14,BANCA!A:A,'Pilotage Pros'!AN1,BANCA!C:C,'Pilotage Pros'!O4,BANCA!D:D,'Pilotage Pros'!AA4) -> 8 | F14: =SUMIFS(BANCA!F:F,BANCA!E:E,'Pilotage Pros'!B14,BANCA!A:A,'Pilotage Pros'!AN1,BANCA!C:C,'Pilotage Pros'!O4,BANCA!D:D,'Pilotage Pros'!AA4) -> 596 | G14: =IF(AA4<>"TOUS",X6*IF(AN2=1,OBJ_IND_80!C37,OBJ_IND_100!C37),"-") -> - | H14: =IF(G14="-","-",F14/G14) -> - | I14: =SUMIFS(BANCA!K:K,BANCA!E:E,'Pilotage Pros'!B14,BANCA!A:A,'Pilotage Pros'!AN1,BANCA!C:C,'Pilotage Pros'!O4,BANCA!D:D,'Pilotage Pros'!AA4) -> 10 | J14: =SUMIFS(BANCA!I:I,BANCA!E:E,'Pilotage Pros'!B14,BANCA!A:A,'Pilotage Pros'!AN1,BANCA!C:C,'Pilotage Pros'!O4,BANCA!D:D,'Pilotage Pros'!AA4) -> 14 | K14: =SUMIFS(BANCA!G:G,BANCA!E:E,'Pilotage Pros'!B14,BANCA!A:A,'Pilotage Pros'!AN1,BANCA!C:C,'Pilotage Pros'!O4,BANCA!D:D,'Pilotage Pros'!AA4) -> 350 | L14: =D14-I14 -> -6 | M14: =E14-J14 -> -6 | N14: =F14-K14 -> 246 | O14: =IF(AA4<>"TOUS",X6*IF(AN2=1,OBJ_IND_80!D37,OBJ_IND_100!D37),"-") -> - | P14: =IF(O14="-","-",N14/O14) -> - | Q14: =IF(AA4="TOUS","-",X6*IF(AN2=1,OBJ_IND_80!F37,OBJ_IND_100!F37)) -> - | R14: =IF(AA4="TOUS","-",N14/Q14) -> - | T14: Excédent total | V14: =SUMIFS(EPARGNE!J:J,EPARGNE!E:E,'Pilotage Pros'!T14,EPARGNE!A:A,'Pilotage Pros'!AN1,EPARGNE!C:C,'Pilotage Pros'!O4,EPARGNE!D:D,'Pilotage Pros'!AA4) -> 3059154.51 | W14: =SUMIFS(EPARGNE!H:H,EPARGNE!E:E,'Pilotage Pros'!T14,EPARGNE!A:A,'Pilotage Pros'!AN1,EPARGNE!C:C,'Pilotage Pros'!O4,EPARGNE!D:D,'Pilotage Pros'!AA4) -> 5180403.78 | X14: =SUMIFS(EPARGNE!F:F,EPARGNE!E:E,'Pilotage Pros'!T14,EPARGNE!A:A,'Pilotage Pros'!AN1,EPARGNE!C:C,'Pilotage Pros'!O4,EPARGNE!D:D,'Pilotage Pros'!AA4) -> 157506044.4 | Y14: - | Z14: - | AA14: =SUMIFS(EPARGNE!K:K,EPARGNE!E:E,'Pilotage Pros'!T14,EPARGNE!A:A,'Pilotage Pros'!AN1,EPARGNE!C:C,'Pilotage Pros'!O4,EPARGNE!D:D,'Pilotage Pros'!AA4) -> -426193.05 | AB14: =SUMIFS(EPARGNE!I:I,EPARGNE!E:E,'Pilotage Pros'!T14,EPARGNE!A:A,'Pilotage Pros'!AN1,EPARGNE!C:C,'Pilotage Pros'!O4,EPARGNE!D:D,'Pilotage Pros'!AA4) -> -519201.65 | AC14: =SUMIFS(EPARGNE!G:G,EPARGNE!E:E,'Pilotage Pros'!T14,EPARGNE!A:A,'Pilotage Pros'!AN1,EPARGNE!C:C,'Pilotage Pros'!O4,EPARGNE!D:D,'Pilotage Pros'!AA4) -> 15283496.48 | AD14: - | AE14: - | AF14: - | AG14: - | AH14: SECTEUR CRONENBOURG | AI14: 5047 | AS14: TOUS | AU14: TOUS | AW14: Fanny MOREAU | AX14: Michel LIENHARDT | AY14: 1
B15: TPE* | D15: - | E15: =SUMIFS(BANCA!H:H,BANCA!E:E,'Pilotage Pros'!B15,BANCA!A:A,'Pilotage Pros'!AN1,BANCA!C:C,'Pilotage Pros'!O4,BANCA!D:D,'Pilotage Pros'!AA4) -> 0 | F15: =SUMIFS(BANCA!F:F,BANCA!E:E,"TPE",BANCA!A:A,'Pilotage Pros'!AN1,BANCA!C:C,'Pilotage Pros'!O4,BANCA!D:D,'Pilotage Pros'!AA4) -> 589 | G15: =IF(AA4<>"TOUS",X6*IF(AN2=1,OBJ_IND_80!C19,OBJ_IND_100!C19),(VLOOKUP(AN1,Objectifs!A:AE,13,FALSE))) -> 600 | H15: =IF(G15="-","-",F15/G15) -> 0.9816666667 | I15: - | J15: =SUMIFS(BANCA!I:I,BANCA!E:E,'Pilotage Pros'!B15,BANCA!A:A,'Pilotage Pros'!AN1,BANCA!C:C,'Pilotage Pros'!O4,BANCA!D:D,'Pilotage Pros'!AA4) -> 0 | K15: =SUMIFS(BANCA!G:G,BANCA!E:E,'Pilotage Pros'!B15,BANCA!A:A,'Pilotage Pros'!AN1,BANCA!C:C,'Pilotage Pros'!O4,BANCA!D:D,'Pilotage Pros'!AA4) -> 290 | L15: - | M15: =E15-J15 -> 0 | N15: =F15-K15 -> 299 | O15: =IF(AA4<>"TOUS",X6*IF(AN2=1,OBJ_IND_80!D19,OBJ_IND_100!D19),VLOOKUP(AN1,Objectifs!A:AE,14,FALSE)) -> 350 | P15: =N15/O15 -> 0.8542857143 | Q15: =IF(AA4="TOUS","-",X6*IF(AN2=1,OBJ_IND_80!F19,OBJ_IND_100!F19)) -> - | R15: =IF(AA4="TOUS","-",N15/Q15) -> - | T15: * (yc arbitrages) | AH15: SECTEUR SELESTAT | AI15: 5101 | AS15: TOUS | AU15: TOUS | AW15: Jonathan KOCH | AX15: Michel LIENHARDT | AY15: 0
B16: * données arrêtées à fin octobre 2018 | AH16: SECTEUR OBERNAI | AI16: 5119 | AS16: TOUS | AU16: TOUS | AW16: Sarah CHRISTMANN | AX16: Michel LIENHARDT | AY16: 0
AH17: SECTEUR COLMAR | AI17: 5130 | AU17: TOUS | AW17: Anthony CRUZ | AX17: Sylvie MALISKA | AY17: 0
AH18: SECTEUR MUNSTER | AI18: 5143 | AU18: TOUS | AW18: Catherine MARION | AX18: Sylvie MALISKA | AY18: 0
AH19: SECTEUR GUEBWILLER | AI19: 5147 | AU19: TOUS | AW19: Militsa DENKOVA | AX19: Sylvie MALISKA | AY19: 1
B20: Famille | D20: Ouvertures | I20: Clôtures | L20: Ventes Nettes | T20: Famille | V20: Excédent net | AC20: Nombre | AH20: SECTEUR ROOSEVELT | AI20: 5169 | AU20: TOUS | AW20: Maxime OTT | AX20: Sylvie MALISKA | AY20: 0
D21: =AG1 -> S45 | E21: M | F21: Cumul | G21: OBJ Annuel | H21: % d'atteinte | I21: =AG1 -> S45 | J21: M | K21: Cumul | L21: =AG1 -> S45 | M21: M | N21: Cumul | O21: OBJ Annuel | P21: % d'atteinte | Q21: OBJ bonus | R21: % d'atteinte | V21: =AG1 -> S45 | W21: M | X21: Cumul | Y21: OBJ Annuel | Z21: % d'atteinte | AA21: OBJ bonus | AB21: % d'atteinte | AC21: =AG1 -> S45 | AD21: M | AE21: Cumul | AF21: OBJ Annuel | AG21: % d'atteinte | AH21: SECTEUR SAINT LOUIS | AI21: 5178 | AU21: TOUS | AW21: Hocine BOUHIEDA | AX21: Sylvie MALISKA | AY21: 0
AH22: SECTEUR ILLZACH | AI22: 5184 | AU22: TOUS | AW22: Thomas HUCK | AX22: Sylvie MALISKA | AY22: 0
B23: Prévoyance Pros | D23: =D24+D25 -> 0 | E23: =E24+E25 -> 0 | F23: 271 | G23: =IF(AA4<>"TOUS",X6*IF(AN2=1,OBJ_IND_80!C24,OBJ_IND_100!C24),(VLOOKUP(AN1,Objectifs!A:AE,15,FALSE))) -> 400 | H23: =IF(G23="-","-",F23/G23) -> 0.6775 | I23: =I24 -> 0 | J23: =J24 -> 0 | K23: 56 | L23: =L24+L25 -> 0 | M23: =M24+M25 -> 0 | N23: =N24+N25 -> 215 | O23: =IF(AA4<>"TOUS",X6*IF(AN2=1,OBJ_IND_80!D24,OBJ_IND_100!D24),(VLOOKUP(AN1,Objectifs!A:AE,16,FALSE))) -> 200 | P23: =IF(O23="-","-",N23/O23) -> 1.075 | Q23: =IF(AA4<>"TOUS",X6*IF(AN2=1,OBJ_IND_80!F24,OBJ_IND_100!F24),"-") -> - | R23: =IF(AA4="TOUS","-",N23/Q23) -> - | T23: MLT & Crédit bail | V23: =V24 -> 1204230 | W23: =+W24+W26 -> 1204430 | X23: =+X24+X26 -> 68476147.16 | Y23: =IF(AA4<>"TOUS",X6*IF(AN2=1,OBJ_IND_80!D15*1000,OBJ_IND_100!D15*1000),VLOOKUP(AN1,Objectifs!A:AE,29,FALSE)+VLOOKUP(AN1,Objectifs!A:AE,30,FALSE)) -> 74000000 | Z23: =IF(Y23="-","-",X23/Y23) -> 0.92535334 | AA23: =IF(AA4<>"TOUS",X6*IF(AN2=1,OBJ_IND_80!F15*1000,OBJ_IND_100!F15*1000),"-") -> - | AB23: =IF(AA23="-","-",X23/AA23) -> - | AC23: =+AC24 -> 0 | AD23: 12 | AE23: 655 | AF23: =IF(AA4<>"TOUS",X6*IF(AN2=1,OBJ_IND_80!D14,OBJ_IND_100!D14),"-") -> - | AG23: =IF(AF23="-","-",AE23/AF23) -> - | AH23: SECTEUR THANN | AI23: 5194 | AU23: TOUS | AW23: Emilie DUTHEL | AX23: Sylvie MALISKA | AY23: 0
B24: PAP | D24: =SUMIFS(Equipement!H:H,Equipement!E:E,'Pilotage Pros'!B24,Equipement!A:A,'Pilotage Pros'!AN1,Equipement!C:C,'Pilotage Pros'!O4,Equipement!D:D,'Pilotage Pros'!AA4) -> 0 | E24: =SUMIFS(Equipement!J:J,Equipement!E:E,'Pilotage Pros'!B24,Equipement!A:A,'Pilotage Pros'!AN1,Equipement!C:C,'Pilotage Pros'!O4,Equipement!D:D,'Pilotage Pros'!AA4) -> 0 | F24: =SUMIFS(Equipement!F:F,Equipement!E:E,'Pilotage Pros'!B24,Equipement!A:A,'Pilotage Pros'!AN1,Equipement!C:C,'Pilotage Pros'!O4,Equipement!D:D,'Pilotage Pros'!AA4) -> 153 | G24: - | H24: - | I24: =SUMIFS(Equipement!I:I,Equipement!E:E,'Pilotage Pros'!B24,Equipement!A:A,'Pilotage Pros'!AN1,Equipement!C:C,'Pilotage Pros'!O4,Equipement!D:D,'Pilotage Pros'!AA4) -> 0 | J24: =SUMIFS(Equipement!K:K,Equipement!E:E,'Pilotage Pros'!B24,Equipement!A:A,'Pilotage Pros'!AN1,Equipement!C:C,'Pilotage Pros'!O4,Equipement!D:D,'Pilotage Pros'!AA4) -> 0 | K24: =SUMIFS(Equipement!G:G,Equipement!E:E,'Pilotage Pros'!B24,Equipement!A:A,'Pilotage Pros'!AN1,Equipement!C:C,'Pilotage Pros'!O4,Equipement!D:D,'Pilotage Pros'!AA4) -> 56 | L24: =D24-I24 -> 0 | M24: =E24-J24 -> 0 | N24: 97 | O24: - | P24: - | Q24: - | R24: - | T24: MLT | V24: =SUMIFS(CREDITS!H:H,CREDITS!E:E,'Pilotage Pros'!T24,CREDITS!A:A,'Pilotage Pros'!AN1,CREDITS!C:C,'Pilotage Pros'!O4,CREDITS!D:D,'Pilotage Pros'!AA4) -> 1204230 | W24: =SUMIFS(CREDITS!J:J,CREDITS!E:E,'Pilotage Pros'!T24,CREDITS!A:A,'Pilotage Pros'!AN1,CREDITS!C:C,'Pilotage Pros'!O4,CREDITS!D:D,'Pilotage Pros'!AA4) -> 1204430 | X24: =SUMIFS(CREDITS!F:F,CREDITS!E:E,'Pilotage Pros'!T24,CREDITS!A:A,'Pilotage Pros'!AN1,CREDITS!C:C,'Pilotage Pros'!O4,CREDITS!D:D,'Pilotage Pros'!AA4) -> 67926147.16 | Y24: =IF(AA4<>"TOUS","-",VLOOKUP(AN1,Objectifs!A:AE,29,FALSE)) -> 70000000 | Z24: =IF(Y24="-","-",X24/Y24) -> 0.9703735309 | AA24: - | AB24: - | AC24: =SUMIFS(CREDITS!I:I,CREDITS!E:E,'Pilotage Pros'!T23,CREDITS!A:A,'Pilotage Pros'!AN1,CREDITS!C:C,'Pilotage Pros'!O4,CREDITS!D:D,'Pilotage Pros'!AA4) -> 0 | AD24: =SUMIFS(CREDITS!K:K,CREDITS!E:E,'Pilotage Pros'!T24,CREDITS!A:A,'Pilotage Pros'!AN1,CREDITS!C:C,'Pilotage Pros'!O4,CREDITS!D:D,'Pilotage Pros'!AA4) -> 12 | AE24: =SUMIFS(CREDITS!G:G,CREDITS!E:E,'Pilotage Pros'!T24,CREDITS!A:A,'Pilotage Pros'!AN1,CREDITS!C:C,'Pilotage Pros'!O4,CREDITS!D:D,'Pilotage Pros'!AA4) -> 654 | AF24: - | AG24: - | AH24: AGENCE BRUMATH | AI24: 4030 | AU24: TOUS | AW24: Sabrina PITTELLI | AX24: Sylvie MALISKA | AY24: 0
B25: ProTG | D25: =D26+D27+D28 -> 0 | E25: =E26+E27+E28 -> 0 | F25: 118 | G25: - | H25: - | I25: - | J25: - | K25: - | L25: =L26+L27+L28 -> 0 | M25: 0 | N25: 118 | O25: - | P25: - | Q25: - | R25: - | T25: dont prescription pro | V25: =IF(B4<>"CEA","",SUMIFS(CREDITS!H:H,CREDITS!E:E,"Prescription Pro",CREDITS!A:A,'Pilotage Pros'!AN1,CREDITS!C:C,'Pilotage Pros'!O4,CREDITS!D:D,'Pilotage Pros'!AA4)) -> 0 | W25: =IF(B4<>"CEA","",SUMIFS(CREDITS!J:J,CREDITS!E:E,"Prescription Pro",CREDITS!A:A,'Pilotage Pros'!AN1,CREDITS!C:C,'Pilotage Pros'!O4,CREDITS!D:D,'Pilotage Pros'!AA4)) -> -60000 | X25: =IF(B4<>"CEA","",SUMIFS(CREDITS!F:F,CREDITS!E:E,"Prescription Pro",CREDITS!A:A,'Pilotage Pros'!AN1,CREDITS!C:C,'Pilotage Pros'!O4,CREDITS!D:D,'Pilotage Pros'!AA4)) -> 10376791 | Y25: - | Z25: - | AA25: - | AB25: - | AC25: =IF(B4<>"CEA","",SUMIFS(CREDITS!I:I,CREDITS!E:E,"Prescription Pro",CREDITS!A:A,'Pilotage Pros'!AN1,CREDITS!C:C,'Pilotage Pros'!O4,CREDITS!D:D,'Pilotage Pros'!AA4)) -> 0 | AD25: =IF(B4<>"CEA","",SUMIFS(CREDITS!K:K,CREDITS!E:E,"Prescription Pro",CREDITS!A:A,'Pilotage Pros'!AN1,CREDITS!C:C,'Pilotage Pros'!O4,CREDITS!D:D,'Pilotage Pros'!AA4)) -> -1 | AE25: =IF(B4<>"CEA","",SUMIFS(CREDITS!G:G,CREDITS!E:E,"Prescription Pro",CREDITS!A:A,'Pilotage Pros'!AN1,CREDITS!C:C,'Pilotage Pros'!O4,CREDITS!D:D,'Pilotage Pros'!AA4)) -> 32 | AF25: - | AG25: - | AH25: AGENCE LA WANTZENAU | AI25: 4033 | AU25: TOUS | AW25: Sophie SALZBORN-SCHULLIAR | AX25: Sylvie MALISKA | AY25: 0
B26: dont Santé | D26: =SUMIFS(Equipement!H:H,Equipement!E:E,"Santé Pros",Equipement!A:A,'Pilotage Pros'!AN1,Equipement!C:C,'Pilotage Pros'!O4,Equipement!D:D,'Pilotage Pros'!AA4) -> 0 | E26: =SUMIFS(Equipement!J:J,Equipement!E:E,"Santé Pros",Equipement!A:A,'Pilotage Pros'!AN1,Equipement!C:C,'Pilotage Pros'!O4,Equipement!D:D,'Pilotage Pros'!AA4) -> 0 | F26: =SUMIFS(Equipement!F:F,Equipement!E:E,"Santé Pros",Equipement!A:A,'Pilotage Pros'!AN1,Equipement!C:C,'Pilotage Pros'!O4,Equipement!D:D,'Pilotage Pros'!AA4) -> 13 | G26: - | H26: - | I26: - | J26: - | K26: - | L26: =D26 -> 0 | M26: =E26 -> 0 | N26: 13 | O26: - | P26: - | Q26: - | R26: - | T26: Crédit bail* | V26: - | W26: =SUMIFS(CREDITS!J:J,CREDITS!E:E,"CREDIT BAIL",CREDITS!A:A,'Pilotage Pros'!AN1,CREDITS!C:C,'Pilotage Pros'!O4,CREDITS!D:D,'Pilotage Pros'!AA4) -> 0 | X26: =SUMIFS(CREDITS!F:F,CREDITS!E:E,"CREDIT BAIL",CREDITS!A:A,'Pilotage Pros'!AN1,CREDITS!C:C,'Pilotage Pros'!O4,CREDITS!D:D,'Pilotage Pros'!AA4) -> 550000 | Y26: =IF(AA4<>"TOUS","-",VLOOKUP(AN1,Objectifs!A:AE,30,FALSE)) -> 4000000 | Z26: 0.1375 | AA26: - | AB26: - | AC26: - | AD26: =SUMIFS(CREDITS!K:K,CREDITS!E:E,"CREDIT BAIL",CREDITS!A:A,'Pilotage Pros'!AN1,CREDITS!C:C,'Pilotage Pros'!O4,CREDITS!D:D,'Pilotage Pros'!AA4) -> 0 | AE26: =SUMIFS(CREDITS!G:G,CREDITS!E:E,"CREDIT BAIL",CREDITS!A:A,'Pilotage Pros'!AN1,CREDITS!C:C,'Pilotage Pros'!O4,CREDITS!D:D,'Pilotage Pros'!AA4) -> 1 | AF26: - | AG26: - | AH26: AGENCE MUNDOLSHEIM | AI26: 4037 | AU26: TOUS | AW26: Celine JUNG | AX26: Sylvie MALISKA | AY26: 1
B27: dont Prévoyance | D27: =SUMIFS(Equipement!H:H,Equipement!E:E,"Prévoyance",Equipement!A:A,'Pilotage Pros'!AN1,Equipement!C:C,'Pilotage Pros'!O4,Equipement!D:D,'Pilotage Pros'!AA4) -> 0 | E27: =SUMIFS(Equipement!J:J,Equipement!E:E,"Prévoyance",Equipement!A:A,'Pilotage Pros'!AN1,Equipement!C:C,'Pilotage Pros'!O4,Equipement!D:D,'Pilotage Pros'!AA4) -> 0 | F27: =SUMIFS(Equipement!F:F,Equipement!E:E,"Prévoyance",Equipement!A:A,'Pilotage Pros'!AN1,Equipement!C:C,'Pilotage Pros'!O4,Equipement!D:D,'Pilotage Pros'!AA4) -> 80 | G27: - | H27: - | I27: - | J27: - | K27: - | L27: =D27 -> 0 | M27: =E27 -> 0 | N27: =F27 -> 80 | O27: - | P27: - | Q27: - | R27: - | T27: Crédit conso | V27: =SUMIFS(CREDITS!H:H,CREDITS!E:E,"PReT CONSOMMATION",CREDITS!A:A,'Pilotage Pros'!AN1,CREDITS!C:C,'Pilotage Pros'!O4,CREDITS!D:D,'Pilotage Pros'!AA4) -> 136300 | W27: =SUMIFS(CREDITS!J:J,CREDITS!E:E,"PReT CONSOMMATION",CREDITS!A:A,'Pilotage Pros'!AN1,CREDITS!C:C,'Pilotage Pros'!O4,CREDITS!D:D,'Pilotage Pros'!AA4) -> 109300 | X27: =SUMIFS(CREDITS!F:F,CREDITS!E:E,"PReT CONSOMMATION",CREDITS!A:A,'Pilotage Pros'!AN1,CREDITS!C:C,'Pilotage Pros'!O4,CREDITS!D:D,'Pilotage Pros'!AA4) -> 11303705.5 | Y27: =IF(AA4<>"TOUS",X6*IF(AN2=1,OBJ_IND_80!D35*1000,OBJ_IND_100!D35*1000),"-") -> - | Z27: - | AA27: =IF(AA4<>"TOUS",X6*IF(AN2=1,OBJ_IND_80!F35*1000,OBJ_IND_100!F35*1000),"-") -> - | AB27: =IF(AA27="-","-",X27/AA27) -> - | AC27: =SUMIFS(CREDITS!I:I,CREDITS!E:E,"PReT CONSOMMATION",CREDITS!A:A,'Pilotage Pros'!AN1,CREDITS!C:C,'Pilotage Pros'!O4,CREDITS!D:D,'Pilotage Pros'!AA4) -> 8 | AD27: =SUMIFS(CREDITS!K:K,CREDITS!E:E,"PReT CONSOMMATION",CREDITS!A:A,'Pilotage Pros'!AN1,CREDITS!C:C,'Pilotage Pros'!O4,CREDITS!D:D,'Pilotage Pros'!AA4) -> 8 | AE27: =SUMIFS(CREDITS!G:G,CREDITS!E:E,"PReT CONSOMMATION",CREDITS!A:A,'Pilotage Pros'!AN1,CREDITS!C:C,'Pilotage Pros'!O4,CREDITS!D:D,'Pilotage Pros'!AA4) -> 511 | AF27: - | AG27: - | AH27: AGENCE REICHSTETT | AI27: 4039 | AU27: TOUS | AW27: Fanny WINDHOLTZ | AX27: Sylvie MALISKA | AY27: 0
B28: dont Retraite | D28: =SUMIFS(Equipement!H:H,Equipement!E:E,"Retraite",Equipement!A:A,'Pilotage Pros'!AN1,Equipement!C:C,'Pilotage Pros'!O4,Equipement!D:D,'Pilotage Pros'!AA4) -> 0 | E28: =SUMIFS(Equipement!J:J,Equipement!E:E,"Retraite",Equipement!A:A,'Pilotage Pros'!AN1,Equipement!C:C,'Pilotage Pros'!O4,Equipement!D:D,'Pilotage Pros'!AA4) -> 0 | F28: =SUMIFS(Equipement!F:F,Equipement!E:E,"Retraite",Equipement!A:A,'Pilotage Pros'!AN1,Equipement!C:C,'Pilotage Pros'!O4,Equipement!D:D,'Pilotage Pros'!AA4) -> 25 | G28: - | H28: - | I28: - | J28: - | K28: - | L28: 0 | M28: 0 | N28: 25 | O28: - | P28: - | Q28: - | R28: - | T28: Crédit immobilier | V28: =SUMIFS(CREDITS!H:H,CREDITS!E:E,"PReT IMMOBILIER",CREDITS!A:A,'Pilotage Pros'!AN1,CREDITS!C:C,'Pilotage Pros'!O4,CREDITS!D:D,'Pilotage Pros'!AA4) -> 617250.19 | W28: =SUMIFS(CREDITS!J:J,CREDITS!E:E,"PReT IMMOBILIER",CREDITS!A:A,'Pilotage Pros'!AN1,CREDITS!C:C,'Pilotage Pros'!O4,CREDITS!D:D,'Pilotage Pros'!AA4) -> 961202.19 | X28: =SUMIFS(CREDITS!F:F,CREDITS!E:E,"PReT IMMOBILIER",CREDITS!A:A,'Pilotage Pros'!AN1,CREDITS!C:C,'Pilotage Pros'!O4,CREDITS!D:D,'Pilotage Pros'!AA4) -> 36338240.55 | Y28: =IF(AA4<>"TOUS",X6*IF(AN2=1,OBJ_IND_80!D34*1000,OBJ_IND_100!D34*1000),"-") -> - | Z28: - | AA28: =IF(AA4<>"TOUS",X6*IF(AN2=1,OBJ_IND_80!F34*1000,OBJ_IND_100!F34*1000),"-") -> - | AB28: =IF(AA28="-","-",X28/AA28) -> - | AC28: =SUMIFS(CREDITS!I:I,CREDITS!E:E,"PReT IMMOBILIER",CREDITS!A:A,'Pilotage Pros'!AN1,CREDITS!C:C,'Pilotage Pros'!O4,CREDITS!D:D,'Pilotage Pros'!AA4) -> 4 | AD28: =SUMIFS(CREDITS!K:K,CREDITS!E:E,"PReT IMMOBILIER",CREDITS!A:A,'Pilotage Pros'!AN1,CREDITS!C:C,'Pilotage Pros'!O4,CREDITS!D:D,'Pilotage Pros'!AA4) -> 7 | AE28: =SUMIFS(CREDITS!G:G,CREDITS!E:E,"PReT IMMOBILIER",CREDITS!A:A,'Pilotage Pros'!AN1,CREDITS!C:C,'Pilotage Pros'!O4,CREDITS!D:D,'Pilotage Pros'!AA4) -> 215 | AF28: - | AG28: - | AH28: AGENCE BISCHWILLER | AI28: 4057 | AU28: TOUS | AW28: Manon MORGEN | AX28: Sylvie MALISKA | AY28: 1
B29: Box Office | D29: =SUMIFS(Equipement!H:H,Equipement!E:E,"BOX OFFICE",Equipement!A:A,'Pilotage Pros'!AN1,Equipement!C:C,'Pilotage Pros'!O4,Equipement!D:D,'Pilotage Pros'!AA4) -> 0 | E29: =SUMIFS(Equipement!J:J,Equipement!E:E,"BOX OFFICE",Equipement!A:A,'Pilotage Pros'!AN1,Equipement!C:C,'Pilotage Pros'!O4,Equipement!D:D,'Pilotage Pros'!AA4) -> 0 | F29: =SUMIFS(Equipement!F:F,Equipement!E:E,"BOX OFFICE",Equipement!A:A,'Pilotage Pros'!AN1,Equipement!C:C,'Pilotage Pros'!O4,Equipement!D:D,'Pilotage Pros'!AA4) -> 89 | G29: =IF(AA4<>"TOUS",X6*IF(AN2=1,OBJ_IND_80!C27,OBJ_IND_100!C27),(VLOOKUP(AN1,Objectifs!A:AE,25,FALSE))) -> 140 | H29: =IF(G29="-","-",F29/G29) -> 0.6357142857 | I29: - | J29: - | K29: - | L29: =D29 -> 0 | M29: 0 | N29: 89 | O29: =IF(AA4<>"TOUS",X6*IF(AN2=1,OBJ_IND_80!D27,OBJ_IND_100!D27),(VLOOKUP(AN1,Objectifs!A:AE,26,FALSE))) -> 100 | P29: =IF(O29="-","-",N29/O29) -> 0.89 | Q29: =IF(AA4<>"TOUS",X6*IF(AN2=1,OBJ_IND_80!F27,OBJ_IND_100!F27),"-") -> - | R29: =IF(AA4="TOUS","-",N29/Q29) -> - | AH29: AGENCE HAGUENAU HOUBLON | AI29: 4060 | AU29: TOUS | AW29: Amandine BLEU | AX29: Sylvie MALISKA | AY29: 1
B30: IARD PROS | D30: =D31+D32+D33 -> 0 | E30: =E31+E32+E33 -> 0 | F30: =F31+F32+F33 -> 247 | G30: =IF(AA4<>"TOUS",X6*IF(AN2=1,OBJ_IND_80!C25,OBJ_IND_100!C25),(VLOOKUP(AN1,Objectifs!A:AE,17,FALSE))) -> 300 | H30: =IF(G30="-","-",F30/G30) -> 0.8233333333 | I30: - | J30: - | K30: - | L30: =D30 -> 0 | M30: =E30 -> 0 | N30: =F30 -> 247 | O30: =IF(AA4<>"TOUS",X6*IF(AN2=1,OBJ_IND_80!D25,OBJ_IND_100!D25),(VLOOKUP(AN1,Objectifs!A:AE,18,FALSE))) -> 280 | P30: =IF(O30="-","-",N30/O30) -> 0.8821428571 | Q30: =IF(AA4<>"TOUS",X6*IF(AN2=1,OBJ_IND_80!F25,OBJ_IND_100!F25),"-") -> - | R30: =IF(AA4="TOUS","-",N30/Q30) -> - | AH30: AGENCE HOERDT | AI30: 4041 | AU30: TOUS | AW30: Alexandre PARDAVILA | AX30: Sylvie MALISKA | AY30: 1
B31: Santé Collective | D31: =SUMIFS(Equipement!H:H,Equipement!E:E,"IARD Pros",Equipement!A:A,'Pilotage Pros'!AN1,Equipement!C:C,'Pilotage Pros'!O4,Equipement!D:D,'Pilotage Pros'!AA4) -> 0 | E31: =SUMIFS(Equipement!J:J,Equipement!E:E,"IARD Pros",Equipement!A:A,'Pilotage Pros'!AN1,Equipement!C:C,'Pilotage Pros'!O4,Equipement!D:D,'Pilotage Pros'!AA4) -> 0 | F31: =SUMIFS(Equipement!F:F,Equipement!E:E,"IARD Pros",Equipement!A:A,'Pilotage Pros'!AN1,Equipement!C:C,'Pilotage Pros'!O4,Equipement!D:D,'Pilotage Pros'!AA4) -> 17 | G31: =IF(AA4<>"TOUS","-",(VLOOKUP(AN1,Objectifs!A:AE,19,FALSE))) -> 50 | H31: 0.34 | I31: - | J31: - | K31: - | L31: =D31 -> 0 | M31: 0 | N31: 17 | O31: - | P31: - | Q31: - | R31: - | AH31: AGENCE HAGUENAU MUSAU | AI31: 4064
A32: Nouvelle offre MR | D32: =SUMIFS(Equipement!H:H,Equipement!E:E,"Nouvelle offre MR",Equipement!A:A,'Pilotage Pros'!AN1,Equipement!C:C,'Pilotage Pros'!O4,Equipement!D:D,'Pilotage Pros'!AA4) -> 0 | E32: =SUMIFS(Equipement!J:J,Equipement!E:E,"Nouvelle offre MR",Equipement!A:A,'Pilotage Pros'!AN1,Equipement!C:C,'Pilotage Pros'!O4,Equipement!D:D,'Pilotage Pros'!AA4) -> 0 | F32: =SUMIFS(Equipement!F:F,Equipement!E:E,"Nouvelle offre MR",Equipement!A:A,'Pilotage Pros'!AN1,Equipement!C:C,'Pilotage Pros'!O4,Equipement!D:D,'Pilotage Pros'!AA4) -> 142 | G32: =IF(AA4<>"TOUS","-",(VLOOKUP(AN1,Objectifs!A:AE,21,FALSE))) -> 160 | H32: - | I32: - | J32: - | K32: - | L32: =D32 -> 0 | M32: =E32 -> 0 | N32: =F32 -> 142 | O32: - | P32: - | Q32: - | R32: - | AH32: AGENCE SCHWEIGHOUSE SUR MODER | AI32: 4073
B33: Nouvelle offre Auto | D33: =SUMIFS(Equipement!H:H,Equipement!E:E,"Nouvelle offre Auto*",Equipement!A:A,'Pilotage Pros'!AN1,Equipement!C:C,'Pilotage Pros'!O4,Equipement!D:D,'Pilotage Pros'!AA4) -> 0 | E33: =SUMIFS(Equipement!J:J,Equipement!E:E,"Nouvelle offre Auto*",Equipement!A:A,'Pilotage Pros'!AN1,Equipement!C:C,'Pilotage Pros'!O4,Equipement!D:D,'Pilotage Pros'!AA4) -> 0 | F33: =SUMIFS(Equipement!F:F,Equipement!E:E,"Nouvelle offre Auto*",Equipement!A:A,'Pilotage Pros'!AN1,Equipement!C:C,'Pilotage Pros'!O4,Equipement!D:D,'Pilotage Pros'!AA4) -> 88 | G33: =IF(AA4<>"TOUS","-",(VLOOKUP(AN1,Objectifs!A:AE,23,FALSE))) -> 90 | H33: - | I33: =SUMIFS(Equipement!I:I,Equipement!E:E,"IARD Part*",Equipement!A:A,'Pilotage Pros'!AN3,Equipement!C:C,'Pilotage Pros'!O6,Equipement!D:D,'Pilotage Pros'!AA6) -> 0 | J33: =SUMIFS(Equipement!K:K,Equipement!E:E,"IARD Part*",Equipement!A:A,'Pilotage Pros'!AN3,Equipement!C:C,'Pilotage Pros'!O6,Equipement!D:D,'Pilotage Pros'!AA6) -> 0 | K33: =SUMIFS(Equipement!G:G,Equipement!E:E,"IARD Part*",Equipement!A:A,'Pilotage Pros'!AN3,Equipement!C:C,'Pilotage Pros'!O6,Equipement!D:D,'Pilotage Pros'!AA6) -> 0 | L33: =D33-I33 -> 0 | M33: =E33-J33 -> 0 | N33: =F33-K33 -> 88 | O33: - | P33: - | Q33: - | R33: - | AH33: AGENCE SOUFFLENHEIM | AI33: 4074
B34: IARD Part** | D34: =SUMIFS(Equipement!H:H,Equipement!E:E,"IARD Part*",Equipement!A:A,'Pilotage Pros'!AN1,Equipement!C:C,'Pilotage Pros'!O4,Equipement!D:D,'Pilotage Pros'!AA4) -> 24 | E34: =SUMIFS(Equipement!J:J,Equipement!E:E,"IARD Part*",Equipement!A:A,'Pilotage Pros'!AN1,Equipement!C:C,'Pilotage Pros'!O4,Equipement!D:D,'Pilotage Pros'!AA4) -> 27 | F34: =SUMIFS(Equipement!F:F,Equipement!E:E,"IARD Part*",Equipement!A:A,'Pilotage Pros'!AN1,Equipement!C:C,'Pilotage Pros'!O4,Equipement!D:D,'Pilotage Pros'!AA4) -> 617 | G34: =IF(AA4<>"TOUS",X6*IF(AN2=1,OBJ_IND_80!C38,OBJ_IND_100!C38),"-") -> - | H34: - | I34: =SUMIFS(Equipement!I:I,Equipement!E:E,"IARD Part*",Equipement!A:A,'Pilotage Pros'!AN1,Equipement!C:C,'Pilotage Pros'!O4,Equipement!D:D,'Pilotage Pros'!AA4) -> 14 | J34: =SUMIFS(Equipement!K:K,Equipement!E:E,"IARD Part*",Equipement!A:A,'Pilotage Pros'!AN1,Equipement!C:C,'Pilotage Pros'!O4,Equipement!D:D,'Pilotage Pros'!AA4) -> 15 | K34: =SUMIFS(Equipement!G:G,Equipement!E:E,"IARD Part*",Equipement!A:A,'Pilotage Pros'!AN1,Equipement!C:C,'Pilotage Pros'!O4,Equipement!D:D,'Pilotage Pros'!AA4) -> 492 | L34: =D34-I34 -> 10 | M34: =E34-J34 -> 12 | N34: =F34-K34 -> 125 | O34: =IF(AA4<>"TOUS",X6*IF(AN2=1,OBJ_IND_80!D38,OBJ_IND_100!D38),"-") -> - | P34: - | Q34: =IF(AA4<>"TOUS",X6*IF(AN2=1,OBJ_IND_80!F38,OBJ_IND_100!F38),"-") -> - | R34: =IF(AA4="TOUS","-",N34/Q34) -> - | AH34: AGENCE WISSEMBOURG | AI34: 4071
B35: ** MRH, Auto, GAV & PJ
AH36: AGENCE SOULTZ SOUS FORETS | AI36: 4079
AH37: AGENCE WOERTH | AI37: 4080
AH38: AGENCE NIEDERBRONN LES BAINS | AI38: 4066
B39: Fonds de commerce (données à fin août 2018) | T39: Suivis - Intranet BDD | AH39: AGENCE PFAFFENHOFFEN | AI39: 4067
AH40: AGENCE BOUXWILLER | AI40: 4082
B41: Famille | D41: M | E41: M-1 | F41: Entrées M | G41: Sorties M* | H41: Variation mensuelle* | J41: Variation annuelle* | L41: OBJ Annuel | M41: % d'atteinte | N41: OBJ bonus | O41: % d'atteinte | AH41: AGENCE HOCHFELDEN | AI41: 4092
AH42: AGENCE INGWILLER | AI42: 4085
B43: Nouveaux clients | D43: =SUMIFS('FDC STOCK'!G:G,'FDC STOCK'!F:F,"Nouveaux clients",'FDC STOCK'!A:A,'Pilotage Pros'!AN1,'FDC STOCK'!C:C,'Pilotage Pros'!O4,'FDC STOCK'!D:D,'Pilotage Pros'!AA4,'FDC STOCK'!E:E,AK1) -> 0 | E43: =SUMIFS('FDC STOCK'!G:G,'FDC STOCK'!F:F,"Nouveaux clients",'FDC STOCK'!A:A,'Pilotage Pros'!AN1,'FDC STOCK'!C:C,'Pilotage Pros'!O4,'FDC STOCK'!D:D,'Pilotage Pros'!AA4,'FDC STOCK'!E:E,AK2) -> 108 | F43: =D43 -> 0 | G43: - | H43: =D43-E43 -> -108 | J43: =SUMIFS('FDC STOCK'!G:G,'FDC STOCK'!F:F,"Nouveaux clients",'FDC STOCK'!A:A,'Pilotage Pros'!AN1,'FDC STOCK'!C:C,'Pilotage Pros'!O4,'FDC STOCK'!D:D,'Pilotage Pros'!AA4)-SUMIFS('FDC STOCK'!G:G,'FDC STOCK'!F:F,"Nouveaux clients",'FDC STOCK'!A:A,'Pilotage Pros'!AN1,'FDC STOCK'!C:C,'Pilotage Pros'!O4,'FDC STOCK'!D:D,'Pilotage Pros'!AA4,'FDC STOCK'!E:E,AK3) -> 661 | L43: =IF(AA4<>"TOUS",X6*IF(AN2=1,OBJ_IND_80!C22,OBJ_IND_100!C22),(VLOOKUP(AN1,Objectifs!A:AE,3,FALSE))) -> 1140 | M43: =J43/L43 -> 0.5798245614 | N43: =IF(AA4<>"TOUS",X6*IF(AN2=1,OBJ_IND_80!F22,OBJ_IND_100!F22),"-") -> - | AH43: AGENCE SARRE UNION | AI43: 4095
B44: Attrition | D44: =SUMIFS('FDC STOCK'!G:G,'FDC STOCK'!F:F,"Attrition",'FDC STOCK'!A:A,'Pilotage Pros'!AN1,'FDC STOCK'!C:C,'Pilotage Pros'!O4,'FDC STOCK'!D:D,'Pilotage Pros'!AA4,'FDC STOCK'!E:E,AK1) -> 7990 | E44: =SUMIFS('FDC STOCK'!G:G,'FDC STOCK'!F:F,"Attrition",'FDC STOCK'!A:A,'Pilotage Pros'!AN1,'FDC STOCK'!C:C,'Pilotage Pros'!O4,'FDC STOCK'!D:D,'Pilotage Pros'!AA4,'FDC STOCK'!E:E,AK2) -> 58 | F44: - | G44: =D44 -> 7990 | H44: =D44-E44 -> 7932 | J44: =SUMIFS('FDC STOCK'!G:G,'FDC STOCK'!F:F,"Attrition",'FDC STOCK'!A:A,'Pilotage Pros'!AN1,'FDC STOCK'!C:C,'Pilotage Pros'!O4,'FDC STOCK'!D:D,'Pilotage Pros'!AA4)-SUMIFS('FDC STOCK'!G:G,'FDC STOCK'!F:F,"Attrition",'FDC STOCK'!A:A,'Pilotage Pros'!AN1,'FDC STOCK'!C:C,'Pilotage Pros'!O4,'FDC STOCK'!D:D,'Pilotage Pros'!AA4,'FDC STOCK'!E:E,AK3) -> 16437 | L44: - | M44: - | N44: - | O44: - | AH44: AGENCE MOLSHEIM | AI44: 4116
B45: Grands Pros | D45: =SUMIFS('FDC STOCK'!G:G,'FDC STOCK'!F:F,"Grands Pros",'FDC STOCK'!A:A,'Pilotage Pros'!AN1,'FDC STOCK'!C:C,'Pilotage Pros'!O4,'FDC STOCK'!D:D,'Pilotage Pros'!AA4,'FDC STOCK'!E:E,AK1) -> 0 | E45: =SUMIFS('FDC STOCK'!G:G,'FDC STOCK'!F:F,"Grands Pros",'FDC STOCK'!A:A,'Pilotage Pros'!AN1,'FDC STOCK'!C:C,'Pilotage Pros'!O4,'FDC STOCK'!D:D,'Pilotage Pros'!AA4,'FDC STOCK'!E:E,AK2) -> 5 | F45: =D45 -> 0 | G45: - | H45: =D45-E45 -> -5 | J45: =SUMIFS('FDC STOCK'!G:G,'FDC STOCK'!F:F,"Grands Pros",'FDC STOCK'!A:A,'Pilotage Pros'!AN1,'FDC STOCK'!C:C,'Pilotage Pros'!O4,'FDC STOCK'!D:D,'Pilotage Pros'!AA4)-SUMIFS('FDC STOCK'!G:G,'FDC STOCK'!F:F,"Grands Pros",'FDC STOCK'!A:A,'Pilotage Pros'!AN1,'FDC STOCK'!C:C,'Pilotage Pros'!O4,'FDC STOCK'!D:D,'Pilotage Pros'!AA4,'FDC STOCK'!E:E,AK3) -> 31 | L45: =IF(AA4<>"TOUS","-",(VLOOKUP(AN1,Objectifs!A:AE,4,FALSE))) -> 70 | M45: =IF(L45="-","-",J45/L45) -> 0.4428571429 | N45: - | O45: - | AH45: AGENCE MUTZIG | AI45: 4126
B46: Pros Actifs ND | D46: =SUMIFS('FDC STOCK'!G:G,'FDC STOCK'!F:F,"Super Actifs",'FDC STOCK'!A:A,'Pilotage Pros'!AN1,'FDC STOCK'!C:C,'Pilotage Pros'!O4,'FDC STOCK'!D:D,'Pilotage Pros'!AA4,'FDC STOCK'!E:E,AK1) -> 4149 | E46: =SUMIFS('FDC STOCK'!G:G,'FDC STOCK'!F:F,"Super Actifs",'FDC STOCK'!A:A,'Pilotage Pros'!AN1,'FDC STOCK'!C:C,'Pilotage Pros'!O4,'FDC STOCK'!D:D,'Pilotage Pros'!AA4,'FDC STOCK'!E:E,AK2) -> 4099 | F46: =SUMIFS('FDC EVOL'!F:F,'FDC EVOL'!E:E,"Super Actifs",'FDC EVOL'!A:A,'Pilotage Pros'!AN1,'FDC EVOL'!C:C,'Pilotage Pros'!O4,'FDC EVOL'!D:D,'Pilotage Pros'!AA4) -> 88 | G46: =SUMIFS('FDC EVOL'!H:H,'FDC EVOL'!E:E,"Super Actifs",'FDC EVOL'!A:A,'Pilotage Pros'!AN1,'FDC EVOL'!C:C,'Pilotage Pros'!O4,'FDC EVOL'!D:D,'Pilotage Pros'!AA4) -> 108 | H46: =F46-G46 -> -20 | J46: =SUMIFS('FDC EVOL'!G:G,'FDC EVOL'!E:E,"Super Actifs",'FDC EVOL'!A:A,'Pilotage Pros'!AN1,'FDC EVOL'!C:C,'Pilotage Pros'!O4,'FDC EVOL'!D:D,'Pilotage Pros'!AA4)-SUMIFS('FDC EVOL'!I:I,'FDC EVOL'!E:E,"Super Actifs",'FDC EVOL'!A:A,'Pilotage Pros'!AN1,'FDC EVOL'!C:C,'Pilotage Pros'!O4,'FDC EVOL'!D:D,'Pilotage Pros'!AA4) -> 66 | L46: =IF(AA4<>"TOUS",X6*IF(AN2=1,OBJ_IND_80!D21,OBJ_IND_100!D21),(VLOOKUP(AN1,Objectifs!A:AE,5,FALSE))) -> 210 | M46: =IF(L46="-","-",J46/L46) -> 0.3142857143 | N46: =IF(AA4<>"TOUS",X6*IF(AN2=1,OBJ_IND_80!F21,OBJ_IND_100!F21),"-") -> - | O46: - | AH46: AGENCE MARLENHEIM | AI46: 4129
B47: Pros Actifs équipés | D47: =SUMIFS('FDC STOCK'!G:G,'FDC STOCK'!F:F,"Actifs Equipes",'FDC STOCK'!A:A,'Pilotage Pros'!AN1,'FDC STOCK'!C:C,'Pilotage Pros'!O4,'FDC STOCK'!D:D,'Pilotage Pros'!AA4,'FDC STOCK'!E:E,AM1) -> 1776 | E47: =SUMIFS('FDC STOCK'!G:G,'FDC STOCK'!F:F,"Actifs Equipes",'FDC STOCK'!A:A,'Pilotage Pros'!AN1,'FDC STOCK'!C:C,'Pilotage Pros'!O4,'FDC STOCK'!D:D,'Pilotage Pros'!AA4,'FDC STOCK'!E:E,AM2) -> 1714 | F47: =SUMIFS('FDC EVOL'!F:F,'FDC EVOL'!E:E,"Actifs Equipes",'FDC EVOL'!A:A,'Pilotage Pros'!AN1,'FDC EVOL'!C:C,'Pilotage Pros'!O4,'FDC EVOL'!D:D,'Pilotage Pros'!AA4) -> 59 | G47: =SUMIFS('FDC EVOL'!H:H,'FDC EVOL'!E:E,"Actifs Equipes",'FDC EVOL'!A:A,'Pilotage Pros'!AN1,'FDC EVOL'!C:C,'Pilotage Pros'!O4,'FDC EVOL'!D:D,'Pilotage Pros'!AA4) -> 58 | H47: =F47-G47 -> 1 | J47: =SUMIFS('FDC EVOL'!G:G,'FDC EVOL'!E:E,"Actifs Equipes",'FDC EVOL'!A:A,'Pilotage Pros'!AN1,'FDC EVOL'!C:C,'Pilotage Pros'!O4,'FDC EVOL'!D:D,'Pilotage Pros'!AA4)-SUMIFS('FDC EVOL'!I:I,'FDC EVOL'!E:E,"Actifs Equipes",'FDC EVOL'!A:A,'Pilotage Pros'!AN1,'FDC EVOL'!C:C,'Pilotage Pros'!O4,'FDC EVOL'!D:D,'Pilotage Pros'!AA4) -> -432 | L47: =IF(AA4<>"TOUS","-",(VLOOKUP(AN1,Objectifs!A:AE,6,FALSE))) -> 190 | M47: =IF(L47="-","-",J47/L47) -> -2.273684211 | N47: - | O47: - | AH47: AGENCE STRASBOURG NEUDORF | AI47: 4006
B48: * retraités des transferts inter-agences | AH48: AGENCE STRASBOURG MEINAU | AI48: 4010
AH49: AGENCE STRASBOURG STOCKFELD | AI49: 4012
AH50: AGENCE STRASBOURG AUSTERLITZ | AI50: 4024
AH51: AGENCE STRASBOURG ESPLANADE | AI51: 4025
AH52: AGENCE ILLKIRCH CENTRE | AI52: 4007
AH53: AGENCE FEGERSHEIM | AI53: 4008
AH54: AGENCE LINGOLSHEIM | AI54: 4015
AH55: AGENCE STRASBOURG ROBERTSAU | AI55: 4020
AH56: AGENCE SCHILTIGHEIM CENTRE | AI56: 4027
AH57: AGENCE BISCHHEIM | AI57: 4028
AH58: AGENCE SCHILTIGHEIM KLEBER | AI58: 4029
AH59: AGENCE STRASBOURG ANVERS | AI59: 4019
AH60: AGENCE STRASBOURG VOSGES | AI60: 4023
AH61: AGENCE STRASBOURG HALLES | AI61: 4043
AH62: AGENCE STRASBOURG FRANCS BOURGEOIS | AI62: 4045
AH63: AGENCE TRUCHTERSHEIM | AI63: 4031
AH64: AGENCE OBERHAUSBERGEN | AI64: 4038
AH65: AGENCE STRASBOURG CRONENBOURG | AI65: 4047
AH66: AGENCE STRASBOURG KOENIGSHOFFEN | AI66: 4048
AH67: AGENCE STRASBOURG MONTAGNE VERTE | AI67: 4054
AH68: AGENCE SELESTAT CENTRE | AI68: 4101
AH69: AGENCE VILLE | AI69: 4107
AH70: AGENCE MARCKOLSHEIM | AI70: 4109
AH71: AGENCE SELESTAT OUEST | AI71: 4110
AH72: AGENCE RIBEAUVILLE | AI72: 4144
AH73: AGENCE SAINTE MARIE AUX MINES | AI73: 4164
AH74: AGENCE ERSTEIN | AI74: 4104
AH75: AGENCE BENFELD | AI75: 4111
AH76: AGENCE BARR | AI76: 4113
AH77: AGENCE OBERNAI | AI77: 4119
AH78: AGENCE ROSHEIM | AI78: 4127
AH79: AGENCE COLMAR REPUBLIQUE | AI79: 4130
AH80: AGENCE COLMAR MARAICHERS | AI80: 4132
AH81: AGENCE COLMAR VAUBAN | AI81: 4133
AH82: AGENCE HORBOURG WIHR | AI82: 4141
AH83: AGENCE NEUF BRISACH | AI83: 4157
AH84: AGENCE MUNTZENHEIM | AI84: 4159
AH85: AGENCE COLMAR SAINT JOSEPH | AI85: 4134
AH86: AGENCE COLMAR SAINTE MARIE | AI86: 4135
AH87: AGENCE INGERSHEIM | AI87: 4139
AH88: AGENCE WINTZENHEIM | AI88: 4140
AH89: AGENCE MUNSTER | AI89: 4143
AH90: AGENCE ORBEY | AI90: 4148
AH91: AGENCE GUEBWILLER | AI91: 4147
AH92: AGENCE ROUFFACH | AI92: 4153
AH93: AGENCE SOULTZ | AI93: 4160
AH94: AGENCE ENSISHEIM | AI94: 4162
AH95: AGENCE MULHOUSE ROOSEVELT | AI95: 4169
AH96: AGENCE MULHOUSE REUNION | AI96: 4170
AH97: AGENCE MULHOUSE NATIONS | AI97: 4174
AH98: AGENCE BRUNSTATT | AI98: 4186
AH99: AGENCE SAINT LOUIS | AI99: 4178
AH100: AGENCE SIERENTZ | AI100: 4179
AH101: AGENCE ALTKIRCH | AI101: 4189
AH102: AGENCE RIEDISHEIM | AI102: 4180
AH103: AGENCE WITTENHEIM | AI103: 4183
AH104: AGENCE ILLZACH | AI104: 4184
AH105: AGENCE RIXHEIM | AI105: 4185
AH106: AGENCE PFASTATT | AI106: 4188
AH107: AGENCE WITTELSHEIM | AI107: 4181
AH108: AGENCE DANNEMARIE | AI108: 4193
AH109: AGENCE THANN | AI109: 4194
AH110: AGENCE CERNAY | AI110: 4195
AH111: AGENCE MASEVAUX | AI111: 4196
AH112: SITE BRUMATH | AI112: 30
AH113: SITE WEITBRUCH | AI113: 65
AH114: SITE LA WANTZENAU | AI114: 33
AH115: SITE VENDENHEIM | AI115: 34
AH116: SITE MUNDOLSHEIM | AI116: 37
AH117: SITE REICHSTETT | AI117: 39
AH118: SITE HOERDT | AI118: 41
AH119: SITE BISCHWILLER | AI119: 57
AH120: SITE DRUSENHEIM | AI120: 58
AH121: SITE HERRLISHEIM | AI121: 59
AH122: SITE HAGUENAU HOUBLON | AI122: 60
AH123: SITE HAGUENAU MUSAU | AI123: 64
AH124: SITE SCHWEIGHOUSE SUR MODER | AI124: 73
AH125: SITE SOUFFLENHEIM | AI125: 74
AH126: SITE WISSEMBOURG | AI126: 71
AH127: SITE BETSCHDORF | AI127: 76
AH128: SITE SELTZ | AI128: 77
AH129: SITE LAUTERBOURG | AI129: 78
AH130: SITE SOULTZ SOUS FORETS | AI130: 79
AH131: SITE WOERTH | AI131: 80
AH132: SITE NIEDERBRONN LES BAINS | AI132: 66
AH133: SITE GUNDERSHOFFEN | AI133: 70
AH134: SITE PFAFFENHOFFEN | AI134: 67
AH135: SITE REICHSHOFFEN | AI135: 68
AH136: SITE BOUXWILLER | AI136: 82
AH137: SITE INGWILLER | AI137: 85
AH138: SITE WINGEN SUR MODER | AI138: 86
AH139: SITE HOCHFELDEN | AI139: 92
AH140: SITE SAVERNE | AI140: 87
AH141: SITE MARMOUTIER | AI141: 93
AH142: SITE DIEMERINGEN | AI142: 89
AH143: SITE SARRE UNION | AI143: 95
AH144: SITE MOLSHEIM | AI144: 116
AH145: SITE WASSELONNE | AI145: 120
AH146: SITE SCHIRMECK | AI146: 121
AH147: SITE MUTZIG | AI147: 126
AH148: SITE MARLENHEIM | AI148: 129
AH149: SITE STRASBOURG NEUDORF | AI149: 6
AH150: SITE STRASBOURG MEINAU | AI150: 10
AH151: SITE STRASBOURG STOCKFELD | AI151: 12
AH152: SITE STRASBOURG AUSTERLITZ | AI152: 24
AH153: SITE STRASBOURG ESPLANADE | AI153: 25
AH154: SITE ILLKIRCH CENTRE | AI154: 7
AH155: SITE ILLKIRCH NORD | AI155: 13
AH156: SITE FEGERSHEIM | AI156: 8
AH157: SITE OSTWALD | AI157: 14
AH158: SITE LINGOLSHEIM | AI158: 15
AH159: SITE STRASBOURG ROBERTSAU | AI159: 20
AH160: SITE SCHILTIGHEIM CENTRE | AI160: 27
AH161: SITE BISCHHEIM | AI161: 28
AH162: SITE SCHILTIGHEIM KLEBER | AI162: 29
AH163: SITE STRASBOURG ANVERS | AI163: 19
AH164: SITE STRASBOURG VOSGES | AI164: 23
AH165: SITE STRASBOURG HALLES | AI165: 43
AH166: SITE STRASBOURG GARE | AI166: 50
AH167: SITE STRASBOURG FRANCS BOURGEOIS | AI167: 45
AH168: SITE TRUCHTERSHEIM | AI168: 31
AH169: SITE OBERHAUSBERGEN | AI169: 38
AH170: SITE STRASBOURG CRONENBOURG | AI170: 47
AH171: SITE ECKBOLSHEIM | AI171: 40
AH172: SITE STRASBOURG KOENIGSHOFFEN | AI172: 48
AH173: SITE STRASBOURG MONTAGNE VERTE | AI173: 54
AH174: SITE SELESTAT CENTRE | AI174: 101
AH175: SITE CHATENOIS | AI175: 108
AH176: SITE VILLE | AI176: 107
AH177: SITE MARCKOLSHEIM | AI177: 109
AH178: SITE SELESTAT OUEST | AI178: 110
AH179: SITE RIBEAUVILLE | AI179: 144
AH180: SITE SAINTE MARIE AUX MINES | AI180: 164
AH181: SITE LIEPVRE | AI181: 167
AH182: SITE ERSTEIN | AI182: 104
AH183: SITE BENFELD | AI183: 111
AH184: SITE BARR | AI184: 113
AH185: SITE OBERNAI | AI185: 119
AH186: SITE ROSHEIM | AI186: 127
AH187: SITE COLMAR REPUBLIQUE | AI187: 130
AH188: SITE COLMAR MARAICHERS | AI188: 132
AH189: SITE COLMAR VAUBAN | AI189: 133
AH190: SITE HORBOURG WIHR | AI190: 141
AH191: SITE NEUF BRISACH | AI191: 157
AH192: SITE MUNTZENHEIM | AI192: 159
AH193: SITE COLMAR SAINT JOSEPH | AI193: 134
AH194: SITE COLMAR SAINTE MARIE | AI194: 135
AH195: SITE INGERSHEIM | AI195: 139
AH196: SITE KAYSERSBERG | AI196: 152
AH197: SITE WINTZENHEIM | AI197: 140
AH198: SITE MUNSTER | AI198: 143
AH199: SITE ORBEY | AI199: 148
AH200: SITE LAPOUTROIE | AI200: 154
... 29 more rows

Sheet Objectifs
A1: ES | B1: LIBELLE ES | C1: NV_CLIENT_B | D1: GRANDS_PROS_NET | E1: ACTIF_NET | F1: ACTIF_EQUIP_NET | G1: FORFAITS_B | H1: FORFAITS_NET | I1: CB_BUS_B | J1: CB_BUS_NET | K1: CB_GOLD_B | L1: CB_GOLD_NET | M1: TPE_B | N1: TPE_NET | O1: PREVOYANCE_B | P1: PREVOYANCE_NET | Q1: IARD_B | R1: IARD_NET | S1: SANTE_B | T1: SANTE_NET | U1: MR_B | V1: MR_NET | W1: AUTO_B | X1: AUTO_NET | Y1: BO_B | Z1: BO_NET | AA1: PLATINUM_B | AB1: PLATINUM_NET | AC1: CREDIT_HORS_CB | AD1: CB | AE1: CEP_NET
A2: 6 | B2: STRASBOURG NEUDORF CENTRE | C2: 24 | D2: 1 | E2: 4 | F2: 4 | G2: 25 | H2: 11 | I2: 29 | J2: 9 | K2: 6 | L2: 2 | M2: 12 | N2: 7 | O2: 8 | P2: 4 | Q2: 6 | R2: 6 | S2: 1 | U2: 3 | W2: 2 | Y2: 3 | Z2: 2 | AA2: 6 | AB2: 4 | AC2: 1486180 | AD2: 52080 | AE2: 166791
A3: 7 | B3: ILLKIRCH CENTRE | C3: 14 | D3: 1 | E3: 3 | F3: 3 | G3: 15 | H3: 7 | I3: 17 | J3: 5 | K3: 4 | L3: 1 | M3: 8 | N3: 4 | O3: 5 | P3: 2 | Q3: 4 | R3: 3 | S3: 1 | U3: 2 | W3: 1 | Y3: 2 | Z3: 1 | AA3: 4 | AB3: 2 | AC3: 830720 | AD3: 69120 | AE3: 159269
A4: 8 | B4: FEGERSHEIM | C4: 10 | D4: 1 | E4: 2 | F4: 2 | G4: 10 | H4: 5 | I4: 12 | J4: 4 | K4: 3 | L4: 1 | M4: 6 | N4: 3 | O4: 3 | P4: 2 | Q4: 3 | R4: 2 | S4: 1 | U4: 1 | W4: 1 | Y4: 1 | Z4: 1 | AA4: 3 | AB4: 2 | AC4: 610990 | AD4: 35690 | AE4: 102402
A5: 10 | B5: STRASBOURG MEINAU | C5: 10 | D5: 1 | E5: 2 | F5: 2 | G5: 10 | H5: 5 | I5: 12 | J5: 4 | K5: 3 | L5: 1 | M5: 6 | N5: 3 | O5: 3 | P5: 2 | Q5: 2 | R5: 2 | S5: 0 | U5: 1 | W5: 1 | Y5: 1 | Z5: 1 | AA5: 3 | AB5: 2 | AC5: 594470 | AD5: 34720 | AE5: 102044
A6: 12 | B6: STRASBOURG NEUHOF | C6: 7 | D6: 0 | E6: 1 | F6: 1 | G6: 8 | H6: 4 | I6: 9 | J6: 3 | K6: 2 | L6: 1 | M6: 4 | N6: 2 | O6: 3 | P6: 1 | Q6: 2 | R6: 2 | S6: 0 | U6: 1 | W6: 1 | Y6: 1 | Z6: 1 | AA6: 2 | AB6: 1 | AC6: 445850 | AD6: 26040 | AE6: 69449
A7: 13 | B7: ILLKIRCH NORD | C7: 5 | D7: 0 | E7: 1 | F7: 1 | G7: 5 | H7: 2 | I7: 6 | J7: 2 | K7: 1 | L7: 0 | M7: 2 | N7: 2 | O7: 2 | P7: 1 | Q7: 1 | R7: 1 | S7: 0 | U7: 1 | W7: 0 | Y7: 1 | Z7: 0 | AA7: 1 | AB7: 1 | AC7: 297240 | AD7: 28930 | AE7: 51346
A8: 14 | B8: OSTWALD | C8: 8 | D8: 0 | E8: 2 | F8: 1 | G8: 9 | H8: 4 | I8: 10 | J8: 3 | K8: 2 | L8: 1 | M8: 4 | N8: 3 | O8: 3 | P8: 1 | Q8: 2 | R8: 2 | S8: 0 | U8: 1 | W8: 1 | Y8: 1 | Z8: 1 | AA8: 2 | AB8: 1 | AC8: 495390 | AD8: 28930 | AE8: 50319
A9: 15 | B9: LINGOLSHEIM | C9: 10 | D9: 1 | E9: 2 | F9: 2 | G9: 11 | H9: 5 | I9: 13 | J9: 4 | K9: 3 | L9: 1 | M9: 6 | N9: 3 | O9: 4 | P9: 2 | Q9: 3 | R9: 2 | S9: 1 | U9: 1 | W9: 1 | Y9: 1 | Z9: 1 | AA9: 3 | AB9: 2 | AC9: 618710 | AD9: 49010 | AE9: 102604
A10: 19 | B10: STRASBOURG ANVERS | C10: 20 | D10: 1 | E10: 4 | F10: 3 | G10: 21 | H10: 10 | I10: 25 | J10: 8 | K10: 5 | L10: 2 | M10: 10 | N10: 6 | O10: 7 | P10: 4 | Q10: 6 | R10: 5 | S10: 1 | U10: 3 | W10: 2 | Y10: 2 | Z10: 2 | AA10: 5 | AB10: 4 | AC10: 1238480 | AD10: 72340 | AE10: 142722
A11: 20 | B11: STRASBOURG ROBERTSAU | C11: 12 | D11: 1 | E11: 2 | F11: 2 | G11: 13 | H11: 6 | I11: 15 | J11: 5 | K11: 3 | L11: 1 | M11: 6 | N11: 4 | O11: 4 | P11: 2 | Q11: 4 | R11: 3 | S11: 1 | U11: 2 | W11: 1 | Y11: 2 | Z11: 1 | AA11: 3 | AB11: 2 | AC11: 759600 | AD11: 44370 | AE11: 146240
A12: 23 | B12: STRASBOURG VOSGES | C12: 9 | D12: 1 | E12: 2 | F12: 2 | G12: 10 | H12: 5 | I12: 12 | J12: 4 | K12: 3 | L12: 1 | M12: 6 | N12: 3 | O12: 3 | P12: 2 | Q12: 2 | R12: 2 | S12: 0 | U12: 1 | W12: 1 | Y12: 1 | Z12: 1 | AA12: 3 | AB12: 2 | AC12: 582780 | AD12: 34030 | AE12: 85792
A13: 24 | B13: STRASBOURG AUSTERLITZ | C13: 10 | D13: 1 | E13: 2 | F13: 2 | G13: 11 | H13: 5 | I13: 12 | J13: 4 | K13: 3 | L13: 1 | M13: 6 | N13: 3 | O13: 3 | P13: 2 | Q13: 3 | R13: 2 | S13: 1 | U13: 1 | W13: 1 | Y13: 1 | Z13: 1 | AA13: 3 | AB13: 2 | AC13: 610990 | AD13: 37190 | AE13: 88700
A14: 25 | B14: STRASBOURG ESPLANADE | C14: 15 | D14: 1 | E14: 3 | F14: 3 | G14: 16 | H14: 7 | I14: 19 | J14: 6 | K14: 4 | L14: 1 | M14: 8 | N14: 5 | O14: 5 | P14: 3 | Q14: 4 | R14: 4 | S14: 1 | U14: 2 | W14: 1 | Y14: 2 | Z14: 1 | AA14: 4 | AB14: 3 | AC14: 946810 | AD14: 57870 | AE14: 101856
A15: 26 | B15: STRASBOURG DANUBE | C15: 7 | D15: 0 | E15: 1 | F15: 1 | G15: 8 | H15: 4 | I15: 9 | J15: 3 | K15: 2 | L15: 1 | M15: 4 | N15: 2 | O15: 3 | P15: 1 | Q15: 2 | R15: 2 | S15: 0 | U15: 1 | W15: 1 | Y15: 1 | Z15: 1 | AA15: 2 | AB15: 1 | AC15: 445850 | AD15: 26040 | AE15: 62742
A16: 27 | B16: SCHILTIGHEIM CENTRE | C16: 20 | D16: 1 | E16: 4 | F16: 3 | G16: 21 | H16: 10 | I16: 24 | J16: 8 | K16: 5 | L16: 2 | M16: 10 | N16: 6 | O16: 7 | P16: 4 | Q16: 6 | R16: 5 | S16: 1 | U16: 3 | W16: 2 | Y16: 2 | Z16: 2 | AA16: 5 | AB16: 4 | AC16: 1238480 | AD16: 53010 | AE16: 118885
A17: 28 | B17: BISCHHEIM | C17: 13 | D17: 1 | E17: 2 | F17: 2 | G17: 13 | H17: 6 | I17: 16 | J17: 5 | K17: 3 | L17: 1 | M17: 6 | N17: 4 | O17: 4 | P17: 2 | Q17: 4 | R17: 3 | S17: 1 | U17: 2 | W17: 1 | Y17: 2 | Z17: 1 | AA17: 3 | AB17: 2 | AC17: 791610 | AD17: 34720 | AE17: 104875
A18: 29 | B18: SCHILTIGHEIM KLEBER | C18: 7 | D18: 0 | E18: 1 | F18: 1 | G18: 8 | H18: 4 | I18: 9 | J18: 3 | K18: 2 | L18: 1 | M18: 4 | N18: 2 | O18: 3 | P18: 1 | Q18: 2 | R18: 2 | S18: 0 | U18: 1 | W18: 1 | Y18: 1 | Z18: 1 | AA18: 2 | AB18: 1 | AC18: 445850 | AD18: 26040 | AE18: 74460
A19: 30 | B19: BRUMATH | C19: 19 | D19: 1 | E19: 3 | F19: 3 | G19: 20 | H19: 9 | I19: 23 | J19: 7 | K19: 5 | L19: 2 | M19: 10 | N19: 6 | O19: 6 | P19: 3 | Q19: 5 | R19: 4 | S19: 1 | U19: 3 | W19: 1 | Y19: 2 | Z19: 2 | AA19: 5 | AB19: 3 | AC19: 1137550 | AD19: 69120 | AE19: 148542
A20: 31 | B20: TRUCHTERSHEIM | C20: 12 | D20: 1 | E20: 2 | F20: 2 | G20: 13 | H20: 6 | I20: 15 | J20: 5 | K20: 3 | L20: 1 | M20: 6 | N20: 4 | O20: 4 | P20: 2 | Q20: 4 | R20: 3 | S20: 1 | U20: 2 | W20: 1 | Y20: 2 | Z20: 1 | AA20: 3 | AB20: 2 | AC20: 743090 | AD20: 43400 | AE20: 91100
A21: 33 | B21: LA WANTZENAU | C21: 8 | D21: 0 | E21: 2 | F21: 1 | G21: 9 | H21: 4 | I21: 10 | J21: 3 | K21: 2 | L21: 1 | M21: 4 | N21: 3 | O21: 3 | P21: 1 | Q21: 2 | R21: 2 | S21: 0 | U21: 1 | W21: 1 | Y21: 1 | Z21: 1 | AA21: 2 | AB21: 1 | AC21: 495390 | AD21: 28930 | AE21: 66468
A22: 34 | B22: VENDENHEIM | C22: 6 | D22: 0 | E22: 1 | F22: 1 | G22: 6 | H22: 3 | I22: 7 | J22: 2 | K22: 1 | L22: 1 | M22: 2 | N22: 2 | O22: 2 | P22: 1 | Q22: 1 | R22: 1 | S22: 0 | U22: 1 | W22: 0 | Y22: 1 | Z22: 1 | AA22: 1 | AB22: 1 | AC22: 336960 | AD22: 28930 | AE22: 51964
A23: 37 | B23: MUNDOLSHEIM | C23: 4 | D23: 0 | E23: 1 | F23: 1 | G23: 5 | H23: 2 | I23: 5 | J23: 1 | K23: 1 | L23: 0 | M23: 2 | N23: 1 | O23: 1 | P23: 1 | Q23: 1 | R23: 1 | S23: 0 | U23: 1 | W23: 0 | Y23: 1 | Z23: 0 | AA23: 1 | AB23: 1 | AC23: 264210 | AD23: 15430 | AE23: 61533
A24: 38 | B24: OBERHAUSBERGEN | C24: 16 | D24: 1 | E24: 3 | F24: 3 | G24: 17 | H24: 8 | I24: 20 | J24: 6 | K24: 4 | L24: 1 | M24: 8 | N24: 5 | O24: 6 | P24: 3 | Q24: 4 | R24: 4 | S24: 1 | U24: 2 | W24: 1 | Y24: 2 | Z24: 1 | AA24: 4 | AB24: 3 | AC24: 1018310 | AD24: 35690 | AE24: 100562
A25: 39 | B25: REICHSTETT | C25: 6 | D25: 0 | E25: 1 | F25: 1 | G25: 7 | H25: 3 | I25: 8 | J25: 2 | K25: 2 | L25: 1 | M25: 4 | N25: 2 | O25: 2 | P25: 1 | Q25: 2 | R25: 2 | S25: 0 | U25: 1 | W25: 1 | Y25: 1 | Z25: 1 | AA25: 2 | AB25: 1 | AC25: 402180 | AD25: 17360 | AE25: 59547
A26: 40 | B26: ECKBOLSHEIM | C26: 5 | D26: 0 | E26: 1 | F26: 1 | G26: 5 | H26: 2 | I26: 6 | J26: 2 | K26: 1 | L26: 0 | M26: 2 | N26: 2 | O26: 2 | P26: 1 | Q26: 1 | R26: 1 | S26: 0 | U26: 1 | W26: 0 | Y26: 1 | Z26: 0 | AA26: 1 | AB26: 1 | AC26: 297240 | AD26: 24790 | AE26: 49821
A27: 41 | B27: HOERDT | C27: 5 | D27: 0 | E27: 1 | F27: 1 | G27: 6 | H27: 3 | I27: 6 | J27: 2 | K27: 1 | L27: 1 | M27: 2 | N27: 2 | O27: 2 | P27: 1 | Q27: 1 | R27: 1 | S27: 0 | U27: 1 | W27: 0 | Y27: 1 | Z27: 1 | AA27: 1 | AB27: 1 | AC27: 313520 | AD27: 28930 | AE27: 57985
A28: 43 | B28: STRASBOURG HALLES | C28: 19 | D28: 1 | E28: 3 | F28: 3 | G28: 20 | H28: 9 | I28: 23 | J28: 7 | K28: 5 | L28: 2 | M28: 10 | N28: 6 | O28: 7 | P28: 3 | Q28: 5 | R28: 5 | S28: 1 | U28: 3 | W28: 1 | Y28: 2 | Z28: 2 | AA28: 5 | AB28: 3 | AC28: 1155920 | AD28: 64050 | AE28: 152898
A29: 45 | B29: STRASBOURG FRANCS BOURGEOIS | C29: 24 | D29: 1 | E29: 4 | F29: 4 | G29: 25 | H29: 11 | I29: 29 | J29: 9 | K29: 6 | L29: 2 | M29: 12 | N29: 7 | O29: 8 | P29: 4 | Q29: 6 | R29: 6 | S29: 1 | U29: 3 | W29: 2 | Y29: 3 | Z29: 2 | AA29: 6 | AB29: 4 | AC29: 1458660 | AD29: 83000 | AE29: 166612
A30: 47 | B30: STRASBOURG CRONENBOURG CENTRE | C30: 20 | D30: 1 | E30: 4 | F30: 3 | G30: 21 | H30: 10 | I30: 24 | J30: 8 | K30: 5 | L30: 2 | M30: 10 | N30: 6 | O30: 7 | P30: 4 | Q30: 6 | R30: 5 | S30: 1 | U30: 3 | W30: 2 | Y30: 2 | Z30: 2 | AA30: 5 | AB30: 4 | AC30: 1238480 | AD30: 53110 | AE30: 131632
A31: 48 | B31: STRASBOURG KOENIGSHOFFEN | C31: 9 | D31: 1 | E31: 2 | F31: 1 | G31: 9 | H31: 4 | I31: 11 | J31: 3 | K31: 2 | L31: 1 | M31: 4 | N31: 3 | O31: 3 | P31: 2 | Q31: 2 | R31: 2 | S31: 0 | U31: 1 | W31: 1 | Y31: 1 | Z31: 1 | AA31: 2 | AB31: 2 | AC31: 523780 | AD31: 35740 | AE31: 74247
A32: 50 | B32: STRASBOURG GARE | C32: 5 | D32: 0 | E32: 1 | F32: 1 | G32: 5 | H32: 2 | I32: 6 | J32: 2 | K32: 1 | L32: 0 | M32: 2 | N32: 1 | O32: 2 | P32: 1 | Q32: 1 | R32: 1 | S32: 0 | U32: 1 | W32: 0 | Y32: 1 | Z32: 0 | AA32: 1 | AB32: 1 | AC32: 297240 | AD32: 17360 | AE32: 37987
A33: 54 | B33: STRASBOURG MONTAGNE VERTE | C33: 10 | D33: 1 | E33: 2 | F33: 2 | G33: 10 | H33: 5 | I33: 12 | J33: 4 | K33: 3 | L33: 1 | M33: 6 | N33: 3 | O33: 3 | P33: 2 | Q33: 3 | R33: 2 | S33: 1 | U33: 1 | W33: 1 | Y33: 1 | Z33: 1 | AA33: 3 | AB33: 2 | AC33: 610990 | AD33: 35690 | AE33: 91427
A34: 57 | B34: BISCHWILLER | C34: 9 | D34: 1 | E34: 2 | F34: 1 | G34: 9 | H34: 4 | I34: 11 | J34: 3 | K34: 2 | L34: 1 | M34: 4 | N34: 3 | O34: 3 | P34: 2 | Q34: 2 | R34: 2 | S34: 0 | U34: 1 | W34: 1 | Y34: 1 | Z34: 1 | AA34: 2 | AB34: 2 | AC34: 544930 | AD34: 31830 | AE34: 92254
A35: 58 | B35: DRUSENHEIM | C35: 4 | D35: 0 | E35: 1 | F35: 1 | G35: 4 | H35: 2 | I35: 4 | J35: 1 | K35: 1 | L35: 0 | M35: 2 | N35: 1 | O35: 1 | P35: 1 | Q35: 0 | R35: 1 | S35: 0 | U35: 0 | W35: 0 | Y35: 0 | Z35: 0 | AA35: 1 | AB35: 1 | AC35: 220170 | AD35: 7710 | AE35: 25015
A36: 59 | B36: HERRLISHEIM | C36: 2 | D36: 0 | E36: 0 | F36: 0 | G36: 2 | H36: 1 | I36: 3 | J36: 1 | K36: 1 | L36: 0 | M36: 2 | N36: 1 | O36: 1 | P36: 0 | Q36: 0 | R36: 1 | S36: 0 | U36: 0 | W36: 0 | Y36: 0 | Z36: 0 | AA36: 1 | AB36: 0 | AC36: 132100 | AD36: 7710 | AE36: 26645
A37: 60 | B37: HAGUENAU HOUBLON | C37: 27 | D37: 2 | E37: 5 | F37: 5 | G37: 29 | H37: 13 | I37: 34 | J37: 11 | K37: 7 | L37: 2 | M37: 14 | N37: 8 | O37: 10 | P37: 5 | Q37: 7 | R37: 7 | S37: 1 | U37: 4 | W37: 2 | Y37: 3 | Z37: 2 | AA37: 7 | AB37: 5 | AC37: 1706350 | AD37: 77730 | AE37: 206615
A38: 64 | B38: HAGUENAU MUSAU | C38: 5 | D38: 0 | E38: 1 | F38: 1 | G38: 5 | H38: 2 | I38: 6 | J38: 2 | K38: 1 | L38: 0 | M38: 2 | N38: 1 | O38: 2 | P38: 1 | Q38: 1 | R38: 1 | S38: 0 | U38: 1 | W38: 0 | Y38: 1 | Z38: 0 | AA38: 1 | AB38: 1 | AC38: 297240 | AD38: 17360 | AE38: 57981
A39: 65 | B39: WEITBRUCH | C39: 2 | D39: 0 | E39: 1 | F39: 0 | G39: 3 | H39: 1 | I39: 3 | J39: 1 | K39: 1 | L39: 0 | M39: 2 | N39: 1 | O39: 1 | P39: 0 | Q39: 0 | R39: 1 | S39: 0 | U39: 0 | W39: 0 | Y39: 0 | Z39: 0 | AA39: 1 | AB39: 0 | AC39: 150070 | AD39: 7710 | AE39: 32273
A40: 66 | B40: NIEDERBRONN LES BAINS | C40: 6 | D40: 0 | E40: 1 | F40: 1 | G40: 6 | H40: 3 | I40: 8 | J40: 2 | K40: 2 | L40: 1 | M40: 4 | N40: 2 | O40: 2 | P40: 1 | Q40: 1 | R40: 1 | S40: 0 | U40: 1 | W40: 0 | Y40: 1 | Z40: 1 | AA40: 2 | AB40: 1 | AC40: 385310 | AD40: 13500 | AE40: 50747
A41: 67 | B41: PFAFFENHOFFEN | C41: 11 | D41: 1 | E41: 2 | F41: 2 | G41: 12 | H41: 5 | I41: 14 | J41: 4 | K41: 3 | L41: 1 | M41: 6 | N41: 3 | O41: 4 | P41: 2 | Q41: 4 | R41: 3 | S41: 1 | U41: 2 | W41: 1 | Y41: 1 | Z41: 1 | AA41: 3 | AB41: 2 | AC41: 679920 | AD41: 52270 | AE41: 90735
A42: 68 | B42: REICHSHOFFEN | C42: 5 | D42: 0 | E42: 1 | F42: 1 | G42: 5 | H42: 2 | I42: 6 | J42: 2 | K42: 1 | L42: 0 | M42: 2 | N42: 1 | O42: 2 | P42: 1 | Q42: 1 | R42: 1 | S42: 0 | U42: 1 | W42: 0 | Y42: 1 | Z42: 0 | AA42: 1 | AB42: 1 | AC42: 297240 | AD42: 17360 | AE42: 48856
A43: 70 | B43: GUNDERSHOFFEN | C43: 5 | D43: 0 | E43: 1 | F43: 1 | G43: 5 | H43: 2 | I43: 6 | J43: 2 | K43: 1 | L43: 0 | M43: 2 | N43: 2 | O43: 2 | P43: 1 | Q43: 1 | R43: 1 | S43: 0 | U43: 1 | W43: 0 | Y43: 1 | Z43: 0 | AA43: 1 | AB43: 1 | AC43: 297240 | AD43: 28930 | AE43: 40478
A44: 71 | B44: WISSEMBOURG | C44: 11 | D44: 1 | E44: 2 | F44: 2 | G44: 12 | H44: 5 | I44: 14 | J44: 4 | K44: 3 | L44: 1 | M44: 6 | N44: 4 | O44: 4 | P44: 2 | Q44: 4 | R44: 3 | S44: 1 | U44: 2 | W44: 1 | Y44: 1 | Z44: 1 | AA44: 3 | AB44: 2 | AC44: 708710 | AD44: 28930 | AE44: 107611
A45: 73 | B45: SCHWEIGHOUSE SUR MODER | C45: 6 | D45: 0 | E45: 1 | F45: 1 | G45: 6 | H45: 3 | I45: 7 | J45: 2 | K45: 1 | L45: 1 | M45: 2 | N45: 2 | O45: 2 | P45: 1 | Q45: 1 | R45: 1 | S45: 0 | U45: 1 | W45: 0 | Y45: 1 | Z45: 1 | AA45: 1 | AB45: 1 | AC45: 344430 | AD45: 17360 | AE45: 60320
A46: 74 | B46: SOUFFLENHEIM | C46: 5 | D46: 0 | E46: 1 | F46: 1 | G46: 5 | H46: 2 | I46: 6 | J46: 2 | K46: 1 | L46: 0 | M46: 2 | N46: 1 | O46: 2 | P46: 1 | Q46: 1 | R46: 1 | S46: 0 | U46: 1 | W46: 0 | Y46: 1 | Z46: 0 | AA46: 1 | AB46: 1 | AC46: 297240 | AD46: 17360 | AE46: 56592
A47: 76 | B47: BETSCHDORF | C47: 5 | D47: 0 | E47: 1 | F47: 1 | G47: 5 | H47: 2 | I47: 6 | J47: 2 | K47: 1 | L47: 0 | M47: 2 | N47: 1 | O47: 2 | P47: 1 | Q47: 1 | R47: 1 | S47: 0 | U47: 1 | W47: 0 | Y47: 1 | Z47: 0 | AA47: 1 | AB47: 1 | AC47: 297240 | AD47: 17360 | AE47: 45797
A48: 77 | B48: SELTZ | C48: 2 | D48: 0 | E48: 0 | F48: 0 | G48: 2 | H48: 1 | I48: 3 | J48: 1 | K48: 1 | L48: 0 | M48: 2 | N48: 1 | O48: 1 | P48: 0 | Q48: 0 | R48: 1 | S48: 0 | U48: 0 | W48: 0 | Y48: 0 | Z48: 0 | AA48: 1 | AB48: 0 | AC48: 132100 | AD48: 12860 | AE48: 35700
A49: 78 | B49: LAUTERBOURG | C49: 2 | D49: 0 | E49: 0 | F49: 0 | G49: 2 | H49: 1 | I49: 3 | J49: 1 | K49: 1 | L49: 0 | M49: 2 | N49: 1 | O49: 1 | P49: 0 | Q49: 0 | R49: 1 | S49: 0 | U49: 0 | W49: 0 | Y49: 0 | Z49: 0 | AA49: 1 | AB49: 0 | AC49: 132100 | AD49: 7710 | AE49: 35592
A50: 79 | B50: SOULTZ SOUS FORETS | C50: 5 | D50: 0 | E50: 1 | F50: 1 | G50: 6 | H50: 3 | I50: 6 | J50: 2 | K50: 1 | L50: 1 | M50: 2 | N50: 2 | O50: 2 | P50: 1 | Q50: 1 | R50: 1 | S50: 0 | U50: 1 | W50: 0 | Y50: 1 | Z50: 1 | AA50: 1 | AB50: 1 | AC50: 321220 | AD50: 18240 | AE50: 55270
A51: 80 | B51: WOERTH | C51: 5 | D51: 0 | E51: 1 | F51: 1 | G51: 5 | H51: 2 | I51: 6 | J51: 2 | K51: 1 | L51: 0 | M51: 2 | N51: 1 | O51: 2 | P51: 1 | Q51: 1 | R51: 1 | S51: 0 | U51: 1 | W51: 0 | Y51: 1 | Z51: 0 | AA51: 1 | AB51: 1 | AC51: 297240 | AD51: 17360 | AE51: 56031
A52: 82 | B52: BOUXWILLER | C52: 9 | D52: 1 | E52: 2 | F52: 1 | G52: 9 | H52: 4 | I52: 11 | J52: 3 | K52: 2 | L52: 1 | M52: 4 | N52: 3 | O52: 3 | P52: 2 | Q52: 2 | R52: 2 | S52: 0 | U52: 1 | W52: 1 | Y52: 1 | Z52: 1 | AA52: 2 | AB52: 2 | AC52: 533980 | AD52: 40120 | AE52: 77634
A53: 85 | B53: INGWILLER | C53: 12 | D53: 1 | E53: 2 | F53: 2 | G53: 13 | H53: 6 | I53: 15 | J53: 5 | K53: 3 | L53: 1 | M53: 6 | N53: 4 | O53: 4 | P53: 2 | Q53: 4 | R53: 3 | S53: 1 | U53: 2 | W53: 1 | Y53: 1 | Z53: 1 | AA53: 3 | AB53: 2 | AC53: 743090 | AD53: 43400 | AE53: 81138
A54: 86 | B54: WINGEN SUR MODER | C54: 3 | D54: 0 | E54: 1 | F54: 0 | G54: 3 | H54: 1 | I54: 3 | J54: 1 | K54: 1 | L54: 0 | M54: 2 | N54: 1 | O54: 1 | P54: 1 | Q54: 0 | R54: 1 | S54: 0 | U54: 0 | W54: 0 | Y54: 0 | Z54: 0 | AA54: 1 | AB54: 1 | AC54: 179120 | AD54: 7710 | AE54: 19635
A55: 87 | B55: SAVERNE CENTRE | C55: 17 | D55: 1 | E55: 3 | F55: 3 | G55: 18 | H55: 8 | I55: 21 | J55: 7 | K55: 5 | L55: 2 | M55: 10 | N55: 5 | O55: 6 | P55: 3 | Q55: 4 | R55: 4 | S55: 1 | U55: 2 | W55: 1 | Y55: 2 | Z55: 2 | AA55: 5 | AB55: 3 | AC55: 1062610 | AD55: 50150 | AE55: 178240
A56: 89 | B56: DIEMERINGEN | C56: 2 | D56: 0 | E56: 0 | F56: 0 | G56: 2 | H56: 1 | I56: 3 | J56: 1 | K56: 1 | L56: 0 | M56: 2 | N56: 1 | O56: 1 | P56: 0 | Q56: 0 | R56: 1 | S56: 0 | U56: 0 | W56: 0 | Y56: 0 | Z56: 0 | AA56: 1 | AB56: 0 | AC56: 132100 | AD56: 7710 | AE56: 30831
A57: 92 | B57: HOCHFELDEN | C57: 6 | D57: 0 | E57: 1 | F57: 1 | G57: 6 | H57: 3 | I57: 7 | J57: 2 | K57: 2 | L57: 1 | M57: 4 | N57: 2 | O57: 2 | P57: 1 | Q57: 1 | R57: 1 | S57: 0 | U57: 1 | W57: 0 | Y57: 1 | Z57: 1 | AA57: 2 | AB57: 1 | AC57: 366360 | AD57: 28930 | AE57: 56911
A58: 93 | B58: MARMOUTIER | C58: 2 | D58: 0 | E58: 0 | F58: 0 | G58: 2 | H58: 1 | I58: 3 | J58: 1 | K58: 1 | L58: 0 | M58: 2 | N58: 1 | O58: 1 | P58: 0 | Q58: 0 | R58: 1 | S58: 0 | U58: 0 | W58: 0 | Y58: 0 | Z58: 0 | AA58: 1 | AB58: 0 | AC58: 132100 | AD58: 7710 | AE58: 37105
A59: 95 | B59: SARRE UNION | C59: 11 | D59: 1 | E59: 2 | F59: 2 | G59: 12 | H59: 5 | I59: 14 | J59: 4 | K59: 3 | L59: 1 | M59: 6 | N59: 3 | O59: 4 | P59: 2 | Q59: 4 | R59: 3 | S59: 1 | U59: 2 | W59: 1 | Y59: 1 | Z59: 1 | AA59: 3 | AB59: 2 | AC59: 684370 | AD59: 33760 | AE59: 86610
A60: 101 | B60: SELESTAT CENTRE | C60: 24 | D60: 1 | E60: 5 | F60: 4 | G60: 25 | H60: 12 | I60: 29 | J60: 9 | K60: 6 | L60: 2 | M60: 12 | N60: 7 | O60: 8 | P60: 4 | Q60: 6 | R60: 6 | S60: 1 | U60: 3 | W60: 2 | Y60: 3 | Z60: 2 | AA60: 6 | AB60: 4 | AC60: 1486380 | AD60: 74170 | AE60: 191815
A61: 104 | B61: ERSTEIN | C61: 12 | D61: 1 | E61: 2 | F61: 2 | G61: 12 | H61: 6 | I61: 15 | J61: 4 | K61: 3 | L61: 1 | M61: 6 | N61: 4 | O61: 4 | P61: 2 | Q61: 4 | R61: 3 | S61: 1 | U61: 2 | W61: 1 | Y61: 1 | Z61: 1 | AA61: 3 | AB61: 2 | AC61: 726580 | AD61: 42440 | AE61: 147489
A62: 107 | B62: VILLE | C62: 8 | D62: 0 | E62: 1 | F62: 1 | G62: 8 | H62: 4 | I62: 9 | J62: 3 | K62: 2 | L62: 1 | M62: 4 | N62: 2 | O62: 3 | P62: 1 | Q62: 2 | R62: 2 | S62: 0 | U62: 1 | W62: 1 | Y62: 1 | Z62: 1 | AA62: 2 | AB62: 1 | AC62: 462370 | AD62: 27010 | AE62: 71817
A63: 108 | B63: CHATENOIS | C63: 5 | D63: 0 | E63: 1 | F63: 1 | G63: 5 | H63: 2 | I63: 6 | J63: 2 | K63: 1 | L63: 0 | M63: 2 | N63: 1 | O63: 2 | P63: 1 | Q63: 1 | R63: 1 | S63: 0 | U63: 1 | W63: 0 | Y63: 1 | Z63: 0 | AA63: 1 | AB63: 1 | AC63: 297240 | AD63: 17360 | AE63: 43796
A64: 109 | B64: MARCKOLSHEIM | C64: 10 | D64: 1 | E64: 2 | F64: 2 | G64: 11 | H64: 5 | I64: 12 | J64: 4 | K64: 3 | L64: 1 | M64: 6 | N64: 3 | O64: 3 | P64: 2 | Q64: 3 | R64: 2 | S64: 1 | U64: 1 | W64: 1 | Y64: 1 | Z64: 1 | AA64: 3 | AB64: 2 | AC64: 617640 | AD64: 35690 | AE64: 86699
A65: 110 | B65: SELESTAT OUEST | C65: 10 | D65: 1 | E65: 2 | F65: 2 | G65: 11 | H65: 5 | I65: 13 | J65: 4 | K65: 3 | L65: 1 | M65: 6 | N65: 3 | O65: 4 | P65: 2 | Q65: 3 | R65: 3 | S65: 1 | U65: 1 | W65: 1 | Y65: 1 | Z65: 1 | AA65: 3 | AB65: 2 | AC65: 654220 | AD65: 27010 | AE65: 66659
A66: 111 | B66: BENFELD | C66: 16 | D66: 1 | E66: 3 | F66: 3 | G66: 17 | H66: 8 | I66: 20 | J66: 6 | K66: 4 | L66: 1 | M66: 8 | N66: 5 | O66: 6 | P66: 3 | Q66: 4 | R66: 4 | S66: 1 | U66: 2 | W66: 1 | Y66: 2 | Z66: 1 | AA66: 4 | AB66: 3 | AC66: 990790 | AD66: 51540 | AE66: 111942
A67: 113 | B67: BARR | C67: 8 | D67: 1 | E67: 1 | F67: 1 | G67: 8 | H67: 4 | I67: 10 | J67: 3 | K67: 2 | L67: 1 | M67: 4 | N67: 2 | O67: 3 | P67: 1 | Q67: 2 | R67: 2 | S67: 0 | U67: 1 | W67: 1 | Y67: 1 | Z67: 1 | AA67: 2 | AB67: 1 | AC67: 462370 | AD67: 45010 | AE67: 75985
A68: 116 | B68: MOLSHEIM | C68: 20 | D68: 1 | E68: 4 | F68: 3 | G68: 21 | H68: 10 | I68: 25 | J68: 8 | K68: 5 | L68: 2 | M68: 10 | N68: 6 | O68: 7 | P68: 4 | Q68: 6 | R68: 5 | S68: 1 | U68: 3 | W68: 2 | Y68: 2 | Z68: 2 | AA68: 5 | AB68: 4 | AC68: 1238480 | AD68: 71110 | AE68: 149722
A69: 119 | B69: OBERNAI | C69: 13 | D69: 1 | E69: 2 | F69: 2 | G69: 14 | H69: 6 | I69: 16 | J69: 5 | K69: 3 | L69: 1 | M69: 6 | N69: 4 | O69: 4 | P69: 2 | Q69: 4 | R69: 3 | S69: 1 | U69: 2 | W69: 1 | Y69: 2 | Z69: 1 | AA69: 3 | AB69: 2 | AC69: 759600 | AD69: 73940 | AE69: 148917
A70: 120 | B70: WASSELONNE | C70: 8 | D70: 1 | E70: 2 | F70: 1 | G70: 9 | H70: 4 | I70: 10 | J70: 3 | K70: 2 | L70: 1 | M70: 4 | N70: 3 | O70: 3 | P70: 1 | Q70: 2 | R70: 2 | S70: 0 | U70: 1 | W70: 1 | Y70: 1 | Z70: 1 | AA70: 2 | AB70: 1 | AC70: 496290 | AD70: 39130 | AE70: 83960
A71: 121 | B71: SCHIRMECK | C71: 11 | D71: 1 | E71: 2 | F71: 2 | G71: 11 | H71: 5 | I71: 13 | J71: 4 | K71: 3 | L71: 1 | M71: 6 | N71: 3 | O71: 4 | P71: 2 | Q71: 3 | R71: 3 | S71: 1 | U71: 1 | W71: 1 | Y71: 1 | Z71: 1 | AA71: 3 | AB71: 2 | AC71: 648260 | AD71: 35690 | AE71: 93514
A72: 126 | B72: MUTZIG | C72: 8 | D72: 1 | E72: 1 | F72: 1 | G72: 8 | H72: 4 | I72: 10 | J72: 3 | K72: 2 | L72: 1 | M72: 4 | N72: 2 | O72: 3 | P72: 1 | Q72: 2 | R72: 2 | S72: 0 | U72: 1 | W72: 1 | Y72: 1 | Z72: 1 | AA72: 2 | AB72: 1 | AC72: 478480 | AD72: 26040 | AE72: 79430
A73: 127 | B73: ROSHEIM | C73: 11 | D73: 1 | E73: 2 | F73: 2 | G73: 12 | H73: 5 | I73: 13 | J73: 4 | K73: 3 | L73: 1 | M73: 6 | N73: 3 | O73: 4 | P73: 2 | Q73: 4 | R73: 3 | S73: 1 | U73: 2 | W73: 1 | Y73: 1 | Z73: 1 | AA73: 3 | AB73: 2 | AC73: 686070 | AD73: 27010 | AE73: 73539
A74: 129 | B74: MARLENHEIM | C74: 5 | D74: 0 | E74: 1 | F74: 1 | G74: 5 | H74: 2 | I74: 6 | J74: 2 | K74: 1 | L74: 0 | M74: 2 | N74: 2 | O74: 2 | P74: 1 | Q74: 1 | R74: 1 | S74: 0 | U74: 1 | W74: 0 | Y74: 1 | Z74: 0 | AA74: 1 | AB74: 1 | AC74: 297240 | AD74: 28930 | AE74: 59203
A75: 130 | B75: COLMAR REPUBLIQUE | C75: 27 | D75: 2 | E75: 5 | F75: 5 | G75: 29 | H75: 13 | I75: 33 | J75: 10 | K75: 7 | L75: 2 | M75: 14 | N75: 8 | O75: 10 | P75: 5 | Q75: 7 | R75: 7 | S75: 1 | U75: 4 | W75: 2 | Y75: 3 | Z75: 2 | AA75: 7 | AB75: 5 | AC75: 1706350 | AD75: 61790 | AE75: 225925
A76: 132 | B76: COLMAR MARAICHERS | C76: 9 | D76: 1 | E76: 2 | F76: 1 | G76: 9 | H76: 4 | I76: 11 | J76: 3 | K76: 2 | L76: 1 | M76: 4 | N76: 3 | O76: 3 | P76: 2 | Q76: 2 | R76: 2 | S76: 0 | U76: 1 | W76: 1 | Y76: 1 | Z76: 1 | AA76: 2 | AB76: 2 | AC76: 531930 | AD76: 41580 | AE76: 75678
A77: 133 | B77: COLMAR VAUBAN | C77: 16 | D77: 1 | E77: 3 | F77: 3 | G77: 17 | H77: 8 | I77: 19 | J77: 6 | K77: 4 | L77: 1 | M77: 8 | N77: 5 | O77: 5 | P77: 3 | Q77: 4 | R77: 4 | S77: 1 | U77: 2 | W77: 1 | Y77: 2 | Z77: 1 | AA77: 4 | AB77: 3 | AC77: 990790 | AD77: 34720 | AE77: 103006
A78: 134 | B78: COLMAR SAINT JOSEPH | C78: 10 | D78: 1 | E78: 2 | F78: 2 | G78: 10 | H78: 5 | I78: 12 | J78: 4 | K78: 3 | L78: 1 | M78: 6 | N78: 3 | O78: 3 | P78: 2 | Q78: 2 | R78: 2 | S78: 0 | U78: 1 | W78: 1 | Y78: 1 | Z78: 1 | AA78: 3 | AB78: 2 | AC78: 610990 | AD78: 35690 | AE78: 93911
A79: 135 | B79: COLMAR SAINTE MARIE | C79: 12 | D79: 1 | E79: 2 | F79: 2 | G79: 13 | H79: 6 | I79: 15 | J79: 5 | K79: 3 | L79: 1 | M79: 6 | N79: 4 | O79: 4 | P79: 2 | Q79: 4 | R79: 3 | S79: 1 | U79: 2 | W79: 1 | Y79: 2 | Z79: 1 | AA79: 3 | AB79: 2 | AC79: 743090 | AD79: 43400 | AE79: 123592
A80: 139 | B80: INGERSHEIM | C80: 11 | D80: 1 | E80: 2 | F80: 2 | G80: 11 | H80: 5 | I80: 13 | J80: 4 | K80: 3 | L80: 1 | M80: 6 | N80: 3 | O80: 4 | P80: 2 | Q80: 4 | R80: 3 | S80: 1 | U80: 2 | W80: 1 | Y80: 1 | Z80: 1 | AA80: 3 | AB80: 2 | AC80: 671030 | AD80: 33760 | AE80: 99770
A81: 140 | B81: WINTZENHEIM | C81: 5 | D81: 0 | E81: 1 | F81: 1 | G81: 5 | H81: 2 | I81: 6 | J81: 2 | K81: 1 | L81: 0 | M81: 2 | N81: 1 | O81: 2 | P81: 1 | Q81: 1 | R81: 1 | S81: 0 | U81: 1 | W81: 0 | Y81: 1 | Z81: 0 | AA81: 1 | AB81: 1 | AC81: 297240 | AD81: 17360 | AE81: 64804
A82: 141 | B82: HORBOURG WIHR | C82: 13 | D82: 1 | E82: 2 | F82: 2 | G82: 13 | H82: 6 | I82: 16 | J82: 5 | K82: 3 | L82: 1 | M82: 6 | N82: 4 | O82: 4 | P82: 2 | Q82: 4 | R82: 3 | S82: 1 | U82: 2 | W82: 1 | Y82: 2 | Z82: 1 | AA82: 3 | AB82: 2 | AC82: 788990 | AD82: 35690 | AE82: 93378
A83: 143 | B83: MUNSTER | C83: 15 | D83: 1 | E83: 3 | F83: 3 | G83: 16 | H83: 7 | I83: 18 | J83: 6 | K83: 4 | L83: 1 | M83: 8 | N83: 5 | O83: 5 | P83: 3 | Q83: 4 | R83: 4 | S83: 1 | U83: 2 | W83: 1 | Y83: 2 | Z83: 1 | AA83: 4 | AB83: 3 | AC83: 917560 | AD83: 61200 | AE83: 142332
A84: 144 | B84: RIBEAUVILLE | C84: 8 | D84: 1 | E84: 1 | F84: 1 | G84: 8 | H84: 4 | I84: 9 | J84: 3 | K84: 2 | L84: 1 | M84: 4 | N84: 2 | O84: 3 | P84: 1 | Q84: 2 | R84: 2 | S84: 0 | U84: 1 | W84: 1 | Y84: 1 | Z84: 1 | AA84: 2 | AB84: 1 | AC84: 464740 | AD84: 30400 | AE84: 86062
A85: 147 | B85: GUEBWILLER | C85: 12 | D85: 1 | E85: 2 | F85: 2 | G85: 13 | H85: 6 | I85: 15 | J85: 5 | K85: 3 | L85: 1 | M85: 6 | N85: 4 | O85: 4 | P85: 2 | Q85: 4 | R85: 3 | S85: 1 | U85: 2 | W85: 1 | Y85: 2 | Z85: 1 | AA85: 3 | AB85: 2 | AC85: 759600 | AD85: 44370 | AE85: 125247
A86: 148 | B86: ORBEY | C86: 4 | D86: 0 | E86: 1 | F86: 1 | G86: 5 | H86: 2 | I86: 5 | J86: 1 | K86: 1 | L86: 0 | M86: 2 | N86: 1 | O86: 1 | P86: 1 | Q86: 1 | R86: 1 | S86: 0 | U86: 1 | W86: 0 | Y86: 1 | Z86: 0 | AA86: 1 | AB86: 1 | AC86: 264210 | AD86: 15430 | AE86: 63983
A87: 152 | B87: KAYSERSBERG | C87: 5 | D87: 0 | E87: 1 | F87: 1 | G87: 5 | H87: 2 | I87: 6 | J87: 2 | K87: 1 | L87: 0 | M87: 2 | N87: 1 | O87: 2 | P87: 1 | Q87: 1 | R87: 1 | S87: 0 | U87: 1 | W87: 0 | Y87: 1 | Z87: 0 | AA87: 1 | AB87: 1 | AC87: 297240 | AD87: 17360 | AE87: 48947
A88: 153 | B88: ROUFFACH | C88: 7 | D88: 0 | E88: 1 | F88: 1 | G88: 8 | H88: 4 | I88: 9 | J88: 3 | K88: 2 | L88: 1 | M88: 4 | N88: 2 | O88: 3 | P88: 1 | Q88: 2 | R88: 2 | S88: 0 | U88: 1 | W88: 1 | Y88: 1 | Z88: 1 | AA88: 2 | AB88: 1 | AC88: 445850 | AD88: 26040 | AE88: 69907
A89: 154 | B89: LAPOUTROIE | C89: 2 | D89: 0 | E89: 0 | F89: 0 | G89: 2 | H89: 1 | I89: 3 | J89: 1 | K89: 1 | L89: 0 | M89: 2 | N89: 1 | O89: 1 | P89: 0 | Q89: 0 | R89: 1 | S89: 0 | U89: 0 | W89: 0 | Y89: 0 | Z89: 0 | AA89: 1 | AB89: 0 | AC89: 132100 | AD89: 7710 | AE89: 34090
A90: 156 | B90: SOULTZMATT | C90: 3 | D90: 0 | E90: 1 | F90: 0 | G90: 3 | H90: 1 | I90: 3 | J90: 1 | K90: 1 | L90: 0 | M90: 2 | N90: 1 | O90: 1 | P90: 0 | Q90: 0 | R90: 1 | S90: 0 | U90: 0 | W90: 0 | Y90: 0 | Z90: 0 | AA90: 1 | AB90: 0 | AC90: 155290 | AD90: 12860 | AE90: 23917
A91: 157 | B91: NEUF BRISACH | C91: 11 | D91: 1 | E91: 2 | F91: 2 | G91: 12 | H91: 5 | I91: 14 | J91: 4 | K91: 3 | L91: 1 | M91: 6 | N91: 4 | O91: 4 | P91: 2 | Q91: 4 | R91: 3 | S91: 1 | U91: 2 | W91: 1 | Y91: 1 | Z91: 1 | AA91: 3 | AB91: 2 | AC91: 702680 | AD91: 34720 | AE91: 101874
A92: 159 | B92: MUNTZENHEIM | C92: 6 | D92: 0 | E92: 1 | F92: 1 | G92: 6 | H92: 3 | I92: 7 | J92: 2 | K92: 2 | L92: 1 | M92: 4 | N92: 2 | O92: 2 | P92: 1 | Q92: 1 | R92: 1 | S92: 0 | U92: 1 | W92: 0 | Y92: 1 | Z92: 1 | AA92: 2 | AB92: 1 | AC92: 358890 | AD92: 17360 | AE92: 55928
A93: 160 | B93: SOULTZ | C93: 12 | D93: 1 | E93: 2 | F93: 2 | G93: 13 | H93: 6 | I93: 15 | J93: 5 | K93: 3 | L93: 1 | M93: 6 | N93: 4 | O93: 4 | P93: 2 | Q93: 4 | R93: 3 | S93: 1 | U93: 2 | W93: 1 | Y93: 2 | Z93: 1 | AA93: 3 | AB93: 2 | AC93: 770610 | AD93: 27010 | AE93: 67350
A94: 162 | B94: ENSISHEIM | C94: 11 | D94: 1 | E94: 2 | F94: 2 | G94: 12 | H94: 5 | I94: 14 | J94: 4 | K94: 3 | L94: 1 | M94: 6 | N94: 3 | O94: 4 | P94: 2 | Q94: 4 | R94: 3 | S94: 1 | U94: 2 | W94: 1 | Y94: 1 | Z94: 1 | AA94: 3 | AB94: 2 | AC94: 690810 | AD94: 26310 | AE94: 67447
A95: 163 | B95: PULVERSHEIM | C95: 2 | D95: 0 | E95: 0 | F95: 0 | G95: 2 | H95: 1 | I95: 3 | J95: 1 | K95: 1 | L95: 0 | M95: 2 | N95: 1 | O95: 1 | P95: 0 | Q95: 0 | R95: 1 | S95: 0 | U95: 0 | W95: 0 | Y95: 0 | Z95: 0 | AA95: 1 | AB95: 0 | AC95: 132100 | AD95: 7710 | AE95: 34903
A96: 164 | B96: SAINTE MARIE AUX MINES | C96: 5 | D96: 0 | E96: 1 | F96: 1 | G96: 5 | H96: 2 | I96: 6 | J96: 2 | K96: 1 | L96: 0 | M96: 2 | N96: 1 | O96: 2 | P96: 1 | Q96: 1 | R96: 1 | S96: 0 | U96: 1 | W96: 0 | Y96: 1 | Z96: 0 | AA96: 1 | AB96: 1 | AC96: 280720 | AD96: 16400 | AE96: 51627
A97: 167 | B97: LIEPVRE | C97: 2 | D97: 0 | E97: 0 | F97: 0 | G97: 2 | H97: 1 | I97: 3 | J97: 1 | K97: 1 | L97: 0 | M97: 2 | N97: 1 | O97: 1 | P97: 0 | Q97: 0 | R97: 1 | S97: 0 | U97: 0 | W97: 0 | Y97: 0 | Z97: 0 | AA97: 1 | AB97: 0 | AC97: 132410 | AD97: 7740 | AE97: 20723
A98: 169 | B98: MULHOUSE ROOSEVELT | C98: 19 | D98: 1 | E98: 4 | F98: 3 | G98: 21 | H98: 9 | I98: 24 | J98: 7 | K98: 5 | L98: 2 | M98: 10 | N98: 6 | O98: 7 | P98: 3 | Q98: 6 | R98: 5 | S98: 1 | U98: 3 | W98: 2 | Y98: 2 | Z98: 2 | AA98: 5 | AB98: 3 | AC98: 1189740 | AD98: 72340 | AE98: 147092
A99: 170 | B99: MULHOUSE REUNION | C99: 20 | D99: 1 | E99: 4 | F99: 3 | G99: 21 | H99: 10 | I99: 24 | J99: 8 | K99: 5 | L99: 2 | M99: 10 | N99: 6 | O99: 7 | P99: 4 | Q99: 6 | R99: 5 | S99: 1 | U99: 3 | W99: 2 | Y99: 2 | Z99: 2 | AA99: 5 | AB99: 4 | AC99: 1235470 | AD99: 60540 | AE99: 151694
A100: 174 | B100: MULHOUSE DORNACH | C100: 8 | D100: 1 | E100: 2 | F100: 1 | G100: 9 | H100: 4 | I100: 10 | J100: 3 | K100: 2 | L100: 1 | M100: 4 | N100: 3 | O100: 3 | P100: 2 | Q100: 2 | R100: 2 | S100: 0 | U100: 1 | W100: 1 | Y100: 1 | Z100: 1 | AA100: 2 | AB100: 2 | AC100: 518880 | AD100: 26040 | AE100: 81932
A101: 178 | B101: SAINT LOUIS | C101: 13 | D101: 1 | E101: 2 | F101: 2 | G101: 13 | H101: 6 | I101: 15 | J101: 5 | K101: 3 | L101: 1 | M101: 6 | N101: 4 | O101: 4 | P101: 2 | Q101: 4 | R101: 3 | S101: 1 | U101: 2 | W101: 1 | Y101: 2 | Z101: 1 | AA101: 3 | AB101: 2 | AC101: 743090 | AD101: 70670 | AE101: 152740
A102: 179 | B102: SIERENTZ | C102: 8 | D102: 0 | E102: 1 | F102: 1 | G102: 8 | H102: 4 | I102: 9 | J102: 3 | K102: 2 | L102: 1 | M102: 4 | N102: 2 | O102: 3 | P102: 1 | Q102: 2 | R102: 2 | S102: 0 | U102: 1 | W102: 1 | Y102: 1 | Z102: 1 | AA102: 2 | AB102: 1 | AC102: 462370 | AD102: 27010 | AE102: 81715
A103: 180 | B103: RIEDISHEIM | C103: 11 | D103: 1 | E103: 2 | F103: 2 | G103: 11 | H103: 5 | I103: 13 | J103: 4 | K103: 3 | L103: 1 | M103: 6 | N103: 3 | O103: 4 | P103: 2 | Q103: 3 | R103: 3 | S103: 1 | U103: 1 | W103: 1 | Y103: 1 | Z103: 1 | AA103: 3 | AB103: 2 | AC103: 632650 | AD103: 49660 | AE103: 107950
A104: 181 | B104: WITTELSHEIM | C104: 14 | D104: 1 | E104: 2 | F104: 2 | G104: 14 | H104: 7 | I104: 17 | J104: 5 | K104: 4 | L104: 1 | M104: 8 | N104: 4 | O104: 5 | P104: 2 | Q104: 4 | R104: 3 | S104: 1 | U104: 2 | W104: 1 | Y104: 2 | Z104: 1 | AA104: 4 | AB104: 2 | AC104: 822400 | AD104: 57870 | AE104: 101882
A105: 183 | B105: WITTENHEIM | C105: 10 | D105: 1 | E105: 2 | F105: 2 | G105: 10 | H105: 5 | I105: 12 | J105: 4 | K105: 3 | L105: 1 | M105: 6 | N105: 3 | O105: 3 | P105: 2 | Q105: 2 | R105: 2 | S105: 0 | U105: 1 | W105: 1 | Y105: 1 | Z105: 1 | AA105: 3 | AB105: 2 | AC105: 610990 | AD105: 35690 | AE105: 88066
A106: 184 | B106: ILLZACH | C106: 12 | D106: 1 | E106: 2 | F106: 2 | G106: 13 | H106: 6 | I106: 15 | J106: 5 | K106: 3 | L106: 1 | M106: 6 | N106: 4 | O106: 4 | P106: 2 | Q106: 4 | R106: 3 | S106: 1 | U106: 2 | W106: 1 | Y106: 2 | Z106: 1 | AA106: 3 | AB106: 2 | AC106: 770610 | AD106: 27010 | AE106: 79179
A107: 185 | B107: RIXHEIM | C107: 10 | D107: 1 | E107: 2 | F107: 2 | G107: 11 | H107: 5 | I107: 12 | J107: 4 | K107: 3 | L107: 1 | M107: 6 | N107: 3 | O107: 3 | P107: 2 | Q107: 2 | R107: 2 | S107: 0 | U107: 1 | W107: 1 | Y107: 1 | Z107: 1 | AA107: 3 | AB107: 2 | AC107: 610990 | AD107: 40370 | AE107: 101891
A108: 186 | B108: BRUNSTATT | C108: 10 | D108: 1 | E108: 2 | F108: 2 | G108: 10 | H108: 5 | I108: 12 | J108: 4 | K108: 3 | L108: 1 | M108: 6 | N108: 3 | O108: 3 | P108: 2 | Q108: 2 | R108: 2 | S108: 0 | U108: 1 | W108: 1 | Y108: 1 | Z108: 1 | AA108: 3 | AB108: 2 | AC108: 594180 | AD108: 43400 | AE108: 80616
A109: 187 | B109: HUNINGUE | C109: 2 | D109: 0 | E109: 1 | F109: 0 | G109: 3 | H109: 1 | I109: 3 | J109: 1 | K109: 1 | L109: 0 | M109: 2 | N109: 1 | O109: 1 | P109: 0 | Q109: 0 | R109: 1 | S109: 0 | U109: 0 | W109: 0 | Y109: 0 | Z109: 0 | AA109: 1 | AB109: 0 | AC109: 144740 | AD109: 12860 | AE109: 26143
A110: 188 | B110: PFASTATT | C110: 10 | D110: 1 | E110: 2 | F110: 2 | G110: 10 | H110: 5 | I110: 12 | J110: 4 | K110: 3 | L110: 1 | M110: 6 | N110: 3 | O110: 3 | P110: 2 | Q110: 2 | R110: 2 | S110: 0 | U110: 1 | W110: 1 | Y110: 1 | Z110: 1 | AA110: 3 | AB110: 2 | AC110: 610990 | AD110: 35690 | AE110: 92344
A111: 189 | B111: ALTKIRCH | C111: 12 | D111: 1 | E111: 2 | F111: 2 | G111: 13 | H111: 6 | I111: 15 | J111: 5 | K111: 3 | L111: 1 | M111: 6 | N111: 4 | O111: 4 | P111: 2 | Q111: 4 | R111: 3 | S111: 1 | U111: 2 | W111: 1 | Y111: 2 | Z111: 1 | AA111: 3 | AB111: 2 | AC111: 743090 | AD111: 43400 | AE111: 121224
A112: 191 | B112: FERRETTE | C112: 4 | D112: 0 | E112: 1 | F112: 1 | G112: 4 | H112: 2 | I112: 4 | J112: 1 | K112: 1 | L112: 0 | M112: 2 | N112: 1 | O112: 1 | P112: 1 | Q112: 0 | R112: 1 | S112: 0 | U112: 0 | W112: 0 | Y112: 0 | Z112: 0 | AA112: 1 | AB112: 1 | AC112: 220170 | AD112: 7710 | AE112: 22056
A113: 192 | B113: SEPPOIS LE BAS | C113: 2 | D113: 0 | E113: 0 | F113: 0 | G113: 2 | H113: 1 | I113: 3 | J113: 1 | K113: 1 | L113: 0 | M113: 2 | N113: 1 | O113: 1 | P113: 0 | Q113: 0 | R113: 1 | S113: 0 | U113: 0 | W113: 0 | Y113: 0 | Z113: 0 | AA113: 1 | AB113: 0 | AC113: 139930 | AD113: 7710 | AE113: 19777
A114: 193 | B114: DANNEMARIE | C114: 7 | D114: 0 | E114: 1 | F114: 1 | G114: 7 | H114: 3 | I114: 9 | J114: 3 | K114: 2 | L114: 1 | M114: 4 | N114: 2 | O114: 2 | P114: 1 | Q114: 2 | R114: 2 | S114: 0 | U114: 1 | W114: 1 | Y114: 1 | Z114: 1 | AA114: 2 | AB114: 1 | AC114: 429340 | AD114: 25080 | AE114: 77192
A115: 194 | B115: THANN | C115: 20 | D115: 1 | E115: 4 | F115: 3 | G115: 21 | H115: 10 | I115: 24 | J115: 8 | K115: 5 | L115: 2 | M115: 10 | N115: 6 | O115: 7 | P115: 3 | Q115: 6 | R115: 5 | S115: 1 | U115: 3 | W115: 2 | Y115: 2 | Z115: 2 | AA115: 5 | AB115: 3 | AC115: 1210960 | AD115: 70730 | AE115: 131731
A116: 195 | B116: CERNAY | C116: 10 | D116: 1 | E116: 2 | F116: 2 | G116: 10 | H116: 5 | I116: 12 | J116: 4 | K116: 3 | L116: 1 | M116: 6 | N116: 3 | O116: 3 | P116: 2 | Q116: 2 | R116: 2 | S116: 0 | U116: 1 | W116: 1 | Y116: 1 | Z116: 1 | AA116: 3 | AB116: 2 | AC116: 594470 | AD116: 34720 | AE116: 99782
A117: 196 | B117: MASEVAUX | C117: 8 | D117: 1 | E117: 1 | F117: 1 | G117: 8 | H117: 4 | I117: 10 | J117: 3 | K117: 2 | L117: 1 | M117: 4 | N117: 2 | O117: 3 | P117: 1 | Q117: 2 | R117: 2 | S117: 0 | U117: 1 | W117: 1 | Y117: 1 | Z117: 1 | AA117: 2 | AB117: 1 | AC117: 462370 | AD117: 45010 | AE117: 65794
A118: 198 | B118: SAINT AMARIN | C118: 5 | D118: 0 | E118: 1 | F118: 1 | G118: 5 | H118: 2 | I118: 6 | J118: 2 | K118: 1 | L118: 0 | M118: 2 | N118: 1 | O118: 2 | P118: 1 | Q118: 1 | R118: 1 | S118: 0 | U118: 1 | W118: 0 | Y118: 1 | Z118: 0 | AA118: 1 | AB118: 1 | AC118: 297240 | AD118: 17360 | AE118: 44875
A119: 199 | B119: CEA | C119: 1140 | D119: 70 | E119: 210 | F119: 190 | G119: 1200 | H119: 550 | I119: 1400 | J119: 440 | K119: 300 | L119: 100 | M119: 600 | N119: 350 | O119: 400 | P119: 200 | Q119: 300 | R119: 280 | S119: 50 | U119: 160 | W119: 90 | Y119: 140 | Z119: 100 | AA119: 300 | AB119: 200 | AC119: 70000000 | AD119: 4000000 | AE119: 10000000
A120: 262 | B120: DIRECTION COMMERCIALE BAS RHIN | C120: 732 | D120: 42 | E120: 135 | F120: 122 | G120: 772 | H120: 353 | I120: 902 | J120: 282 | K120: 191 | L120: 65 | M120: 382 | N120: 225 | O120: 260 | P120: 129 | Q120: 191 | R120: 179 | S120: 32 | T120: 0 | U120: 103 | V120: 0 | W120: 56 | X120: 0 | Y120: 90 | Z120: 65 | AA120: 191 | AB120: 129 | AC120: 44987980 | AD120: 2587060 | AE120: 6408336
A121: 264 | B121: DIRECTION COMMERCIALE HAUT-RHIN | C121: 408 | D121: 28 | E121: 75 | F121: 68 | G121: 428 | H121: 197 | I121: 498 | J121: 158 | K121: 109 | L121: 35 | M121: 218 | N121: 125 | O121: 140 | P121: 71 | Q121: 109 | R121: 101 | S121: 18 | T121: 0 | U121: 57 | V121: 0 | W121: 34 | X121: 0 | Y121: 50 | Z121: 35 | AA121: 109 | AB121: 71 | AC121: 25012020 | AD121: 1412940 | AE121: 3591664
A122: 4006 | B122: STRASBOURG NEUDORF CENTRE | C122: 24 | D122: 1 | E122: 4 | F122: 4 | G122: 25 | H122: 11 | I122: 29 | J122: 9 | K122: 6 | L122: 2 | M122: 12 | N122: 7 | O122: 8 | P122: 4 | Q122: 6 | R122: 6 | S122: 1 | T122: 0 | U122: 3 | V122: 0 | W122: 2 | X122: 0 | Y122: 3 | Z122: 2 | AA122: 6 | AB122: 4 | AC122: 1486180 | AD122: 52080 | AE122: 166791
A123: 4007 | B123: ILLKIRCH CENTRE | C123: 19 | D123: 1 | E123: 4 | F123: 4 | G123: 20 | H123: 9 | I123: 23 | J123: 7 | K123: 5 | L123: 1 | M123: 10 | N123: 6 | O123: 7 | P123: 3 | Q123: 5 | R123: 4 | S123: 1 | T123: 0 | U123: 3 | V123: 0 | W123: 1 | X123: 0 | Y123: 3 | Z123: 1 | AA123: 5 | AB123: 3 | AC123: 1127960 | AD123: 98050 | AE123: 210615
A124: 4008 | B124: FEGERSHEIM | C124: 10 | D124: 1 | E124: 2 | F124: 2 | G124: 10 | H124: 5 | I124: 12 | J124: 4 | K124: 3 | L124: 1 | M124: 6 | N124: 3 | O124: 3 | P124: 2 | Q124: 3 | R124: 2 | S124: 1 | T124: 0 | U124: 1 | V124: 0 | W124: 1 | X124: 0 | Y124: 1 | Z124: 1 | AA124: 3 | AB124: 2 | AC124: 610990 | AD124: 35690 | AE124: 102402
A125: 4010 | B125: STRASBOURG MEINAU | C125: 10 | D125: 1 | E125: 2 | F125: 2 | G125: 10 | H125: 5 | I125: 12 | J125: 4 | K125: 3 | L125: 1 | M125: 6 | N125: 3 | O125: 3 | P125: 2 | Q125: 2 | R125: 2 | S125: 0 | T125: 0 | U125: 1 | V125: 0 | W125: 1 | X125: 0 | Y125: 1 | Z125: 1 | AA125: 3 | AB125: 2 | AC125: 594470 | AD125: 34720 | AE125: 102044
A126: 4012 | B126: STRASBOURG NEUHOF | C126: 7 | D126: 0 | E126: 1 | F126: 1 | G126: 8 | H126: 4 | I126: 9 | J126: 3 | K126: 2 | L126: 1 | M126: 4 | N126: 2 | O126: 3 | P126: 1 | Q126: 2 | R126: 2 | S126: 0 | T126: 0 | U126: 1 | V126: 0 | W126: 1 | X126: 0 | Y126: 1 | Z126: 1 | AA126: 2 | AB126: 1 | AC126: 445850 | AD126: 26040 | AE126: 69449
A127: 4015 | B127: LINGOLSHEIM | C127: 18 | D127: 1 | E127: 4 | F127: 3 | G127: 20 | H127: 9 | I127: 23 | J127: 7 | K127: 5 | L127: 2 | M127: 10 | N127: 6 | O127: 7 | P127: 3 | Q127: 5 | R127: 4 | S127: 1 | T127: 0 | U127: 2 | V127: 0 | W127: 2 | X127: 0 | Y127: 2 | Z127: 2 | AA127: 5 | AB127: 3 | AC127: 1114100 | AD127: 77940 | AE127: 152923
A128: 4019 | B128: STRASBOURG ANVERS | C128: 20 | D128: 1 | E128: 4 | F128: 3 | G128: 21 | H128: 10 | I128: 25 | J128: 8 | K128: 5 | L128: 2 | M128: 10 | N128: 6 | O128: 7 | P128: 4 | Q128: 6 | R128: 5 | S128: 1 | T128: 0 | U128: 3 | V128: 0 | W128: 2 | X128: 0 | Y128: 2 | Z128: 2 | AA128: 5 | AB128: 4 | AC128: 1238480 | AD128: 72340 | AE128: 142722
A129: 4020 | B129: STRASBOURG ROBERTSAU | C129: 12 | D129: 1 | E129: 2 | F129: 2 | G129: 13 | H129: 6 | I129: 15 | J129: 5 | K129: 3 | L129: 1 | M129: 6 | N129: 4 | O129: 4 | P129: 2 | Q129: 4 | R129: 3 | S129: 1 | T129: 0 | U129: 2 | V129: 0 | W129: 1 | X129: 0 | Y129: 2 | Z129: 1 | AA129: 3 | AB129: 2 | AC129: 759600 | AD129: 44370 | AE129: 146240
A130: 4023 | B130: STRASBOURG VOSGES | C130: 9 | D130: 1 | E130: 2 | F130: 2 | G130: 10 | H130: 5 | I130: 12 | J130: 4 | K130: 3 | L130: 1 | M130: 6 | N130: 3 | O130: 3 | P130: 2 | Q130: 2 | R130: 2 | S130: 0 | T130: 0 | U130: 1 | V130: 0 | W130: 1 | X130: 0 | Y130: 1 | Z130: 1 | AA130: 3 | AB130: 2 | AC130: 582780 | AD130: 34030 | AE130: 85792
A131: 4024 | B131: STRASBOURG AUSTERLITZ | C131: 10 | D131: 1 | E131: 2 | F131: 2 | G131: 11 | H131: 5 | I131: 12 | J131: 4 | K131: 3 | L131: 1 | M131: 6 | N131: 3 | O131: 3 | P131: 2 | Q131: 3 | R131: 2 | S131: 1 | T131: 0 | U131: 1 | V131: 0 | W131: 1 | X131: 0 | Y131: 1 | Z131: 1 | AA131: 3 | AB131: 2 | AC131: 610990 | AD131: 37190 | AE131: 88700
A132: 4025 | B132: STRASBOURG ESPLANADE | C132: 15 | D132: 1 | E132: 3 | F132: 3 | G132: 16 | H132: 7 | I132: 19 | J132: 6 | K132: 4 | L132: 1 | M132: 8 | N132: 5 | O132: 5 | P132: 3 | Q132: 4 | R132: 4 | S132: 1 | T132: 0 | U132: 2 | V132: 0 | W132: 1 | X132: 0 | Y132: 2 | Z132: 1 | AA132: 4 | AB132: 3 | AC132: 946810 | AD132: 57870 | AE132: 101856
A133: 4026 | B133: STRASBOURG DANUBE | C133: 7 | D133: 0 | E133: 1 | F133: 1 | G133: 8 | H133: 4 | I133: 9 | J133: 3 | K133: 2 | L133: 1 | M133: 4 | N133: 2 | O133: 3 | P133: 1 | Q133: 2 | R133: 2 | S133: 0 | T133: 0 | U133: 1 | V133: 0 | W133: 1 | X133: 0 | Y133: 1 | Z133: 1 | AA133: 2 | AB133: 1 | AC133: 445850 | AD133: 26040 | AE133: 62742
A134: 4027 | B134: SCHILTIGHEIM CENTRE | C134: 20 | D134: 1 | E134: 4 | F134: 3 | G134: 21 | H134: 10 | I134: 24 | J134: 8 | K134: 5 | L134: 2 | M134: 10 | N134: 6 | O134: 7 | P134: 4 | Q134: 6 | R134: 5 | S134: 1 | T134: 0 | U134: 3 | V134: 0 | W134: 2 | X134: 0 | Y134: 2 | Z134: 2 | AA134: 5 | AB134: 4 | AC134: 1238480 | AD134: 53010 | AE134: 118885
A135: 4028 | B135: BISCHHEIM | C135: 13 | D135: 1 | E135: 2 | F135: 2 | G135: 13 | H135: 6 | I135: 16 | J135: 5 | K135: 3 | L135: 1 | M135: 6 | N135: 4 | O135: 4 | P135: 2 | Q135: 4 | R135: 3 | S135: 1 | T135: 0 | U135: 2 | V135: 0 | W135: 1 | X135: 0 | Y135: 2 | Z135: 1 | AA135: 3 | AB135: 2 | AC135: 791610 | AD135: 34720 | AE135: 104875
A136: 4029 | B136: SCHILTIGHEIM KLEBER | C136: 7 | D136: 0 | E136: 1 | F136: 1 | G136: 8 | H136: 4 | I136: 9 | J136: 3 | K136: 2 | L136: 1 | M136: 4 | N136: 2 | O136: 3 | P136: 1 | Q136: 2 | R136: 2 | S136: 0 | T136: 0 | U136: 1 | V136: 0 | W136: 1 | X136: 0 | Y136: 1 | Z136: 1 | AA136: 2 | AB136: 1 | AC136: 445850 | AD136: 26040 | AE136: 74460
A137: 4030 | B137: BRUMATH | C137: 21 | D137: 1 | E137: 4 | F137: 3 | G137: 23 | H137: 10 | I137: 26 | J137: 8 | K137: 6 | L137: 2 | M137: 12 | N137: 7 | O137: 7 | P137: 3 | Q137: 5 | R137: 5 | S137: 1 | T137: 0 | U137: 3 | V137: 0 | W137: 1 | X137: 0 | Y137: 2 | Z137: 2 | AA137: 6 | AB137: 3 | AC137: 1287620 | AD137: 76830 | AE137: 180815
A138: 4031 | B138: TRUCHTERSHEIM | C138: 12 | D138: 1 | E138: 2 | F138: 2 | G138: 13 | H138: 6 | I138: 15 | J138: 5 | K138: 3 | L138: 1 | M138: 6 | N138: 4 | O138: 4 | P138: 2 | Q138: 4 | R138: 3 | S138: 1 | T138: 0 | U138: 2 | V138: 0 | W138: 1 | X138: 0 | Y138: 2 | Z138: 1 | AA138: 3 | AB138: 2 | AC138: 743090 | AD138: 43400 | AE138: 91100
A139: 4033 | B139: LA WANTZENAU | C139: 8 | D139: 0 | E139: 2 | F139: 1 | G139: 9 | H139: 4 | I139: 10 | J139: 3 | K139: 2 | L139: 1 | M139: 4 | N139: 3 | O139: 3 | P139: 1 | Q139: 2 | R139: 2 | S139: 0 | T139: 0 | U139: 1 | V139: 0 | W139: 1 | X139: 0 | Y139: 1 | Z139: 1 | AA139: 2 | AB139: 1 | AC139: 495390 | AD139: 28930 | AE139: 66468
A140: 4037 | B140: MUNDOLSHEIM | C140: 10 | D140: 0 | E140: 2 | F140: 2 | G140: 11 | H140: 5 | I140: 12 | J140: 3 | K140: 2 | L140: 1 | M140: 4 | N140: 3 | O140: 3 | P140: 2 | Q140: 2 | R140: 2 | S140: 0 | T140: 0 | U140: 2 | V140: 0 | W140: 0 | X140: 0 | Y140: 2 | Z140: 1 | AA140: 2 | AB140: 2 | AC140: 601170 | AD140: 44360 | AE140: 113497
A141: 4038 | B141: OBERHAUSBERGEN | C141: 16 | D141: 1 | E141: 3 | F141: 3 | G141: 17 | H141: 8 | I141: 20 | J141: 6 | K141: 4 | L141: 1 | M141: 8 | N141: 5 | O141: 6 | P141: 3 | Q141: 4 | R141: 4 | S141: 1 | T141: 0 | U141: 2 | V141: 0 | W141: 1 | X141: 0 | Y141: 2 | Z141: 1 | AA141: 4 | AB141: 3 | AC141: 1018310 | AD141: 35690 | AE141: 100562
A142: 4039 | B142: REICHSTETT | C142: 6 | D142: 0 | E142: 1 | F142: 1 | G142: 7 | H142: 3 | I142: 8 | J142: 2 | K142: 2 | L142: 1 | M142: 4 | N142: 2 | O142: 2 | P142: 1 | Q142: 2 | R142: 2 | S142: 0 | T142: 0 | U142: 1 | V142: 0 | W142: 1 | X142: 0 | Y142: 1 | Z142: 1 | AA142: 2 | AB142: 1 | AC142: 402180 | AD142: 17360 | AE142: 59547
A143: 4041 | B143: REICHSTETT | C143: 5 | D143: 0 | E143: 1 | F143: 1 | G143: 6 | H143: 3 | I143: 6 | J143: 2 | K143: 1 | L143: 1 | M143: 2 | N143: 2 | O143: 2 | P143: 1 | Q143: 1 | R143: 1 | S143: 0 | T143: 0 | U143: 1 | V143: 0 | W143: 0 | X143: 0 | Y143: 1 | Z143: 1 | AA143: 1 | AB143: 1 | AC143: 313520 | AD143: 28930 | AE143: 57985
A144: 4043 | B144: STRASBOURG HALLES | C144: 24 | D144: 1 | E144: 4 | F144: 4 | G144: 25 | H144: 11 | I144: 29 | J144: 9 | K144: 6 | L144: 2 | M144: 12 | N144: 7 | O144: 9 | P144: 4 | Q144: 6 | R144: 6 | S144: 1 | T144: 0 | U144: 4 | V144: 0 | W144: 1 | X144: 0 | Y144: 3 | Z144: 2 | AA144: 6 | AB144: 4 | AC144: 1453160 | AD144: 81410 | AE144: 190885
A145: 4045 | B145: STRASBOURG HALLES | C145: 24 | D145: 1 | E145: 4 | F145: 4 | G145: 25 | H145: 11 | I145: 29 | J145: 9 | K145: 6 | L145: 2 | M145: 12 | N145: 7 | O145: 8 | P145: 4 | Q145: 6 | R145: 6 | S145: 1 | T145: 0 | U145: 3 | V145: 0 | W145: 2 | X145: 0 | Y145: 3 | Z145: 2 | AA145: 6 | AB145: 4 | AC145: 1458660 | AD145: 83000 | AE145: 166612
A146: 4047 | B146: STRASBOURG HALLES | C146: 20 | D146: 1 | E146: 4 | F146: 3 | G146: 21 | H146: 10 | I146: 24 | J146: 8 | K146: 5 | L146: 2 | M146: 10 | N146: 6 | O146: 7 | P146: 4 | Q146: 6 | R146: 5 | S146: 1 | T146: 0 | U146: 3 | V146: 0 | W146: 2 | X146: 0 | Y146: 2 | Z146: 2 | AA146: 5 | AB146: 4 | AC146: 1238480 | AD146: 53110 | AE146: 131632
A147: 4048 | B147: STRASBOURG HALLES | C147: 14 | D147: 1 | E147: 3 | F147: 2 | G147: 14 | H147: 6 | I147: 17 | J147: 5 | K147: 3 | L147: 1 | M147: 6 | N147: 5 | O147: 5 | P147: 3 | Q147: 3 | R147: 3 | S147: 0 | T147: 0 | U147: 2 | V147: 0 | W147: 1 | X147: 0 | Y147: 2 | Z147: 1 | AA147: 3 | AB147: 3 | AC147: 821020 | AD147: 60530 | AE147: 124068
A148: 4054 | B148: STRASBOURG MONTAGNE VERTE | C148: 10 | D148: 1 | E148: 2 | F148: 2 | G148: 10 | H148: 5 | I148: 12 | J148: 4 | K148: 3 | L148: 1 | M148: 6 | N148: 3 | O148: 3 | P148: 2 | Q148: 3 | R148: 2 | S148: 1 | T148: 0 | U148: 1 | V148: 0 | W148: 1 | X148: 0 | Y148: 1 | Z148: 1 | AA148: 3 | AB148: 2 | AC148: 610990 | AD148: 35690 | AE148: 91427
A149: 4057 | B149: BISCHWILLER | C149: 15 | D149: 1 | E149: 3 | F149: 2 | G149: 15 | H149: 7 | I149: 18 | J149: 5 | K149: 4 | L149: 1 | M149: 8 | N149: 5 | O149: 5 | P149: 3 | Q149: 2 | R149: 4 | S149: 0 | T149: 0 | U149: 1 | V149: 0 | W149: 1 | X149: 0 | Y149: 1 | Z149: 1 | AA149: 4 | AB149: 3 | AC149: 897200 | AD149: 47250 | AE149: 143914
A150: 4060 | B150: HAGUENAU HOUBLON | C150: 27 | D150: 2 | E150: 5 | F150: 5 | G150: 29 | H150: 13 | I150: 34 | J150: 11 | K150: 7 | L150: 2 | M150: 14 | N150: 8 | O150: 10 | P150: 5 | Q150: 7 | R150: 7 | S150: 1 | T150: 0 | U150: 4 | V150: 0 | W150: 2 | X150: 0 | Y150: 3 | Z150: 2 | AA150: 7 | AB150: 5 | AC150: 1706350 | AD150: 77730 | AE150: 206615
A151: 4064 | B151: HAGUENAU MUSAU | C151: 5 | D151: 0 | E151: 1 | F151: 1 | G151: 5 | H151: 2 | I151: 6 | J151: 2 | K151: 1 | L151: 0 | M151: 2 | N151: 1 | O151: 2 | P151: 1 | Q151: 1 | R151: 1 | S151: 0 | T151: 0 | U151: 1 | V151: 0 | W151: 0 | X151: 0 | Y151: 1 | Z151: 0 | AA151: 1 | AB151: 1 | AC151: 297240 | AD151: 17360 | AE151: 57981
A152: 4066 | B152: NIEDERBRONN LES BAINS | C152: 11 | D152: 0 | E152: 2 | F152: 2 | G152: 11 | H152: 5 | I152: 14 | J152: 4 | K152: 3 | L152: 1 | M152: 6 | N152: 4 | O152: 4 | P152: 2 | Q152: 2 | R152: 2 | S152: 0 | T152: 0 | U152: 2 | V152: 0 | W152: 0 | X152: 0 | Y152: 2 | Z152: 1 | AA152: 3 | AB152: 2 | AC152: 682550 | AD152: 42430 | AE152: 91225
A153: 4067 | B153: NIEDERBRONN LES BAINS | C153: 11 | D153: 1 | E153: 2 | F153: 2 | G153: 12 | H153: 5 | I153: 14 | J153: 4 | K153: 3 | L153: 1 | M153: 6 | N153: 3 | O153: 4 | P153: 2 | Q153: 4 | R153: 3 | S153: 1 | T153: 0 | U153: 2 | V153: 0 | W153: 1 | X153: 0 | Y153: 1 | Z153: 1 | AA153: 3 | AB153: 2 | AC153: 679920 | AD153: 52270 | AE153: 90735
A154: 4071 | B154: WISSEMBOURG | C154: 20 | D154: 1 | E154: 3 | F154: 3 | G154: 21 | H154: 9 | I154: 26 | J154: 8 | K154: 6 | L154: 1 | M154: 12 | N154: 7 | O154: 8 | P154: 3 | Q154: 5 | R154: 6 | S154: 1 | T154: 0 | U154: 3 | V154: 0 | W154: 1 | X154: 0 | Y154: 2 | Z154: 1 | AA154: 6 | AB154: 3 | AC154: 1270150 | AD154: 66860 | AE154: 224700
A155: 4073 | B155: WISSEMBOURG | C155: 6 | D155: 0 | E155: 1 | F155: 1 | G155: 6 | H155: 3 | I155: 7 | J155: 2 | K155: 1 | L155: 1 | M155: 2 | N155: 2 | O155: 2 | P155: 1 | Q155: 1 | R155: 1 | S155: 0 | T155: 0 | U155: 1 | V155: 0 | W155: 0 | X155: 0 | Y155: 1 | Z155: 1 | AA155: 1 | AB155: 1 | AC155: 344430 | AD155: 17360 | AE155: 60320
A156: 4074 | B156: WISSEMBOURG | C156: 5 | D156: 0 | E156: 1 | F156: 1 | G156: 5 | H156: 2 | I156: 6 | J156: 2 | K156: 1 | L156: 0 | M156: 2 | N156: 1 | O156: 2 | P156: 1 | Q156: 1 | R156: 1 | S156: 0 | T156: 0 | U156: 1 | V156: 0 | W156: 0 | X156: 0 | Y156: 1 | Z156: 0 | AA156: 1 | AB156: 1 | AC156: 297240 | AD156: 17360 | AE156: 56592
A157: 4079 | B157: SOULTZ SOUS FORETS | C157: 5 | D157: 0 | E157: 1 | F157: 1 | G157: 6 | H157: 3 | I157: 6 | J157: 2 | K157: 1 | L157: 1 | M157: 2 | N157: 2 | O157: 2 | P157: 1 | Q157: 1 | R157: 1 | S157: 0 | T157: 0 | U157: 1 | V157: 0 | W157: 0 | X157: 0 | Y157: 1 | Z157: 1 | AA157: 1 | AB157: 1 | AC157: 321220 | AD157: 18240 | AE157: 55270
A158: 4080 | B158: WOERTH | C158: 5 | D158: 0 | E158: 1 | F158: 1 | G158: 5 | H158: 2 | I158: 6 | J158: 2 | K158: 1 | L158: 0 | M158: 2 | N158: 1 | O158: 2 | P158: 1 | Q158: 1 | R158: 1 | S158: 0 | T158: 0 | U158: 1 | V158: 0 | W158: 0 | X158: 0 | Y158: 1 | Z158: 0 | AA158: 1 | AB158: 1 | AC158: 297240 | AD158: 17360 | AE158: 56031
A159: 4082 | B159: BOUXWILLER | C159: 9 | D159: 1 | E159: 2 | F159: 1 | G159: 9 | H159: 4 | I159: 11 | J159: 3 | K159: 2 | L159: 1 | M159: 4 | N159: 3 | O159: 3 | P159: 2 | Q159: 2 | R159: 2 | S159: 0 | T159: 0 | U159: 1 | V159: 0 | W159: 1 | X159: 0 | Y159: 1 | Z159: 1 | AA159: 2 | AB159: 2 | AC159: 533980 | AD159: 40120 | AE159: 77634
A160: 4085 | B160: INGWILLER | C160: 15 | D160: 1 | E160: 3 | F160: 2 | G160: 16 | H160: 7 | I160: 18 | J160: 6 | K160: 4 | L160: 1 | M160: 8 | N160: 5 | O160: 5 | P160: 3 | Q160: 4 | R160: 4 | S160: 1 | T160: 0 | U160: 2 | V160: 0 | W160: 1 | X160: 0 | Y160: 1 | Z160: 1 | AA160: 4 | AB160: 3 | AC160: 922210 | AD160: 51110 | AE160: 100773
A161: 4087 | B161: SAVERNE CENTRE | C161: 19 | D161: 1 | E161: 3 | F161: 3 | G161: 20 | H161: 9 | I161: 24 | J161: 8 | K161: 6 | L161: 2 | M161: 12 | N161: 6 | O161: 7 | P161: 3 | Q161: 4 | R161: 5 | S161: 1 | T161: 0 | U161: 2 | V161: 0 | W161: 1 | X161: 0 | Y161: 2 | Z161: 2 | AA161: 6 | AB161: 3 | AC161: 1194710 | AD161: 57860 | AE161: 215345
A162: 4092 | B162: SAVERNE CENTRE | C162: 6 | D162: 0 | E162: 1 | F162: 1 | G162: 6 | H162: 3 | I162: 7 | J162: 2 | K162: 2 | L162: 1 | M162: 4 | N162: 2 | O162: 2 | P162: 1 | Q162: 1 | R162: 1 | S162: 0 | T162: 0 | U162: 1 | V162: 0 | W162: 0 | X162: 0 | Y162: 1 | Z162: 1 | AA162: 2 | AB162: 1 | AC162: 366360 | AD162: 28930 | AE162: 56911
A163: 4095 | B163: SARRE UNION | C163: 13 | D163: 1 | E163: 2 | F163: 2 | G163: 14 | H163: 6 | I163: 17 | J163: 5 | K163: 4 | L163: 1 | M163: 8 | N163: 4 | O163: 5 | P163: 2 | Q163: 4 | R163: 4 | S163: 1 | T163: 0 | U163: 2 | V163: 0 | W163: 1 | X163: 0 | Y163: 1 | Z163: 1 | AA163: 4 | AB163: 2 | AC163: 816470 | AD163: 41470 | AE163: 117441
A164: 4101 | B164: SELESTAT CENTRE | C164: 29 | D164: 1 | E164: 6 | F164: 5 | G164: 30 | H164: 14 | I164: 35 | J164: 11 | K164: 7 | L164: 2 | M164: 14 | N164: 8 | O164: 10 | P164: 5 | Q164: 7 | R164: 7 | S164: 1 | T164: 0 | U164: 4 | V164: 0 | W164: 2 | X164: 0 | Y164: 4 | Z164: 2 | AA164: 7 | AB164: 5 | AC164: 1783620 | AD164: 91530 | AE164: 235611
A165: 4104 | B165: ERSTEIN | C165: 12 | D165: 1 | E165: 2 | F165: 2 | G165: 12 | H165: 6 | I165: 15 | J165: 4 | K165: 3 | L165: 1 | M165: 6 | N165: 4 | O165: 4 | P165: 2 | Q165: 4 | R165: 3 | S165: 1 | T165: 0 | U165: 2 | V165: 0 | W165: 1 | X165: 0 | Y165: 1 | Z165: 1 | AA165: 3 | AB165: 2 | AC165: 726580 | AD165: 42440 | AE165: 147489
A166: 4107 | B166: VILLE | C166: 8 | D166: 0 | E166: 1 | F166: 1 | G166: 8 | H166: 4 | I166: 9 | J166: 3 | K166: 2 | L166: 1 | M166: 4 | N166: 2 | O166: 3 | P166: 1 | Q166: 2 | R166: 2 | S166: 0 | T166: 0 | U166: 1 | V166: 0 | W166: 1 | X166: 0 | Y166: 1 | Z166: 1 | AA166: 2 | AB166: 1 | AC166: 462370 | AD166: 27010 | AE166: 71817
A167: 4109 | B167: MARCKOLSHEIM | C167: 10 | D167: 1 | E167: 2 | F167: 2 | G167: 11 | H167: 5 | I167: 12 | J167: 4 | K167: 3 | L167: 1 | M167: 6 | N167: 3 | O167: 3 | P167: 2 | Q167: 3 | R167: 2 | S167: 1 | T167: 0 | U167: 1 | V167: 0 | W167: 1 | X167: 0 | Y167: 1 | Z167: 1 | AA167: 3 | AB167: 2 | AC167: 617640 | AD167: 35690 | AE167: 86699
A168: 4110 | B168: SELESTAT OUEST | C168: 10 | D168: 1 | E168: 2 | F168: 2 | G168: 11 | H168: 5 | I168: 13 | J168: 4 | K168: 3 | L168: 1 | M168: 6 | N168: 3 | O168: 4 | P168: 2 | Q168: 3 | R168: 3 | S168: 1 | T168: 0 | U168: 1 | V168: 0 | W168: 1 | X168: 0 | Y168: 1 | Z168: 1 | AA168: 3 | AB168: 2 | AC168: 654220 | AD168: 27010 | AE168: 66659
A169: 4111 | B169: BENFELD | C169: 16 | D169: 1 | E169: 3 | F169: 3 | G169: 17 | H169: 8 | I169: 20 | J169: 6 | K169: 4 | L169: 1 | M169: 8 | N169: 5 | O169: 6 | P169: 3 | Q169: 4 | R169: 4 | S169: 1 | T169: 0 | U169: 2 | V169: 0 | W169: 1 | X169: 0 | Y169: 2 | Z169: 1 | AA169: 4 | AB169: 3 | AC169: 990790 | AD169: 51540 | AE169: 111942
A170: 4113 | B170: BARR | C170: 8 | D170: 1 | E170: 1 | F170: 1 | G170: 8 | H170: 4 | I170: 10 | J170: 3 | K170: 2 | L170: 1 | M170: 4 | N170: 2 | O170: 3 | P170: 1 | Q170: 2 | R170: 2 | S170: 0 | T170: 0 | U170: 1 | V170: 0 | W170: 1 | X170: 0 | Y170: 1 | Z170: 1 | AA170: 2 | AB170: 1 | AC170: 462370 | AD170: 45010 | AE170: 75985
A171: 4116 | B171: MOLSHEIM | C171: 20 | D171: 1 | E171: 4 | F171: 3 | G171: 21 | H171: 10 | I171: 25 | J171: 8 | K171: 5 | L171: 2 | M171: 10 | N171: 6 | O171: 7 | P171: 4 | Q171: 6 | R171: 5 | S171: 1 | T171: 0 | U171: 3 | V171: 0 | W171: 2 | X171: 0 | Y171: 2 | Z171: 2 | AA171: 5 | AB171: 4 | AC171: 1238480 | AD171: 71110 | AE171: 149722
A172: 4119 | B172: OBERNAI | C172: 13 | D172: 1 | E172: 2 | F172: 2 | G172: 14 | H172: 6 | I172: 16 | J172: 5 | K172: 3 | L172: 1 | M172: 6 | N172: 4 | O172: 4 | P172: 2 | Q172: 4 | R172: 3 | S172: 1 | T172: 0 | U172: 2 | V172: 0 | W172: 1 | X172: 0 | Y172: 2 | Z172: 1 | AA172: 3 | AB172: 2 | AC172: 759600 | AD172: 73940 | AE172: 148917
A173: 4120 | B173: WASSELONNE | C173: 8 | D173: 1 | E173: 2 | F173: 1 | G173: 9 | H173: 4 | I173: 10 | J173: 3 | K173: 2 | L173: 1 | M173: 4 | N173: 3 | O173: 3 | P173: 1 | Q173: 2 | R173: 2 | S173: 0 | T173: 0 | U173: 1 | V173: 0 | W173: 1 | X173: 0 | Y173: 1 | Z173: 1 | AA173: 2 | AB173: 1 | AC173: 496290 | AD173: 39130 | AE173: 83960
A174: 4121 | B174: SCHIRMECK | C174: 11 | D174: 1 | E174: 2 | F174: 2 | G174: 11 | H174: 5 | I174: 13 | J174: 4 | K174: 3 | L174: 1 | M174: 6 | N174: 3 | O174: 4 | P174: 2 | Q174: 3 | R174: 3 | S174: 1 | T174: 0 | U174: 1 | V174: 0 | W174: 1 | X174: 0 | Y174: 1 | Z174: 1 | AA174: 3 | AB174: 2 | AC174: 648260 | AD174: 35690 | AE174: 93514
A175: 4126 | B175: MUTZIG | C175: 8 | D175: 1 | E175: 1 | F175: 1 | G175: 8 | H175: 4 | I175: 10 | J175: 3 | K175: 2 | L175: 1 | M175: 4 | N175: 2 | O175: 3 | P175: 1 | Q175: 2 | R175: 2 | S175: 0 | T175: 0 | U175: 1 | V175: 0 | W175: 1 | X175: 0 | Y175: 1 | Z175: 1 | AA175: 2 | AB175: 1 | AC175: 478480 | AD175: 26040 | AE175: 79430
A176: 4127 | B176: ROSHEIM | C176: 11 | D176: 1 | E176: 2 | F176: 2 | G176: 12 | H176: 5 | I176: 13 | J176: 4 | K176: 3 | L176: 1 | M176: 6 | N176: 3 | O176: 4 | P176: 2 | Q176: 4 | R176: 3 | S176: 1 | T176: 0 | U176: 2 | V176: 0 | W176: 1 | X176: 0 | Y176: 1 | Z176: 1 | AA176: 3 | AB176: 2 | AC176: 686070 | AD176: 27010 | AE176: 73539
A177: 4129 | B177: MARLENHEIM | C177: 5 | D177: 0 | E177: 1 | F177: 1 | G177: 5 | H177: 2 | I177: 6 | J177: 2 | K177: 1 | L177: 0 | M177: 2 | N177: 2 | O177: 2 | P177: 1 | Q177: 1 | R177: 1 | S177: 0 | T177: 0 | U177: 1 | V177: 0 | W177: 0 | X177: 0 | Y177: 1 | Z177: 0 | AA177: 1 | AB177: 1 | AC177: 297240 | AD177: 28930 | AE177: 59203
A178: 4130 | B178: COLMAR REPUBLIQUE | C178: 27 | D178: 2 | E178: 5 | F178: 5 | G178: 29 | H178: 13 | I178: 33 | J178: 10 | K178: 7 | L178: 2 | M178: 14 | N178: 8 | O178: 10 | P178: 5 | Q178: 7 | R178: 7 | S178: 1 | T178: 0 | U178: 4 | V178: 0 | W178: 2 | X178: 0 | Y178: 3 | Z178: 2 | AA178: 7 | AB178: 5 | AC178: 1706350 | AD178: 61790 | AE178: 225925
A179: 4132 | B179: COLMAR MARAICHERS | C179: 9 | D179: 1 | E179: 2 | F179: 1 | G179: 9 | H179: 4 | I179: 11 | J179: 3 | K179: 2 | L179: 1 | M179: 4 | N179: 3 | O179: 3 | P179: 2 | Q179: 2 | R179: 2 | S179: 0 | T179: 0 | U179: 1 | V179: 0 | W179: 1 | X179: 0 | Y179: 1 | Z179: 1 | AA179: 2 | AB179: 2 | AC179: 531930 | AD179: 41580 | AE179: 75678
A180: 4133 | B180: COLMAR VAUBAN | C180: 16 | D180: 1 | E180: 3 | F180: 3 | G180: 17 | H180: 8 | I180: 19 | J180: 6 | K180: 4 | L180: 1 | M180: 8 | N180: 5 | O180: 5 | P180: 3 | Q180: 4 | R180: 4 | S180: 1 | T180: 0 | U180: 2 | V180: 0 | W180: 1 | X180: 0 | Y180: 2 | Z180: 1 | AA180: 4 | AB180: 3 | AC180: 990790 | AD180: 34720 | AE180: 103006
A181: 4134 | B181: COLMAR SAINT JOSEPH | C181: 10 | D181: 1 | E181: 2 | F181: 2 | G181: 10 | H181: 5 | I181: 12 | J181: 4 | K181: 3 | L181: 1 | M181: 6 | N181: 3 | O181: 3 | P181: 2 | Q181: 2 | R181: 2 | S181: 0 | T181: 0 | U181: 1 | V181: 0 | W181: 1 | X181: 0 | Y181: 1 | Z181: 1 | AA181: 3 | AB181: 2 | AC181: 610990 | AD181: 35690 | AE181: 93911
A182: 4135 | B182: COLMAR SAINTE MARIE | C182: 12 | D182: 1 | E182: 2 | F182: 2 | G182: 13 | H182: 6 | I182: 15 | J182: 5 | K182: 3 | L182: 1 | M182: 6 | N182: 4 | O182: 4 | P182: 2 | Q182: 4 | R182: 3 | S182: 1 | T182: 0 | U182: 2 | V182: 0 | W182: 1 | X182: 0 | Y182: 2 | Z182: 1 | AA182: 3 | AB182: 2 | AC182: 743090 | AD182: 43400 | AE182: 123592
A183: 4139 | B183: INGERSHEIM | C183: 16 | D183: 1 | E183: 3 | F183: 3 | G183: 16 | H183: 7 | I183: 19 | J183: 6 | K183: 4 | L183: 1 | M183: 8 | N183: 4 | O183: 6 | P183: 3 | Q183: 5 | R183: 4 | S183: 1 | T183: 0 | U183: 3 | V183: 0 | W183: 1 | X183: 0 | Y183: 2 | Z183: 1 | AA183: 4 | AB183: 3 | AC183: 968270 | AD183: 51120 | AE183: 148717
A184: 4140 | B184: WINTZENHEIM | C184: 5 | D184: 0 | E184: 1 | F184: 1 | G184: 5 | H184: 2 | I184: 6 | J184: 2 | K184: 1 | L184: 0 | M184: 2 | N184: 1 | O184: 2 | P184: 1 | Q184: 1 | R184: 1 | S184: 0 | T184: 0 | U184: 1 | V184: 0 | W184: 0 | X184: 0 | Y184: 1 | Z184: 0 | AA184: 1 | AB184: 1 | AC184: 297240 | AD184: 17360 | AE184: 64804
A185: 4141 | B185: HORBOURG WIHR | C185: 13 | D185: 1 | E185: 2 | F185: 2 | G185: 13 | H185: 6 | I185: 16 | J185: 5 | K185: 3 | L185: 1 | M185: 6 | N185: 4 | O185: 4 | P185: 2 | Q185: 4 | R185: 3 | S185: 1 | T185: 0 | U185: 2 | V185: 0 | W185: 1 | X185: 0 | Y185: 2 | Z185: 1 | AA185: 3 | AB185: 2 | AC185: 788990 | AD185: 35690 | AE185: 93378
A186: 4143 | B186: MUNSTER | C186: 15 | D186: 1 | E186: 3 | F186: 3 | G186: 16 | H186: 7 | I186: 18 | J186: 6 | K186: 4 | L186: 1 | M186: 8 | N186: 5 | O186: 5 | P186: 3 | Q186: 4 | R186: 4 | S186: 1 | T186: 0 | U186: 2 | V186: 0 | W186: 1 | X186: 0 | Y186: 2 | Z186: 1 | AA186: 4 | AB186: 3 | AC186: 917560 | AD186: 61200 | AE186: 142332
A187: 4144 | B187: RIBEAUVILLE | C187: 8 | D187: 1 | E187: 1 | F187: 1 | G187: 8 | H187: 4 | I187: 9 | J187: 3 | K187: 2 | L187: 1 | M187: 4 | N187: 2 | O187: 3 | P187: 1 | Q187: 2 | R187: 2 | S187: 0 | T187: 0 | U187: 1 | V187: 0 | W187: 1 | X187: 0 | Y187: 1 | Z187: 1 | AA187: 2 | AB187: 1 | AC187: 464740 | AD187: 30400 | AE187: 86062
A188: 4147 | B188: GUEBWILLER | C188: 12 | D188: 1 | E188: 2 | F188: 2 | G188: 13 | H188: 6 | I188: 15 | J188: 5 | K188: 3 | L188: 1 | M188: 6 | N188: 4 | O188: 4 | P188: 2 | Q188: 4 | R188: 3 | S188: 1 | T188: 0 | U188: 2 | V188: 0 | W188: 1 | X188: 0 | Y188: 2 | Z188: 1 | AA188: 3 | AB188: 2 | AC188: 759600 | AD188: 44370 | AE188: 125247
A189: 4148 | B189: ORBEY | C189: 6 | D189: 0 | E189: 1 | F189: 1 | G189: 7 | H189: 3 | I189: 8 | J189: 2 | K189: 2 | L189: 0 | M189: 4 | N189: 2 | O189: 2 | P189: 1 | Q189: 1 | R189: 2 | S189: 0 | T189: 0 | U189: 1 | V189: 0 | W189: 0 | X189: 0 | Y189: 1 | Z189: 0 | AA189: 2 | AB189: 1 | AC189: 396310 | AD189: 23140 | AE189: 98073
A190: 4153 | B190: ROUFFACH | C190: 10 | D190: 0 | E190: 2 | F190: 1 | G190: 11 | H190: 5 | I190: 12 | J190: 4 | K190: 3 | L190: 1 | M190: 6 | N190: 3 | O190: 4 | P190: 1 | Q190: 2 | R190: 3 | S190: 0 | T190: 0 | U190: 1 | V190: 0 | W190: 1 | X190: 0 | Y190: 1 | Z190: 1 | AA190: 3 | AB190: 1 | AC190: 601140 | AD190: 38900 | AE190: 93824
A191: 4157 | B191: NEUF BRISACH | C191: 11 | D191: 1 | E191: 2 | F191: 2 | G191: 12 | H191: 5 | I191: 14 | J191: 4 | K191: 3 | L191: 1 | M191: 6 | N191: 4 | O191: 4 | P191: 2 | Q191: 4 | R191: 3 | S191: 1 | T191: 0 | U191: 2 | V191: 0 | W191: 1 | X191: 0 | Y191: 1 | Z191: 1 | AA191: 3 | AB191: 2 | AC191: 702680 | AD191: 34720 | AE191: 101874
A192: 4159 | B192: MUNTZENHEIM | C192: 6 | D192: 0 | E192: 1 | F192: 1 | G192: 6 | H192: 3 | I192: 7 | J192: 2 | K192: 2 | L192: 1 | M192: 4 | N192: 2 | O192: 2 | P192: 1 | Q192: 1 | R192: 1 | S192: 0 | T192: 0 | U192: 1 | V192: 0 | W192: 0 | X192: 0 | Y192: 1 | Z192: 1 | AA192: 2 | AB192: 1 | AC192: 358890 | AD192: 17360 | AE192: 55928
A193: 4160 | B193: SOULTZ | C193: 12 | D193: 1 | E193: 2 | F193: 2 | G193: 13 | H193: 6 | I193: 15 | J193: 5 | K193: 3 | L193: 1 | M193: 6 | N193: 4 | O193: 4 | P193: 2 | Q193: 4 | R193: 3 | S193: 1 | T193: 0 | U193: 2 | V193: 0 | W193: 1 | X193: 0 | Y193: 2 | Z193: 1 | AA193: 3 | AB193: 2 | AC193: 770610 | AD193: 27010 | AE193: 67350
A194: 4162 | B194: ENSISHEIM | C194: 13 | D194: 1 | E194: 2 | F194: 2 | G194: 14 | H194: 6 | I194: 17 | J194: 5 | K194: 4 | L194: 1 | M194: 8 | N194: 4 | O194: 5 | P194: 2 | Q194: 4 | R194: 4 | S194: 1 | T194: 0 | U194: 2 | V194: 0 | W194: 1 | X194: 0 | Y194: 1 | Z194: 1 | AA194: 4 | AB194: 2 | AC194: 822910 | AD194: 34020 | AE194: 102350
A195: 4164 | B195: SAINTE MARIE AUX MINES | C195: 7 | D195: 0 | E195: 1 | F195: 1 | G195: 7 | H195: 3 | I195: 9 | J195: 3 | K195: 2 | L195: 0 | M195: 4 | N195: 2 | O195: 3 | P195: 1 | Q195: 1 | R195: 2 | S195: 0 | T195: 0 | U195: 1 | V195: 0 | W195: 0 | X195: 0 | Y195: 1 | Z195: 0 | AA195: 2 | AB195: 1 | AC195: 413130 | AD195: 24140 | AE195: 72350
A196: 4169 | B196: MULHOUSE ROOSEVELT | C196: 19 | D196: 1 | E196: 4 | F196: 3 | G196: 21 | H196: 9 | I196: 24 | J196: 7 | K196: 5 | L196: 2 | M196: 10 | N196: 6 | O196: 7 | P196: 3 | Q196: 6 | R196: 5 | S196: 1 | T196: 0 | U196: 3 | V196: 0 | W196: 2 | X196: 0 | Y196: 2 | Z196: 2 | AA196: 5 | AB196: 3 | AC196: 1189740 | AD196: 72340 | AE196: 147092
A197: 4170 | B197: MULHOUSE REUNION | C197: 20 | D197: 1 | E197: 4 | F197: 3 | G197: 21 | H197: 10 | I197: 24 | J197: 8 | K197: 5 | L197: 2 | M197: 10 | N197: 6 | O197: 7 | P197: 4 | Q197: 6 | R197: 5 | S197: 1 | T197: 0 | U197: 3 | V197: 0 | W197: 2 | X197: 0 | Y197: 2 | Z197: 2 | AA197: 5 | AB197: 4 | AC197: 1235470 | AD197: 60540 | AE197: 151694
A198: 4174 | B198: MULHOUSE DORNACH | C198: 8 | D198: 1 | E198: 2 | F198: 1 | G198: 9 | H198: 4 | I198: 10 | J198: 3 | K198: 2 | L198: 1 | M198: 4 | N198: 3 | O198: 3 | P198: 2 | Q198: 2 | R198: 2 | S198: 0 | T198: 0 | U198: 1 | V198: 0 | W198: 1 | X198: 0 | Y198: 1 | Z198: 1 | AA198: 2 | AB198: 2 | AC198: 518880 | AD198: 26040 | AE198: 81932
A199: 4178 | B199: SAINT LOUIS | C199: 15 | D199: 1 | E199: 3 | F199: 2 | G199: 16 | H199: 7 | I199: 18 | J199: 6 | K199: 4 | L199: 1 | M199: 8 | N199: 5 | O199: 5 | P199: 2 | Q199: 4 | R199: 4 | S199: 1 | T199: 0 | U199: 2 | V199: 0 | W199: 1 | X199: 0 | Y199: 2 | Z199: 1 | AA199: 4 | AB199: 2 | AC199: 887830 | AD199: 83530 | AE199: 178883
A200: 4179 | B200: SIERENTZ | C200: 8 | D200: 0 | E200: 1 | F200: 1 | G200: 8 | H200: 4 | I200: 9 | J200: 3 | K200: 2 | L200: 1 | M200: 4 | N200: 2 | O200: 3 | P200: 1 | Q200: 2 | R200: 2 | S200: 0 | T200: 0 | U200: 1 | V200: 0 | W200: 1 | X200: 0 | Y200: 1 | Z200: 1 | AA200: 2 | AB200: 1 | AC200: 462370 | AD200: 27010 | AE200: 81715
... 32 more rows

Sheet SAISONNALITE
A1: SEMN_COMM | B1: OBJ_SAIS | C1: CUMUL_SAIS | D1: SAIS_BONUS | E1: SAIS_BONUS_CUMUL
A2: S01 | B2: 0.019 | C2: =B2 -> 0.019 | D2: 0.077 | E2: =D2 -> 0.077
A3: S02 | B3: 0.0195 | C3: =C2+B3 -> 0.0385 | D3: 0.077 | E3: =E2+D3 -> 0.154
A4: S03 | B4: 0.0195 | C4: =C3+B4 -> 0.058 | D4: 0.077 | E4: =E3+D4 -> 0.231
A5: S04 | B5: 0.0195 | C5: 0.0775 | D5: 0.077 | E5: =E4+D5 -> 0.308
A6: S05 | B6: 0.0195 | C6: 0.097 | D6: 0.077 | E6: 0.385
A7: S06 | B7: 0.0195 | C7: 0.1165 | D7: 0.077 | E7: 0.462
A8: S07 | B8: 0.0195 | C8: 0.136 | D8: 0.077 | E8: =E7+D8 -> 0.539
A9: S08 | B9: 0.0195 | C9: 0.1555 | D9: 0.077 | E9: 0.616
A10: S09 | B10: 0.0195 | C10: 0.175 | D10: 0.077 | E10: 0.693
A11: S10 | B11: 0.0195 | C11: 0.1945 | D11: 0.077 | E11: 0.77
A12: S11 | B12: 0.0195 | C12: 0.214 | D12: 0.077 | E12: 0.847
A13: S12 | B13: 0.0195 | C13: 0.2335 | D13: 0.077 | E13: 0.924
A14: S13 | B14: 0.0195 | C14: 0.253 | D14: 0.077 | E14: =E13+D14 -> 1.001 | F14: 25% à fin mars
A15: S14 | B15: 0.0195 | C15: 0.2725 | D15: 0.077 | E15: =D15 -> 0.077
A16: S15 | B16: 0.0195 | C16: 0.292 | D16: 0.077 | E16: =E15+D16 -> 0.154
A17: S16 | B17: 0.0195 | C17: 0.3115 | D17: 0.077 | E17: =E16+D17 -> 0.231
A18: S17 | B18: 0.0195 | C18: 0.331 | D18: 0.077 | E18: 0.308
A19: S18 | B19: 0.0195 | C19: 0.3505 | D19: 0.077 | E19: 0.385
A20: S19 | B20: 0.0195 | C20: 0.37 | D20: 0.077 | E20: 0.462
A21: S20 | B21: 0.0195 | C21: 0.3895 | D21: 0.077 | E21: 0.539
A22: S21 | B22: 0.0195 | C22: 0.409 | D22: 0.077 | E22: 0.616
A23: S22 | B23: 0.0195 | C23: 0.4285 | D23: 0.077 | E23: 0.693
A24: S23 | B24: 0.0195 | C24: 0.448 | D24: 0.077 | E24: 0.77
A25: S24 | B25: 0.0195 | C25: 0.4675 | D25: 0.077 | E25: 0.847
A26: S25 | B26: 0.0195 | C26: 0.487 | D26: 0.077 | E26: 0.924
A27: S26 | B27: 0.0195 | C27: 0.5065 | D27: 0.077 | E27: =E26+D27 -> 1.001 | F27: 50% à fin juin
A28: S27 | B28: 0.0195 | C28: 0.526 | D28: 0.077 | E28: =D28 -> 0.077
A29: S28 | B29: 0.0195 | C29: 0.5455 | D29: 0.077 | E29: =E28+D29 -> 0.154
A30: S29 | B30: 0.0195 | C30: 0.565 | D30: 0.077 | E30: =E29+D30 -> 0.231
A31: S30 | B31: 0.0195 | C31: 0.5845 | D31: 0.077 | E31: 0.308
A32: S31 | B32: 0.0195 | C32: 0.604 | D32: 0.077 | E32: 0.385
A33: S32 | B33: 0.0195 | C33: 0.6235 | D33: 0.077 | E33: 0.462
A34: S33 | B34: 0.0195 | C34: 0.643 | D34: 0.077 | E34: 0.539
A35: S34 | B35: 0.0195 | C35: 0.6625 | D35: 0.077 | E35: 0.616
A36: S35 | B36: 0.0195 | C36: 0.682 | D36: 0.077 | E36: 0.693
A37: S36 | B37: 0.0195 | C37: 0.7015 | D37: 0.077 | E37: 0.77
A38: S37 | B38: 0.0195 | C38: 0.721 | D38: 0.077 | E38: 0.847
A39: S38 | B39: 0.0195 | C39: 0.7405 | D39: 0.077 | E39: 0.924
A40: S39 | B40: 0.0195 | C40: 0.76 | D40: 0.077 | E40: =E39+D40 -> 1.001 | F40: 75% à fin septembre
A41: S40 | B41: 0.022 | C41: 0.782
A42: S41 | B42: 0.022 | C42: 0.804
A43: S42 | B43: 0.022 | C43: 0.826
A44: S43 | B44: 0.022 | C44: 0.848
A45: S44 | B45: 0.022 | C45: 0.87
A46: S45 | B46: 0.022 | C46: 0.892
A47: S46 | B47: 0.022 | C47: 0.914
A48: S47 | B48: 0.022 | C48: 0.936
A49: S48 | B49: 0.022 | C49: 0.958
A50: S49 | B50: 0.021 | C50: 0.979
A51: S50 | B51: 0.021 | C51: 1
A52: S51 | B52: 0 | C52: 1
A53: S52 | B53: 0 | C53: 1

Sheet OBJ_IND_100
A2: REFERENTIEL DE PRODUCTION CCPRO CAPRO 100%
G3: REFERENTIEL NET SAISONNALISE
C5: ANNUEL | F5: EN COURS | G5: MARS | H5: JUIN | I5: SEPT | K5: NOMBRE DE CRITERES | L5: DISCRIMINANT
C6: CCPRO / CAPRO
C7: 1 | G7: 0.25 | H7: 0.5 | I7: 0.75
A8: PARTIE PRO DU PRO | C8: BRUT | D8: NET
A9: COLLECTE en KEUR | B9: EXCEDENT NET
B10: DONT EXCEDENT CEP | C10: 2500 | D10: 400 | F10: 400 | G10: 100 | H10: 200 | I10: 300 | K10: 1
B11: DONT EXCEDENT PARTS SOCIALES | C11: 125 | D11: 50 | F11: 50 | G11: 12.5 | H11: 25 | I11: 37.5 | K11: 2
B12: C.A UC (y compris arbitrages) | C12: 600 | F12: 600 | G12: 150 | H12: 300 | I12: 450 | K12: 3
A14: CREDIT MLT et CBAIL | B14: NOMBRE | D14: 30 | F14: 30 | G14: 7.5 | H14: 15 | I14: 22.5 | K14: 4
B15: VOLUME | D15: 2500 | F15: 2500 | G15: 625 | H15: 1250 | I15: 1875 | K15: 5 | L15: *
A17: BANCARISATION | B17: FORFAITS PROS | C17: 50 | D17: 24 | F17: 24 | G17: 6 | H17: 12 | I17: 18 | K17: 6 | L17: *
B18: CARTE BLEUES PROS | C18: 75 | D18: 24 | F18: 24 | G18: 6 | H18: 12 | I18: 18 | K18: 7
B19: TPE | C19: 35 | D19: 14 | F19: 14 | G19: 3.5 | H19: 7 | I19: 10.5 | K19: 8
A21: ACTIVATION | B21: ACTIFS NOUVELLE DEFINITION | D21: 9 | F21: 9 | G21: 2.25 | H21: 4.5 | I21: 6.75 | K21: 9 | L21: *
B22: NOUVEAUX CLIENTS | C22: 45 | D22: 45 | F22: 45 | G22: 11.25 | H22: 22.5 | I22: 33.75 | K22: 10
A24: IARD PREVOYANCE | B24: PAP / PRO TG | C24: 20 | D24: 8 | F24: 8 | G24: 2 | H24: 4 | I24: 6 | K24: cumul des 2 lignes soit 11
B25: IARD PRO : sante collective, auto pro, multirisque pro | C25: 15 | D25: 12 | F25: 12 | G25: 3 | H25: 6 | I25: 9
A27: SERVICES | B27: BOX OFFICE | C27: 6 | D27: 5 | F27: 5 | G27: 1.25 | H27: 2.5 | I27: 3.75 | K27: 12
B28: AFFACTURAGE | C28: 4 | D28: 2 | F28: 2 | G28: 0.5 | H28: 1 | I28: 1.5 | K28: 13
B29: LLD | C29: 3 | D29: 2 | F29: 2 | G29: 0.5 | H29: 1 | I29: 1.5 | K29: 14
A31: TAUX DE VISITE DE PTF | D31: 100% clients vus | F31: 1 | G31: 0.25 | H31: 0.5 | I31: 0.75 | K31: 15
A33: PARTIE PRIVE DU PRO
A34: CREDIT IMMO | B34: VOLUME | D34: 2000 | F34: 2000 | G34: 500 | H34: 1000 | I34: 1500 | K34: 16
A35: CREDIT CONSO | B35: VOLUME | D35: 500 | F35: 500 | G35: 125 | H35: 250 | I35: 375 | K35: 17
A37: BANCARISATION | B37: BOUQUETS PART | C37: 100 | D37: 20 | F37: 20 | G37: 5 | H37: 10 | I37: 15 | K37: 18
A38: IARD PREVOYANCE | B38: MRH AUTO GAV PJ | C38: 100 | D38: 20 | F38: 20 | G38: 5 | H38: 10 | I38: 15 | K38: 19
K40: ELIGIBILITE 9 CRITERES

Sheet OBJ_IND_80
A2: REFERENTIEL DE PRODUCTION CCPRO CAPRO 80%
G3: REFERENTIEL NET SAISONNALISE
C5: ANNUEL | F5: EN COURS | G5: MARS | H5: JUIN | I5: SEPT | K5: NOMBRE DE CRITERES | L5: DISCRIMINANT
C6: CCPRO / CAPRO
C7: 1 | G7: 0.33 | H7: 0.5 | I7: 0.67
A8: PARTIE PRO DU PRO | C8: BRUT | D8: NET
A9: COLLECTE en KEUR | B9: EXCEDENT NET
B10: DONT EXCEDENT CEP | C10: 2000 | D10: 320 | F10: 320 | G10: 80 | H10: 160 | I10: 240 | K10: 1
B11: DONT EXCEDENT PARTS SOCIALES | C11: 100 | D11: 40 | F11: 40 | G11: 10 | H11: 20 | I11: 30 | K11: 2
B12: C.A UC (y compris arbitrages) | C12: 480 | F12: 480 | G12: 120 | H12: 240 | I12: 360 | K12: 3
A14: CREDIT MLT et CBAIL | B14: NOMBRE | D14: 24 | F14: 24 | G14: 6 | H14: 12 | I14: 18 | K14: 4
B15: VOLUME | D15: 2000 | F15: 2000 | G15: 500 | H15: 1000 | I15: 1500 | K15: 5 | L15: *
A17: BANCARISATION | B17: FORFAITS PROS | C17: 40 | D17: 19.2 | F17: 19.2 | G17: 4.8 | H17: 9.6 | I17: 14.4 | K17: 6 | L17: *
B18: CARTE BLEUES PROS | C18: 60 | D18: 19.2 | F18: 19.2 | G18: 4.8 | H18: 9.6 | I18: 14.4 | K18: 7
B19: TPE | C19: 28 | D19: 11.2 | F19: 11.2 | G19: 2.8 | H19: 5.6 | I19: 8.4 | K19: 8
A21: ACTIVATION | B21: ACTIFS NOUVELLE DEFINITION | D21: 7.2 | F21: 7.2 | G21: 1.8 | H21: 3.6 | I21: 5.4 | K21: 9 | L21: *
B22: NOUVEAUX CLIENTS | C22: 36 | D22: 36 | F22: 36 | G22: 9 | H22: 18 | I22: 27 | K22: 10
A24: IARD PREVOYANCE | B24: PAP / PRO TG | C24: 16 | D24: 6.4 | F24: 6.4 | G24: 1.6 | H24: 3.2 | I24: 4.8 | K24: cumul des 2 lignes soit 11
B25: IARD PRO : sante collective, auto pro, multirisque pro | C25: 12 | D25: 9.6 | F25: 9.6 | G25: 2.4 | H25: 4.8 | I25: 7.2
A27: SERVICES | B27: BOX OFFICE | C27: 4.8 | D27: 4 | F27: 4 | G27: 1 | H27: 2 | I27: 3 | K27: 12
B28: AFFACTURAGE | C28: 3.2 | D28: 1.6 | F28: 1.6 | G28: 0.4 | H28: 0.8 | I28: 1.2 | K28: 13
B29: LLD | C29: 2.4 | D29: 1.6 | F29: 1.6 | G29: 0.4 | H29: 0.8 | I29: 1.2 | K29: 14
A31: TAUX DE VISITE DE PTF | D31: 100% clients vus | F31: 1 | G31: 0.25 | H31: 0.5 | I31: 0.75 | K31: 15
A33: PARTIE PRIVE DU PRO
A34: CREDIT IMMO | B34: VOLUME | D34: 1600 | F34: 1600 | G34: 400 | H34: 800 | I34: 1200 | K34: 16
A35: CREDIT CONSO | B35: VOLUME | D35: 400 | F35: 400 | G35: 100 | H35: 200 | I35: 300 | K35: 17
A37: BANCARISATION | B37: BOUQUETS PART | C37: 80 | D37: 16 | F37: 16 | G37: 4 | H37: 8 | I37: 12 | K37: 18
A38: IARD PREVOYANCE | B38: MRH AUTO GAV PJ | C38: 80 | D38: 16 | F38: 16 | G38: 4 | H38: 8 | I38: 12 | K38: 19
K40: ELIGIBILITE 9 CRITERES

Sheet BANCA
A1: NO ENTITE | B1: ENTITE | C1: DCP | D1: CC PROS | E1: FAMILLE | F1: CUMUL OUV | G1: CLOT CUMUL | H1: OUV_M(BANCA) | I1: CLOT_M(BANCA) | J1: OUV_S_1(BANCA) | K1: CLOT_S_1(BANCA)
A2: 6 | B2: STRASBOURG NEUDORF | C2: DCP | D2: TOUS | E2: Bouquet Liberté | F2: 11 | G2: 10 | H2: 1 | I2: 2 | J2: 0 | K2: 2
A3: 6 | B3: STRASBOURG NEUDORF | C3: DCP | D3: TOUS | E3: CB | F3: 19 | G3: 15 | H3: 0 | I3: 2 | J3: 0 | K3: 2
A4: 6 | B4: STRASBOURG NEUDORF | C4: DCP | D4: TOUS | E4: dont Platinum | F4: 1 | G4: 0
A5: 6 | B5: STRASBOURG NEUDORF | C5: DCP | D5: TOUS | E5: Forfaits Pros | F5: 21 | G5: 17 | H5: 0 | I5: 2 | J5: 0 | K5: 2
A6: 6 | B6: STRASBOURG NEUDORF | C6: DCP | D6: TOUS | E6: TPE | F6: 16 | G6: 4
A7: 6 | B7: STRASBOURG NEUDORF | C7: Michel LIENHARDT | D7: Jeremy WEIBLE | E7: Bouquet Liberté | F7: 11 | G7: 10 | H7: 1 | I7: 2 | J7: 0 | K7: 2
A8: 6 | B8: STRASBOURG NEUDORF | C8: Michel LIENHARDT | D8: Jeremy WEIBLE | E8: CB | F8: 19 | G8: 15 | H8: 0 | I8: 2 | J8: 0 | K8: 2
A9: 6 | B9: STRASBOURG NEUDORF | C9: Michel LIENHARDT | D9: Jeremy WEIBLE | E9: dont Platinum | F9: 1 | G9: 0
A10: 6 | B10: STRASBOURG NEUDORF | C10: Michel LIENHARDT | D10: Jeremy WEIBLE | E10: Forfaits Pros | F10: 21 | G10: 17 | H10: 0 | I10: 2 | J10: 0 | K10: 2
A11: 6 | B11: STRASBOURG NEUDORF | C11: Michel LIENHARDT | D11: Jeremy WEIBLE | E11: TPE | F11: 16 | G11: 4
A12: 7 | B12: ILLKIRCH CENTRE | C12: DCP | D12: TOUS | E12: Bouquet Liberté | F12: 6 | G12: 6 | H12: 0 | I12: 1 | J12: 0 | K12: 1
A13: 7 | B13: ILLKIRCH CENTRE | C13: DCP | D13: TOUS | E13: CB | F13: 21 | G13: 21 | H13: 2 | I13: 2 | J13: 1 | K13: 2
A14: 7 | B14: ILLKIRCH CENTRE | C14: DCP | D14: TOUS | E14: dont Platinum | F14: 1 | G14: 2
A15: 7 | B15: ILLKIRCH CENTRE | C15: DCP | D15: TOUS | E15: Forfaits Pros | F15: 9 | G15: 15 | H15: 0 | I15: 1 | J15: 0 | K15: 1
A16: 7 | B16: ILLKIRCH CENTRE | C16: DCP | D16: TOUS | E16: TPE | F16: 7 | G16: 5
A17: 7 | B17: ILLKIRCH CENTRE | C17: Michel LIENHARDT | D17: Catia MARCALO | E17: Bouquet Liberté | F17: 6 | G17: 6 | H17: 0 | I17: 1 | J17: 0 | K17: 1
A18: 7 | B18: ILLKIRCH CENTRE | C18: Michel LIENHARDT | D18: Catia MARCALO | E18: CB | F18: 21 | G18: 21 | H18: 2 | I18: 2 | J18: 1 | K18: 2
A19: 7 | B19: ILLKIRCH CENTRE | C19: Michel LIENHARDT | D19: Catia MARCALO | E19: dont Platinum | F19: 1 | G19: 2
A20: 7 | B20: ILLKIRCH CENTRE | C20: Michel LIENHARDT | D20: Catia MARCALO | E20: Forfaits Pros | F20: 9 | G20: 15 | H20: 0 | I20: 1 | J20: 0 | K20: 1
A21: 7 | B21: ILLKIRCH CENTRE | C21: Michel LIENHARDT | D21: Catia MARCALO | E21: TPE | F21: 7 | G21: 5
A22: 8 | B22: FEGERSHEIM | C22: DCP | D22: TOUS | E22: Bouquet Liberté | F22: 1 | G22: 5
A23: 8 | B23: FEGERSHEIM | C23: DCP | D23: TOUS | E23: CB | F23: 6 | G23: 11
A24: 8 | B24: FEGERSHEIM | C24: DCP | D24: TOUS | E24: Forfaits Pros | F24: 9 | G24: 12
A25: 8 | B25: FEGERSHEIM | C25: DCP | D25: TOUS | E25: TPE | F25: 3 | G25: 8
A26: 8 | B26: FEGERSHEIM | C26: Michel LIENHARDT | D26: Catia MARCALO | E26: Bouquet Liberté | F26: 1 | G26: 5
A27: 8 | B27: FEGERSHEIM | C27: Michel LIENHARDT | D27: Catia MARCALO | E27: CB | F27: 6 | G27: 11
A28: 8 | B28: FEGERSHEIM | C28: Michel LIENHARDT | D28: Catia MARCALO | E28: Forfaits Pros | F28: 9 | G28: 12
A29: 8 | B29: FEGERSHEIM | C29: Michel LIENHARDT | D29: Catia MARCALO | E29: TPE | F29: 3 | G29: 8
A30: 10 | B30: STRASBOURG MEINAU | C30: DCP | D30: TOUS | E30: Bouquet Liberté | F30: 0 | G30: 4
A31: 10 | B31: STRASBOURG MEINAU | C31: DCP | D31: TOUS | E31: CB | F31: 6 | G31: 7 | H31: 0 | I31: 1 | J31: 0 | K31: 1
A32: 10 | B32: STRASBOURG MEINAU | C32: DCP | D32: TOUS | E32: dont Platinum | F32: 0 | G32: 1
A33: 10 | B33: STRASBOURG MEINAU | C33: DCP | D33: TOUS | E33: Forfaits Pros | F33: 9 | G33: 3
A34: 10 | B34: STRASBOURG MEINAU | C34: DCP | D34: TOUS | E34: TPE | F34: 5 | G34: 5
A35: 10 | B35: STRASBOURG MEINAU | C35: Michel LIENHARDT | D35: Jeremy WEIBLE | E35: Bouquet Liberté | F35: 0 | G35: 4
A36: 10 | B36: STRASBOURG MEINAU | C36: Michel LIENHARDT | D36: Jeremy WEIBLE | E36: CB | F36: 6 | G36: 7 | H36: 0 | I36: 1 | J36: 0 | K36: 1
A37: 10 | B37: STRASBOURG MEINAU | C37: Michel LIENHARDT | D37: Jeremy WEIBLE | E37: dont Platinum | F37: 0 | G37: 1
A38: 10 | B38: STRASBOURG MEINAU | C38: Michel LIENHARDT | D38: Jeremy WEIBLE | E38: Forfaits Pros | F38: 9 | G38: 3
A39: 10 | B39: STRASBOURG MEINAU | C39: Michel LIENHARDT | D39: Jeremy WEIBLE | E39: TPE | F39: 5 | G39: 5
A40: 12 | B40: STRASBOURG STOCKFELD | C40: DCP | D40: TOUS | E40: Bouquet Liberté | F40: 2 | G40: 4
A41: 12 | B41: STRASBOURG STOCKFELD | C41: DCP | D41: TOUS | E41: CB | F41: 5 | G41: 3
A42: 12 | B42: STRASBOURG STOCKFELD | C42: DCP | D42: TOUS | E42: Forfaits Pros | F42: 4 | G42: 3
A43: 12 | B43: STRASBOURG STOCKFELD | C43: DCP | D43: TOUS | E43: TPE | F43: 4
A44: 12 | B44: STRASBOURG STOCKFELD | C44: Michel LIENHARDT | D44: Jeremy WEIBLE | E44: Bouquet Liberté | F44: 2 | G44: 4
A45: 12 | B45: STRASBOURG STOCKFELD | C45: Michel LIENHARDT | D45: Jeremy WEIBLE | E45: CB | F45: 5 | G45: 3
A46: 12 | B46: STRASBOURG STOCKFELD | C46: Michel LIENHARDT | D46: Jeremy WEIBLE | E46: Forfaits Pros | F46: 4 | G46: 3
A47: 12 | B47: STRASBOURG STOCKFELD | C47: Michel LIENHARDT | D47: Jeremy WEIBLE | E47: TPE | F47: 4
A48: 13 | B48: ILLKIRCH NORD | C48: DCP | D48: TOUS | E48: Bouquet Liberté | F48: 2 | G48: 1
A49: 13 | B49: ILLKIRCH NORD | C49: DCP | D49: TOUS | E49: CB | F49: 1 | G49: 2
A50: 13 | B50: ILLKIRCH NORD | C50: DCP | D50: TOUS | E50: Forfaits Pros | F50: 2 | G50: 0
A51: 13 | B51: ILLKIRCH NORD | C51: DCP | D51: TOUS | E51: TPE | G51: 5
A52: 13 | B52: ILLKIRCH NORD | C52: Michel LIENHARDT | D52: Catia MARCALO | E52: Bouquet Liberté | F52: 2 | G52: 1
A53: 13 | B53: ILLKIRCH NORD | C53: Michel LIENHARDT | D53: Catia MARCALO | E53: CB | F53: 1 | G53: 2
A54: 13 | B54: ILLKIRCH NORD | C54: Michel LIENHARDT | D54: Catia MARCALO | E54: Forfaits Pros | F54: 2 | G54: 0
A55: 13 | B55: ILLKIRCH NORD | C55: Michel LIENHARDT | D55: Catia MARCALO | E55: TPE | G55: 5
A56: 14 | B56: OSTWALD | C56: DCP | D56: TOUS | E56: Bouquet Liberté | F56: 7 | G56: 3
A57: 14 | B57: OSTWALD | C57: DCP | D57: TOUS | E57: CB | F57: 6 | G57: 6 | H57: 1 | I57: 1
A58: 14 | B58: OSTWALD | C58: DCP | D58: TOUS | E58: dont Platinum | F58: 0 | G58: 1
A59: 14 | B59: OSTWALD | C59: DCP | D59: TOUS | E59: Forfaits Pros | F59: 9 | G59: 3 | H59: 1 | I59: 0
A60: 14 | B60: OSTWALD | C60: DCP | D60: TOUS | E60: TPE | F60: 4 | G60: 5
A61: 14 | B61: OSTWALD | C61: Michel LIENHARDT | D61: Catia MARCALO | E61: Bouquet Liberté | F61: 7 | G61: 3
A62: 14 | B62: OSTWALD | C62: Michel LIENHARDT | D62: Catia MARCALO | E62: CB | F62: 6 | G62: 6 | H62: 1 | I62: 1
A63: 14 | B63: OSTWALD | C63: Michel LIENHARDT | D63: Catia MARCALO | E63: dont Platinum | F63: 0 | G63: 1
A64: 14 | B64: OSTWALD | C64: Michel LIENHARDT | D64: Catia MARCALO | E64: Forfaits Pros | F64: 9 | G64: 3 | H64: 1 | I64: 0
A65: 14 | B65: OSTWALD | C65: Michel LIENHARDT | D65: Catia MARCALO | E65: TPE | F65: 4 | G65: 5
A66: 15 | B66: LINGOLSHEIM | C66: DCP | D66: TOUS | E66: Bouquet Liberté | F66: 5 | G66: 6 | H66: 1 | I66: 0 | J66: 1 | K66: 0
A67: 15 | B67: LINGOLSHEIM | C67: DCP | D67: TOUS | E67: CB | F67: 7 | G67: 4
A68: 15 | B68: LINGOLSHEIM | C68: DCP | D68: TOUS | E68: Forfaits Pros | F68: 7 | G68: 3
A69: 15 | B69: LINGOLSHEIM | C69: DCP | D69: TOUS | E69: TPE | F69: 5 | G69: 4
A70: 15 | B70: LINGOLSHEIM | C70: Michel LIENHARDT | D70: Catia MARCALO | E70: Bouquet Liberté | F70: 5 | G70: 6 | H70: 1 | I70: 0 | J70: 1 | K70: 0
A71: 15 | B71: LINGOLSHEIM | C71: Michel LIENHARDT | D71: Catia MARCALO | E71: CB | F71: 7 | G71: 4
A72: 15 | B72: LINGOLSHEIM | C72: Michel LIENHARDT | D72: Catia MARCALO | E72: Forfaits Pros | F72: 7 | G72: 3
A73: 15 | B73: LINGOLSHEIM | C73: Michel LIENHARDT | D73: Catia MARCALO | E73: TPE | F73: 5 | G73: 4
A74: 18 | B74: ESPACE MESANGE | C74: DCP | D74: TOUS | E74: Bouquet Liberté | F74: 13 | G74: 8 | H74: 0 | I74: 1
A75: 18 | B75: ESPACE MESANGE | C75: DCP | D75: TOUS | E75: CB | F75: 90 | G75: 67 | H75: 0 | I75: 1 | J75: 0 | K75: 1
A76: 18 | B76: ESPACE MESANGE | C76: DCP | D76: TOUS | E76: dont Platinum | F76: 4 | G76: 3
A77: 18 | B77: ESPACE MESANGE | C77: DCP | D77: TOUS | E77: Forfaits Pros | F77: 39 | G77: 12 | H77: 0 | I77: 3 | J77: 0 | K77: 3
A78: 18 | B78: ESPACE MESANGE | C78: DCP | D78: TOUS | E78: TPE | F78: 35 | G78: 4
A79: 18 | B79: ESPACE MESANGE | C79: Michel LIENHARDT | D79: STARCK/CASTELEYN | E79: Bouquet Liberté | F79: 13 | G79: 8 | H79: 0 | I79: 1
A80: 18 | B80: ESPACE MESANGE | C80: Michel LIENHARDT | D80: STARCK/CASTELEYN | E80: CB | F80: 90 | G80: 67 | H80: 0 | I80: 1 | J80: 0 | K80: 1
A81: 18 | B81: ESPACE MESANGE | C81: Michel LIENHARDT | D81: STARCK/CASTELEYN | E81: dont Platinum | F81: 4 | G81: 3
A82: 18 | B82: ESPACE MESANGE | C82: Michel LIENHARDT | D82: STARCK/CASTELEYN | E82: Forfaits Pros | F82: 39 | G82: 12 | H82: 0 | I82: 3 | J82: 0 | K82: 3
A83: 18 | B83: ESPACE MESANGE | C83: Michel LIENHARDT | D83: STARCK/CASTELEYN | E83: TPE | F83: 35 | G83: 4
A84: 19 | B84: STRASBOURG ANVERS | C84: DCP | D84: TOUS | E84: Bouquet Liberté | F84: 13 | G84: 6
A85: 19 | B85: STRASBOURG ANVERS | C85: DCP | D85: TOUS | E85: CB | F85: 11 | G85: 23 | H85: 0 | I85: 1 | J85: 0 | K85: 1
A86: 19 | B86: STRASBOURG ANVERS | C86: DCP | D86: TOUS | E86: dont Platinum | F86: 0 | G86: 4
A87: 19 | B87: STRASBOURG ANVERS | C87: DCP | D87: TOUS | E87: Forfaits Pros | F87: 15 | G87: 14 | H87: 0 | I87: 2 | J87: 0 | K87: 2
A88: 19 | B88: STRASBOURG ANVERS | C88: DCP | D88: TOUS | E88: TPE | F88: 4 | G88: 4
A89: 19 | B89: STRASBOURG ANVERS | C89: Michel LIENHARDT | D89: Muriel GAUTHIER-LAFAYE | E89: Bouquet Liberté | F89: 13 | G89: 6
A90: 19 | B90: STRASBOURG ANVERS | C90: Michel LIENHARDT | D90: Muriel GAUTHIER-LAFAYE | E90: CB | F90: 11 | G90: 23 | H90: 0 | I90: 1 | J90: 0 | K90: 1
A91: 19 | B91: STRASBOURG ANVERS | C91: Michel LIENHARDT | D91: Muriel GAUTHIER-LAFAYE | E91: dont Platinum | F91: 0 | G91: 4
A92: 19 | B92: STRASBOURG ANVERS | C92: Michel LIENHARDT | D92: Muriel GAUTHIER-LAFAYE | E92: Forfaits Pros | F92: 15 | G92: 14 | H92: 0 | I92: 2 | J92: 0 | K92: 2
A93: 19 | B93: STRASBOURG ANVERS | C93: Michel LIENHARDT | D93: Muriel GAUTHIER-LAFAYE | E93: TPE | F93: 4 | G93: 4
A94: 20 | B94: STRASBOURG ROBERTSAU | C94: DCP | D94: TOUS | E94: Bouquet Liberté | F94: 8 | G94: 6
A95: 20 | B95: STRASBOURG ROBERTSAU | C95: DCP | D95: TOUS | E95: CB | F95: 22 | G95: 21 | H95: 0 | I95: 1
A96: 20 | B96: STRASBOURG ROBERTSAU | C96: DCP | D96: TOUS | E96: dont Platinum | F96: 1 | G96: 0
A97: 20 | B97: STRASBOURG ROBERTSAU | C97: DCP | D97: TOUS | E97: Forfaits Pros | F97: 16 | G97: 14 | H97: 0 | I97: 1 | J97: 0 | K97: 1
A98: 20 | B98: STRASBOURG ROBERTSAU | C98: DCP | D98: TOUS | E98: TPE | F98: 5 | G98: 11
A99: 20 | B99: STRASBOURG ROBERTSAU | C99: Michel LIENHARDT | D99: Stéphane PAGNIER | E99: Bouquet Liberté | F99: 8 | G99: 6
A100: 20 | B100: STRASBOURG ROBERTSAU | C100: Michel LIENHARDT | D100: Stéphane PAGNIER | E100: CB | F100: 22 | G100: 21 | H100: 0 | I100: 1
A101: 20 | B101: STRASBOURG ROBERTSAU | C101: Michel LIENHARDT | D101: Stéphane PAGNIER | E101: dont Platinum | F101: 1 | G101: 0
A102: 20 | B102: STRASBOURG ROBERTSAU | C102: Michel LIENHARDT | D102: Stéphane PAGNIER | E102: Forfaits Pros | F102: 16 | G102: 14 | H102: 0 | I102: 1 | J102: 0 | K102: 1
A103: 20 | B103: STRASBOURG ROBERTSAU | C103: Michel LIENHARDT | D103: Stéphane PAGNIER | E103: TPE | F103: 5 | G103: 11
A104: 23 | B104: STRASBOURG VOSGES | C104: DCP | D104: TOUS | E104: Bouquet Liberté | F104: 4 | G104: 2
A105: 23 | B105: STRASBOURG VOSGES | C105: DCP | D105: TOUS | E105: CB | F105: 8 | G105: 0
A106: 23 | B106: STRASBOURG VOSGES | C106: DCP | D106: TOUS | E106: dont Platinum | F106: 1 | G106: 0
A107: 23 | B107: STRASBOURG VOSGES | C107: DCP | D107: TOUS | E107: Forfaits Pros | F107: 11 | G107: 1
A108: 23 | B108: STRASBOURG VOSGES | C108: DCP | D108: TOUS | E108: TPE | F108: 6
A109: 23 | B109: STRASBOURG VOSGES | C109: Michel LIENHARDT | D109: Muriel GAUTHIER-LAFAYE | E109: Bouquet Liberté | F109: 4 | G109: 2
A110: 23 | B110: STRASBOURG VOSGES | C110: Michel LIENHARDT | D110: Muriel GAUTHIER-LAFAYE | E110: CB | F110: 8 | G110: 0
A111: 23 | B111: STRASBOURG VOSGES | C111: Michel LIENHARDT | D111: Muriel GAUTHIER-LAFAYE | E111: dont Platinum | F111: 1 | G111: 0
A112: 23 | B112: STRASBOURG VOSGES | C112: Michel LIENHARDT | D112: Muriel GAUTHIER-LAFAYE | E112: Forfaits Pros | F112: 11 | G112: 1
A113: 23 | B113: STRASBOURG VOSGES | C113: Michel LIENHARDT | D113: Muriel GAUTHIER-LAFAYE | E113: TPE | F113: 6
A114: 24 | B114: STRASBOURG AUSTERLITZ | C114: DCP | D114: TOUS | E114: Bouquet Liberté | F114: 3 | G114: 3
A115: 24 | B115: STRASBOURG AUSTERLITZ | C115: DCP | D115: TOUS | E115: CB | F115: 8 | G115: 11 | H115: 0 | I115: 1 | J115: 0 | K115: 1
A116: 24 | B116: STRASBOURG AUSTERLITZ | C116: DCP | D116: TOUS | E116: dont Platinum | F116: 1 | G116: 0
A117: 24 | B117: STRASBOURG AUSTERLITZ | C117: DCP | D117: TOUS | E117: Forfaits Pros | F117: 5 | G117: 10 | H117: 0 | I117: 2 | J117: 0 | K117: 2
A118: 24 | B118: STRASBOURG AUSTERLITZ | C118: DCP | D118: TOUS | E118: TPE | F118: 6 | G118: 4
A119: 24 | B119: STRASBOURG AUSTERLITZ | C119: Michel LIENHARDT | D119: Jeremy WEIBLE | E119: Bouquet Liberté | F119: 3 | G119: 3
A120: 24 | B120: STRASBOURG AUSTERLITZ | C120: Michel LIENHARDT | D120: Jeremy WEIBLE | E120: CB | F120: 8 | G120: 11 | H120: 0 | I120: 1 | J120: 0 | K120: 1
A121: 24 | B121: STRASBOURG AUSTERLITZ | C121: Michel LIENHARDT | D121: Jeremy WEIBLE | E121: dont Platinum | F121: 1 | G121: 0
A122: 24 | B122: STRASBOURG AUSTERLITZ | C122: Michel LIENHARDT | D122: Jeremy WEIBLE | E122: Forfaits Pros | F122: 5 | G122: 10 | H122: 0 | I122: 2 | J122: 0 | K122: 2
A123: 24 | B123: STRASBOURG AUSTERLITZ | C123: Michel LIENHARDT | D123: Jeremy WEIBLE | E123: TPE | F123: 6 | G123: 4
A124: 25 | B124: STRASBOURG ESPLANADE | C124: DCP | D124: TOUS | E124: Bouquet Liberté | F124: 8 | G124: 2
A125: 25 | B125: STRASBOURG ESPLANADE | C125: DCP | D125: TOUS | E125: CB | F125: 19 | G125: 18 | H125: 0 | I125: 1 | J125: 0 | K125: 1
A126: 25 | B126: STRASBOURG ESPLANADE | C126: DCP | D126: TOUS | E126: dont Platinum | F126: 5 | G126: 2
A127: 25 | B127: STRASBOURG ESPLANADE | C127: DCP | D127: TOUS | E127: Forfaits Pros | F127: 21 | G127: 12
A128: 25 | B128: STRASBOURG ESPLANADE | C128: DCP | D128: TOUS | E128: TPE | F128: 14 | G128: 5
A129: 25 | B129: STRASBOURG ESPLANADE | C129: Michel LIENHARDT | D129: Jeremy WEIBLE | E129: Bouquet Liberté | F129: 8 | G129: 2
A130: 25 | B130: STRASBOURG ESPLANADE | C130: Michel LIENHARDT | D130: Jeremy WEIBLE | E130: CB | F130: 19 | G130: 18 | H130: 0 | I130: 1 | J130: 0 | K130: 1
A131: 25 | B131: STRASBOURG ESPLANADE | C131: Michel LIENHARDT | D131: Jeremy WEIBLE | E131: dont Platinum | F131: 5 | G131: 2
A132: 25 | B132: STRASBOURG ESPLANADE | C132: Michel LIENHARDT | D132: Jeremy WEIBLE | E132: Forfaits Pros | F132: 21 | G132: 12
A133: 25 | B133: STRASBOURG ESPLANADE | C133: Michel LIENHARDT | D133: Jeremy WEIBLE | E133: TPE | F133: 14 | G133: 5
A134: 26 | B134: STRASBOURG DANUBE | C134: DCP | D134: TOUS | E134: Bouquet Liberté | F134: 4 | G134: 2
A135: 26 | B135: STRASBOURG DANUBE | C135: DCP | D135: TOUS | E135: CB | F135: 4 | G135: 0
A136: 26 | B136: STRASBOURG DANUBE | C136: DCP | D136: TOUS | E136: Forfaits Pros | F136: 3 | G136: 1
A137: 26 | B137: STRASBOURG DANUBE | C137: DCP | D137: TOUS | E137: TPE | F137: 5
A138: 26 | B138: STRASBOURG DANUBE | C138: Michel LIENHARDT | D138: Jeremy WEIBLE | E138: Bouquet Liberté | F138: 4 | G138: 2
A139: 26 | B139: STRASBOURG DANUBE | C139: Michel LIENHARDT | D139: Jeremy WEIBLE | E139: CB | F139: 4 | G139: 0
A140: 26 | B140: STRASBOURG DANUBE | C140: Michel LIENHARDT | D140: Jeremy WEIBLE | E140: Forfaits Pros | F140: 3 | G140: 1
A141: 26 | B141: STRASBOURG DANUBE | C141: Michel LIENHARDT | D141: Jeremy WEIBLE | E141: TPE | F141: 5
A142: 27 | B142: SCHILTIGHEIM CENTRE | C142: DCP | D142: TOUS | E142: Bouquet Liberté | F142: 13 | G142: 10
A143: 27 | B143: SCHILTIGHEIM CENTRE | C143: DCP | D143: TOUS | E143: CB | F143: 23 | G143: 11 | H143: 0 | I143: 1 | J143: 0 | K143: 1
A144: 27 | B144: SCHILTIGHEIM CENTRE | C144: DCP | D144: TOUS | E144: dont Platinum | F144: 1 | G144: 0
A145: 27 | B145: SCHILTIGHEIM CENTRE | C145: DCP | D145: TOUS | E145: Forfaits Pros | F145: 20 | G145: 10 | H145: 0 | I145: 2 | J145: 0 | K145: 1
A146: 27 | B146: SCHILTIGHEIM CENTRE | C146: DCP | D146: TOUS | E146: TPE | F146: 6 | G146: 2
A147: 27 | B147: SCHILTIGHEIM CENTRE | C147: Michel LIENHARDT | D147: Stéphane PAGNIER | E147: Bouquet Liberté | F147: 13 | G147: 10
A148: 27 | B148: SCHILTIGHEIM CENTRE | C148: Michel LIENHARDT | D148: Stéphane PAGNIER | E148: CB | F148: 23 | G148: 11 | H148: 0 | I148: 1 | J148: 0 | K148: 1
A149: 27 | B149: SCHILTIGHEIM CENTRE | C149: Michel LIENHARDT | D149: Stéphane PAGNIER | E149: dont Platinum | F149: 1 | G149: 0
A150: 27 | B150: SCHILTIGHEIM CENTRE | C150: Michel LIENHARDT | D150: Stéphane PAGNIER | E150: Forfaits Pros | F150: 20 | G150: 10 | H150: 0 | I150: 2 | J150: 0 | K150: 1
A151: 27 | B151: SCHILTIGHEIM CENTRE | C151: Michel LIENHARDT | D151: Stéphane PAGNIER | E151: TPE | F151: 6 | G151: 2
A152: 28 | B152: BISCHHEIM | C152: DCP | D152: TOUS | E152: Bouquet Liberté | F152: 4 | G152: 2 | H152: 1 | I152: 0 | J152: 1 | K152: 0
A153: 28 | B153: BISCHHEIM | C153: DCP | D153: TOUS | E153: CB | F153: 5 | G153: 3
A154: 28 | B154: BISCHHEIM | C154: DCP | D154: TOUS | E154: Forfaits Pros | F154: 5 | G154: 2
A155: 28 | B155: BISCHHEIM | C155: Michel LIENHARDT | D155: Stéphane PAGNIER | E155: Bouquet Liberté | F155: 4 | G155: 2 | H155: 1 | I155: 0 | J155: 1 | K155: 0
A156: 28 | B156: BISCHHEIM | C156: Michel LIENHARDT | D156: Stéphane PAGNIER | E156: CB | F156: 5 | G156: 3
A157: 28 | B157: BISCHHEIM | C157: Michel LIENHARDT | D157: Stéphane PAGNIER | E157: Forfaits Pros | F157: 5 | G157: 2
A158: 29 | B158: SCHILTIGHEIM KLEBER | C158: DCP | D158: TOUS | E158: Bouquet Liberté | F158: 5 | G158: 3
A159: 29 | B159: SCHILTIGHEIM KLEBER | C159: DCP | D159: TOUS | E159: CB | F159: 5 | G159: 1
A160: 29 | B160: SCHILTIGHEIM KLEBER | C160: DCP | D160: TOUS | E160: Forfaits Pros | F160: 8 | G160: 2 | H160: 0 | I160: 1
A161: 29 | B161: SCHILTIGHEIM KLEBER | C161: DCP | D161: TOUS | E161: TPE | F161: 2 | G161: 2
A162: 29 | B162: SCHILTIGHEIM KLEBER | C162: Michel LIENHARDT | D162: Stéphane PAGNIER | E162: Bouquet Liberté | F162: 5 | G162: 3
A163: 29 | B163: SCHILTIGHEIM KLEBER | C163: Michel LIENHARDT | D163: Stéphane PAGNIER | E163: CB | F163: 5 | G163: 1
A164: 29 | B164: SCHILTIGHEIM KLEBER | C164: Michel LIENHARDT | D164: Stéphane PAGNIER | E164: Forfaits Pros | F164: 8 | G164: 2 | H164: 0 | I164: 1
A165: 29 | B165: SCHILTIGHEIM KLEBER | C165: Michel LIENHARDT | D165: Stéphane PAGNIER | E165: TPE | F165: 2 | G165: 2
A166: 30 | B166: BRUMATH | C166: DCP | D166: TOUS | E166: Bouquet Liberté | F166: 7 | G166: 4
A167: 30 | B167: BRUMATH | C167: DCP | D167: TOUS | E167: CB | F167: 23 | G167: 26
A168: 30 | B168: BRUMATH | C168: DCP | D168: TOUS | E168: dont Platinum | F168: 0 | G168: 1
A169: 30 | B169: BRUMATH | C169: DCP | D169: TOUS | E169: Forfaits Pros | F169: 15 | G169: 11
A170: 30 | B170: BRUMATH | C170: DCP | D170: TOUS | E170: TPE | F170: 10 | G170: 4
A171: 30 | B171: BRUMATH | C171: Michel LIENHARDT | D171: Jonathan KOCH | E171: Bouquet Liberté | F171: 7 | G171: 4
A172: 30 | B172: BRUMATH | C172: Michel LIENHARDT | D172: Jonathan KOCH | E172: CB | F172: 21 | G172: 22
A173: 30 | B173: BRUMATH | C173: Michel LIENHARDT | D173: Jonathan KOCH | E173: dont Platinum | F173: 0 | G173: 1
A174: 30 | B174: BRUMATH | C174: Michel LIENHARDT | D174: Jonathan KOCH | E174: Forfaits Pros | F174: 14 | G174: 11
A175: 30 | B175: BRUMATH | C175: Michel LIENHARDT | D175: Jonathan KOCH | E175: TPE | F175: 9 | G175: 4
A176: 30 | B176: BRUMATH | C176: Michel LIENHARDT | D176: Olivier SCHOTT | E176: CB | F176: 2 | G176: 4
A177: 30 | B177: BRUMATH | C177: Michel LIENHARDT | D177: Olivier SCHOTT | E177: Forfaits Pros | F177: 1 | G177: 0
A178: 30 | B178: BRUMATH | C178: Michel LIENHARDT | D178: Olivier SCHOTT | E178: TPE | F178: 1
A179: 31 | B179: TRUCHTERSHEIM | C179: DCP | D179: TOUS | E179: Bouquet Liberté | F179: 6 | G179: 9
A180: 31 | B180: TRUCHTERSHEIM | C180: DCP | D180: TOUS | E180: CB | F180: 26 | G180: 14
A181: 31 | B181: TRUCHTERSHEIM | C181: DCP | D181: TOUS | E181: dont Platinum | F181: 1 | G181: 0
A182: 31 | B182: TRUCHTERSHEIM | C182: DCP | D182: TOUS | E182: Forfaits Pros | F182: 19 | G182: 5
A183: 31 | B183: TRUCHTERSHEIM | C183: DCP | D183: TOUS | E183: TPE | F183: 4 | G183: 1
A184: 31 | B184: TRUCHTERSHEIM | C184: Michel LIENHARDT | D184: Cedric KOEHLER | E184: Bouquet Liberté | F184: 6 | G184: 9
A185: 31 | B185: TRUCHTERSHEIM | C185: Michel LIENHARDT | D185: Cedric KOEHLER | E185: CB | F185: 26 | G185: 14
A186: 31 | B186: TRUCHTERSHEIM | C186: Michel LIENHARDT | D186: Cedric KOEHLER | E186: dont Platinum | F186: 1 | G186: 0
A187: 31 | B187: TRUCHTERSHEIM | C187: Michel LIENHARDT | D187: Cedric KOEHLER | E187: Forfaits Pros | F187: 19 | G187: 5
A188: 31 | B188: TRUCHTERSHEIM | C188: Michel LIENHARDT | D188: Cedric KOEHLER | E188: TPE | F188: 4 | G188: 1
A189: 33 | B189: LA WANTZENAU | C189: DCP | D189: TOUS | E189: Bouquet Liberté | F189: 3 | G189: 5
A190: 33 | B190: LA WANTZENAU | C190: DCP | D190: TOUS | E190: CB | F190: 5 | G190: 1
A191: 33 | B191: LA WANTZENAU | C191: DCP | D191: TOUS | E191: dont Platinum | F191: 1 | G191: 0
A192: 33 | B192: LA WANTZENAU | C192: DCP | D192: TOUS | E192: Forfaits Pros | F192: 5 | G192: 0
A193: 33 | B193: LA WANTZENAU | C193: DCP | D193: TOUS | E193: TPE | F193: 3 | G193: 2
A194: 33 | B194: LA WANTZENAU | C194: Michel LIENHARDT | D194: Christelle ARCIN | E194: Bouquet Liberté | F194: 3 | G194: 5
A195: 33 | B195: LA WANTZENAU | C195: Michel LIENHARDT | D195: Christelle ARCIN | E195: CB | F195: 5 | G195: 1
A196: 33 | B196: LA WANTZENAU | C196: Michel LIENHARDT | D196: Christelle ARCIN | E196: dont Platinum | F196: 1 | G196: 0
A197: 33 | B197: LA WANTZENAU | C197: Michel LIENHARDT | D197: Christelle ARCIN | E197: Forfaits Pros | F197: 5 | G197: 0
A198: 33 | B198: LA WANTZENAU | C198: Michel LIENHARDT | D198: Christelle ARCIN | E198: TPE | F198: 3 | G198: 2
A199: 34 | B199: VENDENHEIM | C199: DCP | D199: TOUS | E199: Bouquet Liberté | F199: 2 | G199: 0
A200: 34 | B200: VENDENHEIM | C200: DCP | D200: TOUS | E200: CB | F200: 4 | G200: 4
... 2359 more rows

Sheet Banca Clients
A1: NO ENTITE | B1: DCP | C1: CCPRO
A2: ='Pilotage Pros'!AN1 -> 199 | B2: ='Pilotage Pros'!O4 -> DCP | C2: ='Pilotage Pros'!AA4 -> TOUS
A8: NO ENTITE | B8: ENTITE | C8: DCP | D8: CCPRO | E8: GESTIONNAIRE | F8: DATE_ARRT_INFO | G8: FAMILLE | H8: LIBL_PRDT | I8: NOPER | J8: NOM_CLNT | K8: OUV | L8: CLOT
A9: 6 | B9: STRASBOURG NEUDORF | C9: DCP | D9: TOUS | E9: GROSS Olivier | F9: 2018-11-09 | G9: CB | H9: BUSINESS P+R IMMEDIAT | I9: 82892902 | J9: M ALAIN GOETZ | K9: 0 | L9: 1
A10: 6 | B10: STRASBOURG NEUDORF | C10: DCP | D10: TOUS | E10: GROSS Olivier | F10: 2018-11-09 | G10: Forfaits Pros | H10: LIBRE CONVERGENCE | I10: 93647679 | J10: ACTIV'4 | K10: 0 | L10: 1
A11: 6 | B11: STRASBOURG NEUDORF | C11: DCP | D11: TOUS | E11: LEBLANC LAETITIA | F11: 2018-11-03 | G11: Bouquet Liberté | H11: BOUQUET LIBERTE | I11: 83422984 | J11: M LUCAS BOUCHERET | K11: 1 | L11: 0
A12: 6 | B12: STRASBOURG NEUDORF | C12: DCP | D12: TOUS | E12: WEIBLE JEREMY | F12: 2018-11-09 | G12: Bouquet Liberté | H12: BOUQUET LIBERTE | I12: 83392062 | J12: M LOIC ROBERT | K12: 0 | L12: 1
A13: 6 | B13: STRASBOURG NEUDORF | C13: DCP | D13: TOUS | E13: WEIBLE JEREMY | F13: 2018-11-09 | G13: Bouquet Liberté | H13: BOUQUET LIBERTE | I13: 83424936 | J13: MLLE JULIE CALLIGARO | K13: 0 | L13: 1
A14: 6 | B14: STRASBOURG NEUDORF | C14: DCP | D14: TOUS | E14: WEIBLE JEREMY | F14: 2018-11-10 | G14: CB | H14: BUSINESS P+R IMMEDIAT | I14: 82866504 | J14: ADRIAN MARIE-LAURE | K14: 0 | L14: 1
A15: 6 | B15: STRASBOURG NEUDORF | C15: DCP | D15: TOUS | E15: WEIBLE JEREMY | F15: 2018-11-10 | G15: Forfaits Pros | H15: FORFAIT LABELIS SANTE | I15: 82866504 | J15: ADRIAN MARIE-LAURE | K15: 0 | L15: 1
A16: 6 | B16: STRASBOURG NEUDORF | C16: DCP | D16: TOUS | F16: 2018-10-04 | G16: TPE | H16: Addendum sans contact | I16: 82398787 | J16: PANOPRINT | K16: 1
A17: 6 | B17: STRASBOURG NEUDORF | C17: DCP | D17: TOUS | F17: 2018-10-04 | G17: TPE | H17: Paiement de proximité | I17: 82398787 | J17: PANOPRINT | K17: 1
A18: 6 | B18: STRASBOURG NEUDORF | C18: DCP | D18: TOUS | F18: 2018-10-29 | G18: TPE | H18: Addendum sans contact | I18: 93291032 | J18: MY HOME COIFFEUR | L18: 1
A19: 6 | B19: STRASBOURG NEUDORF | C19: DCP | D19: TOUS | F19: 2018-10-29 | G19: TPE | H19: Paiement de proximité | I19: 93291032 | J19: MY HOME COIFFEUR | L19: 1
A20: 6 | B20: STRASBOURG NEUDORF | C20: DCP | D20: TOUS | F20: 2018-10-30 | G20: TPE | H20: Addendum sans contact | I20: 82941157 | J20: TAVERNA FRANCO | K20: 1
A21: 6 | B21: STRASBOURG NEUDORF | C21: DCP | D21: TOUS | F21: 2018-10-30 | G21: TPE | H21: Paiement de proximité | I21: 82941157 | J21: TAVERNA FRANCO | K21: 1
A22: 6 | B22: STRASBOURG NEUDORF | C22: Michel LIENHARDT | D22: Jeremy WEIBLE | E22: GROSS Olivier | F22: 2018-11-09 | G22: CB | H22: BUSINESS P+R IMMEDIAT | I22: 82892902 | J22: M ALAIN GOETZ | K22: 0 | L22: 1
A23: 6 | B23: STRASBOURG NEUDORF | C23: Michel LIENHARDT | D23: Jeremy WEIBLE | E23: GROSS Olivier | F23: 2018-11-09 | G23: Forfaits Pros | H23: LIBRE CONVERGENCE | I23: 93647679 | J23: ACTIV'4 | K23: 0 | L23: 1
A24: 6 | B24: STRASBOURG NEUDORF | C24: Michel LIENHARDT | D24: Jeremy WEIBLE | E24: LEBLANC LAETITIA | F24: 2018-11-03 | G24: Bouquet Liberté | H24: BOUQUET LIBERTE | I24: 83422984 | J24: M LUCAS BOUCHERET | K24: 1 | L24: 0
A25: 6 | B25: STRASBOURG NEUDORF | C25: Michel LIENHARDT | D25: Jeremy WEIBLE | E25: WEIBLE JEREMY | F25: 2018-11-09 | G25: Bouquet Liberté | H25: BOUQUET LIBERTE | I25: 83392062 | J25: M LOIC ROBERT | K25: 0 | L25: 1
A26: 6 | B26: STRASBOURG NEUDORF | C26: Michel LIENHARDT | D26: Jeremy WEIBLE | E26: WEIBLE JEREMY | F26: 2018-11-09 | G26: Bouquet Liberté | H26: BOUQUET LIBERTE | I26: 83424936 | J26: MLLE JULIE CALLIGARO | K26: 0 | L26: 1
A27: 6 | B27: STRASBOURG NEUDORF | C27: Michel LIENHARDT | D27: Jeremy WEIBLE | E27: WEIBLE JEREMY | F27: 2018-11-10 | G27: CB | H27: BUSINESS P+R IMMEDIAT | I27: 82866504 | J27: ADRIAN MARIE-LAURE | K27: 0 | L27: 1
A28: 6 | B28: STRASBOURG NEUDORF | C28: Michel LIENHARDT | D28: Jeremy WEIBLE | E28: WEIBLE JEREMY | F28: 2018-11-10 | G28: Forfaits Pros | H28: FORFAIT LABELIS SANTE | I28: 82866504 | J28: ADRIAN MARIE-LAURE | K28: 0 | L28: 1
A29: 6 | B29: STRASBOURG NEUDORF | C29: Michel LIENHARDT | D29: Jeremy WEIBLE | F29: 2018-10-04 | G29: TPE | H29: Addendum sans contact | I29: 82398787 | J29: PANOPRINT | K29: 1
A30: 6 | B30: STRASBOURG NEUDORF | C30: Michel LIENHARDT | D30: Jeremy WEIBLE | F30: 2018-10-04 | G30: TPE | H30: Paiement de proximité | I30: 82398787 | J30: PANOPRINT | K30: 1
A31: 6 | B31: STRASBOURG NEUDORF | C31: Michel LIENHARDT | D31: Jeremy WEIBLE | F31: 2018-10-29 | G31: TPE | H31: Addendum sans contact | I31: 93291032 | J31: MY HOME COIFFEUR | L31: 1
A32: 6 | B32: STRASBOURG NEUDORF | C32: Michel LIENHARDT | D32: Jeremy WEIBLE | F32: 2018-10-29 | G32: TPE | H32: Paiement de proximité | I32: 93291032 | J32: MY HOME COIFFEUR | L32: 1
A33: 6 | B33: STRASBOURG NEUDORF | C33: Michel LIENHARDT | D33: Jeremy WEIBLE | F33: 2018-10-30 | G33: TPE | H33: Addendum sans contact | I33: 82941157 | J33: TAVERNA FRANCO | K33: 1
A34: 6 | B34: STRASBOURG NEUDORF | C34: Michel LIENHARDT | D34: Jeremy WEIBLE | F34: 2018-10-30 | G34: TPE | H34: Paiement de proximité | I34: 82941157 | J34: TAVERNA FRANCO | K34: 1
A35: 7 | B35: ILLKIRCH CENTRE | C35: DCP | D35: TOUS | E35: KUPET THIERRY | F35: 2018-11-08 | G35: CB | H35: GOLD BUSINESS P+R IMM | I35: 83010089 | J35: M DANIEL DICKMANN | K35: 0 | L35: 1
A36: 7 | B36: ILLKIRCH CENTRE | C36: DCP | D36: TOUS | E36: KUPET THIERRY | F36: 2018-11-08 | G36: Forfaits Pros | H36: LIBRE CONVERGENCE | I36: 94102308 | J36: DARTHUS | K36: 0 | L36: 1
A37: 7 | B37: ILLKIRCH CENTRE | C37: DCP | D37: TOUS | E37: MARCALO CATIA | F37: 2018-11-02 | G37: CB | H37: BUSINESS PAIEMENT IMMEDI | I37: 83223910 | J37: BAECHLER DANY | K37: 1 | L37: 0
A38: 7 | B38: ILLKIRCH CENTRE | C38: DCP | D38: TOUS | E38: MARCALO CATIA | F38: 2018-11-08 | G38: CB | H38: BUSINESS P+R IMMEDIAT | I38: 93901881 | J38: M FREDERIC MISSLIN | K38: 0 | L38: 1
A39: 7 | B39: ILLKIRCH CENTRE | C39: DCP | D39: TOUS | E39: MARCALO CATIA | F39: 2018-11-08 | G39: CB | H39: GOLD BUSINESS P+R IMM | I39: 93901881 | J39: M FREDERIC MISSLIN | K39: 1 | L39: 0
A40: 7 | B40: ILLKIRCH CENTRE | C40: DCP | D40: TOUS | E40: MARCALO CATIA | F40: 2018-11-10 | G40: Bouquet Liberté | H40: BOUQUET LIBERTE | I40: 93102917 | J40: BESEME PIERRE OLIVIER MARIE | K40: 0 | L40: 1
A41: 7 | B41: ILLKIRCH CENTRE | C41: DCP | D41: TOUS | F41: 2018-10-29 | G41: TPE | H41: Addendum sans contact | I41: 92903506 | J41: VIGNOBLE INTERNATIONAL PRESTIGE | L41: 1
A42: 7 | B42: ILLKIRCH CENTRE | C42: DCP | D42: TOUS | F42: 2018-10-29 | G42: TPE | H42: Paiement à distance | I42: 92903506 | J42: VIGNOBLE INTERNATIONAL PRESTIGE | L42: 1
A43: 7 | B43: ILLKIRCH CENTRE | C43: DCP | D43: TOUS | F43: 2018-10-29 | G43: TPE | H43: Paiement de proximité | I43: 92903506 | J43: VIGNOBLE INTERNATIONAL PRESTIGE | L43: 1
A44: 7 | B44: ILLKIRCH CENTRE | C44: Michel LIENHARDT | D44: Catia MARCALO | E44: KUPET THIERRY | F44: 2018-11-08 | G44: CB | H44: GOLD BUSINESS P+R IMM | I44: 83010089 | J44: M DANIEL DICKMANN | K44: 0 | L44: 1
A45: 7 | B45: ILLKIRCH CENTRE | C45: Michel LIENHARDT | D45: Catia MARCALO | E45: KUPET THIERRY | F45: 2018-11-08 | G45: Forfaits Pros | H45: LIBRE CONVERGENCE | I45: 94102308 | J45: DARTHUS | K45: 0 | L45: 1
A46: 7 | B46: ILLKIRCH CENTRE | C46: Michel LIENHARDT | D46: Catia MARCALO | E46: MARCALO CATIA | F46: 2018-11-02 | G46: CB | H46: BUSINESS PAIEMENT IMMEDI | I46: 83223910 | J46: BAECHLER DANY | K46: 1 | L46: 0
A47: 7 | B47: ILLKIRCH CENTRE | C47: Michel LIENHARDT | D47: Catia MARCALO | E47: MARCALO CATIA | F47: 2018-11-08 | G47: CB | H47: BUSINESS P+R IMMEDIAT | I47: 93901881 | J47: M FREDERIC MISSLIN | K47: 0 | L47: 1
A48: 7 | B48: ILLKIRCH CENTRE | C48: Michel LIENHARDT | D48: Catia MARCALO | E48: MARCALO CATIA | F48: 2018-11-08 | G48: CB | H48: GOLD BUSINESS P+R IMM | I48: 93901881 | J48: M FREDERIC MISSLIN | K48: 1 | L48: 0
A49: 7 | B49: ILLKIRCH CENTRE | C49: Michel LIENHARDT | D49: Catia MARCALO | E49: MARCALO CATIA | F49: 2018-11-10 | G49: Bouquet Liberté | H49: BOUQUET LIBERTE | I49: 93102917 | J49: BESEME PIERRE OLIVIER MARIE | K49: 0 | L49: 1
A50: 7 | B50: ILLKIRCH CENTRE | C50: Michel LIENHARDT | D50: Catia MARCALO | F50: 2018-10-29 | G50: TPE | H50: Addendum sans contact | I50: 92903506 | J50: VIGNOBLE INTERNATIONAL PRESTIGE | L50: 1
A51: 7 | B51: ILLKIRCH CENTRE | C51: Michel LIENHARDT | D51: Catia MARCALO | F51: 2018-10-29 | G51: TPE | H51: Paiement à distance | I51: 92903506 | J51: VIGNOBLE INTERNATIONAL PRESTIGE | L51: 1
A52: 7 | B52: ILLKIRCH CENTRE | C52: Michel LIENHARDT | D52: Catia MARCALO | F52: 2018-10-29 | G52: TPE | H52: Paiement de proximité | I52: 92903506 | J52: VIGNOBLE INTERNATIONAL PRESTIGE | L52: 1
A53: 8 | B53: FEGERSHEIM | C53: DCP | D53: TOUS | F53: 2018-10-10 | G53: TPE | H53: Paiement de proximité | I53: 93103576 | J53: EPICERIE J.V.N. LIPSHEIM | L53: 1
A54: 8 | B54: FEGERSHEIM | C54: DCP | D54: TOUS | F54: 2018-10-23 | G54: TPE | H54: Addendum sans contact | I54: 82469563 | J54: BINA MELANIE MICHELE | K54: 1
A55: 8 | B55: FEGERSHEIM | C55: Michel LIENHARDT | D55: Catia MARCALO | F55: 2018-10-10 | G55: TPE | H55: Paiement de proximité | I55: 93103576 | J55: EPICERIE J.V.N. LIPSHEIM | L55: 1
A56: 8 | B56: FEGERSHEIM | C56: Michel LIENHARDT | D56: Catia MARCALO | F56: 2018-10-23 | G56: TPE | H56: Addendum sans contact | I56: 82469563 | J56: BINA MELANIE MICHELE | K56: 1
A57: 10 | B57: STRASBOURG MEINAU | C57: DCP | D57: TOUS | E57: WEIBLE JEREMY | F57: 2018-11-10 | G57: CB | H57: BUSINESS P+R IMMEDIAT | I57: 93845179 | J57: M EROL KAPAR | K57: 0 | L57: 1
A58: 10 | B58: STRASBOURG MEINAU | C58: Michel LIENHARDT | D58: Jeremy WEIBLE | E58: WEIBLE JEREMY | F58: 2018-11-10 | G58: CB | H58: BUSINESS P+R IMMEDIAT | I58: 93845179 | J58: M EROL KAPAR | K58: 0 | L58: 1
A59: 14 | B59: OSTWALD | C59: DCP | D59: TOUS | E59: JASAREVIC SANELA | F59: 2018-11-02 | G59: CB | H59: BUSINESS PAIEMENT DIFFER | I59: 83200088 | J59: M ERIC POUJOL | K59: 0 | L59: 1
A60: 14 | B60: OSTWALD | C60: DCP | D60: TOUS | E60: JASAREVIC SANELA | F60: 2018-11-02 | G60: CB | H60: BUSINESS PAIEMENT IMMEDI | I60: 83200088 | J60: M ERIC POUJOL | K60: 1 | L60: 0
A61: 14 | B61: OSTWALD | C61: DCP | D61: TOUS | E61: JASAREVIC SANELA | F61: 2018-11-02 | G61: Forfaits Pros | H61: LIBRE CONVERGENCE | I61: 93960023 | J61: LBTI-LES BONS TUYAUX INNOVANTS | K61: 1 | L61: 0
A62: 14 | B62: OSTWALD | C62: Michel LIENHARDT | D62: Catia MARCALO | E62: JASAREVIC SANELA | F62: 2018-11-02 | G62: CB | H62: BUSINESS PAIEMENT DIFFER | I62: 83200088 | J62: M ERIC POUJOL | K62: 0 | L62: 1
A63: 14 | B63: OSTWALD | C63: Michel LIENHARDT | D63: Catia MARCALO | E63: JASAREVIC SANELA | F63: 2018-11-02 | G63: CB | H63: BUSINESS PAIEMENT IMMEDI | I63: 83200088 | J63: M ERIC POUJOL | K63: 1 | L63: 0
A64: 14 | B64: OSTWALD | C64: Michel LIENHARDT | D64: Catia MARCALO | E64: JASAREVIC SANELA | F64: 2018-11-02 | G64: Forfaits Pros | H64: LIBRE CONVERGENCE | I64: 93960023 | J64: LBTI-LES BONS TUYAUX INNOVANTS | K64: 1 | L64: 0
A65: 15 | B65: LINGOLSHEIM | C65: DCP | D65: TOUS | E65: CROMER PASCALE | F65: 2018-11-08 | G65: Bouquet Liberté | H65: BOUQUET LIBERTE | I65: 83287435 | J65: M PIERRE HAEGEL | K65: 1 | L65: 0
A66: 15 | B66: LINGOLSHEIM | C66: DCP | D66: TOUS | F66: 2018-10-03 | G66: TPE | H66: Addendum sans contact | I66: 94034939 | J66: MME FORVEILLE LYNDA | K66: 1
A67: 15 | B67: LINGOLSHEIM | C67: DCP | D67: TOUS | F67: 2018-10-03 | G67: TPE | H67: Paiement de proximité | I67: 94034939 | J67: MME FORVEILLE LYNDA | K67: 1
A68: 15 | B68: LINGOLSHEIM | C68: DCP | D68: TOUS | F68: 2018-10-15 | G68: TPE | H68: Addendum sans contact | I68: 83354203 | J68: ZAMBELLI CAMILLE | K68: 1
A69: 15 | B69: LINGOLSHEIM | C69: DCP | D69: TOUS | F69: 2018-10-15 | G69: TPE | H69: Paiement de proximité | I69: 83354203 | J69: ZAMBELLI CAMILLE | K69: 1
A70: 15 | B70: LINGOLSHEIM | C70: Michel LIENHARDT | D70: Catia MARCALO | E70: CROMER PASCALE | F70: 2018-11-08 | G70: Bouquet Liberté | H70: BOUQUET LIBERTE | I70: 83287435 | J70: M PIERRE HAEGEL | K70: 1 | L70: 0
A71: 15 | B71: LINGOLSHEIM | C71: Michel LIENHARDT | D71: Catia MARCALO | F71: 2018-10-03 | G71: TPE | H71: Addendum sans contact | I71: 94034939 | J71: MME FORVEILLE LYNDA | K71: 1
A72: 15 | B72: LINGOLSHEIM | C72: Michel LIENHARDT | D72: Catia MARCALO | F72: 2018-10-03 | G72: TPE | H72: Paiement de proximité | I72: 94034939 | J72: MME FORVEILLE LYNDA | K72: 1
A73: 15 | B73: LINGOLSHEIM | C73: Michel LIENHARDT | D73: Catia MARCALO | F73: 2018-10-15 | G73: TPE | H73: Addendum sans contact | I73: 83354203 | J73: ZAMBELLI CAMILLE | K73: 1
A74: 15 | B74: LINGOLSHEIM | C74: Michel LIENHARDT | D74: Catia MARCALO | F74: 2018-10-15 | G74: TPE | H74: Paiement de proximité | I74: 83354203 | J74: ZAMBELLI CAMILLE | K74: 1
A75: 18 | B75: ESPACE MESANGE | C75: DCP | D75: TOUS | E75: CASTELEYN VINCENT | F75: 2018-11-03 | G75: Bouquet Liberté | H75: BOUQUET LIBERTE | I75: 93047250 | J75: MLLE MATHILDE AUBRIOT BERTOT | K75: 0 | L75: 1
A76: 18 | B76: ESPACE MESANGE | C76: DCP | D76: TOUS | E76: CASTELEYN VINCENT | F76: 2018-11-09 | G76: CB | H76: GOLD BUSINESS P+R DIFFER | I76: 82999590 | J76: M IHSAN MUTEVELLIOGLU | K76: 0 | L76: 1
A77: 18 | B77: ESPACE MESANGE | C77: DCP | D77: TOUS | E77: CASTELEYN VINCENT | F77: 2018-11-09 | G77: Forfaits Pros | H77: FORFAIT SCI PRO | I77: 93697748 | J77: SCI L'ASTRAGALE | K77: 0 | L77: 1
A78: 18 | B78: ESPACE MESANGE | C78: DCP | D78: TOUS | E78: CASTELEYN VINCENT | F78: 2018-11-09 | G78: Forfaits Pros | H78: LIBRE CONVERGENCE | I78: 92444273 | J78: MUTEVELLI SUPERMARKET | K78: 0 | L78: 1
A79: 18 | B79: ESPACE MESANGE | C79: DCP | D79: TOUS | E79: CASTELEYN VINCENT | F79: 2018-11-09 | G79: Forfaits Pros | H79: LIBRE CONVERGENCE | I79: 93407766 | J79: LE GARDEN | K79: 0 | L79: 1
A80: 18 | B80: ESPACE MESANGE | C80: DCP | D80: TOUS | F80: 2018-10-23 | G80: TPE | H80: Paiement de proximité | I80: 94081905 | J80: ALPHABET ROAD | K80: 1
A81: 18 | B81: ESPACE MESANGE | C81: DCP | D81: TOUS | F81: 2018-10-24 | G81: TPE | H81: Addendum sans contact | I81: 93881045 | J81: QG | K81: 1
A82: 18 | B82: ESPACE MESANGE | C82: DCP | D82: TOUS | F82: 2018-10-24 | G82: TPE | H82: Paiement de proximité | I82: 93881045 | J82: QG | K82: 1
A83: 18 | B83: ESPACE MESANGE | C83: DCP | D83: TOUS | F83: 2018-10-29 | G83: TPE | H83: Addendum sans contact | I83: 93765669 | J83: BARR A VIN | L83: 1
A84: 18 | B84: ESPACE MESANGE | C84: DCP | D84: TOUS | F84: 2018-10-29 | G84: TPE | H84: Paiement de proximité | I84: 93765669 | J84: BARR A VIN | L84: 1
A85: 18 | B85: ESPACE MESANGE | C85: Michel LIENHARDT | D85: STARCK/CASTELEYN | E85: CASTELEYN VINCENT | F85: 2018-11-03 | G85: Bouquet Liberté | H85: BOUQUET LIBERTE | I85: 93047250 | J85: MLLE MATHILDE AUBRIOT BERTOT | K85: 0 | L85: 1
A86: 18 | B86: ESPACE MESANGE | C86: Michel LIENHARDT | D86: STARCK/CASTELEYN | E86: CASTELEYN VINCENT | F86: 2018-11-09 | G86: CB | H86: GOLD BUSINESS P+R DIFFER | I86: 82999590 | J86: M IHSAN MUTEVELLIOGLU | K86: 0 | L86: 1
A87: 18 | B87: ESPACE MESANGE | C87: Michel LIENHARDT | D87: STARCK/CASTELEYN | E87: CASTELEYN VINCENT | F87: 2018-11-09 | G87: Forfaits Pros | H87: FORFAIT SCI PRO | I87: 93697748 | J87: SCI L'ASTRAGALE | K87: 0 | L87: 1
A88: 18 | B88: ESPACE MESANGE | C88: Michel LIENHARDT | D88: STARCK/CASTELEYN | E88: CASTELEYN VINCENT | F88: 2018-11-09 | G88: Forfaits Pros | H88: LIBRE CONVERGENCE | I88: 92444273 | J88: MUTEVELLI SUPERMARKET | K88: 0 | L88: 1
A89: 18 | B89: ESPACE MESANGE | C89: Michel LIENHARDT | D89: STARCK/CASTELEYN | E89: CASTELEYN VINCENT | F89: 2018-11-09 | G89: Forfaits Pros | H89: LIBRE CONVERGENCE | I89: 93407766 | J89: LE GARDEN | K89: 0 | L89: 1
A90: 18 | B90: ESPACE MESANGE | C90: Michel LIENHARDT | D90: STARCK/CASTELEYN | F90: 2018-10-23 | G90: TPE | H90: Paiement de proximité | I90: 94081905 | J90: ALPHABET ROAD | K90: 1
A91: 18 | B91: ESPACE MESANGE | C91: Michel LIENHARDT | D91: STARCK/CASTELEYN | F91: 2018-10-24 | G91: TPE | H91: Addendum sans contact | I91: 93881045 | J91: QG | K91: 1
A92: 18 | B92: ESPACE MESANGE | C92: Michel LIENHARDT | D92: STARCK/CASTELEYN | F92: 2018-10-24 | G92: TPE | H92: Paiement de proximité | I92: 93881045 | J92: QG | K92: 1
A93: 18 | B93: ESPACE MESANGE | C93: Michel LIENHARDT | D93: STARCK/CASTELEYN | F93: 2018-10-29 | G93: TPE | H93: Addendum sans contact | I93: 93765669 | J93: BARR A VIN | L93: 1
A94: 18 | B94: ESPACE MESANGE | C94: Michel LIENHARDT | D94: STARCK/CASTELEYN | F94: 2018-10-29 | G94: TPE | H94: Paiement de proximité | I94: 93765669 | J94: BARR A VIN | L94: 1
A95: 19 | B95: STRASBOURG ANVERS | C95: DCP | D95: TOUS | E95: GAUTHIER-LAFAYE Muriel | F95: 2018-11-10 | G95: CB | H95: BUSINESS P+R IMMEDIAT | I95: 93291482 | J95: M JACQUES CLAUS | K95: 0 | L95: 1
A96: 19 | B96: STRASBOURG ANVERS | C96: DCP | D96: TOUS | E96: GAUTHIER-LAFAYE Muriel | F96: 2018-11-10 | G96: Forfaits Pros | H96: LIBRE CONVERGENCE | I96: 93111780 | J96: HOLLY WOODS | K96: 0 | L96: 1
A97: 19 | B97: STRASBOURG ANVERS | C97: DCP | D97: TOUS | E97: GAUTHIER-LAFAYE Muriel | F97: 2018-11-10 | G97: Forfaits Pros | H97: LIBRE CONVERGENCE | I97: 93427840 | J97: ALSACE VTC | K97: 0 | L97: 1
A98: 19 | B98: STRASBOURG ANVERS | C98: DCP | D98: TOUS | F98: 2018-10-05 | G98: TPE | H98: Addendum sans contact | I98: 82977487 | J98: TOLEDANO JACQUES ARIE YAACOV | K98: 1
A99: 19 | B99: STRASBOURG ANVERS | C99: DCP | D99: TOUS | F99: 2018-10-05 | G99: TPE | H99: Paiement de proximité | I99: 82977487 | J99: TOLEDANO JACQUES ARIE YAACOV | K99: 1
A100: 19 | B100: STRASBOURG ANVERS | C100: Michel LIENHARDT | D100: Muriel GAUTHIER-LAFAYE | E100: GAUTHIER-LAFAYE Muriel | F100: 2018-11-10 | G100: CB | H100: BUSINESS P+R IMMEDIAT | I100: 93291482 | J100: M JACQUES CLAUS | K100: 0 | L100: 1
A101: 19 | B101: STRASBOURG ANVERS | C101: Michel LIENHARDT | D101: Muriel GAUTHIER-LAFAYE | E101: GAUTHIER-LAFAYE Muriel | F101: 2018-11-10 | G101: Forfaits Pros | H101: LIBRE CONVERGENCE | I101: 93111780 | J101: HOLLY WOODS | K101: 0 | L101: 1
A102: 19 | B102: STRASBOURG ANVERS | C102: Michel LIENHARDT | D102: Muriel GAUTHIER-LAFAYE | E102: GAUTHIER-LAFAYE Muriel | F102: 2018-11-10 | G102: Forfaits Pros | H102: LIBRE CONVERGENCE | I102: 93427840 | J102: ALSACE VTC | K102: 0 | L102: 1
A103: 19 | B103: STRASBOURG ANVERS | C103: Michel LIENHARDT | D103: Muriel GAUTHIER-LAFAYE | F103: 2018-10-05 | G103: TPE | H103: Addendum sans contact | I103: 82977487 | J103: TOLEDANO JACQUES ARIE YAACOV | K103: 1
A104: 19 | B104: STRASBOURG ANVERS | C104: Michel LIENHARDT | D104: Muriel GAUTHIER-LAFAYE | F104: 2018-10-05 | G104: TPE | H104: Paiement de proximité | I104: 82977487 | J104: TOLEDANO JACQUES ARIE YAACOV | K104: 1
A105: 20 | B105: STRASBOURG ROBERTSAU | C105: DCP | D105: TOUS | E105: COLLOT Nathalie | F105: 2018-11-06 | G105: Forfaits Pros | H105: LIBRE CONVERGENCE | I105: 93531887 | J105: SARL DELICE STREET | K105: 0 | L105: 1
A106: 20 | B106: STRASBOURG ROBERTSAU | C106: DCP | D106: TOUS | E106: PAGNIER STEPHANE | F106: 2018-11-02 | G106: CB | H106: BUSINESS P+R IMMEDIAT | I106: 93744241 | J106: M PHILIPPE BURTIN | K106: 0 | L106: 1
A107: 20 | B107: STRASBOURG ROBERTSAU | C107: DCP | D107: TOUS | F107: 2018-10-05 | G107: TPE | H107: Addendum sans contact | I107: 82975587 | J107: RUB PASCAL | L107: 1
A108: 20 | B108: STRASBOURG ROBERTSAU | C108: DCP | D108: TOUS | F108: 2018-10-05 | G108: TPE | H108: Paiement de proximité | I108: 82975587 | J108: RUB PASCAL | L108: 1
A109: 20 | B109: STRASBOURG ROBERTSAU | C109: Michel LIENHARDT | D109: Stéphane PAGNIER | E109: COLLOT Nathalie | F109: 2018-11-06 | G109: Forfaits Pros | H109: LIBRE CONVERGENCE | I109: 93531887 | J109: SARL DELICE STREET | K109: 0 | L109: 1
A110: 20 | B110: STRASBOURG ROBERTSAU | C110: Michel LIENHARDT | D110: Stéphane PAGNIER | E110: PAGNIER STEPHANE | F110: 2018-11-02 | G110: CB | H110: BUSINESS P+R IMMEDIAT | I110: 93744241 | J110: M PHILIPPE BURTIN | K110: 0 | L110: 1
A111: 20 | B111: STRASBOURG ROBERTSAU | C111: Michel LIENHARDT | D111: Stéphane PAGNIER | F111: 2018-10-05 | G111: TPE | H111: Addendum sans contact | I111: 82975587 | J111: RUB PASCAL | L111: 1
A112: 20 | B112: STRASBOURG ROBERTSAU | C112: Michel LIENHARDT | D112: Stéphane PAGNIER | F112: 2018-10-05 | G112: TPE | H112: Paiement de proximité | I112: 82975587 | J112: RUB PASCAL | L112: 1
A113: 24 | B113: STRASBOURG AUSTERLITZ | C113: DCP | D113: TOUS | E113: MONTAISE HERVE | F113: 2018-11-10 | G113: Forfaits Pros | H113: FORFAIT LABELIS SANTE | I113: 83298043 | J113: NICOLARDOT JULIEN | K113: 0 | L113: 1
A114: 24 | B114: STRASBOURG AUSTERLITZ | C114: DCP | D114: TOUS | E114: WEIBLE JEREMY | F114: 2018-11-10 | G114: CB | H114: BUSINESS P+R IMMEDIAT | I114: 91657918 | J114: M JULIEN HASENCLEVER | K114: 0 | L114: 1
A115: 24 | B115: STRASBOURG AUSTERLITZ | C115: DCP | D115: TOUS | E115: WEIBLE JEREMY | F115: 2018-11-10 | G115: Forfaits Pros | H115: LIBRE CONVERGENCE | I115: 91657945 | J115: SODEREST | K115: 0 | L115: 1
A116: 24 | B116: STRASBOURG AUSTERLITZ | C116: Michel LIENHARDT | D116: Jeremy WEIBLE | E116: MONTAISE HERVE | F116: 2018-11-10 | G116: Forfaits Pros | H116: FORFAIT LABELIS SANTE | I116: 83298043 | J116: NICOLARDOT JULIEN | K116: 0 | L116: 1
A117: 24 | B117: STRASBOURG AUSTERLITZ | C117: Michel LIENHARDT | D117: Jeremy WEIBLE | E117: WEIBLE JEREMY | F117: 2018-11-10 | G117: CB | H117: BUSINESS P+R IMMEDIAT | I117: 91657918 | J117: M JULIEN HASENCLEVER | K117: 0 | L117: 1
A118: 24 | B118: STRASBOURG AUSTERLITZ | C118: Michel LIENHARDT | D118: Jeremy WEIBLE | E118: WEIBLE JEREMY | F118: 2018-11-10 | G118: Forfaits Pros | H118: LIBRE CONVERGENCE | I118: 91657945 | J118: SODEREST | K118: 0 | L118: 1
A119: 25 | B119: STRASBOURG ESPLANADE | C119: DCP | D119: TOUS | E119: DAVID Didier | F119: 2018-11-09 | G119: CB | H119: BUSINESS PAIEMENT DIFFER | I119: 92030352 | J119: DERIN ALI RIZA | K119: 0 | L119: 1
A120: 25 | B120: STRASBOURG ESPLANADE | C120: DCP | D120: TOUS | F120: 2018-10-05 | G120: TPE | H120: Addendum sans contact | I120: 93904866 | J120: STEF AUTO | K120: 1
A121: 25 | B121: STRASBOURG ESPLANADE | C121: DCP | D121: TOUS | F121: 2018-10-05 | G121: TPE | H121: Paiement de proximité | I121: 93904866 | J121: STEF AUTO | K121: 1
A122: 25 | B122: STRASBOURG ESPLANADE | C122: Michel LIENHARDT | D122: Jeremy WEIBLE | E122: DAVID Didier | F122: 2018-11-09 | G122: CB | H122: BUSINESS PAIEMENT DIFFER | I122: 92030352 | J122: DERIN ALI RIZA | K122: 0 | L122: 1
A123: 25 | B123: STRASBOURG ESPLANADE | C123: Michel LIENHARDT | D123: Jeremy WEIBLE | F123: 2018-10-05 | G123: TPE | H123: Addendum sans contact | I123: 93904866 | J123: STEF AUTO | K123: 1
A124: 25 | B124: STRASBOURG ESPLANADE | C124: Michel LIENHARDT | D124: Jeremy WEIBLE | F124: 2018-10-05 | G124: TPE | H124: Paiement de proximité | I124: 93904866 | J124: STEF AUTO | K124: 1
A125: 27 | B125: SCHILTIGHEIM CENTRE | C125: DCP | D125: TOUS | E125: PAGNIER STEPHANE | F125: 2018-11-02 | G125: Forfaits Pros | H125: LIBRE CONVERGENCE | I125: 93762062 | J125: CHEZ MON JULES | K125: 0 | L125: 1
A126: 27 | B126: SCHILTIGHEIM CENTRE | C126: DCP | D126: TOUS | E126: RAVANEL DAMIEN | F126: 2018-11-09 | G126: CB | H126: BUSINESS P+R IMMEDIAT | I126: 82879987 | J126: POWERENNYJ ROMAN | K126: 0 | L126: 1
A127: 27 | B127: SCHILTIGHEIM CENTRE | C127: DCP | D127: TOUS | E127: RAVANEL DAMIEN | F127: 2018-11-09 | G127: Forfaits Pros | H127: FORFAIT AUTO-ENTREPRENEUR | I127: 82879987 | J127: POWERENNYJ ROMAN | K127: 0 | L127: 1
A128: 27 | B128: SCHILTIGHEIM CENTRE | C128: DCP | D128: TOUS | F128: 2018-10-30 | G128: TPE | H128: Addendum sans contact | I128: 94146200 | J128: 2JZ | K128: 1
A129: 27 | B129: SCHILTIGHEIM CENTRE | C129: DCP | D129: TOUS | F129: 2018-10-30 | G129: TPE | H129: Paiement de proximité | I129: 94146200 | J129: 2JZ | K129: 1
A130: 27 | B130: SCHILTIGHEIM CENTRE | C130: Michel LIENHARDT | D130: Stéphane PAGNIER | E130: PAGNIER STEPHANE | F130: 2018-11-02 | G130: Forfaits Pros | H130: LIBRE CONVERGENCE | I130: 93762062 | J130: CHEZ MON JULES | K130: 0 | L130: 1
A131: 27 | B131: SCHILTIGHEIM CENTRE | C131: Michel LIENHARDT | D131: Stéphane PAGNIER | E131: RAVANEL DAMIEN | F131: 2018-11-09 | G131: CB | H131: BUSINESS P+R IMMEDIAT | I131: 82879987 | J131: POWERENNYJ ROMAN | K131: 0 | L131: 1
A132: 27 | B132: SCHILTIGHEIM CENTRE | C132: Michel LIENHARDT | D132: Stéphane PAGNIER | E132: RAVANEL DAMIEN | F132: 2018-11-09 | G132: Forfaits Pros | H132: FORFAIT AUTO-ENTREPRENEUR | I132: 82879987 | J132: POWERENNYJ ROMAN | K132: 0 | L132: 1
A133: 27 | B133: SCHILTIGHEIM CENTRE | C133: Michel LIENHARDT | D133: Stéphane PAGNIER | F133: 2018-10-30 | G133: TPE | H133: Addendum sans contact | I133: 94146200 | J133: 2JZ | K133: 1
A134: 27 | B134: SCHILTIGHEIM CENTRE | C134: Michel LIENHARDT | D134: Stéphane PAGNIER | F134: 2018-10-30 | G134: TPE | H134: Paiement de proximité | I134: 94146200 | J134: 2JZ | K134: 1
A135: 28 | B135: BISCHHEIM | C135: DCP | D135: TOUS | E135: PAGNIER STEPHANE | F135: 2018-11-09 | G135: Bouquet Liberté | H135: BOUQUET LIBERTE | I135: 93349818 | J135: M FERID FAKOVIC | K135: 1 | L135: 0
A136: 28 | B136: BISCHHEIM | C136: Michel LIENHARDT | D136: Stéphane PAGNIER | E136: PAGNIER STEPHANE | F136: 2018-11-09 | G136: Bouquet Liberté | H136: BOUQUET LIBERTE | I136: 93349818 | J136: M FERID FAKOVIC | K136: 1 | L136: 0
A137: 29 | B137: SCHILTIGHEIM KLEBER | C137: DCP | D137: TOUS | E137: FOURNIER JULIEN | F137: 2018-11-02 | G137: Forfaits Pros | H137: FORFAIT AUTO-ENTREPRENEUR | I137: 82878273 | J137: ANDRES GILLES | K137: 0 | L137: 1
A138: 29 | B138: SCHILTIGHEIM KLEBER | C138: Michel LIENHARDT | D138: Stéphane PAGNIER | E138: FOURNIER JULIEN | F138: 2018-11-02 | G138: Forfaits Pros | H138: FORFAIT AUTO-ENTREPRENEUR | I138: 82878273 | J138: ANDRES GILLES | K138: 0 | L138: 1
A139: 30 | B139: BRUMATH | C139: DCP | D139: TOUS | F139: 2018-10-03 | G139: TPE | H139: Addendum sans contact | I139: 94118682 | J139: COIFFURE ANNE | K139: 1
A140: 30 | B140: BRUMATH | C140: DCP | D140: TOUS | F140: 2018-10-03 | G140: TPE | H140: Paiement de proximité | I140: 94118682 | J140: COIFFURE ANNE | K140: 1
A141: 30 | B141: BRUMATH | C141: Michel LIENHARDT | D141: Jonathan KOCH | F141: 2018-10-03 | G141: TPE | H141: Addendum sans contact | I141: 94118682 | J141: COIFFURE ANNE | K141: 1
A142: 30 | B142: BRUMATH | C142: Michel LIENHARDT | D142: Jonathan KOCH | F142: 2018-10-03 | G142: TPE | H142: Paiement de proximité | I142: 94118682 | J142: COIFFURE ANNE | K142: 1
A143: 37 | B143: MUNDOLSHEIM | C143: DCP | D143: TOUS | E143: PERROT Barbara | F143: 2018-11-09 | G143: Bouquet Liberté | H143: BOUQUET LIBERTE | I143: 83422707 | J143: MLLE CHRISTINE SINNIG | K143: 0 | L143: 1
A144: 37 | B144: MUNDOLSHEIM | C144: DCP | D144: TOUS | F144: 2018-10-22 | G144: TPE | H144: Paiement DILIZI | I144: 92878562 | J144: GOURINY FOUAD | K144: 1
A145: 37 | B145: MUNDOLSHEIM | C145: Michel LIENHARDT | D145: Jonathan KOCH | E145: PERROT Barbara | F145: 2018-11-09 | G145: Bouquet Liberté | H145: BOUQUET LIBERTE | I145: 83422707 | J145: MLLE CHRISTINE SINNIG | K145: 0 | L145: 1
A146: 37 | B146: MUNDOLSHEIM | C146: Michel LIENHARDT | D146: Jonathan KOCH | F146: 2018-10-22 | G146: TPE | H146: Paiement DILIZI | I146: 92878562 | J146: GOURINY FOUAD | K146: 1
A147: 38 | B147: OBERHAUSBERGEN | C147: DCP | D147: TOUS | E147: KOEHLER CEDRIC | F147: 2018-11-06 | G147: Forfaits Pros | H147: LIBRE CONVERGENCE | I147: 82398177 | J147: BOULANGERIE PATISSERIE ANDRE DIETZ | K147: 0 | L147: 1
A148: 38 | B148: OBERHAUSBERGEN | C148: DCP | D148: TOUS | E148: STARCK Gaetan | F148: 2018-11-06 | G148: Forfaits Pros | H148: LIBRE CONVERGENCE | I148: 92207502 | J148: SLS MOVE RELOCATION | K148: 0 | L148: 1
A149: 38 | B149: OBERHAUSBERGEN | C149: Michel LIENHARDT | D149: Cedric KOEHLER | E149: KOEHLER CEDRIC | F149: 2018-11-06 | G149: Forfaits Pros | H149: LIBRE CONVERGENCE | I149: 82398177 | J149: BOULANGERIE PATISSERIE ANDRE DIETZ | K149: 0 | L149: 1
A150: 38 | B150: OBERHAUSBERGEN | C150: Michel LIENHARDT | D150: Cedric KOEHLER | E150: STARCK Gaetan | F150: 2018-11-06 | G150: Forfaits Pros | H150: LIBRE CONVERGENCE | I150: 92207502 | J150: SLS MOVE RELOCATION | K150: 0 | L150: 1
A151: 40 | B151: ECKBOLSHEIM | C151: DCP | D151: TOUS | E151: BOUCHAIB ELODIE | F151: 2018-11-09 | G151: Bouquet Liberté | H151: BOUQUET LIBERTE | I151: 83371001 | J151: MME MURIELLE LUTZ | K151: 0 | L151: 1
A152: 40 | B152: ECKBOLSHEIM | C152: Michel LIENHARDT | D152: Aissa ZOUARI | E152: BOUCHAIB ELODIE | F152: 2018-11-09 | G152: Bouquet Liberté | H152: BOUQUET LIBERTE | I152: 83371001 | J152: MME MURIELLE LUTZ | K152: 0 | L152: 1
A153: 43 | B153: STRASBOURG HALLES | C153: DCP | D153: TOUS | E153: MAFRA CONDE SUATI | F153: 2018-11-10 | G153: CB | H153: BUSINESS P+R IMMEDIAT | I153: 83225839 | J153: MLLE ELSA PAYET | K153: 0 | L153: 1
A154: 43 | B154: STRASBOURG HALLES | C154: DCP | D154: TOUS | E154: SCHULTIS Laurent | F154: 2018-11-10 | G154: CB | H154: BUSINESS P+R IMMEDIAT | I154: 91594617 | J154: M ABDELGHANI ZIDANE | K154: 0 | L154: 1
A155: 43 | B155: STRASBOURG HALLES | C155: Michel LIENHARDT | D155: Laurent SCHULTIS | E155: MAFRA CONDE SUATI | F155: 2018-11-10 | G155: CB | H155: BUSINESS P+R IMMEDIAT | I155: 83225839 | J155: MLLE ELSA PAYET | K155: 0 | L155: 1
A156: 43 | B156: STRASBOURG HALLES | C156: Michel LIENHARDT | D156: Laurent SCHULTIS | E156: SCHULTIS Laurent | F156: 2018-11-10 | G156: CB | H156: BUSINESS P+R IMMEDIAT | I156: 91594617 | J156: M ABDELGHANI ZIDANE | K156: 0 | L156: 1
A157: 47 | B157: STRASBOURG CRONENBOURG | C157: DCP | D157: TOUS | E157: KOEHLER CEDRIC | F157: 2018-11-08 | G157: Forfaits Pros | H157: LIBRE CONVERGENCE | I157: 93108215 | J157: POWERSHOT ALSACE NORD | K157: 0 | L157: 2
A158: 47 | B158: STRASBOURG CRONENBOURG | C158: DCP | D158: TOUS | F158: 2018-10-10 | G158: TPE | H158: Paiement de proximité | I158: 82650868 | J158: SBAFFI ADRIANA | K158: 1
A159: 47 | B159: STRASBOURG CRONENBOURG | C159: DCP | D159: TOUS | F159: 2018-10-24 | G159: TPE | H159: Addendum sans contact | I159: 94116661 | J159: MOTS DE PASSAGE | K159: 1
A160: 47 | B160: STRASBOURG CRONENBOURG | C160: DCP | D160: TOUS | F160: 2018-10-24 | G160: TPE | H160: Paiement de proximité | I160: 94116661 | J160: MOTS DE PASSAGE | K160: 1
A161: 47 | B161: STRASBOURG CRONENBOURG | C161: Michel LIENHARDT | D161: Aissa ZOUARI | E161: KOEHLER CEDRIC | F161: 2018-11-08 | G161: Forfaits Pros | H161: LIBRE CONVERGENCE | I161: 93108215 | J161: POWERSHOT ALSACE NORD | K161: 0 | L161: 2
A162: 47 | B162: STRASBOURG CRONENBOURG | C162: Michel LIENHARDT | D162: Aissa ZOUARI | F162: 2018-10-10 | G162: TPE | H162: Paiement de proximité | I162: 82650868 | J162: SBAFFI ADRIANA | K162: 1
A163: 47 | B163: STRASBOURG CRONENBOURG | C163: Michel LIENHARDT | D163: Aissa ZOUARI | F163: 2018-10-24 | G163: TPE | H163: Addendum sans contact | I163: 94116661 | J163: MOTS DE PASSAGE | K163: 1
A164: 47 | B164: STRASBOURG CRONENBOURG | C164: Michel LIENHARDT | D164: Aissa ZOUARI | F164: 2018-10-24 | G164: TPE | H164: Paiement de proximité | I164: 94116661 | J164: MOTS DE PASSAGE | K164: 1
A165: 50 | B165: STRASBOURG GARE | C165: DCP | D165: TOUS | E165: SCHULTIS Laurent | F165: 2018-11-06 | G165: CB | H165: BUSINESS P+R IMMEDIAT | I165: 83223761 | J165: M TAN DOAN | K165: 0 | L165: 1
A166: 50 | B166: STRASBOURG GARE | C166: Michel LIENHARDT | D166: Laurent SCHULTIS | E166: SCHULTIS Laurent | F166: 2018-11-06 | G166: CB | H166: BUSINESS P+R IMMEDIAT | I166: 83223761 | J166: M TAN DOAN | K166: 0 | L166: 1
A167: 57 | B167: BISCHWILLER | C167: DCP | D167: TOUS | E167: LAVERGNE NADINE | F167: 2018-11-08 | G167: Bouquet Liberté | H167: BOUQUET LIBERTE | I167: 82716887 | J167: WIRTH DARDARI EVELYNE | K167: 1 | L167: 0
A168: 57 | B168: BISCHWILLER | C168: DCP | D168: TOUS | F168: 2018-10-10 | G168: TPE | H168: Addendum sans contact | I168: 82722246 | J168: ROOS THIERRY | K168: 1
A169: 57 | B169: BISCHWILLER | C169: Michel LIENHARDT | D169: Christelle ARCIN | E169: LAVERGNE NADINE | F169: 2018-11-08 | G169: Bouquet Liberté | H169: BOUQUET LIBERTE | I169: 82716887 | J169: WIRTH DARDARI EVELYNE | K169: 1 | L169: 0
A170: 57 | B170: BISCHWILLER | C170: Michel LIENHARDT | D170: Christelle ARCIN | F170: 2018-10-10 | G170: TPE | H170: Addendum sans contact | I170: 82722246 | J170: ROOS THIERRY | K170: 1
A171: 60 | B171: HAGUENAU HOUBLON | C171: DCP | D171: TOUS | E171: BOEYKENS AUDREY | F171: 2018-11-07 | G171: CB | H171: BUSINESS P+R DIFFERE | I171: 93964790 | J171: MME CARINE VOLTZENLOGEL | K171: 2 | L171: 0
A172: 60 | B172: HAGUENAU HOUBLON | C172: DCP | D172: TOUS | E172: BOEYKENS AUDREY | F172: 2018-11-07 | G172: Forfaits Pros | H172: LIBRE CONVERGENCE | I172: 94154528 | J172: AU PEIGNE D'ARGENT | K172: 1 | L172: 0
A173: 60 | B173: HAGUENAU HOUBLON | C173: DCP | D173: TOUS | E173: BOEYKENS AUDREY | F173: 2018-11-07 | G173: Forfaits Pros | H173: LIBRE CONVERGENCE | I173: 94154613 | J173: HARMONIE L'INSTITUT | K173: 1 | L173: 0
A174: 60 | B174: HAGUENAU HOUBLON | C174: DCP | D174: TOUS | E174: MOREAU FANNY | F174: 2018-11-02 | G174: CB | H174: BUSINESS P+R DIFFERE | I174: 93537024 | J174: M ZAFER UYGUN | K174: 1 | L174: 0
A175: 60 | B175: HAGUENAU HOUBLON | C175: DCP | D175: TOUS | E175: MOREAU FANNY | F175: 2018-11-06 | G175: Forfaits Pros | H175: LIBRE CONVERGENCE | I175: 82399202 | J175: RESTAURANT AU SAPIN | K175: 0 | L175: 1
A176: 60 | B176: HAGUENAU HOUBLON | C176: DCP | D176: TOUS | F176: 2018-10-25 | G176: TPE | H176: Addendum sans contact | I176: 93954385 | J176: DABOU HAGUENAU | K176: 2
A177: 60 | B177: HAGUENAU HOUBLON | C177: DCP | D177: TOUS | F177: 2018-10-25 | G177: TPE | H177: Paiement de proximité | I177: 93954385 | J177: DABOU HAGUENAU | K177: 2
A178: 60 | B178: HAGUENAU HOUBLON | C178: Michel LIENHARDT | D178: Fanny MOREAU | E178: BOEYKENS AUDREY | F178: 2018-11-07 | G178: CB | H178: BUSINESS P+R DIFFERE | I178: 93964790 | J178: MME CARINE VOLTZENLOGEL | K178: 2 | L178: 0
A179: 60 | B179: HAGUENAU HOUBLON | C179: Michel LIENHARDT | D179: Fanny MOREAU | E179: BOEYKENS AUDREY | F179: 2018-11-07 | G179: Forfaits Pros | H179: LIBRE CONVERGENCE | I179: 94154528 | J179: AU PEIGNE D'ARGENT | K179: 1 | L179: 0
A180: 60 | B180: HAGUENAU HOUBLON | C180: Michel LIENHARDT | D180: Fanny MOREAU | E180: BOEYKENS AUDREY | F180: 2018-11-07 | G180: Forfaits Pros | H180: LIBRE CONVERGENCE | I180: 94154613 | J180: HARMONIE L'INSTITUT | K180: 1 | L180: 0
A181: 60 | B181: HAGUENAU HOUBLON | C181: Michel LIENHARDT | D181: Fanny MOREAU | E181: MOREAU FANNY | F181: 2018-11-02 | G181: CB | H181: BUSINESS P+R DIFFERE | I181: 93537024 | J181: M ZAFER UYGUN | K181: 1 | L181: 0
A182: 60 | B182: HAGUENAU HOUBLON | C182: Michel LIENHARDT | D182: Fanny MOREAU | E182: MOREAU FANNY | F182: 2018-11-06 | G182: Forfaits Pros | H182: LIBRE CONVERGENCE | I182: 82399202 | J182: RESTAURANT AU SAPIN | K182: 0 | L182: 1
A183: 60 | B183: HAGUENAU HOUBLON | C183: Michel LIENHARDT | D183: Fanny MOREAU | F183: 2018-10-25 | G183: TPE | H183: Addendum sans contact | I183: 93954385 | J183: DABOU HAGUENAU | K183: 2
A184: 60 | B184: HAGUENAU HOUBLON | C184: Michel LIENHARDT | D184: Fanny MOREAU | F184: 2018-10-25 | G184: TPE | H184: Paiement de proximité | I184: 93954385 | J184: DABOU HAGUENAU | K184: 2
A185: 67 | B185: PFAFFENHOFFEN | C185: DCP | D185: TOUS | E185: WERNERT HERVE | F185: 2018-11-02 | G185: Forfaits Pros | H185: FORFAIT AUTO-ENTREPRENEUR | I185: 83266769 | J185: M BULENT OZGUN | K185: 1 | L185: 0
A186: 67 | B186: PFAFFENHOFFEN | C186: Michel LIENHARDT | D186: Cindy KIRCHER | E186: WERNERT HERVE | F186: 2018-11-02 | G186: Forfaits Pros | H186: FORFAIT AUTO-ENTREPRENEUR | I186: 83266769 | J186: M BULENT OZGUN | K186: 1 | L186: 0
A187: 71 | B187: WISSEMBOURG | C187: DCP | D187: TOUS | E187: WALTHER MANUEL | F187: 2018-11-06 | G187: CB | H187: BUSINESS P+R IMMEDIAT | I187: 83148143 | J187: M HENRI CUVILLIER | K187: 0 | L187: 1
A188: 71 | B188: WISSEMBOURG | C188: Michel LIENHARDT | D188: Sarah CHRISTMANN | E188: WALTHER MANUEL | F188: 2018-11-06 | G188: CB | H188: BUSINESS P+R IMMEDIAT | I188: 83148143 | J188: M HENRI CUVILLIER | K188: 0 | L188: 1
A189: 73 | B189: SCHWEIGHOUSE SUR MODER | C189: DCP | D189: TOUS | F189: 2018-10-22 | G189: TPE | H189: Paiement à distance | I189: 82754744 | J189: SCHAEFFER OLIVIER LOUIS | K189: 1
A190: 73 | B190: SCHWEIGHOUSE SUR MODER | C190: Michel LIENHARDT | D190: Fanny MOREAU | F190: 2018-10-22 | G190: TPE | H190: Paiement à distance | I190: 82754744 | J190: SCHAEFFER OLIVIER LOUIS | K190: 1
A191: 74 | B191: SOUFFLENHEIM | C191: DCP | D191: TOUS | F191: 2018-10-05 | G191: TPE | H191: Addendum sans contact | I191: 91268220 | J191: COUP D'CISEAUX | K191: 1
A192: 74 | B192: SOUFFLENHEIM | C192: Michel LIENHARDT | D192: Christelle ARCIN | F192: 2018-10-05 | G192: TPE | H192: Addendum sans contact | I192: 91268220 | J192: COUP D'CISEAUX | K192: 1
A193: 76 | B193: BETSCHDORF | C193: DCP | D193: TOUS | F193: 2018-10-24 | G193: TPE | H193: Addendum sans contact | I193: 82397835 | J193: BBP SARL | K193: 1
A194: 76 | B194: BETSCHDORF | C194: Michel LIENHARDT | D194: Sarah CHRISTMANN | F194: 2018-10-24 | G194: TPE | H194: Addendum sans contact | I194: 82397835 | J194: BBP SARL | K194: 1
A195: 79 | B195: SOULTZ SOUS FORETS | C195: DCP | D195: TOUS | E195: ERTZINGER LEA | F195: 2018-11-03 | G195: CB | H195: BUSINESS P+R IMMEDIAT | I195: 91851412 | J195: MLLE MARIE CHRISTINE HOFFMANN | K195: 1 | L195: 0
A196: 79 | B196: SOULTZ SOUS FORETS | C196: DCP | D196: TOUS | E196: ERTZINGER LEA | F196: 2018-11-03 | G196: Forfaits Pros | H196: FORFAIT LABELIS SANTE | I196: 91851412 | J196: MLLE MARIE CHRISTINE HOFFMANN | K196: 1 | L196: 0
A197: 79 | B197: SOULTZ SOUS FORETS | C197: Michel LIENHARDT | D197: Sarah CHRISTMANN | E197: ERTZINGER LEA | F197: 2018-11-03 | G197: CB | H197: BUSINESS P+R IMMEDIAT | I197: 91851412 | J197: MLLE MARIE CHRISTINE HOFFMANN | K197: 1 | L197: 0
A198: 79 | B198: SOULTZ SOUS FORETS | C198: Michel LIENHARDT | D198: Sarah CHRISTMANN | E198: ERTZINGER LEA | F198: 2018-11-03 | G198: Forfaits Pros | H198: FORFAIT LABELIS SANTE | I198: 91851412 | J198: MLLE MARIE CHRISTINE HOFFMANN | K198: 1 | L198: 0
A199: 82 | B199: BOUXWILLER | C199: DCP | D199: TOUS | F199: 2018-10-22 | G199: TPE | H199: Addendum sans contact | I199: 93967409 | J199: RV AUTOS | K199: 1
A200: 82 | B200: BOUXWILLER | C200: DCP | D200: TOUS | F200: 2018-10-22 | G200: TPE | H200: Paiement de proximité | I200: 93967409 | J200: RV AUTOS | K200: 1
A201: 82 | B201: BOUXWILLER | C201: Michel LIENHARDT | D201: Cindy KIRCHER | F201: 2018-10-22 | G201: TPE | H201: Addendum sans contact | I201: 93967409 | J201: RV AUTOS | K201: 1
A202: 82 | B202: BOUXWILLER | C202: Michel LIENHARDT | D202: Cindy KIRCHER | F202: 2018-10-22 | G202: TPE | H202: Paiement de proximité | I202: 93967409 | J202: RV AUTOS | K202: 1
A203: 85 | B203: INGWILLER | C203: DCP | D203: TOUS | E203: BAUER Eric | F203: 2018-11-03 | G203: Forfaits Pros | H203: FORFAIT LABELIS SANTE | I203: 92468857 | J203: PAULIN YANN ERIC | K203: 0 | L203: 1
A204: 85 | B204: INGWILLER | C204: DCP | D204: TOUS | E204: BAUER Eric | F204: 2018-11-03 | G204: Forfaits Pros | H204: FORFAIT LABELIS SANTE | I204: 92475364 | J204: HUSSER SOPHIE | K204: 0 | L204: 1
A205: 85 | B205: INGWILLER | C205: DCP | D205: TOUS | F205: 2018-10-16 | G205: TPE | H205: Addendum sans contact | I205: 94139699 | J205: LSDL | K205: 1
... 2013 more rows

Sheet EPARGNE
A1: NO ENTITE | B1: ENTITE | C1: DCP | D1: CCPRO | E1: FAMILLE | F1: FLUX CREDITEURS | G1: EXCEDENT | H1: CRED_M | I1: EXC_M | J1: CRED_S_1 | K1: EXC_S_1
A2: 6 | B2: STRASBOURG NEUDORF | C2: DCP | D2: TOUS | E2: Assurance-Vie | F2: 49386.83 | G2: -45499.27 | H2: 138.01 | I2: -861.49 | J2: 138.01 | K2: -861.49
A3: 6 | B3: STRASBOURG NEUDORF | C3: DCP | D3: TOUS | E3: CA UC | F3: 14700.06 | G3: 0
A4: 6 | B4: STRASBOURG NEUDORF | C4: DCP | D4: TOUS | E4: CEP | F4: 1058955.81 | G4: -44563.22 | H4: 75496.46 | I4: 35825.26 | J4: 10483.96 | K4: 3481.76
A5: 6 | B5: STRASBOURG NEUDORF | C5: DCP | D5: TOUS | E5: Excédent total | F5: 2191380.65 | G5: -24628.06 | H5: 97116.93 | I5: -15342.42 | J5: 26083.51 | K5: -44431.6
A6: 6 | B6: STRASBOURG NEUDORF | C6: DCP | D6: TOUS | E6: PARTS SOCIALES | F6: 71260 | G6: 8780
A7: 6 | B7: STRASBOURG NEUDORF | C7: Michel LIENHARDT | D7: Jeremy WEIBLE | E7: Assurance-Vie | F7: 49386.83 | G7: -45499.27 | H7: 138.01 | I7: -861.49 | J7: 138.01 | K7: -861.49
A8: 6 | B8: STRASBOURG NEUDORF | C8: Michel LIENHARDT | D8: Jeremy WEIBLE | E8: CA UC | F8: 14700.06 | G8: 0
A9: 6 | B9: STRASBOURG NEUDORF | C9: Michel LIENHARDT | D9: Jeremy WEIBLE | E9: CEP | F9: 1058955.81 | G9: -44563.22 | H9: 75496.46 | I9: 35825.26 | J9: 10483.96 | K9: 3481.76
A10: 6 | B10: STRASBOURG NEUDORF | C10: Michel LIENHARDT | D10: Jeremy WEIBLE | E10: Excédent total | F10: 2191380.65 | G10: -24628.06 | H10: 97116.93 | I10: -15342.42 | J10: 26083.51 | K10: -44431.6
A11: 6 | B11: STRASBOURG NEUDORF | C11: Michel LIENHARDT | D11: Jeremy WEIBLE | E11: PARTS SOCIALES | F11: 71260 | G11: 8780
A12: 7 | B12: ILLKIRCH CENTRE | C12: DCP | D12: TOUS | E12: Assurance-Vie | F12: 38690.6 | G12: -176460.95 | H12: 120 | I12: 120 | J12: 120 | K12: 120
A13: 7 | B13: ILLKIRCH CENTRE | C13: DCP | D13: TOUS | E13: CA UC | F13: 63925 | G13: 0
A14: 7 | B14: ILLKIRCH CENTRE | C14: DCP | D14: TOUS | E14: CEP | F14: 1005621.63 | G14: 192495.91 | H14: 39825 | I14: 25878.19 | J14: 6300 | K14: -7646.81
A15: 7 | B15: ILLKIRCH CENTRE | C15: DCP | D15: TOUS | E15: Excédent total | F15: 2172873.63 | G15: -116085.24 | H15: 64475.86 | I15: 2414.21 | J15: 14304.21 | K15: -12088.39
A16: 7 | B16: ILLKIRCH CENTRE | C16: DCP | D16: TOUS | E16: PARTS SOCIALES | F16: 7600 | G16: 2480
A17: 7 | B17: ILLKIRCH CENTRE | C17: Michel LIENHARDT | D17: Catia MARCALO | E17: Assurance-Vie | F17: 38690.6 | G17: -176460.95 | H17: 120 | I17: 120 | J17: 120 | K17: 120
A18: 7 | B18: ILLKIRCH CENTRE | C18: Michel LIENHARDT | D18: Catia MARCALO | E18: CA UC | F18: 63925 | G18: 0
A19: 7 | B19: ILLKIRCH CENTRE | C19: Michel LIENHARDT | D19: Catia MARCALO | E19: CEP | F19: 1005621.63 | G19: 192495.91 | H19: 39825 | I19: 25878.19 | J19: 6300 | K19: -7646.81
A20: 7 | B20: ILLKIRCH CENTRE | C20: Michel LIENHARDT | D20: Catia MARCALO | E20: Excédent total | F20: 2172873.63 | G20: -116085.24 | H20: 64475.86 | I20: 2414.21 | J20: 14304.21 | K20: -12088.39
A21: 7 | B21: ILLKIRCH CENTRE | C21: Michel LIENHARDT | D21: Catia MARCALO | E21: PARTS SOCIALES | F21: 7600 | G21: 2480
A22: 8 | B22: FEGERSHEIM | C22: DCP | D22: TOUS | E22: Assurance-Vie | F22: 49374.5 | G22: -359423.57
A23: 8 | B23: FEGERSHEIM | C23: DCP | D23: TOUS | E23: CA UC | F23: 27194.5 | G23: 0
A24: 8 | B24: FEGERSHEIM | C24: DCP | D24: TOUS | E24: CEP | F24: 747251.62 | G24: 77220.7 | H24: 27400 | I24: 7220 | J24: 19600 | K24: 2700
A25: 8 | B25: FEGERSHEIM | C25: DCP | D25: TOUS | E25: Excédent total | F25: 1504085.97 | G25: -285096.38 | H25: 31889 | I25: -2769 | J25: 22153 | K25: 13
A26: 8 | B26: FEGERSHEIM | C26: DCP | D26: TOUS | E26: PARTS SOCIALES | F26: 124480 | G26: 103000
A27: 8 | B27: FEGERSHEIM | C27: Michel LIENHARDT | D27: Catia MARCALO | E27: Assurance-Vie | F27: 49374.5 | G27: -359423.57
A28: 8 | B28: FEGERSHEIM | C28: Michel LIENHARDT | D28: Catia MARCALO | E28: CA UC | F28: 27194.5 | G28: 0
A29: 8 | B29: FEGERSHEIM | C29: Michel LIENHARDT | D29: Catia MARCALO | E29: CEP | F29: 747251.62 | G29: 77220.7 | H29: 27400 | I29: 7220 | J29: 19600 | K29: 2700
A30: 8 | B30: FEGERSHEIM | C30: Michel LIENHARDT | D30: Catia MARCALO | E30: Excédent total | F30: 1504085.97 | G30: -285096.38 | H30: 31889 | I30: -2769 | J30: 22153 | K30: 13
A31: 8 | B31: FEGERSHEIM | C31: Michel LIENHARDT | D31: Catia MARCALO | E31: PARTS SOCIALES | F31: 124480 | G31: 103000
A32: 10 | B32: STRASBOURG MEINAU | C32: DCP | D32: TOUS | E32: Assurance-Vie | F32: 990 | G32: -19834.14 | H32: 30 | I32: 30 | J32: 30 | K32: 30
A33: 10 | B33: STRASBOURG MEINAU | C33: DCP | D33: TOUS | E33: CA UC | F33: 30 | G33: 0
A34: 10 | B34: STRASBOURG MEINAU | C34: DCP | D34: TOUS | E34: CEP | F34: 156770.31 | G34: 31725.74 | H34: 4900 | I34: 1800 | J34: 1000 | K34: -500
A35: 10 | B35: STRASBOURG MEINAU | C35: DCP | D35: TOUS | E35: Excédent total | F35: 409783.18 | G35: 39031.14 | H35: 6638 | I35: -22812 | J35: 2728 | K35: -4522
A36: 10 | B36: STRASBOURG MEINAU | C36: DCP | D36: TOUS | E36: PARTS SOCIALES | F36: 3620 | G36: -1480
A37: 10 | B37: STRASBOURG MEINAU | C37: Michel LIENHARDT | D37: Jeremy WEIBLE | E37: Assurance-Vie | F37: 990 | G37: -19834.14 | H37: 30 | I37: 30 | J37: 30 | K37: 30
A38: 10 | B38: STRASBOURG MEINAU | C38: Michel LIENHARDT | D38: Jeremy WEIBLE | E38: CA UC | F38: 30 | G38: 0
A39: 10 | B39: STRASBOURG MEINAU | C39: Michel LIENHARDT | D39: Jeremy WEIBLE | E39: CEP | F39: 156770.31 | G39: 31725.74 | H39: 4900 | I39: 1800 | J39: 1000 | K39: -500
A40: 10 | B40: STRASBOURG MEINAU | C40: Michel LIENHARDT | D40: Jeremy WEIBLE | E40: Excédent total | F40: 409783.18 | G40: 39031.14 | H40: 6638 | I40: -22812 | J40: 2728 | K40: -4522
A41: 10 | B41: STRASBOURG MEINAU | C41: Michel LIENHARDT | D41: Jeremy WEIBLE | E41: PARTS SOCIALES | F41: 3620 | G41: -1480
A42: 12 | B42: STRASBOURG STOCKFELD | C42: DCP | D42: TOUS | E42: Assurance-Vie | F42: 1390 | G42: -8283.81
A43: 12 | B43: STRASBOURG STOCKFELD | C43: DCP | D43: TOUS | E43: CA UC | F43: 527 | G43: 0
A44: 12 | B44: STRASBOURG STOCKFELD | C44: DCP | D44: TOUS | E44: CEP | F44: 59705.33 | G44: -8241.67 | H44: 200 | I44: -9800 | J44: 200 | K44: 200
A45: 12 | B45: STRASBOURG STOCKFELD | C45: DCP | D45: TOUS | E45: Excédent total | F45: 261714.26 | G45: 46013.33 | H45: 5845 | I45: -5761.9 | J45: 4175 | K45: 2868.1
A46: 12 | B46: STRASBOURG STOCKFELD | C46: DCP | D46: TOUS | E46: PARTS SOCIALES | F46: 0 | G46: -800
A47: 12 | B47: STRASBOURG STOCKFELD | C47: Michel LIENHARDT | D47: Jeremy WEIBLE | E47: Assurance-Vie | F47: 1390 | G47: -8283.81
A48: 12 | B48: STRASBOURG STOCKFELD | C48: Michel LIENHARDT | D48: Jeremy WEIBLE | E48: CA UC | F48: 527 | G48: 0
A49: 12 | B49: STRASBOURG STOCKFELD | C49: Michel LIENHARDT | D49: Jeremy WEIBLE | E49: CEP | F49: 59705.33 | G49: -8241.67 | H49: 200 | I49: -9800 | J49: 200 | K49: 200
A50: 12 | B50: STRASBOURG STOCKFELD | C50: Michel LIENHARDT | D50: Jeremy WEIBLE | E50: Excédent total | F50: 261714.26 | G50: 46013.33 | H50: 5845 | I50: -5761.9 | J50: 4175 | K50: 2868.1
A51: 12 | B51: STRASBOURG STOCKFELD | C51: Michel LIENHARDT | D51: Jeremy WEIBLE | E51: PARTS SOCIALES | F51: 0 | G51: -800
A52: 13 | B52: ILLKIRCH NORD | C52: DCP | D52: TOUS | E52: Assurance-Vie | F52: 1785.9 | G52: 1785.9
A53: 13 | B53: ILLKIRCH NORD | C53: DCP | D53: TOUS | E53: CA UC | F53: 298.94 | G53: 0
A54: 13 | B54: ILLKIRCH NORD | C54: DCP | D54: TOUS | E54: CEP | F54: 79406.6 | G54: 5004.44 | H54: 5000 | I54: 5000
A55: 13 | B55: ILLKIRCH NORD | C55: DCP | D55: TOUS | E55: Excédent total | F55: 929734.26 | G55: 196734.44 | H55: 10804 | I55: -8800 | J55: 4804 | K55: -12750
A56: 13 | B56: ILLKIRCH NORD | C56: DCP | D56: TOUS | E56: PARTS SOCIALES | F56: 26160 | G56: 26140 | H56: 20 | I56: 20 | J56: 20 | K56: 20
A57: 13 | B57: ILLKIRCH NORD | C57: Michel LIENHARDT | D57: Catia MARCALO | E57: Assurance-Vie | F57: 1785.9 | G57: 1785.9
A58: 13 | B58: ILLKIRCH NORD | C58: Michel LIENHARDT | D58: Catia MARCALO | E58: CA UC | F58: 298.94 | G58: 0
A59: 13 | B59: ILLKIRCH NORD | C59: Michel LIENHARDT | D59: Catia MARCALO | E59: CEP | F59: 79406.6 | G59: 5004.44 | H59: 5000 | I59: 5000
A60: 13 | B60: ILLKIRCH NORD | C60: Michel LIENHARDT | D60: Catia MARCALO | E60: Excédent total | F60: 929734.26 | G60: 196734.44 | H60: 10804 | I60: -8800 | J60: 4804 | K60: -12750
A61: 13 | B61: ILLKIRCH NORD | C61: Michel LIENHARDT | D61: Catia MARCALO | E61: PARTS SOCIALES | F61: 26160 | G61: 26140 | H61: 20 | I61: 20 | J61: 20 | K61: 20
A62: 14 | B62: OSTWALD | C62: DCP | D62: TOUS | E62: Assurance-Vie | F62: 1658 | G62: -9578.13 | H62: -50 | I62: -50 | J62: -50 | K62: -50
A63: 14 | B63: OSTWALD | C63: DCP | D63: TOUS | E63: CA UC | F63: 91.2 | G63: 0
A64: 14 | B64: OSTWALD | C64: DCP | D64: TOUS | E64: CEP | F64: 359367.24 | G64: 124975.12 | H64: 3657.09 | I64: -10642.91 | J64: 3657.09 | K64: 2257.09
A65: 14 | B65: OSTWALD | C65: DCP | D65: TOUS | E65: Excédent total | F65: 775168.07 | G65: 174025.89 | H65: 24157.09 | I65: -1423.36 | J65: 16417.09 | K65: 12327.09
A66: 14 | B66: OSTWALD | C66: DCP | D66: TOUS | E66: PARTS SOCIALES | F66: 100 | G66: -48540
A67: 14 | B67: OSTWALD | C67: Michel LIENHARDT | D67: Catia MARCALO | E67: Assurance-Vie | F67: 1658 | G67: -9578.13 | H67: -50 | I67: -50 | J67: -50 | K67: -50
A68: 14 | B68: OSTWALD | C68: Michel LIENHARDT | D68: Catia MARCALO | E68: CA UC | F68: 91.2 | G68: 0
A69: 14 | B69: OSTWALD | C69: Michel LIENHARDT | D69: Catia MARCALO | E69: CEP | F69: 359367.24 | G69: 124975.12 | H69: 3657.09 | I69: -10642.91 | J69: 3657.09 | K69: 2257.09
A70: 14 | B70: OSTWALD | C70: Michel LIENHARDT | D70: Catia MARCALO | E70: Excédent total | F70: 775168.07 | G70: 174025.89 | H70: 24157.09 | I70: -1423.36 | J70: 16417.09 | K70: 12327.09
A71: 14 | B71: OSTWALD | C71: Michel LIENHARDT | D71: Catia MARCALO | E71: PARTS SOCIALES | F71: 100 | G71: -48540
A72: 15 | B72: LINGOLSHEIM | C72: DCP | D72: TOUS | E72: Assurance-Vie | F72: 56988 | G72: 44294.65 | H72: 30 | I72: -594 | J72: 30 | K72: -594
A73: 15 | B73: LINGOLSHEIM | C73: DCP | D73: TOUS | E73: CA UC | F73: 12950.15 | G73: 0
A74: 15 | B74: LINGOLSHEIM | C74: DCP | D74: TOUS | E74: CEP | F74: 330199.68 | G74: -1369.31 | H74: 5000 | I74: -761.44 | J74: 5000 | K74: -700
A75: 15 | B75: LINGOLSHEIM | C75: DCP | D75: TOUS | E75: Excédent total | F75: 1028234.8 | G75: 79471.64 | H75: 16481.53 | I75: 3474.1 | J75: 14101.53 | K75: 2625.54
A76: 15 | B76: LINGOLSHEIM | C76: DCP | D76: TOUS | E76: PARTS SOCIALES | F76: 5960 | G76: -2140 | H76: 100 | I76: 100 | J76: 100 | K76: 100
A77: 15 | B77: LINGOLSHEIM | C77: Michel LIENHARDT | D77: Catia MARCALO | E77: Assurance-Vie | F77: 56988 | G77: 44294.65 | H77: 30 | I77: -594 | J77: 30 | K77: -594
A78: 15 | B78: LINGOLSHEIM | C78: Michel LIENHARDT | D78: Catia MARCALO | E78: CA UC | F78: 12950.15 | G78: 0
A79: 15 | B79: LINGOLSHEIM | C79: Michel LIENHARDT | D79: Catia MARCALO | E79: CEP | F79: 330199.68 | G79: -1369.31 | H79: 5000 | I79: -761.44 | J79: 5000 | K79: -700
A80: 15 | B80: LINGOLSHEIM | C80: Michel LIENHARDT | D80: Catia MARCALO | E80: Excédent total | F80: 1028234.8 | G80: 79471.64 | H80: 16481.53 | I80: 3474.1 | J80: 14101.53 | K80: 2625.54
A81: 15 | B81: LINGOLSHEIM | C81: Michel LIENHARDT | D81: Catia MARCALO | E81: PARTS SOCIALES | F81: 5960 | G81: -2140 | H81: 100 | I81: 100 | J81: 100 | K81: 100
A82: 18 | B82: ESPACE MESANGE | C82: DCP | D82: TOUS | E82: Assurance-Vie | F82: 776530 | G82: 714608.58
A83: 18 | B83: ESPACE MESANGE | C83: DCP | D83: TOUS | E83: CA UC | F83: 255175 | G83: 0
A84: 18 | B84: ESPACE MESANGE | C84: DCP | D84: TOUS | E84: CEP | F84: 1518698.63 | G84: 34005.12 | H84: 117267.08 | I84: -38612.92 | J84: 117267.08 | K84: 91387.08
A85: 18 | B85: ESPACE MESANGE | C85: DCP | D85: TOUS | E85: Excédent total | F85: 3185030.12 | G85: 526207.32 | H85: 182919.41 | I85: -88072.22 | J85: 179526.48 | K85: 41902.85
A86: 18 | B86: ESPACE MESANGE | C86: DCP | D86: TOUS | E86: PARTS SOCIALES | F86: 129640 | G86: -119960 | H86: 0 | I86: -50000 | J86: 0 | K86: -50000
A87: 18 | B87: ESPACE MESANGE | C87: Michel LIENHARDT | D87: STARCK/CASTELEYN | E87: Assurance-Vie | F87: 776530 | G87: 714608.58
A88: 18 | B88: ESPACE MESANGE | C88: Michel LIENHARDT | D88: STARCK/CASTELEYN | E88: CA UC | F88: 255175 | G88: 0
A89: 18 | B89: ESPACE MESANGE | C89: Michel LIENHARDT | D89: STARCK/CASTELEYN | E89: CEP | F89: 1518698.63 | G89: 34005.12 | H89: 117267.08 | I89: -38612.92 | J89: 117267.08 | K89: 91387.08
A90: 18 | B90: ESPACE MESANGE | C90: Michel LIENHARDT | D90: STARCK/CASTELEYN | E90: Excédent total | F90: 3185030.12 | G90: 526207.32 | H90: 182919.41 | I90: -88072.22 | J90: 179526.48 | K90: 41902.85
A91: 18 | B91: ESPACE MESANGE | C91: Michel LIENHARDT | D91: STARCK/CASTELEYN | E91: PARTS SOCIALES | F91: 129640 | G91: -119960 | H91: 0 | I91: -50000 | J91: 0 | K91: -50000
A92: 19 | B92: STRASBOURG ANVERS | C92: DCP | D92: TOUS | E92: Assurance-Vie | F92: 202889.21 | G92: -111945.7 | H92: 420.11 | I92: 420.11 | J92: 420.11 | K92: 420.11
A93: 19 | B93: STRASBOURG ANVERS | C93: DCP | D93: TOUS | E93: CA UC | F93: 118338.31 | G93: 0
A94: 19 | B94: STRASBOURG ANVERS | C94: DCP | D94: TOUS | E94: CEP | F94: 3237586.2 | G94: 43776.88 | H94: 59469.72 | I94: -85894.13 | J94: 51969.72 | K94: -41116.67
A95: 19 | B95: STRASBOURG ANVERS | C95: DCP | D95: TOUS | E95: Excédent total | F95: 5414695.06 | G95: 140937.92 | H95: 113481.1 | I95: -62495.22 | J95: 61980.08 | K95: -52053.34
A96: 19 | B96: STRASBOURG ANVERS | C96: DCP | D96: TOUS | E96: PARTS SOCIALES | F96: 105420 | G96: 104180 | H96: 160 | I96: 160
A97: 19 | B97: STRASBOURG ANVERS | C97: Michel LIENHARDT | D97: Muriel GAUTHIER-LAFAYE | E97: Assurance-Vie | F97: 202889.21 | G97: -111945.7 | H97: 420.11 | I97: 420.11 | J97: 420.11 | K97: 420.11
A98: 19 | B98: STRASBOURG ANVERS | C98: Michel LIENHARDT | D98: Muriel GAUTHIER-LAFAYE | E98: CA UC | F98: 118338.31 | G98: 0
A99: 19 | B99: STRASBOURG ANVERS | C99: Michel LIENHARDT | D99: Muriel GAUTHIER-LAFAYE | E99: CEP | F99: 3237586.2 | G99: 43776.88 | H99: 59469.72 | I99: -85894.13 | J99: 51969.72 | K99: -41116.67
A100: 19 | B100: STRASBOURG ANVERS | C100: Michel LIENHARDT | D100: Muriel GAUTHIER-LAFAYE | E100: Excédent total | F100: 5414695.06 | G100: 140937.92 | H100: 113481.1 | I100: -62495.22 | J100: 61980.08 | K100: -52053.34
A101: 19 | B101: STRASBOURG ANVERS | C101: Michel LIENHARDT | D101: Muriel GAUTHIER-LAFAYE | E101: PARTS SOCIALES | F101: 105420 | G101: 104180 | H101: 160 | I101: 160
A102: 20 | B102: STRASBOURG ROBERTSAU | C102: DCP | D102: TOUS | E102: Assurance-Vie | F102: 175685.1 | G102: -55707.32 | H102: 30 | I102: 30 | J102: 30 | K102: 30
A103: 20 | B103: STRASBOURG ROBERTSAU | C103: DCP | D103: TOUS | E103: CA UC | F103: 194559.4 | G103: 0
A104: 20 | B104: STRASBOURG ROBERTSAU | C104: DCP | D104: TOUS | E104: CEP | F104: 858602.64 | G104: -216834.65 | H104: 22800 | I104: 6600 | J104: 8800 | K104: -6200
A105: 20 | B105: STRASBOURG ROBERTSAU | C105: DCP | D105: TOUS | E105: Excédent total | F105: 2678954.39 | G105: 145349.21 | H105: 41409.35 | I105: -23559.65 | J105: 29205.34 | K105: -17529.98
A106: 20 | B106: STRASBOURG ROBERTSAU | C106: DCP | D106: TOUS | E106: PARTS SOCIALES | F106: 152600 | G106: 122560
A107: 20 | B107: STRASBOURG ROBERTSAU | C107: Michel LIENHARDT | D107: Stéphane PAGNIER | E107: Assurance-Vie | F107: 175685.1 | G107: -55707.32 | H107: 30 | I107: 30 | J107: 30 | K107: 30
A108: 20 | B108: STRASBOURG ROBERTSAU | C108: Michel LIENHARDT | D108: Stéphane PAGNIER | E108: CA UC | F108: 194559.4 | G108: 0
A109: 20 | B109: STRASBOURG ROBERTSAU | C109: Michel LIENHARDT | D109: Stéphane PAGNIER | E109: CEP | F109: 858602.64 | G109: -216834.65 | H109: 22800 | I109: 6600 | J109: 8800 | K109: -6200
A110: 20 | B110: STRASBOURG ROBERTSAU | C110: Michel LIENHARDT | D110: Stéphane PAGNIER | E110: Excédent total | F110: 2678954.39 | G110: 145349.21 | H110: 41409.35 | I110: -23559.65 | J110: 29205.34 | K110: -17529.98
A111: 20 | B111: STRASBOURG ROBERTSAU | C111: Michel LIENHARDT | D111: Stéphane PAGNIER | E111: PARTS SOCIALES | F111: 152600 | G111: 122560
A112: 23 | B112: STRASBOURG VOSGES | C112: DCP | D112: TOUS | E112: Assurance-Vie | F112: 75250.25 | G112: 55026.12 | H112: 894 | I112: 894 | J112: 894 | K112: 894
A113: 23 | B113: STRASBOURG VOSGES | C113: DCP | D113: TOUS | E113: CA UC | F113: 41070.78 | G113: 0
A114: 23 | B114: STRASBOURG VOSGES | C114: DCP | D114: TOUS | E114: CEP | F114: 682859.89 | G114: 57318.05 | H114: 10000 | I114: -1000 | J114: 10000 | K114: 9500
A115: 23 | B115: STRASBOURG VOSGES | C115: DCP | D115: TOUS | E115: Excédent total | F115: 1339678.47 | G115: 209943.23 | H115: 17955.1 | I115: -5586.9 | J115: 13945.1 | K115: 9733.1
A116: 23 | B116: STRASBOURG VOSGES | C116: DCP | D116: TOUS | E116: PARTS SOCIALES | F116: 10300 | G116: 5300
A117: 23 | B117: STRASBOURG VOSGES | C117: Michel LIENHARDT | D117: Muriel GAUTHIER-LAFAYE | E117: Assurance-Vie | F117: 75250.25 | G117: 55026.12 | H117: 894 | I117: 894 | J117: 894 | K117: 894
A118: 23 | B118: STRASBOURG VOSGES | C118: Michel LIENHARDT | D118: Muriel GAUTHIER-LAFAYE | E118: CA UC | F118: 41070.78 | G118: 0
A119: 23 | B119: STRASBOURG VOSGES | C119: Michel LIENHARDT | D119: Muriel GAUTHIER-LAFAYE | E119: CEP | F119: 682859.89 | G119: 57318.05 | H119: 10000 | I119: -1000 | J119: 10000 | K119: 9500
A120: 23 | B120: STRASBOURG VOSGES | C120: Michel LIENHARDT | D120: Muriel GAUTHIER-LAFAYE | E120: Excédent total | F120: 1339678.47 | G120: 209943.23 | H120: 17955.1 | I120: -5586.9 | J120: 13945.1 | K120: 9733.1
A121: 23 | B121: STRASBOURG VOSGES | C121: Michel LIENHARDT | D121: Muriel GAUTHIER-LAFAYE | E121: PARTS SOCIALES | F121: 10300 | G121: 5300
A122: 24 | B122: STRASBOURG AUSTERLITZ | C122: DCP | D122: TOUS | E122: Assurance-Vie | F122: 19886.61 | G122: -229004.82 | H122: 1380 | I122: 1380 | J122: 1380 | K122: 1380
A123: 24 | B123: STRASBOURG AUSTERLITZ | C123: DCP | D123: TOUS | E123: CA UC | F123: 436 | G123: 0
A124: 24 | B124: STRASBOURG AUSTERLITZ | C124: DCP | D124: TOUS | E124: CEP | F124: 409727.69 | G124: 121036.36 | H124: 9902.18 | I124: 2673.29 | J124: 9100 | K124: 7194.58
A125: 24 | B125: STRASBOURG AUSTERLITZ | C125: DCP | D125: TOUS | E125: Excédent total | F125: 912412.76 | G125: -154359.79 | H125: 16253.85 | I125: -3298.23 | J125: 10830 | K125: -2948.16
A126: 24 | B126: STRASBOURG AUSTERLITZ | C126: DCP | D126: TOUS | E126: PARTS SOCIALES | F126: 620 | G126: 520
A127: 24 | B127: STRASBOURG AUSTERLITZ | C127: Michel LIENHARDT | D127: Jeremy WEIBLE | E127: Assurance-Vie | F127: 19886.61 | G127: -229004.82 | H127: 1380 | I127: 1380 | J127: 1380 | K127: 1380
A128: 24 | B128: STRASBOURG AUSTERLITZ | C128: Michel LIENHARDT | D128: Jeremy WEIBLE | E128: CA UC | F128: 436 | G128: 0
A129: 24 | B129: STRASBOURG AUSTERLITZ | C129: Michel LIENHARDT | D129: Jeremy WEIBLE | E129: CEP | F129: 409727.69 | G129: 121036.36 | H129: 9902.18 | I129: 2673.29 | J129: 9100 | K129: 7194.58
A130: 24 | B130: STRASBOURG AUSTERLITZ | C130: Michel LIENHARDT | D130: Jeremy WEIBLE | E130: Excédent total | F130: 912412.76 | G130: -154359.79 | H130: 16253.85 | I130: -3298.23 | J130: 10830 | K130: -2948.16
A131: 24 | B131: STRASBOURG AUSTERLITZ | C131: Michel LIENHARDT | D131: Jeremy WEIBLE | E131: PARTS SOCIALES | F131: 620 | G131: 520
A132: 25 | B132: STRASBOURG ESPLANADE | C132: DCP | D132: TOUS | E132: Assurance-Vie | F132: 237883.7 | G132: 202652.34 | H132: 90 | I132: 90 | J132: 90 | K132: 90
A133: 25 | B133: STRASBOURG ESPLANADE | C133: DCP | D133: TOUS | E133: CA UC | F133: 96635.4 | G133: 0
A134: 25 | B134: STRASBOURG ESPLANADE | C134: DCP | D134: TOUS | E134: CEP | F134: 230833.48 | G134: -39124.18 | H134: 7700 | I134: 5319.56 | J134: 6700 | K134: 4319.56
A135: 25 | B135: STRASBOURG ESPLANADE | C135: DCP | D135: TOUS | E135: Excédent total | F135: 1391718.23 | G135: 166250.31 | H135: 22121.77 | I135: 8307.97 | J135: 16038.98 | K135: 7504.18
A136: 25 | B136: STRASBOURG ESPLANADE | C136: DCP | D136: TOUS | E136: PARTS SOCIALES | F136: 1500 | G136: -7360 | H136: 80 | I136: 80 | J136: 20 | K136: 20
A137: 25 | B137: STRASBOURG ESPLANADE | C137: Michel LIENHARDT | D137: Jeremy WEIBLE | E137: Assurance-Vie | F137: 237883.7 | G137: 202652.34 | H137: 90 | I137: 90 | J137: 90 | K137: 90
A138: 25 | B138: STRASBOURG ESPLANADE | C138: Michel LIENHARDT | D138: Jeremy WEIBLE | E138: CA UC | F138: 96635.4 | G138: 0
A139: 25 | B139: STRASBOURG ESPLANADE | C139: Michel LIENHARDT | D139: Jeremy WEIBLE | E139: CEP | F139: 230833.48 | G139: -39124.18 | H139: 7700 | I139: 5319.56 | J139: 6700 | K139: 4319.56
A140: 25 | B140: STRASBOURG ESPLANADE | C140: Michel LIENHARDT | D140: Jeremy WEIBLE | E140: Excédent total | F140: 1391718.23 | G140: 166250.31 | H140: 22121.77 | I140: 8307.97 | J140: 16038.98 | K140: 7504.18
A141: 25 | B141: STRASBOURG ESPLANADE | C141: Michel LIENHARDT | D141: Jeremy WEIBLE | E141: PARTS SOCIALES | F141: 1500 | G141: -7360 | H141: 80 | I141: 80 | J141: 20 | K141: 20
A142: 26 | B142: STRASBOURG DANUBE | C142: DCP | D142: TOUS | E142: Assurance-Vie | F142: 30604.2 | G142: 756.24
A143: 26 | B143: STRASBOURG DANUBE | C143: DCP | D143: TOUS | E143: CA UC | F143: 9000 | G143: 0
A144: 26 | B144: STRASBOURG DANUBE | C144: DCP | D144: TOUS | E144: CEP | F144: 158846.78 | G144: 15023.47 | H144: 0 | I144: -2000 | J144: 0 | K144: -2000
A145: 26 | B145: STRASBOURG DANUBE | C145: DCP | D145: TOUS | E145: Excédent total | F145: 341552.01 | G145: 82627.34 | H145: 2185.51 | I145: -1595.44 | J145: 2070.51 | K145: -590.44
A146: 26 | B146: STRASBOURG DANUBE | C146: DCP | D146: TOUS | E146: PARTS SOCIALES | F146: 240 | G146: 240
A147: 26 | B147: STRASBOURG DANUBE | C147: Michel LIENHARDT | D147: Jeremy WEIBLE | E147: Assurance-Vie | F147: 30604.2 | G147: 756.24
A148: 26 | B148: STRASBOURG DANUBE | C148: Michel LIENHARDT | D148: Jeremy WEIBLE | E148: CA UC | F148: 9000 | G148: 0
A149: 26 | B149: STRASBOURG DANUBE | C149: Michel LIENHARDT | D149: Jeremy WEIBLE | E149: CEP | F149: 158846.78 | G149: 15023.47 | H149: 0 | I149: -2000 | J149: 0 | K149: -2000
A150: 26 | B150: STRASBOURG DANUBE | C150: Michel LIENHARDT | D150: Jeremy WEIBLE | E150: Excédent total | F150: 341552.01 | G150: 82627.34 | H150: 2185.51 | I150: -1595.44 | J150: 2070.51 | K150: -590.44
A151: 26 | B151: STRASBOURG DANUBE | C151: Michel LIENHARDT | D151: Jeremy WEIBLE | E151: PARTS SOCIALES | F151: 240 | G151: 240
A152: 27 | B152: SCHILTIGHEIM CENTRE | C152: DCP | D152: TOUS | E152: Assurance-Vie | F152: 33090.6 | G152: 23519.04 | H152: 0 | I152: -600 | J152: 0 | K152: -600
A153: 27 | B153: SCHILTIGHEIM CENTRE | C153: DCP | D153: TOUS | E153: CA UC | F153: 11091.96 | G153: 0
A154: 27 | B154: SCHILTIGHEIM CENTRE | C154: DCP | D154: TOUS | E154: CEP | F154: 788921.26 | G154: 174725.33 | H154: 54500 | I154: 45300 | J154: 53500 | K154: 44300
A155: 27 | B155: SCHILTIGHEIM CENTRE | C155: DCP | D155: TOUS | E155: Excédent total | F155: 1704286.59 | G155: 398806.21 | H155: 60002.79 | I155: 37903.64 | J155: 55585.92 | K155: 41414.77
A156: 27 | B156: SCHILTIGHEIM CENTRE | C156: DCP | D156: TOUS | E156: PARTS SOCIALES | F156: 17200 | G156: 1580
A157: 27 | B157: SCHILTIGHEIM CENTRE | C157: Michel LIENHARDT | D157: Stéphane PAGNIER | E157: Assurance-Vie | F157: 33090.6 | G157: 23519.04 | H157: 0 | I157: -600 | J157: 0 | K157: -600
A158: 27 | B158: SCHILTIGHEIM CENTRE | C158: Michel LIENHARDT | D158: Stéphane PAGNIER | E158: CA UC | F158: 11091.96 | G158: 0
A159: 27 | B159: SCHILTIGHEIM CENTRE | C159: Michel LIENHARDT | D159: Stéphane PAGNIER | E159: CEP | F159: 788921.26 | G159: 174725.33 | H159: 54500 | I159: 45300 | J159: 53500 | K159: 44300
A160: 27 | B160: SCHILTIGHEIM CENTRE | C160: Michel LIENHARDT | D160: Stéphane PAGNIER | E160: Excédent total | F160: 1704286.59 | G160: 398806.21 | H160: 60002.79 | I160: 37903.64 | J160: 55585.92 | K160: 41414.77
A161: 27 | B161: SCHILTIGHEIM CENTRE | C161: Michel LIENHARDT | D161: Stéphane PAGNIER | E161: PARTS SOCIALES | F161: 17200 | G161: 1580
A162: 28 | B162: BISCHHEIM | C162: DCP | D162: TOUS | E162: Assurance-Vie | F162: 3960 | G162: 3960 | H162: 60 | I162: 60 | J162: 60 | K162: 60
A163: 28 | B163: BISCHHEIM | C163: DCP | D163: TOUS | E163: CA UC | F163: 2524 | G163: 0
A164: 28 | B164: BISCHHEIM | C164: DCP | D164: TOUS | E164: CEP | F164: 574414.61 | G164: 76106 | H164: 2000 | I164: 2000 | J164: 1000 | K164: 1000
A165: 28 | B165: BISCHHEIM | C165: DCP | D165: TOUS | E165: Excédent total | F165: 883231.94 | G165: 183815.05 | H165: 11203.4 | I165: -872.95 | J165: 8128.43 | K165: -2911.54
A166: 28 | B166: BISCHHEIM | C166: DCP | D166: TOUS | E166: PARTS SOCIALES | F166: 20640 | G166: 20620
A167: 28 | B167: BISCHHEIM | C167: Michel LIENHARDT | D167: Stéphane PAGNIER | E167: Assurance-Vie | F167: 3960 | G167: 3960 | H167: 60 | I167: 60 | J167: 60 | K167: 60
A168: 28 | B168: BISCHHEIM | C168: Michel LIENHARDT | D168: Stéphane PAGNIER | E168: CA UC | F168: 2524 | G168: 0
A169: 28 | B169: BISCHHEIM | C169: Michel LIENHARDT | D169: Stéphane PAGNIER | E169: CEP | F169: 574414.61 | G169: 76106 | H169: 2000 | I169: 2000 | J169: 1000 | K169: 1000
A170: 28 | B170: BISCHHEIM | C170: Michel LIENHARDT | D170: Stéphane PAGNIER | E170: Excédent total | F170: 883231.94 | G170: 183815.05 | H170: 11203.4 | I170: -872.95 | J170: 8128.43 | K170: -2911.54
A171: 28 | B171: BISCHHEIM | C171: Michel LIENHARDT | D171: Stéphane PAGNIER | E171: PARTS SOCIALES | F171: 20640 | G171: 20620
A172: 29 | B172: SCHILTIGHEIM KLEBER | C172: DCP | D172: TOUS | E172: Assurance-Vie | F172: 775 | G172: 775
A173: 29 | B173: SCHILTIGHEIM KLEBER | C173: DCP | D173: TOUS | E173: CA UC | F173: 534 | G173: 0
A174: 29 | B174: SCHILTIGHEIM KLEBER | C174: DCP | D174: TOUS | E174: CEP | F174: 152152.84 | G174: -33375.59 | H174: 46.1 | I174: 46.1
A175: 29 | B175: SCHILTIGHEIM KLEBER | C175: DCP | D175: TOUS | E175: Excédent total | F175: 310914.31 | G175: 17033.47 | H175: 436.1 | I175: -867.59 | J175: 390 | K175: -65.08
A176: 29 | B176: SCHILTIGHEIM KLEBER | C176: DCP | D176: TOUS | E176: PARTS SOCIALES | F176: 20440 | G176: 20440
A177: 29 | B177: SCHILTIGHEIM KLEBER | C177: Michel LIENHARDT | D177: Stéphane PAGNIER | E177: Assurance-Vie | F177: 775 | G177: 775
A178: 29 | B178: SCHILTIGHEIM KLEBER | C178: Michel LIENHARDT | D178: Stéphane PAGNIER | E178: CA UC | F178: 534 | G178: 0
A179: 29 | B179: SCHILTIGHEIM KLEBER | C179: Michel LIENHARDT | D179: Stéphane PAGNIER | E179: CEP | F179: 152152.84 | G179: -33375.59 | H179: 46.1 | I179: 46.1
A180: 29 | B180: SCHILTIGHEIM KLEBER | C180: Michel LIENHARDT | D180: Stéphane PAGNIER | E180: Excédent total | F180: 310914.31 | G180: 17033.47 | H180: 436.1 | I180: -867.59 | J180: 390 | K180: -65.08
A181: 29 | B181: SCHILTIGHEIM KLEBER | C181: Michel LIENHARDT | D181: Stéphane PAGNIER | E181: PARTS SOCIALES | F181: 20440 | G181: 20440
A182: 30 | B182: BRUMATH | C182: DCP | D182: TOUS | E182: Assurance-Vie | F182: 185925.5 | G182: 177694.26 | H182: 75 | I182: 75 | J182: 75 | K182: 75
A183: 30 | B183: BRUMATH | C183: DCP | D183: TOUS | E183: CA UC | F183: 40540.21 | G183: 0
A184: 30 | B184: BRUMATH | C184: DCP | D184: TOUS | E184: CEP | F184: 2441382.12 | G184: 223157.75 | H184: 70281.76 | I184: 42347.91 | J184: 29281.76 | K184: 4847.91
A185: 30 | B185: BRUMATH | C185: DCP | D185: TOUS | E185: Excédent total | F185: 3752828.27 | G185: 474271.28 | H185: 91417.46 | I185: 36158.25 | J185: 35739.64 | K185: 1422.18
A186: 30 | B186: BRUMATH | C186: DCP | D186: TOUS | E186: PARTS SOCIALES | F186: 87080 | G186: 58680 | H186: 360 | I186: 360 | J186: 160 | K186: 160
A187: 30 | B187: BRUMATH | C187: Michel LIENHARDT | D187: Jonathan KOCH | E187: Assurance-Vie | F187: 147988.5 | G187: 139757.26 | H187: 75 | I187: 75 | J187: 75 | K187: 75
A188: 30 | B188: BRUMATH | C188: Michel LIENHARDT | D188: Jonathan KOCH | E188: CA UC | F188: 40540.21 | G188: 0
A189: 30 | B189: BRUMATH | C189: Michel LIENHARDT | D189: Jonathan KOCH | E189: CEP | F189: 2308281.98 | G189: 347238.13 | H189: 70281.76 | I189: 42347.91 | J189: 29281.76 | K189: 4847.91
A190: 30 | B190: BRUMATH | C190: Michel LIENHARDT | D190: Jonathan KOCH | E190: Excédent total | F190: 3390750.73 | G190: 536205.23 | H190: 91417.46 | I190: 36158.25 | J190: 35739.64 | K190: 1422.18
A191: 30 | B191: BRUMATH | C191: Michel LIENHARDT | D191: Jonathan KOCH | E191: PARTS SOCIALES | F191: 56480 | G191: 28080 | H191: 360 | I191: 360 | J191: 160 | K191: 160
A192: 30 | B192: BRUMATH | C192: Michel LIENHARDT | D192: Olivier SCHOTT | E192: Assurance-Vie | F192: 37937 | G192: 37937
A193: 30 | B193: BRUMATH | C193: Michel LIENHARDT | D193: Olivier SCHOTT | E193: CEP | F193: 133100.14 | G193: -124080.38
A194: 30 | B194: BRUMATH | C194: Michel LIENHARDT | D194: Olivier SCHOTT | E194: Excédent total | F194: 362077.54 | G194: -61933.95
A195: 30 | B195: BRUMATH | C195: Michel LIENHARDT | D195: Olivier SCHOTT | E195: PARTS SOCIALES | F195: 30600 | G195: 30600
A196: 31 | B196: TRUCHTERSHEIM | C196: DCP | D196: TOUS | E196: Assurance-Vie | F196: 241813.06 | G196: 241783.16
A197: 31 | B197: TRUCHTERSHEIM | C197: DCP | D197: TOUS | E197: CA UC | F197: 158370.86 | G197: 0
A198: 31 | B198: TRUCHTERSHEIM | C198: DCP | D198: TOUS | E198: CEP | F198: 1086393.87 | G198: 78579.34 | H198: 53851.82 | I198: 37549.36 | J198: 35368.12 | K198: 28565.66
A199: 31 | B199: TRUCHTERSHEIM | C199: DCP | D199: TOUS | E199: Excédent total | F199: 2186344.73 | G199: 398273.33 | H199: 77473.68 | I199: 38313.76 | J199: 51864.98 | K199: 34675.06
A200: 31 | B200: TRUCHTERSHEIM | C200: DCP | D200: TOUS | E200: PARTS SOCIALES | F200: 36020 | G200: -1660 | H200: 20 | I200: 20 | J200: 20 | K200: 20
... 2663 more rows

Sheet Epargne Clients
A1: NO ENTITE | B1: DCP | C1: CCPRO
A2: ='Pilotage Pros'!AN1 -> 199 | B2: ='Pilotage Pros'!O4 -> DCP | C2: ='Pilotage Pros'!AA4 -> TOUS
A8: NO ENTITE | B8: ENTITE | C8: DCP | D8: CCPRO | E8: GESTIONNAIRE | F8: DATE ARRT INFO | G8: FAMILLE | H8: N° DE PERSONNE | I8: NOM DU CLIENT | J8: FLUX CREDITEURS | K8: EXCEDENT
A9: 6 | B9: STRASBOURG NEUDORF | C9: DCP | D9: TOUS | E9: GROSS Olivier | F9: 2018-11-01 | G9: Excédent total | H9: 82627894 | I9: MR REMI MENGER | J9: 2000 | K9: 2000
A10: 6 | B10: STRASBOURG NEUDORF | C10: DCP | D10: TOUS | E10: GROSS Olivier | F10: 2018-11-02 | G10: CEP | H10: 93402288 | I10: MLLE HELENE LEQUEUX | J10: 0 | K10: -2669
A11: 6 | B11: STRASBOURG NEUDORF | C11: DCP | D11: TOUS | E11: GROSS Olivier | F11: 2018-11-02 | G11: Excédent total | H11: 83424076 | I11: MR FREDERIC DAOUT | J11: 0 | K11: -1300
A12: 6 | B12: STRASBOURG NEUDORF | C12: DCP | D12: TOUS | E12: GROSS Olivier | F12: 2018-11-02 | G12: Excédent total | H12: 93402288 | I12: MLLE HELENE LEQUEUX | J12: 0 | K12: -2669
A13: 6 | B13: STRASBOURG NEUDORF | C13: DCP | D13: TOUS | E13: GROSS Olivier | F13: 2018-11-03 | G13: Excédent total | H13: 92563948 | I13: MME WAGNER MARIE-DOMINIQUE | J13: 0 | K13: -2000
A14: 6 | B14: STRASBOURG NEUDORF | C14: DCP | D14: TOUS | E14: GROSS Olivier | F14: 2018-11-05 | G14: CEP | H14: 83309286 | I14: MME EMMANUELLE THAVEAU | J14: 10000 | K14: 10000
A15: 6 | B15: STRASBOURG NEUDORF | C15: DCP | D15: TOUS | E15: GROSS Olivier | F15: 2018-11-05 | G15: Excédent total | H15: 83309286 | I15: MME EMMANUELLE THAVEAU | J15: 10000 | K15: 10000
A16: 6 | B16: STRASBOURG NEUDORF | C16: DCP | D16: TOUS | E16: GROSS Olivier | F16: 2018-11-05 | G16: Excédent total | H16: 83424076 | I16: MR FREDERIC DAOUT | J16: 0 | K16: -1400
A17: 6 | B17: STRASBOURG NEUDORF | C17: DCP | D17: TOUS | E17: GROSS Olivier | F17: 2018-11-07 | G17: Excédent total | H17: 82920461 | I17: MR THIERRY FEHRENBACH | J17: 0 | K17: -3000
A18: 6 | B18: STRASBOURG NEUDORF | C18: DCP | D18: TOUS | E18: GROSS Olivier | F18: 2018-11-08 | G18: Excédent total | H18: 92795608 | I18: M WAGENTRUTZ CEDRIC | J18: 0 | K18: -6223
A19: 6 | B19: STRASBOURG NEUDORF | C19: DCP | D19: TOUS | E19: GROSS Olivier | F19: 2018-11-09 | G19: Excédent total | H19: 82899056 | I19: MME CHIRON FRANCE | J19: 1000 | K19: 1000
A20: 6 | B20: STRASBOURG NEUDORF | C20: DCP | D20: TOUS | E20: GROSS Olivier | F20: 2018-11-09 | G20: Excédent total | H20: 83424076 | I20: MR FREDERIC DAOUT | J20: 0 | K20: -2700
A21: 6 | B21: STRASBOURG NEUDORF | C21: DCP | D21: TOUS | E21: GROSS Olivier | F21: 2018-11-10 | G21: CEP | H21: 83383483 | I21: DR FABIEN THAVEAU | J21: 0 | K21: -3000
A22: 6 | B22: STRASBOURG NEUDORF | C22: DCP | D22: TOUS | E22: GROSS Olivier | F22: 2018-11-10 | G22: CEP | H22: 93628559 | I22: SASU TOUBAB | J22: 0 | K22: -1000
A23: 6 | B23: STRASBOURG NEUDORF | C23: DCP | D23: TOUS | E23: GROSS Olivier | F23: 2018-11-10 | G23: Excédent total | H23: 83383483 | I23: DR FABIEN THAVEAU | J23: 0 | K23: -3000
A24: 6 | B24: STRASBOURG NEUDORF | C24: DCP | D24: TOUS | E24: GROSS Olivier | F24: 2018-11-10 | G24: Excédent total | H24: 92795608 | I24: M WAGENTRUTZ CEDRIC | J24: 2900 | K24: 2900
A25: 6 | B25: STRASBOURG NEUDORF | C25: DCP | D25: TOUS | E25: GROSS Olivier | F25: 2018-11-10 | G25: Excédent total | H25: 93628559 | I25: SASU TOUBAB | J25: 0 | K25: -1000
A26: 6 | B26: STRASBOURG NEUDORF | C26: DCP | D26: TOUS | E26: GROSS Olivier | F26: 2018-11-12 | G26: Excédent total | H26: 83424075 | I26: MME EMILIE DAOUT | J26: 2800 | K26: 2800
A27: 6 | B27: STRASBOURG NEUDORF | C27: DCP | D27: TOUS | E27: KISTNER CELINE | F27: 2018-11-03 | G27: Excédent total | H27: 93141561 | I27: M STASZAK JEAN PIERRE | J27: 0 | K27: -4000
A28: 6 | B28: STRASBOURG NEUDORF | C28: DCP | D28: TOUS | E28: LEBLANC LAETITIA | F28: 2018-11-05 | G28: Excédent total | H28: 83207076 | I28: MME SYLVIE ERB | J28: 6000 | K28: 6000
A29: 6 | B29: STRASBOURG NEUDORF | C29: DCP | D29: TOUS | E29: LEBLANC LAETITIA | F29: 2018-11-07 | G29: Excédent total | H29: 82996602 | I29: MLE RAPHAELLE GARCIA | J29: 76.9 | K29: -34734.06
A30: 6 | B30: STRASBOURG NEUDORF | C30: DCP | D30: TOUS | E30: LIENHARDT MICHEL | F30: 2018-11-02 | G30: CEP | H30: 82396981 | I30: SAS WOLFF MOTO PRODUCTS | J30: 0 | K30: -30000
A31: 6 | B31: STRASBOURG NEUDORF | C31: DCP | D31: TOUS | E31: LIENHARDT MICHEL | F31: 2018-11-02 | G31: Excédent total | H31: 82396981 | I31: SAS WOLFF MOTO PRODUCTS | J31: 0 | K31: -30000
A32: 6 | B32: STRASBOURG NEUDORF | C32: DCP | D32: TOUS | E32: WEIBLE JEREMY | F32: 2018-11-02 | G32: CEP | H32: 83231346 | I32: MLLE JULIE MARY | J32: 1000 | K32: 1000
A33: 6 | B33: STRASBOURG NEUDORF | C33: DCP | D33: TOUS | E33: WEIBLE JEREMY | F33: 2018-11-02 | G33: Excédent total | H33: 83231346 | I33: MLLE JULIE MARY | J33: 1000 | K33: 1000
A34: 6 | B34: STRASBOURG NEUDORF | C34: DCP | D34: TOUS | E34: WEIBLE JEREMY | F34: 2018-11-03 | G34: CEP | H34: 94124257 | I34: SCI MELI | J34: 50000 | K34: 50000
A35: 6 | B35: STRASBOURG NEUDORF | C35: DCP | D35: TOUS | E35: WEIBLE JEREMY | F35: 2018-11-03 | G35: Excédent total | H35: 94124257 | I35: SCI MELI | J35: 50000 | K35: 50000
A36: 6 | B36: STRASBOURG NEUDORF | C36: DCP | D36: TOUS | E36: WEIBLE JEREMY | F36: 2018-11-05 | G36: CEP | H36: 93843942 | I36: MAXAREN SARL | J36: 0 | K36: -2000
A37: 6 | B37: STRASBOURG NEUDORF | C37: DCP | D37: TOUS | E37: WEIBLE JEREMY | F37: 2018-11-05 | G37: Excédent total | H37: 82417040 | I37: MME KAMINSKI MARIE-PIERRE | J37: 0 | K37: -2000
A38: 6 | B38: STRASBOURG NEUDORF | C38: DCP | D38: TOUS | E38: WEIBLE JEREMY | F38: 2018-11-05 | G38: Excédent total | H38: 93843942 | I38: MAXAREN SARL | J38: 0 | K38: -2000
A39: 6 | B39: STRASBOURG NEUDORF | C39: DCP | D39: TOUS | E39: WEIBLE JEREMY | F39: 2018-11-06 | G39: Excédent total | H39: 82396329 | I39: EPC | J39: 0 | K39: -4000
A40: 6 | B40: STRASBOURG NEUDORF | C40: DCP | D40: TOUS | E40: WEIBLE JEREMY | F40: 2018-11-07 | G40: Excédent total | H40: 91299635 | I40: MLLE BERRIDA KARIMA | J40: 0 | K40: -3000
A41: 6 | B41: STRASBOURG NEUDORF | C41: DCP | D41: TOUS | E41: WEIBLE JEREMY | F41: 2018-11-09 | G41: CEP | H41: 91577588 | I41: DR BALDASSARI KARINE | J41: 0 | K41: -1000
A42: 6 | B42: STRASBOURG NEUDORF | C42: DCP | D42: TOUS | E42: WEIBLE JEREMY | F42: 2018-11-09 | G42: Excédent total | H42: 91577588 | I42: DR BALDASSARI KARINE | J42: 0 | K42: -1000
A43: 6 | B43: STRASBOURG NEUDORF | C43: DCP | D43: TOUS | E43: WEIBLE JEREMY | F43: 2018-11-10 | G43: Excédent total | H43: 83219302 | I43: MME TADDEI GROSS CORINNE | J43: 3000 | K43: 3000
A44: 6 | B44: STRASBOURG NEUDORF | C44: DCP | D44: TOUS | E44: WEIBLE JEREMY | F44: 2018-11-12 | G44: CEP | H44: 93026529 | I44: SELARL CABINET DE PATHOLOGIE | J44: 14000 | K44: 14000
A45: 6 | B45: STRASBOURG NEUDORF | C45: DCP | D45: TOUS | E45: WEIBLE JEREMY | F45: 2018-11-12 | G45: Excédent total | H45: 93026529 | I45: SELARL CABINET DE PATHOLOGIE | J45: 14000 | K45: 14000
A46: 6 | B46: STRASBOURG NEUDORF | C46: Michel LIENHARDT | D46: Jeremy WEIBLE | E46: GROSS Olivier | F46: 2018-11-01 | G46: Excédent total | H46: 82627894 | I46: MR REMI MENGER | J46: 2000 | K46: 2000
A47: 6 | B47: STRASBOURG NEUDORF | C47: Michel LIENHARDT | D47: Jeremy WEIBLE | E47: GROSS Olivier | F47: 2018-11-02 | G47: CEP | H47: 93402288 | I47: MLLE HELENE LEQUEUX | J47: 0 | K47: -2669
A48: 6 | B48: STRASBOURG NEUDORF | C48: Michel LIENHARDT | D48: Jeremy WEIBLE | E48: GROSS Olivier | F48: 2018-11-02 | G48: Excédent total | H48: 83424076 | I48: MR FREDERIC DAOUT | J48: 0 | K48: -1300
A49: 6 | B49: STRASBOURG NEUDORF | C49: Michel LIENHARDT | D49: Jeremy WEIBLE | E49: GROSS Olivier | F49: 2018-11-02 | G49: Excédent total | H49: 93402288 | I49: MLLE HELENE LEQUEUX | J49: 0 | K49: -2669
A50: 6 | B50: STRASBOURG NEUDORF | C50: Michel LIENHARDT | D50: Jeremy WEIBLE | E50: GROSS Olivier | F50: 2018-11-03 | G50: Excédent total | H50: 92563948 | I50: MME WAGNER MARIE-DOMINIQUE | J50: 0 | K50: -2000
A51: 6 | B51: STRASBOURG NEUDORF | C51: Michel LIENHARDT | D51: Jeremy WEIBLE | E51: GROSS Olivier | F51: 2018-11-05 | G51: CEP | H51: 83309286 | I51: MME EMMANUELLE THAVEAU | J51: 10000 | K51: 10000
A52: 6 | B52: STRASBOURG NEUDORF | C52: Michel LIENHARDT | D52: Jeremy WEIBLE | E52: GROSS Olivier | F52: 2018-11-05 | G52: Excédent total | H52: 83309286 | I52: MME EMMANUELLE THAVEAU | J52: 10000 | K52: 10000
A53: 6 | B53: STRASBOURG NEUDORF | C53: Michel LIENHARDT | D53: Jeremy WEIBLE | E53: GROSS Olivier | F53: 2018-11-05 | G53: Excédent total | H53: 83424076 | I53: MR FREDERIC DAOUT | J53: 0 | K53: -1400
A54: 6 | B54: STRASBOURG NEUDORF | C54: Michel LIENHARDT | D54: Jeremy WEIBLE | E54: GROSS Olivier | F54: 2018-11-07 | G54: Excédent total | H54: 82920461 | I54: MR THIERRY FEHRENBACH | J54: 0 | K54: -3000
A55: 6 | B55: STRASBOURG NEUDORF | C55: Michel LIENHARDT | D55: Jeremy WEIBLE | E55: GROSS Olivier | F55: 2018-11-08 | G55: Excédent total | H55: 92795608 | I55: M WAGENTRUTZ CEDRIC | J55: 0 | K55: -6223
A56: 6 | B56: STRASBOURG NEUDORF | C56: Michel LIENHARDT | D56: Jeremy WEIBLE | E56: GROSS Olivier | F56: 2018-11-09 | G56: Excédent total | H56: 82899056 | I56: MME CHIRON FRANCE | J56: 1000 | K56: 1000
A57: 6 | B57: STRASBOURG NEUDORF | C57: Michel LIENHARDT | D57: Jeremy WEIBLE | E57: GROSS Olivier | F57: 2018-11-09 | G57: Excédent total | H57: 83424076 | I57: MR FREDERIC DAOUT | J57: 0 | K57: -2700
A58: 6 | B58: STRASBOURG NEUDORF | C58: Michel LIENHARDT | D58: Jeremy WEIBLE | E58: GROSS Olivier | F58: 2018-11-10 | G58: CEP | H58: 83383483 | I58: DR FABIEN THAVEAU | J58: 0 | K58: -3000
A59: 6 | B59: STRASBOURG NEUDORF | C59: Michel LIENHARDT | D59: Jeremy WEIBLE | E59: GROSS Olivier | F59: 2018-11-10 | G59: CEP | H59: 93628559 | I59: SASU TOUBAB | J59: 0 | K59: -1000
A60: 6 | B60: STRASBOURG NEUDORF | C60: Michel LIENHARDT | D60: Jeremy WEIBLE | E60: GROSS Olivier | F60: 2018-11-10 | G60: Excédent total | H60: 83383483 | I60: DR FABIEN THAVEAU | J60: 0 | K60: -3000
A61: 6 | B61: STRASBOURG NEUDORF | C61: Michel LIENHARDT | D61: Jeremy WEIBLE | E61: GROSS Olivier | F61: 2018-11-10 | G61: Excédent total | H61: 92795608 | I61: M WAGENTRUTZ CEDRIC | J61: 2900 | K61: 2900
A62: 6 | B62: STRASBOURG NEUDORF | C62: Michel LIENHARDT | D62: Jeremy WEIBLE | E62: GROSS Olivier | F62: 2018-11-10 | G62: Excédent total | H62: 93628559 | I62: SASU TOUBAB | J62: 0 | K62: -1000
A63: 6 | B63: STRASBOURG NEUDORF | C63: Michel LIENHARDT | D63: Jeremy WEIBLE | E63: GROSS Olivier | F63: 2018-11-12 | G63: Excédent total | H63: 83424075 | I63: MME EMILIE DAOUT | J63: 2800 | K63: 2800
A64: 6 | B64: STRASBOURG NEUDORF | C64: Michel LIENHARDT | D64: Jeremy WEIBLE | E64: KISTNER CELINE | F64: 2018-11-03 | G64: Excédent total | H64: 93141561 | I64: M STASZAK JEAN PIERRE | J64: 0 | K64: -4000
A65: 6 | B65: STRASBOURG NEUDORF | C65: Michel LIENHARDT | D65: Jeremy WEIBLE | E65: LEBLANC LAETITIA | F65: 2018-11-05 | G65: Excédent total | H65: 83207076 | I65: MME SYLVIE ERB | J65: 6000 | K65: 6000
A66: 6 | B66: STRASBOURG NEUDORF | C66: Michel LIENHARDT | D66: Jeremy WEIBLE | E66: LEBLANC LAETITIA | F66: 2018-11-07 | G66: Excédent total | H66: 82996602 | I66: MLE RAPHAELLE GARCIA | J66: 76.9 | K66: -34734.06
A67: 6 | B67: STRASBOURG NEUDORF | C67: Michel LIENHARDT | D67: Jeremy WEIBLE | E67: LIENHARDT MICHEL | F67: 2018-11-02 | G67: CEP | H67: 82396981 | I67: SAS WOLFF MOTO PRODUCTS | J67: 0 | K67: -30000
A68: 6 | B68: STRASBOURG NEUDORF | C68: Michel LIENHARDT | D68: Jeremy WEIBLE | E68: LIENHARDT MICHEL | F68: 2018-11-02 | G68: Excédent total | H68: 82396981 | I68: SAS WOLFF MOTO PRODUCTS | J68: 0 | K68: -30000
A69: 6 | B69: STRASBOURG NEUDORF | C69: Michel LIENHARDT | D69: Jeremy WEIBLE | E69: WEIBLE JEREMY | F69: 2018-11-02 | G69: CEP | H69: 83231346 | I69: MLLE JULIE MARY | J69: 1000 | K69: 1000
A70: 6 | B70: STRASBOURG NEUDORF | C70: Michel LIENHARDT | D70: Jeremy WEIBLE | E70: WEIBLE JEREMY | F70: 2018-11-02 | G70: Excédent total | H70: 83231346 | I70: MLLE JULIE MARY | J70: 1000 | K70: 1000
A71: 6 | B71: STRASBOURG NEUDORF | C71: Michel LIENHARDT | D71: Jeremy WEIBLE | E71: WEIBLE JEREMY | F71: 2018-11-03 | G71: CEP | H71: 94124257 | I71: SCI MELI | J71: 50000 | K71: 50000
A72: 6 | B72: STRASBOURG NEUDORF | C72: Michel LIENHARDT | D72: Jeremy WEIBLE | E72: WEIBLE JEREMY | F72: 2018-11-03 | G72: Excédent total | H72: 94124257 | I72: SCI MELI | J72: 50000 | K72: 50000
A73: 6 | B73: STRASBOURG NEUDORF | C73: Michel LIENHARDT | D73: Jeremy WEIBLE | E73: WEIBLE JEREMY | F73: 2018-11-05 | G73: CEP | H73: 93843942 | I73: MAXAREN SARL | J73: 0 | K73: -2000
A74: 6 | B74: STRASBOURG NEUDORF | C74: Michel LIENHARDT | D74: Jeremy WEIBLE | E74: WEIBLE JEREMY | F74: 2018-11-05 | G74: Excédent total | H74: 82417040 | I74: MME KAMINSKI MARIE-PIERRE | J74: 0 | K74: -2000
A75: 6 | B75: STRASBOURG NEUDORF | C75: Michel LIENHARDT | D75: Jeremy WEIBLE | E75: WEIBLE JEREMY | F75: 2018-11-05 | G75: Excédent total | H75: 93843942 | I75: MAXAREN SARL | J75: 0 | K75: -2000
A76: 6 | B76: STRASBOURG NEUDORF | C76: Michel LIENHARDT | D76: Jeremy WEIBLE | E76: WEIBLE JEREMY | F76: 2018-11-06 | G76: Excédent total | H76: 82396329 | I76: EPC | J76: 0 | K76: -4000
A77: 6 | B77: STRASBOURG NEUDORF | C77: Michel LIENHARDT | D77: Jeremy WEIBLE | E77: WEIBLE JEREMY | F77: 2018-11-07 | G77: Excédent total | H77: 91299635 | I77: MLLE BERRIDA KARIMA | J77: 0 | K77: -3000
A78: 6 | B78: STRASBOURG NEUDORF | C78: Michel LIENHARDT | D78: Jeremy WEIBLE | E78: WEIBLE JEREMY | F78: 2018-11-09 | G78: CEP | H78: 91577588 | I78: DR BALDASSARI KARINE | J78: 0 | K78: -1000
A79: 6 | B79: STRASBOURG NEUDORF | C79: Michel LIENHARDT | D79: Jeremy WEIBLE | E79: WEIBLE JEREMY | F79: 2018-11-09 | G79: Excédent total | H79: 91577588 | I79: DR BALDASSARI KARINE | J79: 0 | K79: -1000
A80: 6 | B80: STRASBOURG NEUDORF | C80: Michel LIENHARDT | D80: Jeremy WEIBLE | E80: WEIBLE JEREMY | F80: 2018-11-10 | G80: Excédent total | H80: 83219302 | I80: MME TADDEI GROSS CORINNE | J80: 3000 | K80: 3000
A81: 6 | B81: STRASBOURG NEUDORF | C81: Michel LIENHARDT | D81: Jeremy WEIBLE | E81: WEIBLE JEREMY | F81: 2018-11-12 | G81: CEP | H81: 93026529 | I81: SELARL CABINET DE PATHOLOGIE | J81: 14000 | K81: 14000
A82: 6 | B82: STRASBOURG NEUDORF | C82: Michel LIENHARDT | D82: Jeremy WEIBLE | E82: WEIBLE JEREMY | F82: 2018-11-12 | G82: Excédent total | H82: 93026529 | I82: SELARL CABINET DE PATHOLOGIE | J82: 14000 | K82: 14000
A83: 7 | B83: ILLKIRCH CENTRE | C83: DCP | D83: TOUS | E83: AUTIXIERE Dimitri | F83: 2018-11-02 | G83: Excédent total | H83: 82966117 | I83: MR ALEXANDRE JARNOUX | J83: 1950 | K83: 1950
A84: 7 | B84: ILLKIRCH CENTRE | C84: DCP | D84: TOUS | E84: AUTIXIERE Dimitri | F84: 2018-11-06 | G84: CEP | H84: 93120996 | I84: KENT SASU | J84: 0 | K84: -3000
A85: 7 | B85: ILLKIRCH CENTRE | C85: DCP | D85: TOUS | E85: AUTIXIERE Dimitri | F85: 2018-11-06 | G85: Excédent total | H85: 93120996 | I85: KENT SASU | J85: 0 | K85: -3000
A86: 7 | B86: ILLKIRCH CENTRE | C86: DCP | D86: TOUS | E86: AUTIXIERE Dimitri | F86: 2018-11-09 | G86: Excédent total | H86: 83108221 | I86: MR ZACHARIE BRAIEK | J86: 2000 | K86: 2000
A87: 7 | B87: ILLKIRCH CENTRE | C87: DCP | D87: TOUS | E87: COULOT CHRISTOPHE | F87: 2018-11-08 | G87: Excédent total | H87: 82467833 | I87: MR RENE KUHN | J87: 0 | K87: -5000
A88: 7 | B88: ILLKIRCH CENTRE | C88: DCP | D88: TOUS | E88: MARCALO CATIA | F88: 2018-11-01 | G88: Excédent total | H88: 83290821 | I88: MR JEAN-CLAUDE NICOLA | J88: 2300 | K88: 2300
A89: 7 | B89: ILLKIRCH CENTRE | C89: DCP | D89: TOUS | E89: MARCALO CATIA | F89: 2018-11-02 | G89: CEP | H89: 92801526 | I89: HK TRAVAUX SAS | J89: 20000 | K89: 20000
A90: 7 | B90: ILLKIRCH CENTRE | C90: DCP | D90: TOUS | E90: MARCALO CATIA | F90: 2018-11-02 | G90: Excédent total | H90: 83290821 | I90: MR JEAN-CLAUDE NICOLA | J90: 10000 | K90: -23200
A91: 7 | B91: ILLKIRCH CENTRE | C91: DCP | D91: TOUS | E91: MARCALO CATIA | F91: 2018-11-02 | G91: Excédent total | H91: 92801526 | I91: HK TRAVAUX SAS | J91: 20000 | K91: 20000
A92: 7 | B92: ILLKIRCH CENTRE | C92: DCP | D92: TOUS | E92: MARCALO CATIA | F92: 2018-11-03 | G92: CEP | H92: 92604189 | I92: CALOPLUS SAS | J92: 8000 | K92: 8000
A93: 7 | B93: ILLKIRCH CENTRE | C93: DCP | D93: TOUS | E93: MARCALO CATIA | F93: 2018-11-03 | G93: Excédent total | H93: 92604189 | I93: CALOPLUS SAS | J93: 8000 | K93: 8000
A94: 7 | B94: ILLKIRCH CENTRE | C94: DCP | D94: TOUS | E94: MARCALO CATIA | F94: 2018-11-05 | G94: CEP | H94: 92604189 | I94: CALOPLUS SAS | J94: 0 | K94: -4286.81
A95: 7 | B95: ILLKIRCH CENTRE | C95: DCP | D95: TOUS | E95: MARCALO CATIA | F95: 2018-11-05 | G95: Excédent total | H95: 92604189 | I95: CALOPLUS SAS | J95: 0 | K95: -4286.81
A96: 7 | B96: ILLKIRCH CENTRE | C96: DCP | D96: TOUS | E96: MARCALO CATIA | F96: 2018-11-06 | G96: CEP | H96: 83200116 | I96: MR FRANCOIS THIL | J96: 0 | K96: -1160
A97: 7 | B97: ILLKIRCH CENTRE | C97: DCP | D97: TOUS | E97: MARCALO CATIA | F97: 2018-11-06 | G97: Excédent total | H97: 83072489 | I97: MR PATRICK PUGIN | J97: 0 | K97: -1500
A98: 7 | B98: ILLKIRCH CENTRE | C98: DCP | D98: TOUS | E98: MARCALO CATIA | F98: 2018-11-06 | G98: Excédent total | H98: 83200116 | I98: MR FRANCOIS THIL | J98: 0 | K98: -1160
A99: 7 | B99: ILLKIRCH CENTRE | C99: DCP | D99: TOUS | E99: MARCALO CATIA | F99: 2018-11-06 | G99: Excédent total | H99: 92445733 | I99: MME VOGEL CARINE | J99: 0 | K99: -1000
A100: 7 | B100: ILLKIRCH CENTRE | C100: DCP | D100: TOUS | E100: MARCALO CATIA | F100: 2018-11-08 | G100: CEP | H100: 93798247 | I100: BAHM CCSDB SARL | J100: 6300 | K100: 6300
A101: 7 | B101: ILLKIRCH CENTRE | C101: DCP | D101: TOUS | E101: MARCALO CATIA | F101: 2018-11-08 | G101: Excédent total | H101: 93798247 | I101: BAHM CCSDB SARL | J101: 6300 | K101: 6300
A102: 7 | B102: ILLKIRCH CENTRE | C102: DCP | D102: TOUS | E102: MARCALO CATIA | F102: 2018-11-09 | G102: Excédent total | H102: 83056735 | I102: MR CHRISTOPHE BAUER | J102: 0 | K102: -1500
A103: 7 | B103: ILLKIRCH CENTRE | C103: DCP | D103: TOUS | E103: MARCALO CATIA | F103: 2018-11-12 | G103: CEP | H103: 93309109 | I103: ALMASI | J103: 5000 | K103: 5000
A104: 7 | B104: ILLKIRCH CENTRE | C104: DCP | D104: TOUS | E104: MARCALO CATIA | F104: 2018-11-12 | G104: Excédent total | H104: 93309109 | I104: ALMASI | J104: 5000 | K104: 5000
A105: 7 | B105: ILLKIRCH CENTRE | C105: DCP | D105: TOUS | E105: NUNIGE JACQUI | F105: 2018-11-07 | G105: CEP | H105: 93564010 | I105: GRAND EST TRANSPORTS | J105: 0 | K105: -5500
A106: 7 | B106: ILLKIRCH CENTRE | C106: DCP | D106: TOUS | E106: NUNIGE JACQUI | F106: 2018-11-07 | G106: Excédent total | H106: 93564010 | I106: GRAND EST TRANSPORTS | J106: 0 | K106: -5500
A107: 7 | B107: ILLKIRCH CENTRE | C107: DCP | D107: TOUS | E107: TAESCH KEVIN | F107: 2018-11-09 | G107: Excédent total | H107: 83057617 | I107: MR JEAN CLAUDE SCHERTZER | J107: 0 | K107: -1000
A108: 7 | B108: ILLKIRCH CENTRE | C108: Michel LIENHARDT | D108: Catia MARCALO | E108: AUTIXIERE Dimitri | F108: 2018-11-02 | G108: Excédent total | H108: 82966117 | I108: MR ALEXANDRE JARNOUX | J108: 1950 | K108: 1950
A109: 7 | B109: ILLKIRCH CENTRE | C109: Michel LIENHARDT | D109: Catia MARCALO | E109: AUTIXIERE Dimitri | F109: 2018-11-06 | G109: CEP | H109: 93120996 | I109: KENT SASU | J109: 0 | K109: -3000
A110: 7 | B110: ILLKIRCH CENTRE | C110: Michel LIENHARDT | D110: Catia MARCALO | E110: AUTIXIERE Dimitri | F110: 2018-11-06 | G110: Excédent total | H110: 93120996 | I110: KENT SASU | J110: 0 | K110: -3000
A111: 7 | B111: ILLKIRCH CENTRE | C111: Michel LIENHARDT | D111: Catia MARCALO | E111: AUTIXIERE Dimitri | F111: 2018-11-09 | G111: Excédent total | H111: 83108221 | I111: MR ZACHARIE BRAIEK | J111: 2000 | K111: 2000
A112: 7 | B112: ILLKIRCH CENTRE | C112: Michel LIENHARDT | D112: Catia MARCALO | E112: COULOT CHRISTOPHE | F112: 2018-11-08 | G112: Excédent total | H112: 82467833 | I112: MR RENE KUHN | J112: 0 | K112: -5000
A113: 7 | B113: ILLKIRCH CENTRE | C113: Michel LIENHARDT | D113: Catia MARCALO | E113: MARCALO CATIA | F113: 2018-11-01 | G113: Excédent total | H113: 83290821 | I113: MR JEAN-CLAUDE NICOLA | J113: 2300 | K113: 2300
A114: 7 | B114: ILLKIRCH CENTRE | C114: Michel LIENHARDT | D114: Catia MARCALO | E114: MARCALO CATIA | F114: 2018-11-02 | G114: CEP | H114: 92801526 | I114: HK TRAVAUX SAS | J114: 20000 | K114: 20000
A115: 7 | B115: ILLKIRCH CENTRE | C115: Michel LIENHARDT | D115: Catia MARCALO | E115: MARCALO CATIA | F115: 2018-11-02 | G115: Excédent total | H115: 83290821 | I115: MR JEAN-CLAUDE NICOLA | J115: 10000 | K115: -23200
A116: 7 | B116: ILLKIRCH CENTRE | C116: Michel LIENHARDT | D116: Catia MARCALO | E116: MARCALO CATIA | F116: 2018-11-02 | G116: Excédent total | H116: 92801526 | I116: HK TRAVAUX SAS | J116: 20000 | K116: 20000
A117: 7 | B117: ILLKIRCH CENTRE | C117: Michel LIENHARDT | D117: Catia MARCALO | E117: MARCALO CATIA | F117: 2018-11-03 | G117: CEP | H117: 92604189 | I117: CALOPLUS SAS | J117: 8000 | K117: 8000
A118: 7 | B118: ILLKIRCH CENTRE | C118: Michel LIENHARDT | D118: Catia MARCALO | E118: MARCALO CATIA | F118: 2018-11-03 | G118: Excédent total | H118: 92604189 | I118: CALOPLUS SAS | J118: 8000 | K118: 8000
A119: 7 | B119: ILLKIRCH CENTRE | C119: Michel LIENHARDT | D119: Catia MARCALO | E119: MARCALO CATIA | F119: 2018-11-05 | G119: CEP | H119: 92604189 | I119: CALOPLUS SAS | J119: 0 | K119: -4286.81
A120: 7 | B120: ILLKIRCH CENTRE | C120: Michel LIENHARDT | D120: Catia MARCALO | E120: MARCALO CATIA | F120: 2018-11-05 | G120: Excédent total | H120: 92604189 | I120: CALOPLUS SAS | J120: 0 | K120: -4286.81
A121: 7 | B121: ILLKIRCH CENTRE | C121: Michel LIENHARDT | D121: Catia MARCALO | E121: MARCALO CATIA | F121: 2018-11-06 | G121: CEP | H121: 83200116 | I121: MR FRANCOIS THIL | J121: 0 | K121: -1160
A122: 7 | B122: ILLKIRCH CENTRE | C122: Michel LIENHARDT | D122: Catia MARCALO | E122: MARCALO CATIA | F122: 2018-11-06 | G122: Excédent total | H122: 83072489 | I122: MR PATRICK PUGIN | J122: 0 | K122: -1500
A123: 7 | B123: ILLKIRCH CENTRE | C123: Michel LIENHARDT | D123: Catia MARCALO | E123: MARCALO CATIA | F123: 2018-11-06 | G123: Excédent total | H123: 83200116 | I123: MR FRANCOIS THIL | J123: 0 | K123: -1160
A124: 7 | B124: ILLKIRCH CENTRE | C124: Michel LIENHARDT | D124: Catia MARCALO | E124: MARCALO CATIA | F124: 2018-11-06 | G124: Excédent total | H124: 92445733 | I124: MME VOGEL CARINE | J124: 0 | K124: -1000
A125: 7 | B125: ILLKIRCH CENTRE | C125: Michel LIENHARDT | D125: Catia MARCALO | E125: MARCALO CATIA | F125: 2018-11-08 | G125: CEP | H125: 93798247 | I125: BAHM CCSDB SARL | J125: 6300 | K125: 6300
A126: 7 | B126: ILLKIRCH CENTRE | C126: Michel LIENHARDT | D126: Catia MARCALO | E126: MARCALO CATIA | F126: 2018-11-08 | G126: Excédent total | H126: 93798247 | I126: BAHM CCSDB SARL | J126: 6300 | K126: 6300
A127: 7 | B127: ILLKIRCH CENTRE | C127: Michel LIENHARDT | D127: Catia MARCALO | E127: MARCALO CATIA | F127: 2018-11-09 | G127: Excédent total | H127: 83056735 | I127: MR CHRISTOPHE BAUER | J127: 0 | K127: -1500
A128: 7 | B128: ILLKIRCH CENTRE | C128: Michel LIENHARDT | D128: Catia MARCALO | E128: MARCALO CATIA | F128: 2018-11-12 | G128: CEP | H128: 93309109 | I128: ALMASI | J128: 5000 | K128: 5000
A129: 7 | B129: ILLKIRCH CENTRE | C129: Michel LIENHARDT | D129: Catia MARCALO | E129: MARCALO CATIA | F129: 2018-11-12 | G129: Excédent total | H129: 93309109 | I129: ALMASI | J129: 5000 | K129: 5000
A130: 7 | B130: ILLKIRCH CENTRE | C130: Michel LIENHARDT | D130: Catia MARCALO | E130: NUNIGE JACQUI | F130: 2018-11-07 | G130: CEP | H130: 93564010 | I130: GRAND EST TRANSPORTS | J130: 0 | K130: -5500
A131: 7 | B131: ILLKIRCH CENTRE | C131: Michel LIENHARDT | D131: Catia MARCALO | E131: NUNIGE JACQUI | F131: 2018-11-07 | G131: Excédent total | H131: 93564010 | I131: GRAND EST TRANSPORTS | J131: 0 | K131: -5500
A132: 7 | B132: ILLKIRCH CENTRE | C132: Michel LIENHARDT | D132: Catia MARCALO | E132: TAESCH KEVIN | F132: 2018-11-09 | G132: Excédent total | H132: 83057617 | I132: MR JEAN CLAUDE SCHERTZER | J132: 0 | K132: -1000
A133: 8 | B133: FEGERSHEIM | C133: DCP | D133: TOUS | E133: HERRMANN LAURA | F133: 2018-11-02 | G133: CEP | H133: 83267568 | I133: HEITZ YANNICK GABRIEL | J133: 0 | K133: -1100
A134: 8 | B134: FEGERSHEIM | C134: DCP | D134: TOUS | E134: HERRMANN LAURA | F134: 2018-11-02 | G134: Excédent total | H134: 83267568 | I134: HEITZ YANNICK GABRIEL | J134: 0 | K134: -1100
A135: 8 | B135: FEGERSHEIM | C135: DCP | D135: TOUS | E135: HERRMANN LAURA | F135: 2018-11-03 | G135: CEP | H135: 83267568 | I135: HEITZ YANNICK GABRIEL | J135: 1800 | K135: 1800
A136: 8 | B136: FEGERSHEIM | C136: DCP | D136: TOUS | E136: HERRMANN LAURA | F136: 2018-11-03 | G136: Excédent total | H136: 83267568 | I136: HEITZ YANNICK GABRIEL | J136: 1800 | K136: 1800
A137: 8 | B137: FEGERSHEIM | C137: DCP | D137: TOUS | E137: HERRMANN LAURA | F137: 2018-11-08 | G137: CEP | H137: 83267568 | I137: HEITZ YANNICK GABRIEL | J137: 1600 | K137: 1600
A138: 8 | B138: FEGERSHEIM | C138: DCP | D138: TOUS | E138: HERRMANN LAURA | F138: 2018-11-08 | G138: Excédent total | H138: 83267568 | I138: HEITZ YANNICK GABRIEL | J138: 1600 | K138: 1600
A139: 8 | B139: FEGERSHEIM | C139: DCP | D139: TOUS | E139: HERRMANN LAURA | F139: 2018-11-09 | G139: CEP | H139: 83267568 | I139: HEITZ YANNICK GABRIEL | J139: 0 | K139: -1500
A140: 8 | B140: FEGERSHEIM | C140: DCP | D140: TOUS | E140: HERRMANN LAURA | F140: 2018-11-09 | G140: Excédent total | H140: 83267568 | I140: HEITZ YANNICK GABRIEL | J140: 0 | K140: -1500
A141: 8 | B141: FEGERSHEIM | C141: DCP | D141: TOUS | E141: HERRMANN LAURA | F141: 2018-11-12 | G141: Excédent total | H141: 82472793 | I141: MME FREDERIQUE CANTRELLE | J141: 0 | K141: -2522
A142: 8 | B142: FEGERSHEIM | C142: DCP | D142: TOUS | E142: LEFEVRE CELINE | F142: 2018-11-02 | G142: Excédent total | H142: 91662216 | I142: M DE LAMBERTERIE NICOLAS ALEXIS | J142: 0 | K142: -3320
A143: 8 | B143: FEGERSHEIM | C143: DCP | D143: TOUS | E143: LEFEVRE CELINE | F143: 2018-11-05 | G143: CEP | H143: 92997402 | I143: DWS DISTRIBUTION SARL | J143: 18000 | K143: 18000
A144: 8 | B144: FEGERSHEIM | C144: DCP | D144: TOUS | E144: LEFEVRE CELINE | F144: 2018-11-05 | G144: Excédent total | H144: 92997402 | I144: DWS DISTRIBUTION SARL | J144: 18000 | K144: 18000
A145: 8 | B145: FEGERSHEIM | C145: DCP | D145: TOUS | E145: LEFEVRE CELINE | F145: 2018-11-06 | G145: Excédent total | H145: 83429868 | I145: MLE MARTINE KAJOCH | J145: 0 | K145: -2000
A146: 8 | B146: FEGERSHEIM | C146: DCP | D146: TOUS | E146: LEFEVRE CELINE | F146: 2018-11-07 | G146: Excédent total | H146: 83124660 | I146: MME COURTADE CHRISTIANE | J146: 0 | K146: -1000
A147: 8 | B147: FEGERSHEIM | C147: DCP | D147: TOUS | E147: LEFEVRE CELINE | F147: 2018-11-10 | G147: CEP | H147: 82969804 | I147: MME SOPHIE LAGNEAU | J147: 0 | K147: -1000
A148: 8 | B148: FEGERSHEIM | C148: DCP | D148: TOUS | E148: LEFEVRE CELINE | F148: 2018-11-10 | G148: Excédent total | H148: 82969804 | I148: MME SOPHIE LAGNEAU | J148: 0 | K148: -1000
A149: 8 | B149: FEGERSHEIM | C149: DCP | D149: TOUS | E149: LEFEVRE CELINE | F149: 2018-11-12 | G149: Excédent total | H149: 82969804 | I149: MME SOPHIE LAGNEAU | J149: 1000 | K149: 1000
A150: 8 | B150: FEGERSHEIM | C150: DCP | D150: TOUS | E150: MARCALO CATIA | F150: 2018-11-02 | G150: CEP | H150: 82395951 | I150: SARL PEINTURE KORDE | J150: 6000 | K150: 6000
A151: 8 | B151: FEGERSHEIM | C151: DCP | D151: TOUS | E151: MARCALO CATIA | F151: 2018-11-02 | G151: Excédent total | H151: 82395951 | I151: SARL PEINTURE KORDE | J151: 6000 | K151: 6000
A152: 8 | B152: FEGERSHEIM | C152: DCP | D152: TOUS | E152: MARCALO CATIA | F152: 2018-11-03 | G152: Excédent total | H152: 82475034 | I152: MR NICOLAS DUGAST | J152: 0 | K152: -2000
A153: 8 | B153: FEGERSHEIM | C153: DCP | D153: TOUS | E153: MARCALO CATIA | F153: 2018-11-08 | G153: CEP | H153: 82398030 | I153: SARL EHRHART OBERNAI | J153: 0 | K153: -1000
A154: 8 | B154: FEGERSHEIM | C154: DCP | D154: TOUS | E154: MARCALO CATIA | F154: 2018-11-08 | G154: Excédent total | H154: 82398030 | I154: SARL EHRHART OBERNAI | J154: 0 | K154: -1000
A155: 8 | B155: FEGERSHEIM | C155: DCP | D155: TOUS | E155: MARCALO CATIA | F155: 2018-11-09 | G155: CEP | H155: 82394521 | I155: IMS PARTICULIER PROFESSIONNEL | J155: 0 | K155: -10000
A156: 8 | B156: FEGERSHEIM | C156: DCP | D156: TOUS | E156: MARCALO CATIA | F156: 2018-11-09 | G156: CEP | H156: 82395951 | I156: SARL PEINTURE KORDE | J156: 0 | K156: -3000
A157: 8 | B157: FEGERSHEIM | C157: DCP | D157: TOUS | E157: MARCALO CATIA | F157: 2018-11-09 | G157: Excédent total | H157: 82394521 | I157: IMS PARTICULIER PROFESSIONNEL | J157: 0 | K157: -10000
A158: 8 | B158: FEGERSHEIM | C158: DCP | D158: TOUS | E158: MARCALO CATIA | F158: 2018-11-09 | G158: Excédent total | H158: 82395951 | I158: SARL PEINTURE KORDE | J158: 0 | K158: -3000
A159: 8 | B159: FEGERSHEIM | C159: DCP | D159: TOUS | E159: MARCALO CATIA | F159: 2018-11-12 | G159: CEP | H159: 91962291 | I159: LABORATOIRE DENTAIRE F BRENNER | J159: 0 | K159: -2000
A160: 8 | B160: FEGERSHEIM | C160: DCP | D160: TOUS | E160: MARCALO CATIA | F160: 2018-11-12 | G160: Excédent total | H160: 91962291 | I160: LABORATOIRE DENTAIRE F BRENNER | J160: 0 | K160: -2000
A161: 8 | B161: FEGERSHEIM | C161: Michel LIENHARDT | D161: Catia MARCALO | E161: HERRMANN LAURA | F161: 2018-11-02 | G161: CEP | H161: 83267568 | I161: HEITZ YANNICK GABRIEL | J161: 0 | K161: -1100
A162: 8 | B162: FEGERSHEIM | C162: Michel LIENHARDT | D162: Catia MARCALO | E162: HERRMANN LAURA | F162: 2018-11-02 | G162: Excédent total | H162: 83267568 | I162: HEITZ YANNICK GABRIEL | J162: 0 | K162: -1100
A163: 8 | B163: FEGERSHEIM | C163: Michel LIENHARDT | D163: Catia MARCALO | E163: HERRMANN LAURA | F163: 2018-11-03 | G163: CEP | H163: 83267568 | I163: HEITZ YANNICK GABRIEL | J163: 1800 | K163: 1800
A164: 8 | B164: FEGERSHEIM | C164: Michel LIENHARDT | D164: Catia MARCALO | E164: HERRMANN LAURA | F164: 2018-11-03 | G164: Excédent total | H164: 83267568 | I164: HEITZ YANNICK GABRIEL | J164: 1800 | K164: 1800
A165: 8 | B165: FEGERSHEIM | C165: Michel LIENHARDT | D165: Catia MARCALO | E165: HERRMANN LAURA | F165: 2018-11-08 | G165: CEP | H165: 83267568 | I165: HEITZ YANNICK GABRIEL | J165: 1600 | K165: 1600
A166: 8 | B166: FEGERSHEIM | C166: Michel LIENHARDT | D166: Catia MARCALO | E166: HERRMANN LAURA | F166: 2018-11-08 | G166: Excédent total | H166: 83267568 | I166: HEITZ YANNICK GABRIEL | J166: 1600 | K166: 1600
A167: 8 | B167: FEGERSHEIM | C167: Michel LIENHARDT | D167: Catia MARCALO | E167: HERRMANN LAURA | F167: 2018-11-09 | G167: CEP | H167: 83267568 | I167: HEITZ YANNICK GABRIEL | J167: 0 | K167: -1500
A168: 8 | B168: FEGERSHEIM | C168: Michel LIENHARDT | D168: Catia MARCALO | E168: HERRMANN LAURA | F168: 2018-11-09 | G168: Excédent total | H168: 83267568 | I168: HEITZ YANNICK GABRIEL | J168: 0 | K168: -1500
A169: 8 | B169: FEGERSHEIM | C169: Michel LIENHARDT | D169: Catia MARCALO | E169: HERRMANN LAURA | F169: 2018-11-12 | G169: Excédent total | H169: 82472793 | I169: MME FREDERIQUE CANTRELLE | J169: 0 | K169: -2522
A170: 8 | B170: FEGERSHEIM | C170: Michel LIENHARDT | D170: Catia MARCALO | E170: LEFEVRE CELINE | F170: 2018-11-02 | G170: Excédent total | H170: 91662216 | I170: M DE LAMBERTERIE NICOLAS ALEXIS | J170: 0 | K170: -3320
A171: 8 | B171: FEGERSHEIM | C171: Michel LIENHARDT | D171: Catia MARCALO | E171: LEFEVRE CELINE | F171: 2018-11-05 | G171: CEP | H171: 92997402 | I171: DWS DISTRIBUTION SARL | J171: 18000 | K171: 18000
A172: 8 | B172: FEGERSHEIM | C172: Michel LIENHARDT | D172: Catia MARCALO | E172: LEFEVRE CELINE | F172: 2018-11-05 | G172: Excédent total | H172: 92997402 | I172: DWS DISTRIBUTION SARL | J172: 18000 | K172: 18000
A173: 8 | B173: FEGERSHEIM | C173: Michel LIENHARDT | D173: Catia MARCALO | E173: LEFEVRE CELINE | F173: 2018-11-06 | G173: Excédent total | H173: 83429868 | I173: MLE MARTINE KAJOCH | J173: 0 | K173: -2000
A174: 8 | B174: FEGERSHEIM | C174: Michel LIENHARDT | D174: Catia MARCALO | E174: LEFEVRE CELINE | F174: 2018-11-07 | G174: Excédent total | H174: 83124660 | I174: MME COURTADE CHRISTIANE | J174: 0 | K174: -1000
A175: 8 | B175: FEGERSHEIM | C175: Michel LIENHARDT | D175: Catia MARCALO | E175: LEFEVRE CELINE | F175: 2018-11-10 | G175: CEP | H175: 82969804 | I175: MME SOPHIE LAGNEAU | J175: 0 | K175: -1000
A176: 8 | B176: FEGERSHEIM | C176: Michel LIENHARDT | D176: Catia MARCALO | E176: LEFEVRE CELINE | F176: 2018-11-10 | G176: Excédent total | H176: 82969804 | I176: MME SOPHIE LAGNEAU | J176: 0 | K176: -1000
A177: 8 | B177: FEGERSHEIM | C177: Michel LIENHARDT | D177: Catia MARCALO | E177: LEFEVRE CELINE | F177: 2018-11-12 | G177: Excédent total | H177: 82969804 | I177: MME SOPHIE LAGNEAU | J177: 1000 | K177: 1000
A178: 8 | B178: FEGERSHEIM | C178: Michel LIENHARDT | D178: Catia MARCALO | E178: MARCALO CATIA | F178: 2018-11-02 | G178: CEP | H178: 82395951 | I178: SARL PEINTURE KORDE | J178: 6000 | K178: 6000
A179: 8 | B179: FEGERSHEIM | C179: Michel LIENHARDT | D179: Catia MARCALO | E179: MARCALO CATIA | F179: 2018-11-02 | G179: Excédent total | H179: 82395951 | I179: SARL PEINTURE KORDE | J179: 6000 | K179: 6000
A180: 8 | B180: FEGERSHEIM | C180: Michel LIENHARDT | D180: Catia MARCALO | E180: MARCALO CATIA | F180: 2018-11-03 | G180: Excédent total | H180: 82475034 | I180: MR NICOLAS DUGAST | J180: 0 | K180: -2000
A181: 8 | B181: FEGERSHEIM | C181: Michel LIENHARDT | D181: Catia MARCALO | E181: MARCALO CATIA | F181: 2018-11-08 | G181: CEP | H181: 82398030 | I181: SARL EHRHART OBERNAI | J181: 0 | K181: -1000
A182: 8 | B182: FEGERSHEIM | C182: Michel LIENHARDT | D182: Catia MARCALO | E182: MARCALO CATIA | F182: 2018-11-08 | G182: Excédent total | H182: 82398030 | I182: SARL EHRHART OBERNAI | J182: 0 | K182: -1000
A183: 8 | B183: FEGERSHEIM | C183: Michel LIENHARDT | D183: Catia MARCALO | E183: MARCALO CATIA | F183: 2018-11-09 | G183: CEP | H183: 82394521 | I183: IMS PARTICULIER PROFESSIONNEL | J183: 0 | K183: -10000
A184: 8 | B184: FEGERSHEIM | C184: Michel LIENHARDT | D184: Catia MARCALO | E184: MARCALO CATIA | F184: 2018-11-09 | G184: CEP | H184: 82395951 | I184: SARL PEINTURE KORDE | J184: 0 | K184: -3000
A185: 8 | B185: FEGERSHEIM | C185: Michel LIENHARDT | D185: Catia MARCALO | E185: MARCALO CATIA | F185: 2018-11-09 | G185: Excédent total | H185: 82394521 | I185: IMS PARTICULIER PROFESSIONNEL | J185: 0 | K185: -10000
A186: 8 | B186: FEGERSHEIM | C186: Michel LIENHARDT | D186: Catia MARCALO | E186: MARCALO CATIA | F186: 2018-11-09 | G186: Excédent total | H186: 82395951 | I186: SARL PEINTURE KORDE | J186: 0 | K186: -3000
A187: 8 | B187: FEGERSHEIM | C187: Michel LIENHARDT | D187: Catia MARCALO | E187: MARCALO CATIA | F187: 2018-11-12 | G187: CEP | H187: 91962291 | I187: LABORATOIRE DENTAIRE F BRENNER | J187: 0 | K187: -2000
A188: 8 | B188: FEGERSHEIM | C188: Michel LIENHARDT | D188: Catia MARCALO | E188: MARCALO CATIA | F188: 2018-11-12 | G188: Excédent total | H188: 91962291 | I188: LABORATOIRE DENTAIRE F BRENNER | J188: 0 | K188: -2000
A189: 10 | B189: STRASBOURG MEINAU | C189: DCP | D189: TOUS | E189: BALTIC OLIVERA | F189: 2018-11-01 | G189: CEP | H189: 93566611 | I189: BUZZ CAPITAL SAS | J189: 1500 | K189: 1500
A190: 10 | B190: STRASBOURG MEINAU | C190: DCP | D190: TOUS | E190: BALTIC OLIVERA | F190: 2018-11-01 | G190: Excédent total | H190: 93566611 | I190: BUZZ CAPITAL SAS | J190: 1500 | K190: 1500
A191: 10 | B191: STRASBOURG MEINAU | C191: DCP | D191: TOUS | E191: BALTIC OLIVERA | F191: 2018-11-05 | G191: CEP | H191: 93566611 | I191: BUZZ CAPITAL SAS | J191: 0 | K191: -1500
A192: 10 | B192: STRASBOURG MEINAU | C192: DCP | D192: TOUS | E192: BALTIC OLIVERA | F192: 2018-11-05 | G192: Excédent total | H192: 93566611 | I192: BUZZ CAPITAL SAS | J192: 0 | K192: -1500
A193: 10 | B193: STRASBOURG MEINAU | C193: DCP | D193: TOUS | E193: STREBLER Damien | F193: 2018-11-02 | G193: Excédent total | H193: 83100088 | I193: MME MARIE-PASCALE PETER-WOERLY | J193: 0 | K193: -20000
A194: 10 | B194: STRASBOURG MEINAU | C194: DCP | D194: TOUS | E194: WEIBLE JEREMY | F194: 2018-11-05 | G194: Excédent total | H194: 82980584 | I194: MME SONIA HASER | J194: 0 | K194: -1300
A195: 10 | B195: STRASBOURG MEINAU | C195: DCP | D195: TOUS | E195: WEIBLE JEREMY | F195: 2018-11-07 | G195: CEP | H195: 82392435 | I195: STE CLEVENOT VERONIQUE | J195: 1000 | K195: 1000
A196: 10 | B196: STRASBOURG MEINAU | C196: DCP | D196: TOUS | E196: WEIBLE JEREMY | F196: 2018-11-07 | G196: Excédent total | H196: 82392435 | I196: STE CLEVENOT VERONIQUE | J196: 1000 | K196: 1000
A197: 10 | B197: STRASBOURG MEINAU | C197: DCP | D197: TOUS | E197: WEIBLE JEREMY | F197: 2018-11-09 | G197: Excédent total | H197: 82468841 | I197: MR DAVID DEUTSCH | J197: 700 | K197: -3500
A198: 10 | B198: STRASBOURG MEINAU | C198: Michel LIENHARDT | D198: Jeremy WEIBLE | E198: BALTIC OLIVERA | F198: 2018-11-01 | G198: CEP | H198: 93566611 | I198: BUZZ CAPITAL SAS | J198: 1500 | K198: 1500
A199: 10 | B199: STRASBOURG MEINAU | C199: Michel LIENHARDT | D199: Jeremy WEIBLE | E199: BALTIC OLIVERA | F199: 2018-11-01 | G199: Excédent total | H199: 93566611 | I199: BUZZ CAPITAL SAS | J199: 1500 | K199: 1500
A200: 10 | B200: STRASBOURG MEINAU | C200: Michel LIENHARDT | D200: Jeremy WEIBLE | E200: BALTIC OLIVERA | F200: 2018-11-05 | G200: CEP | H200: 93566611 | I200: BUZZ CAPITAL SAS | J200: 0 | K200: -1500
A201: 10 | B201: STRASBOURG MEINAU | C201: Michel LIENHARDT | D201: Jeremy WEIBLE | E201: BALTIC OLIVERA | F201: 2018-11-05 | G201: Excédent total | H201: 93566611 | I201: BUZZ CAPITAL SAS | J201: 0 | K201: -1500
A202: 10 | B202: STRASBOURG MEINAU | C202: Michel LIENHARDT | D202: Jeremy WEIBLE | E202: STREBLER Damien | F202: 2018-11-02 | G202: Excédent total | H202: 83100088 | I202: MME MARIE-PASCALE PETER-WOERLY | J202: 0 | K202: -20000
A203: 10 | B203: STRASBOURG MEINAU | C203: Michel LIENHARDT | D203: Jeremy WEIBLE | E203: WEIBLE JEREMY | F203: 2018-11-05 | G203: Excédent total | H203: 82980584 | I203: MME SONIA HASER | J203: 0 | K203: -1300
A204: 10 | B204: STRASBOURG MEINAU | C204: Michel LIENHARDT | D204: Jeremy WEIBLE | E204: WEIBLE JEREMY | F204: 2018-11-07 | G204: CEP | H204: 82392435 | I204: STE CLEVENOT VERONIQUE | J204: 1000 | K204: 1000
A205: 10 | B205: STRASBOURG MEINAU | C205: Michel LIENHARDT | D205: Jeremy WEIBLE | E205: WEIBLE JEREMY | F205: 2018-11-07 | G205: Excédent total | H205: 82392435 | I205: STE CLEVENOT VERONIQUE | J205: 1000 | K205: 1000
... 4295 more rows

Sheet CREDITS
A1: NO ENTITE | B1: ENTITE | C1: DCP | D1: CCPRO | E1: FAMILLE | F1: ENG NET | G1: NB ENG NET | H1: ENG_S_1 | I1: NB_S_1 | J1: ENG_M | K1: NB_M
A2: 6 | B2: STRASBOURG NEUDORF | C2: DCP | D2: TOUS | E2: MLT | F2: 1183000 | G2: 5
A3: 6 | B3: STRASBOURG NEUDORF | C3: DCP | D3: TOUS | E3: PRET CONSOMMATION | F3: 205800 | G3: 8 | H3: -20000 | I3: -1 | J3: -20000 | K3: -1
A4: 6 | B4: STRASBOURG NEUDORF | C4: DCP | D4: TOUS | E4: PRET IMMOBILIER | F4: 432298 | G4: 4
A5: 6 | B5: STRASBOURG NEUDORF | C5: Michel LIENHARDT | D5: Jeremy WEIBLE | E5: MLT | F5: 1183000 | G5: 5
A6: 6 | B6: STRASBOURG NEUDORF | C6: Michel LIENHARDT | D6: Jeremy WEIBLE | E6: PRET CONSOMMATION | F6: 205800 | G6: 8 | H6: -20000 | I6: -1 | J6: -20000 | K6: -1
A7: 6 | B7: STRASBOURG NEUDORF | C7: Michel LIENHARDT | D7: Jeremy WEIBLE | E7: PRET IMMOBILIER | F7: 432298 | G7: 4
A8: 7 | B8: ILLKIRCH CENTRE | C8: DCP | D8: TOUS | E8: MLT | F8: 184234 | G8: 10 | H8: 7000 | I8: 1 | J8: 7000 | K8: 1
A9: 7 | B9: ILLKIRCH CENTRE | C9: DCP | D9: TOUS | E9: PRET CONSOMMATION | F9: 276000 | G9: 13 | H9: -38000 | I9: -1 | J9: -38000 | K9: -1
A10: 7 | B10: ILLKIRCH CENTRE | C10: DCP | D10: TOUS | E10: PRET IMMOBILIER | F10: 656373 | G10: 5
A11: 7 | B11: ILLKIRCH CENTRE | C11: Michel LIENHARDT | D11: Catia MARCALO | E11: MLT | F11: 184234 | G11: 10 | H11: 7000 | I11: 1 | J11: 7000 | K11: 1
A12: 7 | B12: ILLKIRCH CENTRE | C12: Michel LIENHARDT | D12: Catia MARCALO | E12: PRET CONSOMMATION | F12: 276000 | G12: 13 | H12: -38000 | I12: -1 | J12: -38000 | K12: -1
A13: 7 | B13: ILLKIRCH CENTRE | C13: Michel LIENHARDT | D13: Catia MARCALO | E13: PRET IMMOBILIER | F13: 656373 | G13: 5
A14: 8 | B14: FEGERSHEIM | C14: DCP | D14: TOUS | E14: MLT | F14: 194000 | G14: 3
A15: 8 | B15: FEGERSHEIM | C15: DCP | D15: TOUS | E15: PRET CONSOMMATION | F15: 121000 | G15: 8
A16: 8 | B16: FEGERSHEIM | C16: DCP | D16: TOUS | E16: PRET IMMOBILIER | F16: 126866 | G16: 2
A17: 8 | B17: FEGERSHEIM | C17: Michel LIENHARDT | D17: Catia MARCALO | E17: MLT | F17: 194000 | G17: 3
A18: 8 | B18: FEGERSHEIM | C18: Michel LIENHARDT | D18: Catia MARCALO | E18: PRET CONSOMMATION | F18: 121000 | G18: 8
A19: 8 | B19: FEGERSHEIM | C19: Michel LIENHARDT | D19: Catia MARCALO | E19: PRET IMMOBILIER | F19: 126866 | G19: 2
A20: 10 | B20: STRASBOURG MEINAU | C20: DCP | D20: TOUS | E20: MLT | F20: 199000 | G20: 3
A21: 10 | B21: STRASBOURG MEINAU | C21: Michel LIENHARDT | D21: Jeremy WEIBLE | E21: MLT | F21: 199000 | G21: 3
A22: 12 | B22: STRASBOURG STOCKFELD | C22: DCP | D22: TOUS | E22: MLT | F22: 45000 | G22: 1
A23: 12 | B23: STRASBOURG STOCKFELD | C23: DCP | D23: TOUS | E23: PRET CONSOMMATION | F23: 34000 | G23: 2
A24: 12 | B24: STRASBOURG STOCKFELD | C24: DCP | D24: TOUS | E24: PRET IMMOBILIER | F24: 386879 | G24: 1
A25: 12 | B25: STRASBOURG STOCKFELD | C25: Michel LIENHARDT | D25: Jeremy WEIBLE | E25: MLT | F25: 45000 | G25: 1
A26: 12 | B26: STRASBOURG STOCKFELD | C26: Michel LIENHARDT | D26: Jeremy WEIBLE | E26: PRET CONSOMMATION | F26: 34000 | G26: 2
A27: 12 | B27: STRASBOURG STOCKFELD | C27: Michel LIENHARDT | D27: Jeremy WEIBLE | E27: PRET IMMOBILIER | F27: 386879 | G27: 1
A28: 13 | B28: ILLKIRCH NORD | C28: DCP | D28: TOUS | E28: MLT | F28: -41100 | G28: 0
A29: 13 | B29: ILLKIRCH NORD | C29: DCP | D29: TOUS | E29: PRET IMMOBILIER | F29: 160506 | G29: 1
A30: 13 | B30: ILLKIRCH NORD | C30: Michel LIENHARDT | D30: Catia MARCALO | E30: MLT | F30: -41100 | G30: 0
A31: 13 | B31: ILLKIRCH NORD | C31: Michel LIENHARDT | D31: Catia MARCALO | E31: PRET IMMOBILIER | F31: 160506 | G31: 1
A32: 14 | B32: OSTWALD | C32: DCP | D32: TOUS | E32: MLT | F32: 28300 | G32: 2
A33: 14 | B33: OSTWALD | C33: DCP | D33: TOUS | E33: PRET CONSOMMATION | F33: 119100 | G33: 6
A34: 14 | B34: OSTWALD | C34: DCP | D34: TOUS | E34: PRET IMMOBILIER | F34: 1231654 | G34: 5
A35: 14 | B35: OSTWALD | C35: Michel LIENHARDT | D35: Catia MARCALO | E35: MLT | F35: 28300 | G35: 2
A36: 14 | B36: OSTWALD | C36: Michel LIENHARDT | D36: Catia MARCALO | E36: PRET CONSOMMATION | F36: 119100 | G36: 6
A37: 14 | B37: OSTWALD | C37: Michel LIENHARDT | D37: Catia MARCALO | E37: PRET IMMOBILIER | F37: 1231654 | G37: 5
A38: 15 | B38: LINGOLSHEIM | C38: DCP | D38: TOUS | E38: MLT | F38: 665299.98 | G38: 5
A39: 15 | B39: LINGOLSHEIM | C39: DCP | D39: TOUS | E39: PRET CONSOMMATION | F39: 60150 | G39: 3 | H39: 12000 | I39: 1 | J39: 12000 | K39: 1
A40: 15 | B40: LINGOLSHEIM | C40: DCP | D40: TOUS | E40: PRET IMMOBILIER | F40: 586228 | G40: 3
A41: 15 | B41: LINGOLSHEIM | C41: Michel LIENHARDT | D41: Catia MARCALO | E41: MLT | F41: 665299.98 | G41: 5
A42: 15 | B42: LINGOLSHEIM | C42: Michel LIENHARDT | D42: Catia MARCALO | E42: PRET CONSOMMATION | F42: 60150 | G42: 3 | H42: 12000 | I42: 1 | J42: 12000 | K42: 1
A43: 15 | B43: LINGOLSHEIM | C43: Michel LIENHARDT | D43: Catia MARCALO | E43: PRET IMMOBILIER | F43: 586228 | G43: 3
A44: 18 | B44: ESPACE MESANGE | C44: DCP | D44: TOUS | E44: MLT | F44: 9696869.12 | G44: 43 | H44: 506000 | I44: 2 | J44: 506000 | K44: 2
A45: 18 | B45: ESPACE MESANGE | C45: DCP | D45: TOUS | E45: PRET CONSOMMATION | F45: 834500 | G45: 10
A46: 18 | B46: ESPACE MESANGE | C46: DCP | D46: TOUS | E46: PRET IMMOBILIER | F46: 1534271.22 | G46: 6
A47: 18 | B47: ESPACE MESANGE | C47: Michel LIENHARDT | D47: STARCK/CASTELEYN | E47: MLT | F47: 9696869.12 | G47: 43 | H47: 506000 | I47: 2 | J47: 506000 | K47: 2
A48: 18 | B48: ESPACE MESANGE | C48: Michel LIENHARDT | D48: STARCK/CASTELEYN | E48: PRET CONSOMMATION | F48: 834500 | G48: 10
A49: 18 | B49: ESPACE MESANGE | C49: Michel LIENHARDT | D49: STARCK/CASTELEYN | E49: PRET IMMOBILIER | F49: 1534271.22 | G49: 6
A50: 19 | B50: STRASBOURG ANVERS | C50: DCP | D50: TOUS | E50: MLT | F50: 1304000 | G50: 12
A51: 19 | B51: STRASBOURG ANVERS | C51: DCP | D51: TOUS | E51: PRET CONSOMMATION | F51: 336000 | G51: 13
A52: 19 | B52: STRASBOURG ANVERS | C52: DCP | D52: TOUS | E52: PRET IMMOBILIER | F52: 1652307.26 | G52: 9 | H52: 49090 | I52: 1 | J52: 49090 | K52: 1
A53: 19 | B53: STRASBOURG ANVERS | C53: Michel LIENHARDT | D53: Muriel GAUTHIER-LAFAYE | E53: MLT | F53: 1304000 | G53: 12
A54: 19 | B54: STRASBOURG ANVERS | C54: Michel LIENHARDT | D54: Muriel GAUTHIER-LAFAYE | E54: PRET CONSOMMATION | F54: 336000 | G54: 13
A55: 19 | B55: STRASBOURG ANVERS | C55: Michel LIENHARDT | D55: Muriel GAUTHIER-LAFAYE | E55: PRET IMMOBILIER | F55: 1652307.26 | G55: 9 | H55: 49090 | I55: 1 | J55: 49090 | K55: 1
A56: 20 | B56: STRASBOURG ROBERTSAU | C56: DCP | D56: TOUS | E56: MLT | F56: 1832000 | G56: 6
A57: 20 | B57: STRASBOURG ROBERTSAU | C57: DCP | D57: TOUS | E57: PRET CONSOMMATION | F57: 326000 | G57: 18
A58: 20 | B58: STRASBOURG ROBERTSAU | C58: DCP | D58: TOUS | E58: PRET IMMOBILIER | F58: 688612 | G58: 5
A59: 20 | B59: STRASBOURG ROBERTSAU | C59: Michel LIENHARDT | D59: Stéphane PAGNIER | E59: MLT | F59: 1832000 | G59: 6
A60: 20 | B60: STRASBOURG ROBERTSAU | C60: Michel LIENHARDT | D60: Stéphane PAGNIER | E60: PRET CONSOMMATION | F60: 326000 | G60: 18
A61: 20 | B61: STRASBOURG ROBERTSAU | C61: Michel LIENHARDT | D61: Stéphane PAGNIER | E61: PRET IMMOBILIER | F61: 688612 | G61: 5
A62: 23 | B62: STRASBOURG VOSGES | C62: DCP | D62: TOUS | E62: MLT | F62: 77500 | G62: 3
A63: 23 | B63: STRASBOURG VOSGES | C63: DCP | D63: TOUS | E63: PRET CONSOMMATION | F63: 129200 | G63: 5
A64: 23 | B64: STRASBOURG VOSGES | C64: DCP | D64: TOUS | E64: PRET IMMOBILIER | F64: 224105 | G64: 1
A65: 23 | B65: STRASBOURG VOSGES | C65: Michel LIENHARDT | D65: Muriel GAUTHIER-LAFAYE | E65: MLT | F65: 77500 | G65: 3
A66: 23 | B66: STRASBOURG VOSGES | C66: Michel LIENHARDT | D66: Muriel GAUTHIER-LAFAYE | E66: PRET CONSOMMATION | F66: 129200 | G66: 5
A67: 23 | B67: STRASBOURG VOSGES | C67: Michel LIENHARDT | D67: Muriel GAUTHIER-LAFAYE | E67: PRET IMMOBILIER | F67: 224105 | G67: 1
A68: 24 | B68: STRASBOURG AUSTERLITZ | C68: DCP | D68: TOUS | E68: MLT | F68: 93100 | G68: 4
A69: 24 | B69: STRASBOURG AUSTERLITZ | C69: DCP | D69: TOUS | E69: PRET CONSOMMATION | F69: 10000 | G69: 1
A70: 24 | B70: STRASBOURG AUSTERLITZ | C70: DCP | D70: TOUS | E70: PRET IMMOBILIER | F70: 300344 | G70: 1
A71: 24 | B71: STRASBOURG AUSTERLITZ | C71: Michel LIENHARDT | D71: Jeremy WEIBLE | E71: MLT | F71: 93100 | G71: 4
A72: 24 | B72: STRASBOURG AUSTERLITZ | C72: Michel LIENHARDT | D72: Jeremy WEIBLE | E72: PRET CONSOMMATION | F72: 10000 | G72: 1
A73: 24 | B73: STRASBOURG AUSTERLITZ | C73: Michel LIENHARDT | D73: Jeremy WEIBLE | E73: PRET IMMOBILIER | F73: 300344 | G73: 1
A74: 25 | B74: STRASBOURG ESPLANADE | C74: DCP | D74: TOUS | E74: MLT | F74: 465000 | G74: 6
A75: 25 | B75: STRASBOURG ESPLANADE | C75: DCP | D75: TOUS | E75: PRET CONSOMMATION | F75: 242000 | G75: 11
A76: 25 | B76: STRASBOURG ESPLANADE | C76: DCP | D76: TOUS | E76: PRET IMMOBILIER | F76: 414418.52 | G76: 3
A77: 25 | B77: STRASBOURG ESPLANADE | C77: Michel LIENHARDT | D77: Jeremy WEIBLE | E77: MLT | F77: 465000 | G77: 6
A78: 25 | B78: STRASBOURG ESPLANADE | C78: Michel LIENHARDT | D78: Jeremy WEIBLE | E78: PRET CONSOMMATION | F78: 242000 | G78: 11
A79: 25 | B79: STRASBOURG ESPLANADE | C79: Michel LIENHARDT | D79: Jeremy WEIBLE | E79: PRET IMMOBILIER | F79: 414418.52 | G79: 3
A80: 26 | B80: STRASBOURG DANUBE | C80: DCP | D80: TOUS | E80: MLT | F80: 100000 | G80: 1
A81: 26 | B81: STRASBOURG DANUBE | C81: DCP | D81: TOUS | E81: PRET CONSOMMATION | F81: 105000 | G81: 4
A82: 26 | B82: STRASBOURG DANUBE | C82: DCP | D82: TOUS | E82: PRET IMMOBILIER | F82: 223979 | G82: 1
A83: 26 | B83: STRASBOURG DANUBE | C83: Michel LIENHARDT | D83: Jeremy WEIBLE | E83: MLT | F83: 100000 | G83: 1
A84: 26 | B84: STRASBOURG DANUBE | C84: Michel LIENHARDT | D84: Jeremy WEIBLE | E84: PRET CONSOMMATION | F84: 105000 | G84: 4
A85: 26 | B85: STRASBOURG DANUBE | C85: Michel LIENHARDT | D85: Jeremy WEIBLE | E85: PRET IMMOBILIER | F85: 223979 | G85: 1
A86: 27 | B86: SCHILTIGHEIM CENTRE | C86: DCP | D86: TOUS | E86: MLT | F86: 892368 | G86: 14 | J86: 55000 | K86: 1
A87: 27 | B87: SCHILTIGHEIM CENTRE | C87: DCP | D87: TOUS | E87: PRET CONSOMMATION | F87: 87200 | G87: 6
A88: 27 | B88: SCHILTIGHEIM CENTRE | C88: DCP | D88: TOUS | E88: PRET IMMOBILIER | F88: 420171 | G88: 3 | H88: 122025 | I88: 1 | J88: 122025 | K88: 1
A89: 27 | B89: SCHILTIGHEIM CENTRE | C89: Michel LIENHARDT | D89: Stéphane PAGNIER | E89: MLT | F89: 892368 | G89: 14 | J89: 55000 | K89: 1
A90: 27 | B90: SCHILTIGHEIM CENTRE | C90: Michel LIENHARDT | D90: Stéphane PAGNIER | E90: PRET CONSOMMATION | F90: 87200 | G90: 6
A91: 27 | B91: SCHILTIGHEIM CENTRE | C91: Michel LIENHARDT | D91: Stéphane PAGNIER | E91: PRET IMMOBILIER | F91: 420171 | G91: 3 | H91: 122025 | I91: 1 | J91: 122025 | K91: 1
A92: 28 | B92: BISCHHEIM | C92: DCP | D92: TOUS | E92: MLT | F92: 272840 | G92: 10
A93: 28 | B93: BISCHHEIM | C93: DCP | D93: TOUS | E93: PRET CONSOMMATION | F93: 6000 | G93: 1
A94: 28 | B94: BISCHHEIM | C94: Michel LIENHARDT | D94: Stéphane PAGNIER | E94: MLT | F94: 272840 | G94: 10
A95: 28 | B95: BISCHHEIM | C95: Michel LIENHARDT | D95: Stéphane PAGNIER | E95: PRET CONSOMMATION | F95: 6000 | G95: 1
A96: 29 | B96: SCHILTIGHEIM KLEBER | C96: DCP | D96: TOUS | E96: MLT | F96: 588794.66 | G96: 5
A97: 29 | B97: SCHILTIGHEIM KLEBER | C97: DCP | D97: TOUS | E97: PRET CONSOMMATION | F97: 0 | G97: 0
A98: 29 | B98: SCHILTIGHEIM KLEBER | C98: DCP | D98: TOUS | E98: PRET IMMOBILIER | F98: 400378 | G98: 3
A99: 29 | B99: SCHILTIGHEIM KLEBER | C99: Michel LIENHARDT | D99: Stéphane PAGNIER | E99: MLT | F99: 588794.66 | G99: 5
A100: 29 | B100: SCHILTIGHEIM KLEBER | C100: Michel LIENHARDT | D100: Stéphane PAGNIER | E100: PRET CONSOMMATION | F100: 0 | G100: 0
A101: 29 | B101: SCHILTIGHEIM KLEBER | C101: Michel LIENHARDT | D101: Stéphane PAGNIER | E101: PRET IMMOBILIER | F101: 400378 | G101: 3
A102: 30 | B102: BRUMATH | C102: DCP | D102: TOUS | E102: MLT | F102: 1434573.77 | G102: 13
A103: 30 | B103: BRUMATH | C103: DCP | D103: TOUS | E103: PRET CONSOMMATION | F103: 199000 | G103: 12
A104: 30 | B104: BRUMATH | C104: DCP | D104: TOUS | E104: PRET IMMOBILIER | F104: 812843.32 | G104: 8
A105: 30 | B105: BRUMATH | C105: Michel LIENHARDT | D105: Jonathan KOCH | E105: MLT | F105: 1416573.77 | G105: 12
A106: 30 | B106: BRUMATH | C106: Michel LIENHARDT | D106: Jonathan KOCH | E106: PRET CONSOMMATION | F106: 182000 | G106: 10
A107: 30 | B107: BRUMATH | C107: Michel LIENHARDT | D107: Jonathan KOCH | E107: PRET IMMOBILIER | F107: 812843.32 | G107: 8
A108: 30 | B108: BRUMATH | C108: Michel LIENHARDT | D108: Olivier SCHOTT | E108: MLT | F108: 18000 | G108: 1
A109: 30 | B109: BRUMATH | C109: Michel LIENHARDT | D109: Olivier SCHOTT | E109: PRET CONSOMMATION | F109: 17000 | G109: 2
A110: 31 | B110: TRUCHTERSHEIM | C110: DCP | D110: TOUS | E110: MLT | F110: 241000 | G110: 9
A111: 31 | B111: TRUCHTERSHEIM | C111: DCP | D111: TOUS | E111: PRET CONSOMMATION | F111: 144500 | G111: 6 | H111: 25000 | I111: 1 | J111: 25000 | K111: 1
A112: 31 | B112: TRUCHTERSHEIM | C112: DCP | D112: TOUS | E112: PRET IMMOBILIER | F112: 912485 | G112: 4
A113: 31 | B113: TRUCHTERSHEIM | C113: Michel LIENHARDT | D113: Cedric KOEHLER | E113: MLT | F113: 241000 | G113: 9
A114: 31 | B114: TRUCHTERSHEIM | C114: Michel LIENHARDT | D114: Cedric KOEHLER | E114: PRET CONSOMMATION | F114: 144500 | G114: 6 | H114: 25000 | I114: 1 | J114: 25000 | K114: 1
A115: 31 | B115: TRUCHTERSHEIM | C115: Michel LIENHARDT | D115: Cedric KOEHLER | E115: PRET IMMOBILIER | F115: 912485 | G115: 4
A116: 33 | B116: LA WANTZENAU | C116: DCP | D116: TOUS | E116: MLT | F116: 413000 | G116: 4 | H116: -15000 | I116: -1 | J116: -15000 | K116: -1
A117: 33 | B117: LA WANTZENAU | C117: DCP | D117: TOUS | E117: PRET CONSOMMATION | F117: 60000 | G117: 2
A118: 33 | B118: LA WANTZENAU | C118: Michel LIENHARDT | D118: Christelle ARCIN | E118: MLT | F118: 413000 | G118: 4 | H118: -15000 | I118: -1 | J118: -15000 | K118: -1
A119: 33 | B119: LA WANTZENAU | C119: Michel LIENHARDT | D119: Christelle ARCIN | E119: PRET CONSOMMATION | F119: 60000 | G119: 2
A120: 34 | B120: VENDENHEIM | C120: DCP | D120: TOUS | E120: MLT | F120: 79000 | G120: 3
A121: 34 | B121: VENDENHEIM | C121: DCP | D121: TOUS | E121: PRET CONSOMMATION | F121: 13000 | G121: 2 | J121: 7000 | K121: 1
A122: 34 | B122: VENDENHEIM | C122: DCP | D122: TOUS | E122: PRET IMMOBILIER | F122: 249500 | G122: 1
A123: 34 | B123: VENDENHEIM | C123: Michel LIENHARDT | D123: Jonathan KOCH | E123: MLT | F123: 69000 | G123: 2
A124: 34 | B124: VENDENHEIM | C124: Michel LIENHARDT | D124: Jonathan KOCH | E124: PRET CONSOMMATION | F124: 13000 | G124: 2 | J124: 7000 | K124: 1
A125: 34 | B125: VENDENHEIM | C125: Michel LIENHARDT | D125: Jonathan KOCH | E125: PRET IMMOBILIER | F125: 249500 | G125: 1
A126: 34 | B126: VENDENHEIM | C126: Michel LIENHARDT | D126: Olivier SCHOTT | E126: MLT | F126: 10000 | G126: 1
A127: 37 | B127: MUNDOLSHEIM | C127: DCP | D127: TOUS | E127: MLT | F127: 752075 | G127: 7
A128: 37 | B128: MUNDOLSHEIM | C128: DCP | D128: TOUS | E128: PRET CONSOMMATION | F128: 1000 | G128: 1
A129: 37 | B129: MUNDOLSHEIM | C129: Michel LIENHARDT | D129: Jonathan KOCH | E129: MLT | F129: 752075 | G129: 7
A130: 37 | B130: MUNDOLSHEIM | C130: Michel LIENHARDT | D130: Olivier SCHOTT | E130: PRET CONSOMMATION | F130: 1000 | G130: 1
A131: 38 | B131: OBERHAUSBERGEN | C131: DCP | D131: TOUS | E131: MLT | F131: 603000 | G131: 7
A132: 38 | B132: OBERHAUSBERGEN | C132: DCP | D132: TOUS | E132: PRET CONSOMMATION | F132: 100000 | G132: 3
A133: 38 | B133: OBERHAUSBERGEN | C133: Michel LIENHARDT | D133: Cedric KOEHLER | E133: MLT | F133: 603000 | G133: 7
A134: 38 | B134: OBERHAUSBERGEN | C134: Michel LIENHARDT | D134: Cedric KOEHLER | E134: PRET CONSOMMATION | F134: 100000 | G134: 3
A135: 39 | B135: REICHSTETT | C135: DCP | D135: TOUS | E135: MLT | F135: 6658.08 | G135: 1
A136: 39 | B136: REICHSTETT | C136: DCP | D136: TOUS | E136: PRET CONSOMMATION | F136: 116000 | G136: 5
A137: 39 | B137: REICHSTETT | C137: DCP | D137: TOUS | E137: PRET IMMOBILIER | F137: 178627 | G137: 2
A138: 39 | B138: REICHSTETT | C138: Michel LIENHARDT | D138: Jonathan KOCH | E138: MLT | F138: 6658.08 | G138: 1
A139: 39 | B139: REICHSTETT | C139: Michel LIENHARDT | D139: Jonathan KOCH | E139: PRET CONSOMMATION | F139: 116000 | G139: 5
A140: 39 | B140: REICHSTETT | C140: Michel LIENHARDT | D140: Olivier SCHOTT | E140: PRET IMMOBILIER | F140: 178627 | G140: 2
A141: 40 | B141: ECKBOLSHEIM | C141: DCP | D141: TOUS | E141: MLT | F141: 160590 | G141: 5 | H141: 14900 | I141: 1 | J141: 14900 | K141: 1
A142: 40 | B142: ECKBOLSHEIM | C142: DCP | D142: TOUS | E142: PRET CONSOMMATION | F142: 45350 | G142: 2
A143: 40 | B143: ECKBOLSHEIM | C143: Michel LIENHARDT | D143: Aissa ZOUARI | E143: MLT | F143: 160590 | G143: 5 | H143: 14900 | I143: 1 | J143: 14900 | K143: 1
A144: 40 | B144: ECKBOLSHEIM | C144: Michel LIENHARDT | D144: Aissa ZOUARI | E144: PRET CONSOMMATION | F144: 45350 | G144: 2
A145: 41 | B145: HOERDT | C145: DCP | D145: TOUS | E145: MLT | F145: 129450 | G145: 6
A146: 41 | B146: HOERDT | C146: DCP | D146: TOUS | E146: PRET CONSOMMATION | F146: 29500 | G146: 2
A147: 41 | B147: HOERDT | C147: Michel LIENHARDT | D147: Christelle ARCIN | E147: MLT | F147: 129450 | G147: 6
A148: 41 | B148: HOERDT | C148: Michel LIENHARDT | D148: Christelle ARCIN | E148: PRET CONSOMMATION | F148: 29500 | G148: 2
A149: 43 | B149: STRASBOURG HALLES | C149: DCP | D149: TOUS | E149: MLT | F149: 1227467.79 | G149: 10 | H149: 9000 | I149: 1 | J149: 9000 | K149: 1
A150: 43 | B150: STRASBOURG HALLES | C150: DCP | D150: TOUS | E150: PRET CONSOMMATION | F150: 166500 | G150: 8
A151: 43 | B151: STRASBOURG HALLES | C151: DCP | D151: TOUS | E151: PRET IMMOBILIER | F151: 2382991 | G151: 7
A152: 43 | B152: STRASBOURG HALLES | C152: Michel LIENHARDT | D152: Laurent SCHULTIS | E152: MLT | F152: 1227467.79 | G152: 10 | H152: 9000 | I152: 1 | J152: 9000 | K152: 1
A153: 43 | B153: STRASBOURG HALLES | C153: Michel LIENHARDT | D153: Laurent SCHULTIS | E153: PRET CONSOMMATION | F153: 166500 | G153: 8
A154: 43 | B154: STRASBOURG HALLES | C154: Michel LIENHARDT | D154: Laurent SCHULTIS | E154: PRET IMMOBILIER | F154: 2382991 | G154: 7
A155: 45 | B155: STRASBOURG FRANCS BOURGEOIS | C155: DCP | D155: TOUS | E155: MLT | F155: 5543377.85 | G155: 29
A156: 45 | B156: STRASBOURG FRANCS BOURGEOIS | C156: DCP | D156: TOUS | E156: PRET CONSOMMATION | F156: 540000 | G156: 15
A157: 45 | B157: STRASBOURG FRANCS BOURGEOIS | C157: DCP | D157: TOUS | E157: PRET IMMOBILIER | F157: 350477.49 | G157: 2
A158: 45 | B158: STRASBOURG FRANCS BOURGEOIS | C158: Michel LIENHARDT | D158: Laurent SCHULTIS | E158: MLT | F158: 5543377.85 | G158: 29
A159: 45 | B159: STRASBOURG FRANCS BOURGEOIS | C159: Michel LIENHARDT | D159: Laurent SCHULTIS | E159: PRET CONSOMMATION | F159: 540000 | G159: 15
A160: 45 | B160: STRASBOURG FRANCS BOURGEOIS | C160: Michel LIENHARDT | D160: Laurent SCHULTIS | E160: PRET IMMOBILIER | F160: 350477.49 | G160: 2
A161: 47 | B161: STRASBOURG CRONENBOURG | C161: DCP | D161: TOUS | E161: MLT | F161: 337268.72 | G161: 7
A162: 47 | B162: STRASBOURG CRONENBOURG | C162: DCP | D162: TOUS | E162: PRET CONSOMMATION | F162: 106100 | G162: 3
A163: 47 | B163: STRASBOURG CRONENBOURG | C163: DCP | D163: TOUS | E163: PRET IMMOBILIER | F163: 1298602 | G163: 8
A164: 47 | B164: STRASBOURG CRONENBOURG | C164: Michel LIENHARDT | D164: Aissa ZOUARI | E164: MLT | F164: 337268.72 | G164: 7
A165: 47 | B165: STRASBOURG CRONENBOURG | C165: Michel LIENHARDT | D165: Aissa ZOUARI | E165: PRET CONSOMMATION | F165: 106100 | G165: 3
A166: 47 | B166: STRASBOURG CRONENBOURG | C166: Michel LIENHARDT | D166: Aissa ZOUARI | E166: PRET IMMOBILIER | F166: 1298602 | G166: 8
A167: 48 | B167: STRASBOURG KOENIGSHOFFEN | C167: DCP | D167: TOUS | E167: MLT | F167: 227000 | G167: 3
A168: 48 | B168: STRASBOURG KOENIGSHOFFEN | C168: DCP | D168: TOUS | E168: PRET CONSOMMATION | F168: 29500 | G168: 2
A169: 48 | B169: STRASBOURG KOENIGSHOFFEN | C169: DCP | D169: TOUS | E169: PRET IMMOBILIER | F169: 571975 | G169: 4 | J169: 171874 | K169: 1
A170: 48 | B170: STRASBOURG KOENIGSHOFFEN | C170: Michel LIENHARDT | D170: Aissa ZOUARI | E170: MLT | F170: 227000 | G170: 3
A171: 48 | B171: STRASBOURG KOENIGSHOFFEN | C171: Michel LIENHARDT | D171: Aissa ZOUARI | E171: PRET CONSOMMATION | F171: 29500 | G171: 2
A172: 48 | B172: STRASBOURG KOENIGSHOFFEN | C172: Michel LIENHARDT | D172: Aissa ZOUARI | E172: PRET IMMOBILIER | F172: 571975 | G172: 4 | J172: 171874 | K172: 1
A173: 54 | B173: STRASBOURG MONTAGNE VERTE | C173: DCP | D173: TOUS | E173: MLT | F173: 896000 | G173: 8
A174: 54 | B174: STRASBOURG MONTAGNE VERTE | C174: DCP | D174: TOUS | E174: PRET IMMOBILIER | F174: 622655 | G174: 6 | J174: 172078 | K174: 2
A175: 54 | B175: STRASBOURG MONTAGNE VERTE | C175: Michel LIENHARDT | D175: Cedric KOEHLER | E175: MLT | F175: 896000 | G175: 8
A176: 54 | B176: STRASBOURG MONTAGNE VERTE | C176: Michel LIENHARDT | D176: Cedric KOEHLER | E176: PRET IMMOBILIER | F176: 622655 | G176: 6 | J176: 172078 | K176: 2
A177: 57 | B177: BISCHWILLER | C177: DCP | D177: TOUS | E177: MLT | F177: 444990 | G177: 4
A178: 57 | B178: BISCHWILLER | C178: DCP | D178: TOUS | E178: PRET CONSOMMATION | F178: 70000 | G178: 6
A179: 57 | B179: BISCHWILLER | C179: Michel LIENHARDT | D179: Christelle ARCIN | E179: MLT | F179: 444990 | G179: 4
A180: 57 | B180: BISCHWILLER | C180: Michel LIENHARDT | D180: Christelle ARCIN | E180: PRET CONSOMMATION | F180: 70000 | G180: 6
A181: 58 | B181: DRUSENHEIM | C181: DCP | D181: TOUS | E181: PRET CONSOMMATION | F181: 23000 | G181: 1
A182: 58 | B182: DRUSENHEIM | C182: Michel LIENHARDT | D182: Christelle ARCIN | E182: PRET CONSOMMATION | F182: 23000 | G182: 1
A183: 59 | B183: HERRLISHEIM | C183: DCP | D183: TOUS | E183: PRET IMMOBILIER | F183: 183239 | G183: 1
A184: 59 | B184: HERRLISHEIM | C184: Michel LIENHARDT | D184: Christelle ARCIN | E184: PRET IMMOBILIER | F184: 183239 | G184: 1
A185: 60 | B185: HAGUENAU HOUBLON | C185: DCP | D185: TOUS | E185: MLT | F185: 2000299 | G185: 14 | H185: 454000 | I185: 2 | J185: 454000 | K185: 2
A186: 60 | B186: HAGUENAU HOUBLON | C186: DCP | D186: TOUS | E186: PRET CONSOMMATION | F186: 161500 | G186: 8
A187: 60 | B187: HAGUENAU HOUBLON | C187: DCP | D187: TOUS | E187: PRET IMMOBILIER | F187: 911257.19 | G187: 4 | H187: -4481.81 | I187: 0 | J187: -4481.81 | K187: 0
A188: 60 | B188: HAGUENAU HOUBLON | C188: Michel LIENHARDT | D188: Fanny MOREAU | E188: MLT | F188: 2000299 | G188: 14 | H188: 454000 | I188: 2 | J188: 454000 | K188: 2
A189: 60 | B189: HAGUENAU HOUBLON | C189: Michel LIENHARDT | D189: Fanny MOREAU | E189: PRET CONSOMMATION | F189: 161500 | G189: 8
A190: 60 | B190: HAGUENAU HOUBLON | C190: Michel LIENHARDT | D190: Fanny MOREAU | E190: PRET IMMOBILIER | F190: 911257.19 | G190: 4 | H190: -4481.81 | I190: 0 | J190: -4481.81 | K190: 0
A191: 64 | B191: HAGUENAU MUSAU | C191: DCP | D191: TOUS | E191: PRET CONSOMMATION | F191: 13000 | G191: 1
A192: 64 | B192: HAGUENAU MUSAU | C192: Michel LIENHARDT | D192: Fanny MOREAU | E192: PRET CONSOMMATION | F192: 13000 | G192: 1
A193: 65 | B193: WEITBRUCH | C193: DCP | D193: TOUS | E193: MLT | F193: -1000 | G193: 0
A194: 65 | B194: WEITBRUCH | C194: DCP | D194: TOUS | E194: PRET CONSOMMATION | F194: 27000 | G194: 1
A195: 65 | B195: WEITBRUCH | C195: Michel LIENHARDT | D195: Jonathan KOCH | E195: MLT | F195: -1000 | G195: 0
A196: 65 | B196: WEITBRUCH | C196: Michel LIENHARDT | D196: Jonathan KOCH | E196: PRET CONSOMMATION | F196: 27000 | G196: 1
A197: 66 | B197: NIEDERBRONN LES BAINS | C197: DCP | D197: TOUS | E197: PRET CONSOMMATION | F197: 77240 | G197: 3
A198: 66 | B198: NIEDERBRONN LES BAINS | C198: DCP | D198: TOUS | E198: PRET IMMOBILIER | F198: 874853 | G198: 4
A199: 66 | B199: NIEDERBRONN LES BAINS | C199: Michel LIENHARDT | D199: Cindy KIRCHER | E199: PRET CONSOMMATION | F199: 77240 | G199: 3
A200: 66 | B200: NIEDERBRONN LES BAINS | C200: Michel LIENHARDT | D200: Cindy KIRCHER | E200: PRET IMMOBILIER | F200: 874853 | G200: 4
... 1329 more rows

Sheet Crédits Clients
A1: NO ENTITE | B1: DCP | C1: CCPRO
A2: ='Pilotage Pros'!AN1 -> 199 | B2: ='Pilotage Pros'!O4 -> DCP | C2: ='Pilotage Pros'!AA4 -> TOUS
A8: NO ENTITE | B8: ENTITE | C8: DCP | D8: CCPRO | E8: GESTIONNAIRE | F8: MOIS | G8: DATE ARRT INFO | H8: FAMILLE | I8: N° DE PERSONNE | J8: NOM DU CLIENT | K8: EXCEDENT NET | L8: NOMBRE
A9: 6 | B9: STRASBOURG NEUDORF | C9: DCP | D9: TOUS | E9: RICHERT NICOLAS | F9: 201811 | G9: 2018-11-09 | H9: PRET CONSOMMATION | I9: 82653021 | J9: MR OU MME AMARA NATHALIE | K9: -20000 | L9: -1
A10: 6 | B10: STRASBOURG NEUDORF | C10: Michel LIENHARDT | D10: Jeremy WEIBLE | E10: RICHERT NICOLAS | F10: 201811 | G10: 2018-11-09 | H10: PRET CONSOMMATION | I10: 82653021 | J10: MR OU MME AMARA NATHALIE | K10: -20000 | L10: -1
A11: 7 | B11: ILLKIRCH CENTRE | C11: DCP | D11: TOUS | E11: MARCALO CATIA | F11: 201811 | G11: 2018-11-06 | H11: MLT | I11: 93830381 | J11: LA BONNE FOURCHETTE SARL | K11: 7000 | L11: 1
A12: 7 | B12: ILLKIRCH CENTRE | C12: DCP | D12: TOUS | E12: MARCALO CATIA | F12: 201811 | G12: 2018-11-10 | H12: PRET CONSOMMATION | I12: 82895274 | J12: M OU MME SCHOENENBERGER | K12: -38000 | L12: -1
A13: 7 | B13: ILLKIRCH CENTRE | C13: Michel LIENHARDT | D13: Catia MARCALO | E13: MARCALO CATIA | F13: 201811 | G13: 2018-11-06 | H13: MLT | I13: 93830381 | J13: LA BONNE FOURCHETTE SARL | K13: 7000 | L13: 1
A14: 7 | B14: ILLKIRCH CENTRE | C14: Michel LIENHARDT | D14: Catia MARCALO | E14: MARCALO CATIA | F14: 201811 | G14: 2018-11-10 | H14: PRET CONSOMMATION | I14: 82895274 | J14: M OU MME SCHOENENBERGER | K14: -38000 | L14: -1
A15: 15 | B15: LINGOLSHEIM | C15: DCP | D15: TOUS | E15: BARINA DRISSIA | F15: 201811 | G15: 2018-11-08 | H15: PRET CONSOMMATION | I15: 93662990 | J15: MLLE SCHEYDER AURELIE | K15: 12000 | L15: 1
A16: 15 | B16: LINGOLSHEIM | C16: Michel LIENHARDT | D16: Catia MARCALO | E16: BARINA DRISSIA | F16: 201811 | G16: 2018-11-08 | H16: PRET CONSOMMATION | I16: 93662990 | J16: MLLE SCHEYDER AURELIE | K16: 12000 | L16: 1
A17: 18 | B17: ESPACE MESANGE | C17: DCP | D17: TOUS | E17: CASTELEYN VINCENT | F17: 201811 | G17: 2018-11-07 | H17: MLT | I17: 94073477 | J17: SOCIETE BRUCHOISE DE MECANIQUE | K17: 9000 | L17: 1
A18: 18 | B18: ESPACE MESANGE | C18: DCP | D18: TOUS | E18: CASTELEYN VINCENT | F18: 201811 | G18: 2018-11-07 | H18: MLT | I18: 94112255 | J18: SCI DEPRET | K18: 497000 | L18: 1
A19: 18 | B19: ESPACE MESANGE | C19: Michel LIENHARDT | D19: STARCK/CASTELEYN | E19: CASTELEYN VINCENT | F19: 201811 | G19: 2018-11-07 | H19: MLT | I19: 94073477 | J19: SOCIETE BRUCHOISE DE MECANIQUE | K19: 9000 | L19: 1
A20: 18 | B20: ESPACE MESANGE | C20: Michel LIENHARDT | D20: STARCK/CASTELEYN | E20: CASTELEYN VINCENT | F20: 201811 | G20: 2018-11-07 | H20: MLT | I20: 94112255 | J20: SCI DEPRET | K20: 497000 | L20: 1
A21: 19 | B21: STRASBOURG ANVERS | C21: DCP | D21: TOUS | E21: GAUTHIER-LAFAYE Muriel | F21: 201811 | G21: 2018-11-08 | H21: PRET IMMOBILIER | I21: 91734128 | J21: SCI ELJANO | K21: 49090 | L21: 1
A22: 19 | B22: STRASBOURG ANVERS | C22: Michel LIENHARDT | D22: Muriel GAUTHIER-LAFAYE | E22: GAUTHIER-LAFAYE Muriel | F22: 201811 | G22: 2018-11-08 | H22: PRET IMMOBILIER | I22: 91734128 | J22: SCI ELJANO | K22: 49090 | L22: 1
A23: 27 | B23: SCHILTIGHEIM CENTRE | C23: DCP | D23: TOUS | E23: RAVANEL DAMIEN | F23: 201811 | G23: 2018-11-02 | H23: MLT | I23: 94154583 | J23: ZEBILINI ALEXANDRE LAURENT VALE | K23: 55000 | L23: 1
A24: 27 | B24: SCHILTIGHEIM CENTRE | C24: DCP | D24: TOUS | E24: RAVANEL DAMIEN | F24: 201811 | G24: 2018-11-06 | H24: PRET IMMOBILIER | I24: 92870240 | J24: MLLE GRAFF A. OU M WITTMER J. | K24: 122025 | L24: 1
A25: 27 | B25: SCHILTIGHEIM CENTRE | C25: Michel LIENHARDT | D25: Stéphane PAGNIER | E25: RAVANEL DAMIEN | F25: 201811 | G25: 2018-11-02 | H25: MLT | I25: 94154583 | J25: ZEBILINI ALEXANDRE LAURENT VALE | K25: 55000 | L25: 1
A26: 27 | B26: SCHILTIGHEIM CENTRE | C26: Michel LIENHARDT | D26: Stéphane PAGNIER | E26: RAVANEL DAMIEN | F26: 201811 | G26: 2018-11-06 | H26: PRET IMMOBILIER | I26: 92870240 | J26: MLLE GRAFF A. OU M WITTMER J. | K26: 122025 | L26: 1
A27: 31 | B27: TRUCHTERSHEIM | C27: DCP | D27: TOUS | E27: KOEHLER CEDRIC | F27: 201811 | G27: 2018-11-09 | H27: PRET CONSOMMATION | I27: 83244677 | J27: MLE MEGANE MAHLER | K27: 25000 | L27: 1
A28: 31 | B28: TRUCHTERSHEIM | C28: Michel LIENHARDT | D28: Cedric KOEHLER | E28: KOEHLER CEDRIC | F28: 201811 | G28: 2018-11-09 | H28: PRET CONSOMMATION | I28: 83244677 | J28: MLE MEGANE MAHLER | K28: 25000 | L28: 1
A29: 33 | B29: LA WANTZENAU | C29: DCP | D29: TOUS | E29: ARCIN CHRISTELLE | F29: 201811 | G29: 2018-11-06 | H29: MLT | I29: 94017189 | J29: STARSEVENTS SAS | K29: -15000 | L29: -1
A30: 33 | B30: LA WANTZENAU | C30: Michel LIENHARDT | D30: Christelle ARCIN | E30: ARCIN CHRISTELLE | F30: 201811 | G30: 2018-11-06 | H30: MLT | I30: 94017189 | J30: STARSEVENTS SAS | K30: -15000 | L30: -1
A31: 34 | B31: VENDENHEIM | C31: DCP | D31: TOUS | E31: GOETZ Sylvain | F31: 201811 | G31: 2018-11-02 | H31: PRET CONSOMMATION | I31: 83211791 | J31: MR OLIVIER WURCH | K31: 7000 | L31: 1
A32: 34 | B32: VENDENHEIM | C32: Michel LIENHARDT | D32: Jonathan KOCH | E32: GOETZ Sylvain | F32: 201811 | G32: 2018-11-02 | H32: PRET CONSOMMATION | I32: 83211791 | J32: MR OLIVIER WURCH | K32: 7000 | L32: 1
A33: 40 | B33: ECKBOLSHEIM | C33: DCP | D33: TOUS | E33: BOUCHAIB ELODIE | F33: 201811 | G33: 2018-11-09 | H33: MLT | I33: 91908119 | J33: MME HAVELKA KARINE | K33: 14900 | L33: 1
A34: 40 | B34: ECKBOLSHEIM | C34: Michel LIENHARDT | D34: Aissa ZOUARI | E34: BOUCHAIB ELODIE | F34: 201811 | G34: 2018-11-09 | H34: MLT | I34: 91908119 | J34: MME HAVELKA KARINE | K34: 14900 | L34: 1
A35: 43 | B35: STRASBOURG HALLES | C35: DCP | D35: TOUS | E35: SCHULTIS Laurent | F35: 201811 | G35: 2018-11-06 | H35: MLT | I35: 83209742 | J35: MLE MARIE JULIE WENCESLAS | K35: 9000 | L35: 1
A36: 43 | B36: STRASBOURG HALLES | C36: Michel LIENHARDT | D36: Laurent SCHULTIS | E36: SCHULTIS Laurent | F36: 201811 | G36: 2018-11-06 | H36: MLT | I36: 83209742 | J36: MLE MARIE JULIE WENCESLAS | K36: 9000 | L36: 1
A37: 48 | B37: STRASBOURG KOENIGSHOFFEN | C37: DCP | D37: TOUS | E37: ZOUARI AISSA | F37: 201811 | G37: 2018-11-02 | H37: PRET IMMOBILIER | I37: 94100830 | J37: M OU MME SINGH ALVIN | K37: 171874 | L37: 1
A38: 48 | B38: STRASBOURG KOENIGSHOFFEN | C38: Michel LIENHARDT | D38: Aissa ZOUARI | E38: ZOUARI AISSA | F38: 201811 | G38: 2018-11-02 | H38: PRET IMMOBILIER | I38: 94100830 | J38: M OU MME SINGH ALVIN | K38: 171874 | L38: 1
A39: 54 | B39: STRASBOURG MONTAGNE VERTE | C39: DCP | D39: TOUS | E39: STARCK Gaetan | F39: 201811 | G39: 2018-11-02 | H39: PRET IMMOBILIER | I39: 82892039 | J39: MLE FRANCE AMSTOUTZ OU MR BRUNO | K39: 172078 | L39: 2
A40: 54 | B40: STRASBOURG MONTAGNE VERTE | C40: Michel LIENHARDT | D40: Cedric KOEHLER | E40: STARCK Gaetan | F40: 201811 | G40: 2018-11-02 | H40: PRET IMMOBILIER | I40: 82892039 | J40: MLE FRANCE AMSTOUTZ OU MR BRUNO | K40: 172078 | L40: 2
A41: 60 | B41: HAGUENAU HOUBLON | C41: DCP | D41: TOUS | E41: CASTELEYN VINCENT | F41: 201811 | G41: 2018-11-09 | H41: MLT | I41: 94164585 | J41: BOULANGERIE PATISSERIE FRANCIS | K41: 145000 | L41: 1
A42: 60 | B42: HAGUENAU HOUBLON | C42: DCP | D42: TOUS | E42: KOCH JONATHAN | F42: 201811 | G42: 2018-11-06 | H42: PRET IMMOBILIER | I42: 92988400 | J42: M FRIEDRICH AURELIEN | K42: -4481.81 | L42: 0
A43: 60 | B43: HAGUENAU HOUBLON | C43: DCP | D43: TOUS | E43: OHLMANN SABRINA | F43: 201811 | G43: 2018-11-08 | H43: MLT | I43: 94146261 | J43: SCI VALVERDE | K43: 309000 | L43: 1
A44: 60 | B44: HAGUENAU HOUBLON | C44: Michel LIENHARDT | D44: Fanny MOREAU | E44: CASTELEYN VINCENT | F44: 201811 | G44: 2018-11-09 | H44: MLT | I44: 94164585 | J44: BOULANGERIE PATISSERIE FRANCIS | K44: 145000 | L44: 1
A45: 60 | B45: HAGUENAU HOUBLON | C45: Michel LIENHARDT | D45: Fanny MOREAU | E45: KOCH JONATHAN | F45: 201811 | G45: 2018-11-06 | H45: PRET IMMOBILIER | I45: 92988400 | J45: M FRIEDRICH AURELIEN | K45: -4481.81 | L45: 0
A46: 60 | B46: HAGUENAU HOUBLON | C46: Michel LIENHARDT | D46: Fanny MOREAU | E46: OHLMANN SABRINA | F46: 201811 | G46: 2018-11-08 | H46: MLT | I46: 94146261 | J46: SCI VALVERDE | K46: 309000 | L46: 1
A47: 82 | B47: BOUXWILLER | C47: DCP | D47: TOUS | E47: GODIN CAROLINE | F47: 201811 | G47: 2018-11-03 | H47: PRET CONSOMMATION | I47: 92966264 | J47: M MACHTEL PETER | K47: -10000 | L47: -1
A48: 82 | B48: BOUXWILLER | C48: DCP | D48: TOUS | E48: KIRCHER CINDY | F48: 201811 | G48: 2018-11-07 | H48: MLT | I48: 83093542 | J48: DR CHRISTINE SCHINI | K48: 48000 | L48: 1
A49: 82 | B49: BOUXWILLER | C49: DCP | D49: TOUS | E49: KIRCHER CINDY | F49: 201811 | G49: 2018-11-08 | H49: PRET CONSOMMATION | I49: 83193191 | J49: MR OLIVIER FATH | K49: 1200 | L49: 1
A50: 82 | B50: BOUXWILLER | C50: Michel LIENHARDT | D50: Cindy KIRCHER | E50: GODIN CAROLINE | F50: 201811 | G50: 2018-11-03 | H50: PRET CONSOMMATION | I50: 92966264 | J50: M MACHTEL PETER | K50: -10000 | L50: -1
A51: 82 | B51: BOUXWILLER | C51: Michel LIENHARDT | D51: Cindy KIRCHER | E51: KIRCHER CINDY | F51: 201811 | G51: 2018-11-07 | H51: MLT | I51: 83093542 | J51: DR CHRISTINE SCHINI | K51: 48000 | L51: 1
A52: 82 | B52: BOUXWILLER | C52: Michel LIENHARDT | D52: Cindy KIRCHER | E52: KIRCHER CINDY | F52: 201811 | G52: 2018-11-08 | H52: PRET CONSOMMATION | I52: 83193191 | J52: MR OLIVIER FATH | K52: 1200 | L52: 1
A53: 86 | B53: WINGEN SUR MODER | C53: DCP | D53: TOUS | E53: KLOPFENSTEIN VERONIQUE | F53: 201811 | G53: 2018-11-06 | H53: PRET CONSOMMATION | I53: 82760804 | J53: MR OU MME RITZ RAPHAEL | K53: 3500 | L53: 1
A54: 86 | B54: WINGEN SUR MODER | C54: Michel LIENHARDT | D54: Cindy KIRCHER | E54: KLOPFENSTEIN VERONIQUE | F54: 201811 | G54: 2018-11-06 | H54: PRET CONSOMMATION | I54: 82760804 | J54: MR OU MME RITZ RAPHAEL | K54: 3500 | L54: 1
A55: 113 | B55: BARR | C55: DCP | D55: TOUS | E55: SPATZ Michel | F55: 201811 | G55: 2018-11-06 | H55: MLT | I55: 82399500 | J55: LE BOIS SUR MESURE EURL | K55: 12500 | L55: 1
A56: 113 | B56: BARR | C56: Sylvie MALISKA | D56: Maxime OTT | E56: SPATZ Michel | F56: 201811 | G56: 2018-11-06 | H56: MLT | I56: 82399500 | J56: LE BOIS SUR MESURE EURL | K56: 12500 | L56: 1
A57: 116 | B57: MOLSHEIM | C57: DCP | D57: TOUS | E57: AMAND VICTOR | F57: 201811 | G57: 2018-11-05 | H57: MLT | I57: 92825825 | J57: CTH EURL | K57: 20000 | L57: 1
A58: 116 | B58: MOLSHEIM | C58: DCP | D58: TOUS | E58: HEYM LAURENT | F58: 201811 | G58: 2018-11-09 | H58: PRET CONSOMMATION | I58: 83114362 | J58: MR EMERIC LEGRAND | K58: -3900 | L58: 0
A59: 116 | B59: MOLSHEIM | C59: Michel LIENHARDT | D59: Victor AMAND | E59: AMAND VICTOR | F59: 201811 | G59: 2018-11-05 | H59: MLT | I59: 92825825 | J59: CTH EURL | K59: 20000 | L59: 1
A60: 116 | B60: MOLSHEIM | C60: Michel LIENHARDT | D60: Victor AMAND | E60: HEYM LAURENT | F60: 201811 | G60: 2018-11-09 | H60: PRET CONSOMMATION | I60: 83114362 | J60: MR EMERIC LEGRAND | K60: -3900 | L60: 0
A61: 130 | B61: COLMAR REPUBLIQUE | C61: DCP | D61: TOUS | E61: WINDHOLTZ FANNY | F61: 201811 | G61: 2018-11-01 | H61: MLT | I61: 93977166 | J61: SCI E2D | K61: -60000 | L61: -1
A62: 130 | B62: COLMAR REPUBLIQUE | C62: Sylvie MALISKA | D62: Fanny WINDHOLTZ | E62: WINDHOLTZ FANNY | F62: 201811 | G62: 2018-11-01 | H62: MLT | I62: 93977166 | J62: SCI E2D | K62: -60000 | L62: -1
A63: 132 | B63: COLMAR MARAICHERS | C63: DCP | D63: TOUS | E63: BLEU AMANDINE | F63: 201811 | G63: 2018-11-06 | H63: PRET CONSOMMATION | I63: 91362425 | J63: M FELDNER CEDRIC OU MLLE FAIVRE | K63: 30000 | L63: 1
A64: 132 | B64: COLMAR MARAICHERS | C64: DCP | D64: TOUS | E64: BLEU AMANDINE | F64: 201811 | G64: 2018-11-09 | H64: PRET IMMOBILIER | I64: 83417948 | J64: MLE CARMEN MARIN | K64: -21183 | L64: 0
A65: 132 | B65: COLMAR MARAICHERS | C65: Sylvie MALISKA | D65: Amandine BLEU | E65: BLEU AMANDINE | F65: 201811 | G65: 2018-11-06 | H65: PRET CONSOMMATION | I65: 91362425 | J65: M FELDNER CEDRIC OU MLLE FAIVRE | K65: 30000 | L65: 1
A66: 132 | B66: COLMAR MARAICHERS | C66: Sylvie MALISKA | D66: Amandine BLEU | E66: BLEU AMANDINE | F66: 201811 | G66: 2018-11-09 | H66: PRET IMMOBILIER | I66: 83417948 | J66: MLE CARMEN MARIN | K66: -21183 | L66: 0
A67: 140 | B67: WINTZENHEIM | C67: DCP | D67: TOUS | E67: CAZAUX-DEBAT ROSELYNE | F67: 201811 | G67: 2018-11-08 | H67: PRET CONSOMMATION | I67: 82441573 | J67: MR DAVID MANNY | K67: 10000 | L67: 1
A68: 140 | B68: WINTZENHEIM | C68: DCP | D68: TOUS | E68: MARION CATHERINE | F68: 201811 | G68: 2018-11-07 | H68: PRET IMMOBILIER | I68: 82802581 | J68: MR THOMAS MISSEMER | K68: 211800 | L68: 1
A69: 140 | B69: WINTZENHEIM | C69: DCP | D69: TOUS | E69: MARION CATHERINE | F69: 201811 | G69: 2018-11-09 | H69: MLT | I69: 82388392 | J69: SAS TM PATRIMOINE ET CONSEILS | K69: 131100 | L69: 1
A70: 140 | B70: WINTZENHEIM | C70: DCP | D70: TOUS | E70: PELTIER ESTELLE | F70: 201811 | G70: 2018-11-10 | H70: PRET CONSOMMATION | I70: 82434007 | J70: MR PATRICK LAMBACH | K70: 10000 | L70: 1
A71: 140 | B71: WINTZENHEIM | C71: Sylvie MALISKA | D71: Catherine MARION | E71: CAZAUX-DEBAT ROSELYNE | F71: 201811 | G71: 2018-11-08 | H71: PRET CONSOMMATION | I71: 82441573 | J71: MR DAVID MANNY | K71: 10000 | L71: 1
A72: 140 | B72: WINTZENHEIM | C72: Sylvie MALISKA | D72: Catherine MARION | E72: MARION CATHERINE | F72: 201811 | G72: 2018-11-07 | H72: PRET IMMOBILIER | I72: 82802581 | J72: MR THOMAS MISSEMER | K72: 211800 | L72: 1
A73: 140 | B73: WINTZENHEIM | C73: Sylvie MALISKA | D73: Catherine MARION | E73: MARION CATHERINE | F73: 201811 | G73: 2018-11-09 | H73: MLT | I73: 82388392 | J73: SAS TM PATRIMOINE ET CONSEILS | K73: 131100 | L73: 1
A74: 140 | B74: WINTZENHEIM | C74: Sylvie MALISKA | D74: Catherine MARION | E74: PELTIER ESTELLE | F74: 201811 | G74: 2018-11-10 | H74: PRET CONSOMMATION | I74: 82434007 | J74: MR PATRICK LAMBACH | K74: 10000 | L74: 1
A75: 141 | B75: HORBOURG WIHR | C75: DCP | D75: TOUS | E75: DARD JOANNA | F75: 201811 | G75: 2018-11-02 | H75: MLT | I75: 93991678 | J75: KLEIN BATI PLACO SAS | K75: 10200 | L75: 1
A76: 141 | B76: HORBOURG WIHR | C76: Sylvie MALISKA | D76: Amandine BLEU | E76: DARD JOANNA | F76: 201811 | G76: 2018-11-02 | H76: MLT | I76: 93991678 | J76: KLEIN BATI PLACO SAS | K76: 10200 | L76: 1
A77: 143 | B77: MUNSTER | C77: DCP | D77: TOUS | E77: MARION CATHERINE | F77: 201811 | G77: 2018-11-02 | H77: MLT | I77: 82395065 | J77: ACR AGENCE COMMERCIALE RINDONE | K77: -5000 | L77: 0
A78: 143 | B78: MUNSTER | C78: Sylvie MALISKA | D78: Catherine MARION | E78: MARION CATHERINE | F78: 201811 | G78: 2018-11-02 | H78: MLT | I78: 82395065 | J78: ACR AGENCE COMMERCIALE RINDONE | K78: -5000 | L78: 0
A79: 148 | B79: ORBEY | C79: DCP | D79: TOUS | E79: SCHILLING PATRICIA | F79: 201811 | G79: 2018-11-09 | H79: PRET CONSOMMATION | I79: 82520927 | J79: MR OU MME MEYER CHRISTOPHE | K79: 47000 | L79: 1
A80: 148 | B80: ORBEY | C80: Sylvie MALISKA | D80: Catherine MARION | E80: SCHILLING PATRICIA | F80: 201811 | G80: 2018-11-09 | H80: PRET CONSOMMATION | I80: 82520927 | J80: MR OU MME MEYER CHRISTOPHE | K80: 47000 | L80: 1
A81: 153 | B81: ROUFFACH | C81: DCP | D81: TOUS | E81: PERARD PAULINE | F81: 201811 | G81: 2018-11-05 | H81: PRET IMMOBILIER | I81: 82460558 | J81: MR OU MME BRUNNER ERIC | K81: 260000 | L81: 1
A82: 153 | B82: ROUFFACH | C82: Sylvie MALISKA | D82: Sophie SALZBORN-SCHULLIAR | E82: PERARD PAULINE | F82: 201811 | G82: 2018-11-05 | H82: PRET IMMOBILIER | I82: 82460558 | J82: MR OU MME BRUNNER ERIC | K82: 260000 | L82: 1
A83: 170 | B83: MULHOUSE REUNION | C83: DCP | D83: TOUS | E83: SALVI MICHAEL | F83: 201811 | G83: 2018-11-06 | H83: PRET CONSOMMATION | I83: 82616303 | J83: MR MICHEL CAMASSES | K83: 10000 | L83: 1
A84: 170 | B84: MULHOUSE REUNION | C84: Sylvie MALISKA | D84: Hocine BOUHIEDA | E84: SALVI MICHAEL | F84: 201811 | G84: 2018-11-06 | H84: PRET CONSOMMATION | I84: 82616303 | J84: MR MICHEL CAMASSES | K84: 10000 | L84: 1
A85: 181 | B85: WITTELSHEIM | C85: DCP | D85: TOUS | E85: JUNG CELINE | F85: 201804 | H85: CREDIT BAIL | I85: 93975333 | J85: SCI PC | K85: 550000 | L85: 1
A86: 181 | B86: WITTELSHEIM | C86: Sylvie MALISKA | D86: Celine JUNG | E86: JUNG CELINE | F86: 201804 | H86: CREDIT BAIL | I86: 93975333 | J86: SCI PC | K86: 550000 | L86: 1
A87: 184 | B87: ILLZACH | C87: DCP | D87: TOUS | E87: KUCK PHILIPPE | F87: 201811 | G87: 2018-11-06 | H87: MLT | I87: 82389302 | J87: AUX DELICATESSES SARL | K87: 16730 | L87: 1
A88: 184 | B88: ILLZACH | C88: Sylvie MALISKA | D88: Thomas HUCK | E88: KUCK PHILIPPE | F88: 201811 | G88: 2018-11-06 | H88: MLT | I88: 82389302 | J88: AUX DELICATESSES SARL | K88: 16730 | L88: 1
A89: 186 | B89: BRUNSTATT | C89: DCP | D89: TOUS | E89: KOBLOTH ALEXANDRE | F89: 201811 | G89: 2018-11-03 | H89: PRET CONSOMMATION | I89: 93846933 | J89: M OU MME KURUN SOYDAN | K89: -34000 | L89: -1
A90: 186 | B90: BRUNSTATT | C90: Sylvie MALISKA | D90: Hocine BOUHIEDA | E90: KOBLOTH ALEXANDRE | F90: 201811 | G90: 2018-11-03 | H90: PRET CONSOMMATION | I90: 93846933 | J90: M OU MME KURUN SOYDAN | K90: -34000 | L90: -1
A91: 187 | B91: HUNINGUE | C91: DCP | D91: TOUS | E91: MILSECK LOREDANA | F91: 201811 | G91: 2018-11-10 | H91: PRET CONSOMMATION | I91: 82815578 | J91: MR JAOUAB ZELLAGUI | K91: -4000 | L91: -1
A92: 187 | B92: HUNINGUE | C92: Sylvie MALISKA | D92: Manon MORGEN | E92: MILSECK LOREDANA | F92: 201811 | G92: 2018-11-10 | H92: PRET CONSOMMATION | I92: 82815578 | J92: MR JAOUAB ZELLAGUI | K92: -4000 | L92: -1
A93: 193 | B93: DANNEMARIE | C93: DCP | D93: TOUS | E93: SIMON ISABELLE | F93: 201811 | G93: 2018-11-08 | H93: PRET CONSOMMATION | I93: 93890889 | J93: M ROHMER ERIC | K93: 50000 | L93: 1
A94: 193 | B94: DANNEMARIE | C94: Sylvie MALISKA | D94: Celine JUNG | E94: SIMON ISABELLE | F94: 201811 | G94: 2018-11-08 | H94: PRET CONSOMMATION | I94: 93890889 | J94: M ROHMER ERIC | K94: 50000 | L94: 1
A95: 195 | B95: CERNAY | C95: DCP | D95: TOUS | E95: GENTILS CEDRIC | F95: 201811 | G95: 2018-11-02 | H95: PRET CONSOMMATION | I95: 82539780 | J95: MR OLIVIER RUDLER | K95: 10000 | L95: 1
A96: 195 | B96: CERNAY | C96: DCP | D96: TOUS | E96: KLINGELSCHMIDT ELSA | F96: 201811 | G96: 2018-11-05 | H96: PRET CONSOMMATION | I96: 82536033 | J96: MLE DOMINIQUE ROST | K96: 3500 | L96: 1
A97: 195 | B97: CERNAY | C97: Sylvie MALISKA | D97: Celine JUNG | E97: GENTILS CEDRIC | F97: 201811 | G97: 2018-11-02 | H97: PRET CONSOMMATION | I97: 82539780 | J97: MR OLIVIER RUDLER | K97: 10000 | L97: 1
A98: 195 | B98: CERNAY | C98: Sylvie MALISKA | D98: Celine JUNG | E98: KLINGELSCHMIDT ELSA | F98: 201811 | G98: 2018-11-05 | H98: PRET CONSOMMATION | I98: 82536033 | J98: MLE DOMINIQUE ROST | K98: 3500 | L98: 1
A99: 199 | B99: CEA | C99: DCP | D99: TOUS | E99: AMAND VICTOR | F99: 201811 | G99: 2018-11-05 | H99: MLT | I99: 92825825 | J99: CTH EURL | K99: 20000 | L99: 1
A100: 199 | B100: CEA | C100: DCP | D100: TOUS | E100: ARCIN CHRISTELLE | F100: 201811 | G100: 2018-11-06 | H100: MLT | I100: 94017189 | J100: STARSEVENTS SAS | K100: -15000 | L100: -1
A101: 199 | B101: CEA | C101: DCP | D101: TOUS | E101: BARINA DRISSIA | F101: 201811 | G101: 2018-11-08 | H101: PRET CONSOMMATION | I101: 93662990 | J101: MLLE SCHEYDER AURELIE | K101: 12000 | L101: 1
A102: 199 | B102: CEA | C102: DCP | D102: TOUS | E102: BLEU AMANDINE | F102: 201811 | G102: 2018-11-06 | H102: PRET CONSOMMATION | I102: 91362425 | J102: M FELDNER CEDRIC OU MLLE FAIVRE | K102: 30000 | L102: 1
A103: 199 | B103: CEA | C103: DCP | D103: TOUS | E103: BLEU AMANDINE | F103: 201811 | G103: 2018-11-09 | H103: PRET IMMOBILIER | I103: 83417948 | J103: MLE CARMEN MARIN | K103: -21183 | L103: 0
A104: 199 | B104: CEA | C104: DCP | D104: TOUS | E104: BOUCHAIB ELODIE | F104: 201811 | G104: 2018-11-09 | H104: MLT | I104: 91908119 | J104: MME HAVELKA KARINE | K104: 14900 | L104: 1
A105: 199 | B105: CEA | C105: DCP | D105: TOUS | E105: CASTELEYN VINCENT | F105: 201811 | G105: 2018-11-07 | H105: MLT | I105: 94073477 | J105: SOCIETE BRUCHOISE DE MECANIQUE | K105: 9000 | L105: 1
A106: 199 | B106: CEA | C106: DCP | D106: TOUS | E106: CASTELEYN VINCENT | F106: 201811 | G106: 2018-11-07 | H106: MLT | I106: 94112255 | J106: SCI DEPRET | K106: 497000 | L106: 1
A107: 199 | B107: CEA | C107: DCP | D107: TOUS | E107: CASTELEYN VINCENT | F107: 201811 | G107: 2018-11-09 | H107: MLT | I107: 94164585 | J107: BOULANGERIE PATISSERIE FRANCIS | K107: 145000 | L107: 1
A108: 199 | B108: CEA | C108: DCP | D108: TOUS | E108: CAZAUX-DEBAT ROSELYNE | F108: 201811 | G108: 2018-11-08 | H108: PRET CONSOMMATION | I108: 82441573 | J108: MR DAVID MANNY | K108: 10000 | L108: 1
A109: 199 | B109: CEA | C109: DCP | D109: TOUS | E109: DARD JOANNA | F109: 201811 | G109: 2018-11-02 | H109: MLT | I109: 93991678 | J109: KLEIN BATI PLACO SAS | K109: 10200 | L109: 1
A110: 199 | B110: CEA | C110: DCP | D110: TOUS | E110: GAUTHIER-LAFAYE Muriel | F110: 201811 | G110: 2018-11-08 | H110: PRET IMMOBILIER | I110: 91734128 | J110: SCI ELJANO | K110: 49090 | L110: 1
A111: 199 | B111: CEA | C111: DCP | D111: TOUS | E111: GENTILS CEDRIC | F111: 201811 | G111: 2018-11-02 | H111: PRET CONSOMMATION | I111: 82539780 | J111: MR OLIVIER RUDLER | K111: 10000 | L111: 1
A112: 199 | B112: CEA | C112: DCP | D112: TOUS | E112: GODIN CAROLINE | F112: 201811 | G112: 2018-11-03 | H112: PRET CONSOMMATION | I112: 92966264 | J112: M MACHTEL PETER | K112: -10000 | L112: -1
A113: 199 | B113: CEA | C113: DCP | D113: TOUS | E113: GOETZ Sylvain | F113: 201811 | G113: 2018-11-02 | H113: PRET CONSOMMATION | I113: 83211791 | J113: MR OLIVIER WURCH | K113: 7000 | L113: 1
A114: 199 | B114: CEA | C114: DCP | D114: TOUS | E114: HEYM LAURENT | F114: 201811 | G114: 2018-11-09 | H114: PRET CONSOMMATION | I114: 83114362 | J114: MR EMERIC LEGRAND | K114: -3900 | L114: 0
A115: 199 | B115: CEA | C115: DCP | D115: TOUS | E115: JUNG CELINE | F115: 201804 | H115: CREDIT BAIL | I115: 93975333 | J115: SCI PC | K115: 550000 | L115: 1
A116: 199 | B116: CEA | C116: DCP | D116: TOUS | E116: KIRCHER CINDY | F116: 201811 | G116: 2018-11-07 | H116: MLT | I116: 83093542 | J116: DR CHRISTINE SCHINI | K116: 48000 | L116: 1
A117: 199 | B117: CEA | C117: DCP | D117: TOUS | E117: KIRCHER CINDY | F117: 201811 | G117: 2018-11-08 | H117: PRET CONSOMMATION | I117: 83193191 | J117: MR OLIVIER FATH | K117: 1200 | L117: 1
A118: 199 | B118: CEA | C118: DCP | D118: TOUS | E118: KLINGELSCHMIDT ELSA | F118: 201811 | G118: 2018-11-05 | H118: PRET CONSOMMATION | I118: 82536033 | J118: MLE DOMINIQUE ROST | K118: 3500 | L118: 1
A119: 199 | B119: CEA | C119: DCP | D119: TOUS | E119: KLOPFENSTEIN VERONIQUE | F119: 201811 | G119: 2018-11-06 | H119: PRET CONSOMMATION | I119: 82760804 | J119: MR OU MME RITZ RAPHAEL | K119: 3500 | L119: 1
A120: 199 | B120: CEA | C120: DCP | D120: TOUS | E120: KOBLOTH ALEXANDRE | F120: 201811 | G120: 2018-11-03 | H120: PRET CONSOMMATION | I120: 93846933 | J120: M OU MME KURUN SOYDAN | K120: -34000 | L120: -1
A121: 199 | B121: CEA | C121: DCP | D121: TOUS | E121: KOCH JONATHAN | F121: 201811 | G121: 2018-11-06 | H121: PRET IMMOBILIER | I121: 92988400 | J121: M FRIEDRICH AURELIEN | K121: -4481.81 | L121: 0
A122: 199 | B122: CEA | C122: DCP | D122: TOUS | E122: KOEHLER CEDRIC | F122: 201811 | G122: 2018-11-09 | H122: PRET CONSOMMATION | I122: 83244677 | J122: MLE MEGANE MAHLER | K122: 25000 | L122: 1
A123: 199 | B123: CEA | C123: DCP | D123: TOUS | E123: KUCK PHILIPPE | F123: 201811 | G123: 2018-11-06 | H123: MLT | I123: 82389302 | J123: AUX DELICATESSES SARL | K123: 16730 | L123: 1
A124: 199 | B124: CEA | C124: DCP | D124: TOUS | E124: MARCALO CATIA | F124: 201811 | G124: 2018-11-06 | H124: MLT | I124: 93830381 | J124: LA BONNE FOURCHETTE SARL | K124: 7000 | L124: 1
A125: 199 | B125: CEA | C125: DCP | D125: TOUS | E125: MARCALO CATIA | F125: 201811 | G125: 2018-11-10 | H125: PRET CONSOMMATION | I125: 82895274 | J125: M OU MME SCHOENENBERGER | K125: -38000 | L125: -1
A126: 199 | B126: CEA | C126: DCP | D126: TOUS | E126: MARION CATHERINE | F126: 201811 | G126: 2018-11-02 | H126: MLT | I126: 82395065 | J126: ACR AGENCE COMMERCIALE RINDONE | K126: -5000 | L126: 0
A127: 199 | B127: CEA | C127: DCP | D127: TOUS | E127: MARION CATHERINE | F127: 201811 | G127: 2018-11-07 | H127: PRET IMMOBILIER | I127: 82802581 | J127: MR THOMAS MISSEMER | K127: 211800 | L127: 1
A128: 199 | B128: CEA | C128: DCP | D128: TOUS | E128: MARION CATHERINE | F128: 201811 | G128: 2018-11-09 | H128: MLT | I128: 82388392 | J128: SAS TM PATRIMOINE ET CONSEILS | K128: 131100 | L128: 1
A129: 199 | B129: CEA | C129: DCP | D129: TOUS | E129: MILSECK LOREDANA | F129: 201811 | G129: 2018-11-10 | H129: PRET CONSOMMATION | I129: 82815578 | J129: MR JAOUAB ZELLAGUI | K129: -4000 | L129: -1
A130: 199 | B130: CEA | C130: DCP | D130: TOUS | E130: OHLMANN SABRINA | F130: 201811 | G130: 2018-11-08 | H130: MLT | I130: 94146261 | J130: SCI VALVERDE | K130: 309000 | L130: 1
A131: 199 | B131: CEA | C131: DCP | D131: TOUS | E131: PELTIER ESTELLE | F131: 201811 | G131: 2018-11-10 | H131: PRET CONSOMMATION | I131: 82434007 | J131: MR PATRICK LAMBACH | K131: 10000 | L131: 1
A132: 199 | B132: CEA | C132: DCP | D132: TOUS | E132: PERARD PAULINE | F132: 201811 | G132: 2018-11-05 | H132: PRET IMMOBILIER | I132: 82460558 | J132: MR OU MME BRUNNER ERIC | K132: 260000 | L132: 1
A133: 199 | B133: CEA | C133: DCP | D133: TOUS | E133: RAVANEL DAMIEN | F133: 201811 | G133: 2018-11-02 | H133: MLT | I133: 94154583 | J133: ZEBILINI ALEXANDRE LAURENT VALE | K133: 55000 | L133: 1
A134: 199 | B134: CEA | C134: DCP | D134: TOUS | E134: RAVANEL DAMIEN | F134: 201811 | G134: 2018-11-06 | H134: PRET IMMOBILIER | I134: 92870240 | J134: MLLE GRAFF A. OU M WITTMER J. | K134: 122025 | L134: 1
A135: 199 | B135: CEA | C135: DCP | D135: TOUS | E135: RICHERT NICOLAS | F135: 201811 | G135: 2018-11-09 | H135: PRET CONSOMMATION | I135: 82653021 | J135: MR OU MME AMARA NATHALIE | K135: -20000 | L135: -1
A136: 199 | B136: CEA | C136: DCP | D136: TOUS | E136: SALVI MICHAEL | F136: 201811 | G136: 2018-11-06 | H136: PRET CONSOMMATION | I136: 82616303 | J136: MR MICHEL CAMASSES | K136: 10000 | L136: 1
A137: 199 | B137: CEA | C137: DCP | D137: TOUS | E137: SCHILLING PATRICIA | F137: 201811 | G137: 2018-11-09 | H137: PRET CONSOMMATION | I137: 82520927 | J137: MR OU MME MEYER CHRISTOPHE | K137: 47000 | L137: 1
A138: 199 | B138: CEA | C138: DCP | D138: TOUS | E138: SCHULTIS Laurent | F138: 201811 | G138: 2018-11-06 | H138: MLT | I138: 83209742 | J138: MLE MARIE JULIE WENCESLAS | K138: 9000 | L138: 1
A139: 199 | B139: CEA | C139: DCP | D139: TOUS | E139: SIMON ISABELLE | F139: 201811 | G139: 2018-11-08 | H139: PRET CONSOMMATION | I139: 93890889 | J139: M ROHMER ERIC | K139: 50000 | L139: 1
A140: 199 | B140: CEA | C140: DCP | D140: TOUS | E140: SPATZ Michel | F140: 201811 | G140: 2018-11-06 | H140: MLT | I140: 82399500 | J140: LE BOIS SUR MESURE EURL | K140: 12500 | L140: 1
A141: 199 | B141: CEA | C141: DCP | D141: TOUS | E141: STARCK Gaetan | F141: 201811 | G141: 2018-11-02 | H141: PRET IMMOBILIER | I141: 82892039 | J141: MLE FRANCE AMSTOUTZ OU MR BRUNO | K141: 172078 | L141: 2
A142: 199 | B142: CEA | C142: DCP | D142: TOUS | E142: WINDHOLTZ FANNY | F142: 201811 | G142: 2018-11-01 | H142: MLT | I142: 93977166 | J142: SCI E2D | K142: -60000 | L142: -1
A143: 199 | B143: CEA | C143: DCP | D143: TOUS | E143: WINDHOLTZ FANNY | F143: 201811 | G143: 2018-11-01 | H143: Prescription Pro | I143: 93977166 | J143: SCI E2D | K143: -60000 | L143: -1
A144: 199 | B144: CEA | C144: DCP | D144: TOUS | E144: ZOUARI AISSA | F144: 201811 | G144: 2018-11-02 | H144: PRET IMMOBILIER | I144: 94100830 | J144: M OU MME SINGH ALVIN | K144: 171874 | L144: 1
A145: 199 | B145: CEA | C145: Michel LIENHARDT | D145: Aissa ZOUARI | E145: BOUCHAIB ELODIE | F145: 201811 | G145: 2018-11-09 | H145: MLT | I145: 91908119 | J145: MME HAVELKA KARINE | K145: 14900 | L145: 1
A146: 199 | B146: CEA | C146: Michel LIENHARDT | D146: Aissa ZOUARI | E146: ZOUARI AISSA | F146: 201811 | G146: 2018-11-02 | H146: PRET IMMOBILIER | I146: 94100830 | J146: M OU MME SINGH ALVIN | K146: 171874 | L146: 1
A147: 199 | B147: CEA | C147: Michel LIENHARDT | D147: Catia MARCALO | E147: BARINA DRISSIA | F147: 201811 | G147: 2018-11-08 | H147: PRET CONSOMMATION | I147: 93662990 | J147: MLLE SCHEYDER AURELIE | K147: 12000 | L147: 1
A148: 199 | B148: CEA | C148: Michel LIENHARDT | D148: Catia MARCALO | E148: MARCALO CATIA | F148: 201811 | G148: 2018-11-06 | H148: MLT | I148: 93830381 | J148: LA BONNE FOURCHETTE SARL | K148: 7000 | L148: 1
A149: 199 | B149: CEA | C149: Michel LIENHARDT | D149: Catia MARCALO | E149: MARCALO CATIA | F149: 201811 | G149: 2018-11-10 | H149: PRET CONSOMMATION | I149: 82895274 | J149: M OU MME SCHOENENBERGER | K149: -38000 | L149: -1
A150: 199 | B150: CEA | C150: Michel LIENHARDT | D150: Cedric KOEHLER | E150: KOEHLER CEDRIC | F150: 201811 | G150: 2018-11-09 | H150: PRET CONSOMMATION | I150: 83244677 | J150: MLE MEGANE MAHLER | K150: 25000 | L150: 1
A151: 199 | B151: CEA | C151: Michel LIENHARDT | D151: Cedric KOEHLER | E151: STARCK Gaetan | F151: 201811 | G151: 2018-11-02 | H151: PRET IMMOBILIER | I151: 82892039 | J151: MLE FRANCE AMSTOUTZ OU MR BRUNO | K151: 172078 | L151: 2
A152: 199 | B152: CEA | C152: Michel LIENHARDT | D152: Christelle ARCIN | E152: ARCIN CHRISTELLE | F152: 201811 | G152: 2018-11-06 | H152: MLT | I152: 94017189 | J152: STARSEVENTS SAS | K152: -15000 | L152: -1
A153: 199 | B153: CEA | C153: Michel LIENHARDT | D153: Cindy KIRCHER | E153: GODIN CAROLINE | F153: 201811 | G153: 2018-11-03 | H153: PRET CONSOMMATION | I153: 92966264 | J153: M MACHTEL PETER | K153: -10000 | L153: -1
A154: 199 | B154: CEA | C154: Michel LIENHARDT | D154: Cindy KIRCHER | E154: KIRCHER CINDY | F154: 201811 | G154: 2018-11-07 | H154: MLT | I154: 83093542 | J154: DR CHRISTINE SCHINI | K154: 48000 | L154: 1
A155: 199 | B155: CEA | C155: Michel LIENHARDT | D155: Cindy KIRCHER | E155: KIRCHER CINDY | F155: 201811 | G155: 2018-11-08 | H155: PRET CONSOMMATION | I155: 83193191 | J155: MR OLIVIER FATH | K155: 1200 | L155: 1
A156: 199 | B156: CEA | C156: Michel LIENHARDT | D156: Cindy KIRCHER | E156: KLOPFENSTEIN VERONIQUE | F156: 201811 | G156: 2018-11-06 | H156: PRET CONSOMMATION | I156: 82760804 | J156: MR OU MME RITZ RAPHAEL | K156: 3500 | L156: 1
A157: 199 | B157: CEA | C157: Michel LIENHARDT | D157: Fanny MOREAU | E157: CASTELEYN VINCENT | F157: 201811 | G157: 2018-11-09 | H157: MLT | I157: 94164585 | J157: BOULANGERIE PATISSERIE FRANCIS | K157: 145000 | L157: 1
A158: 199 | B158: CEA | C158: Michel LIENHARDT | D158: Fanny MOREAU | E158: KOCH JONATHAN | F158: 201811 | G158: 2018-11-06 | H158: PRET IMMOBILIER | I158: 92988400 | J158: M FRIEDRICH AURELIEN | K158: -4481.81 | L158: 0
